Workbook

Sheet 必ずこのシートから始めてください
E3: 空調年間活動量算定ツール(EHP版) | M3: Ver.2.1
C5: 電気式パッケージエアコン(EHP)の年間電力使用量の算定
D8: ここから スタート | E8: EHPを設置する都道府県を選択 | K8: 選択
D10: γ 既定値 | E10: 選択した都道府県庁所在地 | K10: 自動表示 | L10: =IF($L$8="","",VLOOKUP($L$8,γ一覧表!$C$3:$F$50,2,FALSE)) -> 
E12: 都道府県庁所在地の【暖・冷房負荷比：γ値】 | K12: 自動表示 | L12: =IF($L$8="","",VLOOKUP($L$8,γ一覧表!$C$3:$F$50,3,FALSE)) -> 
E14: 表示された【γ値】で使用するシート | K14: 自動表示 | L14: =IF($L$8="","",VLOOKUP($L$8,γ一覧表!$C$3:$F$50,4,FALSE)) -> 
D16: 使用するシートを選択(各シートが開く)
G17: 温暖地(γ既定値) | I17: 寒冷地(γ既定値)
D20: 都道府県庁所在地と気候条件が大きく異なる場合、以下にγ値を入力し、表示されたシートを使用
D22: γ 個別入力 | E22: 都道府県庁所在地の既定値以外を使用する場合の【γ値】 | K22: 入力 | N22: =ROUNDUP($L$22,1) -> 0
E24: 入力した【γ値】で使用するシート | K24: 自動表示 | L24: =IF($L$22="","",VLOOKUP($N$22,γ一覧表!$I$3:$J$50,2)) -> 
D26: 使用するシートを選択(各シートが開く)
G27: 温暖地(γ個別入力) | I27: 寒冷地(γ個別入力)
D30: 注意事項 | E30: ●【γ値】とは設備設計時の空調負荷計算における最大暖房負荷と最大冷房負荷の比率。
E31: 負荷の大きな方で空調機の機種選定がなされたものとする。冷房負荷に対して選択した場合はγ≦1である。
E32: ● 本ツールは環境省SHIFT事業で年間活動量(電力使用量)を算出するために開発。他の目的に利用することは想定されていません。
E33: ● あらゆる入力に対して正しい計算結果が得られることを保証するものではありません。
E34: 計算結果の取り扱いについては、自己責任でお願いします。

Sheet 温暖地(γ既定値)
C2: EHPの設置場所
C3: =IF(必ずこのシートから始めてください!$L$8="","",必ずこのシートから始めてください!$L$8) ->  | F3: 手順1：空調を行う月、時間を下記の指定の色で塗る(指定の色以外で塗ると計算できません。)
C4: =VLOOKUP($C$3,γ一覧表!$C$3:$E$50,2,FALSE) ->  | G4: 冷房 | H4: 青 | I4: 【左から5列目、一番薄い色(アクセント1,白＋基本色80％)】
G5: 暖房 | H5: オレンジ | I5: 【左から6番目、一番薄い色(アクセント2,白＋基本色80％)】
C6: 使用するγ値 | F6: 手順2：各月の運転日数を入力する
C7: =IFERROR(IF(VLOOKUP($C$3,γ一覧表!$C$3:$E$50,3,FALSE)>1,"---",IFERROR(VLOOKUP($C$3,γ一覧表!$C$3:$E$50,3,FALSE),"---")),"---") -> --- | F7: 手順3：Ctrl + Alt + F9を同時に押す | R7: ●時刻別平均気温表記載の数値は、選択された都道府県の県庁所在地の月別、時刻別平均気温
F8: 手順4：黄色のセルに値を入力する(緑は自動計算) | R8: ●本データは気象庁発表の1992年4月1日から2022年3月31日までの30年の1時間データを整理したもの
C9: 時刻別平均気温[℃] | R9: ●2月はうるう日を含みます
D10: 時刻 | AB10: =SUM($AB$11:$AB$23) -> 0 | AC10: =必ずこのシートから始めてください!M3 -> Ver.2.1
C11: 月 | D11: 0 | E11: 1 | F11: 2 | G11: 3 | H11: 4 | I11: 5 | J11: 6 | K11: 7 | L11: 8 | M11: 9 | N11: 10 | O11: 11 | P11: 12 | Q11: 13 | R11: 14 | S11: 15 | T11: 16 | U11: 17 | V11: 18 | W11: 19 | X11: 20 | Y11: 21 | Z11: 22 | AA11: 23 | AB11: 運転日数 | AC11: 月
C12: 4 | D12: =IFERROR(INDIRECT($C$4&"!B5"),"") ->  | E12: =IFERROR(INDIRECT($C$4&"!C5"),"") ->  | F12: =IFERROR(INDIRECT($C$4&"!D5"),"") ->  | G12: =IFERROR(INDIRECT($C$4&"!E5"),"") ->  | H12: =IFERROR(INDIRECT($C$4&"!F5"),"") ->  | I12: =IFERROR(INDIRECT($C$4&"!G5"),"") ->  | J12: =IFERROR(INDIRECT($C$4&"!H5"),"") ->  | K12: =IFERROR(INDIRECT($C$4&"!I5"),"") ->  | L12: =IFERROR(INDIRECT($C$4&"!J5"),"") ->  | M12: =IFERROR(INDIRECT($C$4&"!K5"),"") ->  | N12: =IFERROR(INDIRECT($C$4&"!L5"),"") ->  | O12: =IFERROR(INDIRECT($C$4&"!M5"),"") ->  | P12: =IFERROR(INDIRECT($C$4&"!N5"),"") ->  | Q12: =IFERROR(INDIRECT($C$4&"!O5"),"") ->  | R12: =IFERROR(INDIRECT($C$4&"!P5"),"") ->  | S12: =IFERROR(INDIRECT($C$4&"!Q5"),"") ->  | T12: =IFERROR(INDIRECT($C$4&"!R5"),"") ->  | U12: =IFERROR(INDIRECT($C$4&"!S5"),"") ->  | V12: =IFERROR(INDIRECT($C$4&"!T5"),"") ->  | W12: =IFERROR(INDIRECT($C$4&"!U5"),"") ->  | X12: =IFERROR(INDIRECT($C$4&"!V5"),"") ->  | Y12: =IFERROR(INDIRECT($C$4&"!W5"),"") ->  | Z12: =IFERROR(INDIRECT($C$4&"!X5"),"") ->  | AA12: =IFERROR(INDIRECT($C$4&"!Y5"),"") ->  | AC12: 4
C13: 5 | D13: =IFERROR(INDIRECT($C$4&"!B6"),"") ->  | E13: =IFERROR(INDIRECT($C$4&"!C6"),"") ->  | F13: =IFERROR(INDIRECT($C$4&"!D6"),"") ->  | G13: =IFERROR(INDIRECT($C$4&"!E6"),"") ->  | H13: =IFERROR(INDIRECT($C$4&"!F6"),"") ->  | I13: =IFERROR(INDIRECT($C$4&"!G6"),"") ->  | J13: =IFERROR(INDIRECT($C$4&"!H6"),"") ->  | K13: =IFERROR(INDIRECT($C$4&"!I6"),"") ->  | L13: =IFERROR(INDIRECT($C$4&"!J6"),"") ->  | M13: =IFERROR(INDIRECT($C$4&"!K6"),"") ->  | N13: =IFERROR(INDIRECT($C$4&"!L6"),"") ->  | O13: =IFERROR(INDIRECT($C$4&"!M6"),"") ->  | P13: =IFERROR(INDIRECT($C$4&"!N6"),"") ->  | Q13: =IFERROR(INDIRECT($C$4&"!O6"),"") ->  | R13: =IFERROR(INDIRECT($C$4&"!P6"),"") ->  | S13: =IFERROR(INDIRECT($C$4&"!Q6"),"") ->  | T13: =IFERROR(INDIRECT($C$4&"!R6"),"") ->  | U13: =IFERROR(INDIRECT($C$4&"!S6"),"") ->  | V13: =IFERROR(INDIRECT($C$4&"!T6"),"") ->  | W13: =IFERROR(INDIRECT($C$4&"!U6"),"") ->  | X13: =IFERROR(INDIRECT($C$4&"!V6"),"") ->  | Y13: =IFERROR(INDIRECT($C$4&"!W6"),"") ->  | Z13: =IFERROR(INDIRECT($C$4&"!X6"),"") ->  | AA13: =IFERROR(INDIRECT($C$4&"!Y6"),"") ->  | AC13: 5
C14: 6 | D14: =IFERROR(INDIRECT($C$4&"!B7"),"") ->  | E14: =IFERROR(INDIRECT($C$4&"!C7"),"") ->  | F14: =IFERROR(INDIRECT($C$4&"!D7"),"") ->  | G14: =IFERROR(INDIRECT($C$4&"!E7"),"") ->  | H14: =IFERROR(INDIRECT($C$4&"!F7"),"") ->  | I14: =IFERROR(INDIRECT($C$4&"!G7"),"") ->  | J14: =IFERROR(INDIRECT($C$4&"!H7"),"") ->  | K14: =IFERROR(INDIRECT($C$4&"!I7"),"") ->  | L14: =IFERROR(INDIRECT($C$4&"!J7"),"") ->  | M14: =IFERROR(INDIRECT($C$4&"!K7"),"") ->  | N14: =IFERROR(INDIRECT($C$4&"!L7"),"") ->  | O14: =IFERROR(INDIRECT($C$4&"!M7"),"") ->  | P14: =IFERROR(INDIRECT($C$4&"!N7"),"") ->  | Q14: =IFERROR(INDIRECT($C$4&"!O7"),"") ->  | R14: =IFERROR(INDIRECT($C$4&"!P7"),"") ->  | S14: =IFERROR(INDIRECT($C$4&"!Q7"),"") ->  | T14: =IFERROR(INDIRECT($C$4&"!R7"),"") ->  | U14: =IFERROR(INDIRECT($C$4&"!S7"),"") ->  | V14: =IFERROR(INDIRECT($C$4&"!T7"),"") ->  | W14: =IFERROR(INDIRECT($C$4&"!U7"),"") ->  | X14: =IFERROR(INDIRECT($C$4&"!V7"),"") ->  | Y14: =IFERROR(INDIRECT($C$4&"!W7"),"") ->  | Z14: =IFERROR(INDIRECT($C$4&"!X7"),"") ->  | AA14: =IFERROR(INDIRECT($C$4&"!Y7"),"") ->  | AC14: 6
C15: 7 | D15: =IFERROR(INDIRECT($C$4&"!B8"),"") ->  | E15: =IFERROR(INDIRECT($C$4&"!C8"),"") ->  | F15: =IFERROR(INDIRECT($C$4&"!D8"),"") ->  | G15: =IFERROR(INDIRECT($C$4&"!E8"),"") ->  | H15: =IFERROR(INDIRECT($C$4&"!F8"),"") ->  | I15: =IFERROR(INDIRECT($C$4&"!G8"),"") ->  | J15: =IFERROR(INDIRECT($C$4&"!H8"),"") ->  | K15: =IFERROR(INDIRECT($C$4&"!I8"),"") ->  | L15: =IFERROR(INDIRECT($C$4&"!J8"),"") ->  | M15: =IFERROR(INDIRECT($C$4&"!K8"),"") ->  | N15: =IFERROR(INDIRECT($C$4&"!L8"),"") ->  | O15: =IFERROR(INDIRECT($C$4&"!M8"),"") ->  | P15: =IFERROR(INDIRECT($C$4&"!N8"),"") ->  | Q15: =IFERROR(INDIRECT($C$4&"!O8"),"") ->  | R15: =IFERROR(INDIRECT($C$4&"!P8"),"") ->  | S15: =IFERROR(INDIRECT($C$4&"!Q8"),"") ->  | T15: =IFERROR(INDIRECT($C$4&"!R8"),"") ->  | U15: =IFERROR(INDIRECT($C$4&"!S8"),"") ->  | V15: =IFERROR(INDIRECT($C$4&"!T8"),"") ->  | W15: =IFERROR(INDIRECT($C$4&"!U8"),"") ->  | X15: =IFERROR(INDIRECT($C$4&"!V8"),"") ->  | Y15: =IFERROR(INDIRECT($C$4&"!W8"),"") ->  | Z15: =IFERROR(INDIRECT($C$4&"!X8"),"") ->  | AA15: =IFERROR(INDIRECT($C$4&"!Y8"),"") ->  | AC15: 7
C16: 8 | D16: =IFERROR(INDIRECT($C$4&"!B9"),"") ->  | E16: =IFERROR(INDIRECT($C$4&"!C9"),"") ->  | F16: =IFERROR(INDIRECT($C$4&"!D9"),"") ->  | G16: =IFERROR(INDIRECT($C$4&"!E9"),"") ->  | H16: =IFERROR(INDIRECT($C$4&"!F9"),"") ->  | I16: =IFERROR(INDIRECT($C$4&"!G9"),"") ->  | J16: =IFERROR(INDIRECT($C$4&"!H9"),"") ->  | K16: =IFERROR(INDIRECT($C$4&"!I9"),"") ->  | L16: =IFERROR(INDIRECT($C$4&"!J9"),"") ->  | M16: =IFERROR(INDIRECT($C$4&"!K9"),"") ->  | N16: =IFERROR(INDIRECT($C$4&"!L9"),"") ->  | O16: =IFERROR(INDIRECT($C$4&"!M9"),"") ->  | P16: =IFERROR(INDIRECT($C$4&"!N9"),"") ->  | Q16: =IFERROR(INDIRECT($C$4&"!O9"),"") ->  | R16: =IFERROR(INDIRECT($C$4&"!P9"),"") ->  | S16: =IFERROR(INDIRECT($C$4&"!Q9"),"") ->  | T16: =IFERROR(INDIRECT($C$4&"!R9"),"") ->  | U16: =IFERROR(INDIRECT($C$4&"!S9"),"") ->  | V16: =IFERROR(INDIRECT($C$4&"!T9"),"") ->  | W16: =IFERROR(INDIRECT($C$4&"!U9"),"") ->  | X16: =IFERROR(INDIRECT($C$4&"!V9"),"") ->  | Y16: =IFERROR(INDIRECT($C$4&"!W9"),"") ->  | Z16: =IFERROR(INDIRECT($C$4&"!X9"),"") ->  | AA16: =IFERROR(INDIRECT($C$4&"!Y9"),"") ->  | AC16: 8
C17: 9 | D17: =IFERROR(INDIRECT($C$4&"!B10"),"") ->  | E17: =IFERROR(INDIRECT($C$4&"!C10"),"") ->  | F17: =IFERROR(INDIRECT($C$4&"!D10"),"") ->  | G17: =IFERROR(INDIRECT($C$4&"!E10"),"") ->  | H17: =IFERROR(INDIRECT($C$4&"!F10"),"") ->  | I17: =IFERROR(INDIRECT($C$4&"!G10"),"") ->  | J17: =IFERROR(INDIRECT($C$4&"!H10"),"") ->  | K17: =IFERROR(INDIRECT($C$4&"!I10"),"") ->  | L17: =IFERROR(INDIRECT($C$4&"!J10"),"") ->  | M17: =IFERROR(INDIRECT($C$4&"!K10"),"") ->  | N17: =IFERROR(INDIRECT($C$4&"!L10"),"") ->  | O17: =IFERROR(INDIRECT($C$4&"!M10"),"") ->  | P17: =IFERROR(INDIRECT($C$4&"!N10"),"") ->  | Q17: =IFERROR(INDIRECT($C$4&"!O10"),"") ->  | R17: =IFERROR(INDIRECT($C$4&"!P10"),"") ->  | S17: =IFERROR(INDIRECT($C$4&"!Q10"),"") ->  | T17: =IFERROR(INDIRECT($C$4&"!R10"),"") ->  | U17: =IFERROR(INDIRECT($C$4&"!S10"),"") ->  | V17: =IFERROR(INDIRECT($C$4&"!T10"),"") ->  | W17: =IFERROR(INDIRECT($C$4&"!U10"),"") ->  | X17: =IFERROR(INDIRECT($C$4&"!V10"),"") ->  | Y17: =IFERROR(INDIRECT($C$4&"!W10"),"") ->  | Z17: =IFERROR(INDIRECT($C$4&"!X10"),"") ->  | AA17: =IFERROR(INDIRECT($C$4&"!Y10"),"") ->  | AC17: 9
C18: 10 | D18: =IFERROR(INDIRECT($C$4&"!B11"),"") ->  | E18: =IFERROR(INDIRECT($C$4&"!C11"),"") ->  | F18: =IFERROR(INDIRECT($C$4&"!D11"),"") ->  | G18: =IFERROR(INDIRECT($C$4&"!E11"),"") ->  | H18: =IFERROR(INDIRECT($C$4&"!F11"),"") ->  | I18: =IFERROR(INDIRECT($C$4&"!G11"),"") ->  | J18: =IFERROR(INDIRECT($C$4&"!H11"),"") ->  | K18: =IFERROR(INDIRECT($C$4&"!I11"),"") ->  | L18: =IFERROR(INDIRECT($C$4&"!J11"),"") ->  | M18: =IFERROR(INDIRECT($C$4&"!K11"),"") ->  | N18: =IFERROR(INDIRECT($C$4&"!L11"),"") ->  | O18: =IFERROR(INDIRECT($C$4&"!M11"),"") ->  | P18: =IFERROR(INDIRECT($C$4&"!N11"),"") ->  | Q18: =IFERROR(INDIRECT($C$4&"!O11"),"") ->  | R18: =IFERROR(INDIRECT($C$4&"!P11"),"") ->  | S18: =IFERROR(INDIRECT($C$4&"!Q11"),"") ->  | T18: =IFERROR(INDIRECT($C$4&"!R11"),"") ->  | U18: =IFERROR(INDIRECT($C$4&"!S11"),"") ->  | V18: =IFERROR(INDIRECT($C$4&"!T11"),"") ->  | W18: =IFERROR(INDIRECT($C$4&"!U11"),"") ->  | X18: =IFERROR(INDIRECT($C$4&"!V11"),"") ->  | Y18: =IFERROR(INDIRECT($C$4&"!W11"),"") ->  | Z18: =IFERROR(INDIRECT($C$4&"!X11"),"") ->  | AA18: =IFERROR(INDIRECT($C$4&"!Y11"),"") ->  | AC18: 10
C19: 11 | D19: =IFERROR(INDIRECT($C$4&"!B12"),"") ->  | E19: =IFERROR(INDIRECT($C$4&"!C12"),"") ->  | F19: =IFERROR(INDIRECT($C$4&"!D12"),"") ->  | G19: =IFERROR(INDIRECT($C$4&"!E12"),"") ->  | H19: =IFERROR(INDIRECT($C$4&"!F12"),"") ->  | I19: =IFERROR(INDIRECT($C$4&"!G12"),"") ->  | J19: =IFERROR(INDIRECT($C$4&"!H12"),"") ->  | K19: =IFERROR(INDIRECT($C$4&"!I12"),"") ->  | L19: =IFERROR(INDIRECT($C$4&"!J12"),"") ->  | M19: =IFERROR(INDIRECT($C$4&"!K12"),"") ->  | N19: =IFERROR(INDIRECT($C$4&"!L12"),"") ->  | O19: =IFERROR(INDIRECT($C$4&"!M12"),"") ->  | P19: =IFERROR(INDIRECT($C$4&"!N12"),"") ->  | Q19: =IFERROR(INDIRECT($C$4&"!O12"),"") ->  | R19: =IFERROR(INDIRECT($C$4&"!P12"),"") ->  | S19: =IFERROR(INDIRECT($C$4&"!Q12"),"") ->  | T19: =IFERROR(INDIRECT($C$4&"!R12"),"") ->  | U19: =IFERROR(INDIRECT($C$4&"!S12"),"") ->  | V19: =IFERROR(INDIRECT($C$4&"!T12"),"") ->  | W19: =IFERROR(INDIRECT($C$4&"!U12"),"") ->  | X19: =IFERROR(INDIRECT($C$4&"!V12"),"") ->  | Y19: =IFERROR(INDIRECT($C$4&"!W12"),"") ->  | Z19: =IFERROR(INDIRECT($C$4&"!X12"),"") ->  | AA19: =IFERROR(INDIRECT($C$4&"!Y12"),"") ->  | AC19: 11
C20: 12 | D20: =IFERROR(INDIRECT($C$4&"!B13"),"") ->  | E20: =IFERROR(INDIRECT($C$4&"!C13"),"") ->  | F20: =IFERROR(INDIRECT($C$4&"!D13"),"") ->  | G20: =IFERROR(INDIRECT($C$4&"!E13"),"") ->  | H20: =IFERROR(INDIRECT($C$4&"!F13"),"") ->  | I20: =IFERROR(INDIRECT($C$4&"!G13"),"") ->  | J20: =IFERROR(INDIRECT($C$4&"!H13"),"") ->  | K20: =IFERROR(INDIRECT($C$4&"!I13"),"") ->  | L20: =IFERROR(INDIRECT($C$4&"!J13"),"") ->  | M20: =IFERROR(INDIRECT($C$4&"!K13"),"") ->  | N20: =IFERROR(INDIRECT($C$4&"!L13"),"") ->  | O20: =IFERROR(INDIRECT($C$4&"!M13"),"") ->  | P20: =IFERROR(INDIRECT($C$4&"!N13"),"") ->  | Q20: =IFERROR(INDIRECT($C$4&"!O13"),"") ->  | R20: =IFERROR(INDIRECT($C$4&"!P13"),"") ->  | S20: =IFERROR(INDIRECT($C$4&"!Q13"),"") ->  | T20: =IFERROR(INDIRECT($C$4&"!R13"),"") ->  | U20: =IFERROR(INDIRECT($C$4&"!S13"),"") ->  | V20: =IFERROR(INDIRECT($C$4&"!T13"),"") ->  | W20: =IFERROR(INDIRECT($C$4&"!U13"),"") ->  | X20: =IFERROR(INDIRECT($C$4&"!V13"),"") ->  | Y20: =IFERROR(INDIRECT($C$4&"!W13"),"") ->  | Z20: =IFERROR(INDIRECT($C$4&"!X13"),"") ->  | AA20: =IFERROR(INDIRECT($C$4&"!Y13"),"") ->  | AC20: 12
C21: 1 | D21: =IFERROR(INDIRECT($C$4&"!B14"),"") ->  | E21: =IFERROR(INDIRECT($C$4&"!C14"),"") ->  | F21: =IFERROR(INDIRECT($C$4&"!D14"),"") ->  | G21: =IFERROR(INDIRECT($C$4&"!E14"),"") ->  | H21: =IFERROR(INDIRECT($C$4&"!F14"),"") ->  | I21: =IFERROR(INDIRECT($C$4&"!G14"),"") ->  | J21: =IFERROR(INDIRECT($C$4&"!H14"),"") ->  | K21: =IFERROR(INDIRECT($C$4&"!I14"),"") ->  | L21: =IFERROR(INDIRECT($C$4&"!J14"),"") ->  | M21: =IFERROR(INDIRECT($C$4&"!K14"),"") ->  | N21: =IFERROR(INDIRECT($C$4&"!L14"),"") ->  | O21: =IFERROR(INDIRECT($C$4&"!M14"),"") ->  | P21: =IFERROR(INDIRECT($C$4&"!N14"),"") ->  | Q21: =IFERROR(INDIRECT($C$4&"!O14"),"") ->  | R21: =IFERROR(INDIRECT($C$4&"!P14"),"") ->  | S21: =IFERROR(INDIRECT($C$4&"!Q14"),"") ->  | T21: =IFERROR(INDIRECT($C$4&"!R14"),"") ->  | U21: =IFERROR(INDIRECT($C$4&"!S14"),"") ->  | V21: =IFERROR(INDIRECT($C$4&"!T14"),"") ->  | W21: =IFERROR(INDIRECT($C$4&"!U14"),"") ->  | X21: =IFERROR(INDIRECT($C$4&"!V14"),"") ->  | Y21: =IFERROR(INDIRECT($C$4&"!W14"),"") ->  | Z21: =IFERROR(INDIRECT($C$4&"!X14"),"") ->  | AA21: =IFERROR(INDIRECT($C$4&"!Y14"),"") ->  | AC21: 1
C22: 2 | D22: =IFERROR(INDIRECT($C$4&"!B15"),"") ->  | E22: =IFERROR(INDIRECT($C$4&"!C15"),"") ->  | F22: =IFERROR(INDIRECT($C$4&"!D15"),"") ->  | G22: =IFERROR(INDIRECT($C$4&"!E15"),"") ->  | H22: =IFERROR(INDIRECT($C$4&"!F15"),"") ->  | I22: =IFERROR(INDIRECT($C$4&"!G15"),"") ->  | J22: =IFERROR(INDIRECT($C$4&"!H15"),"") ->  | K22: =IFERROR(INDIRECT($C$4&"!I15"),"") ->  | L22: =IFERROR(INDIRECT($C$4&"!J15"),"") ->  | M22: =IFERROR(INDIRECT($C$4&"!K15"),"") ->  | N22: =IFERROR(INDIRECT($C$4&"!L15"),"") ->  | O22: =IFERROR(INDIRECT($C$4&"!M15"),"") ->  | P22: =IFERROR(INDIRECT($C$4&"!N15"),"") ->  | Q22: =IFERROR(INDIRECT($C$4&"!O15"),"") ->  | R22: =IFERROR(INDIRECT($C$4&"!P15"),"") ->  | S22: =IFERROR(INDIRECT($C$4&"!Q15"),"") ->  | T22: =IFERROR(INDIRECT($C$4&"!R15"),"") ->  | U22: =IFERROR(INDIRECT($C$4&"!S15"),"") ->  | V22: =IFERROR(INDIRECT($C$4&"!T15"),"") ->  | W22: =IFERROR(INDIRECT($C$4&"!U15"),"") ->  | X22: =IFERROR(INDIRECT($C$4&"!V15"),"") ->  | Y22: =IFERROR(INDIRECT($C$4&"!W15"),"") ->  | Z22: =IFERROR(INDIRECT($C$4&"!X15"),"") ->  | AA22: =IFERROR(INDIRECT($C$4&"!Y15"),"") ->  | AC22: 2
C23: 3 | D23: =IFERROR(INDIRECT($C$4&"!B16"),"") ->  | E23: =IFERROR(INDIRECT($C$4&"!C16"),"") ->  | F23: =IFERROR(INDIRECT($C$4&"!D16"),"") ->  | G23: =IFERROR(INDIRECT($C$4&"!E16"),"") ->  | H23: =IFERROR(INDIRECT($C$4&"!F16"),"") ->  | I23: =IFERROR(INDIRECT($C$4&"!G16"),"") ->  | J23: =IFERROR(INDIRECT($C$4&"!H16"),"") ->  | K23: =IFERROR(INDIRECT($C$4&"!I16"),"") ->  | L23: =IFERROR(INDIRECT($C$4&"!J16"),"") ->  | M23: =IFERROR(INDIRECT($C$4&"!K16"),"") ->  | N23: =IFERROR(INDIRECT($C$4&"!L16"),"") ->  | O23: =IFERROR(INDIRECT($C$4&"!M16"),"") ->  | P23: =IFERROR(INDIRECT($C$4&"!N16"),"") ->  | Q23: =IFERROR(INDIRECT($C$4&"!O16"),"") ->  | R23: =IFERROR(INDIRECT($C$4&"!P16"),"") ->  | S23: =IFERROR(INDIRECT($C$4&"!Q16"),"") ->  | T23: =IFERROR(INDIRECT($C$4&"!R16"),"") ->  | U23: =IFERROR(INDIRECT($C$4&"!S16"),"") ->  | V23: =IFERROR(INDIRECT($C$4&"!T16"),"") ->  | W23: =IFERROR(INDIRECT($C$4&"!U16"),"") ->  | X23: =IFERROR(INDIRECT($C$4&"!V16"),"") ->  | Y23: =IFERROR(INDIRECT($C$4&"!W16"),"") ->  | Z23: =IFERROR(INDIRECT($C$4&"!X16"),"") ->  | AA23: =IFERROR(INDIRECT($C$4&"!Y16"),"") ->  | AC23: 3
D25: 共通 | E25: 冷房負荷ゼロ点 | G25: 冷房が不要になると思われる外気温度を入力 | L25: Tco | M25: 18 | N25: ℃
E26: 暖房負荷ゼロ点 | G26: 暖房が不要になると思われる外気温度を入力 | L26: Two | M26: 12 | N26: ℃
D28: 設備導入前 | Q28: 前1 | R28: 前2 | S28: 前3 | T28: 前4 | U28: 前5 | V28: 前6 | W28: 前7 | X28: 前8 | Y28: 前9 | Z28: 前10
E29: 定格冷房能力 | G29: EHPの仕様を入力 | P29: Φco | Q29: 22 | AA29: kW
E30: 定格冷房消費電力 | G30: EHPの仕様を入力 | P30: Pco | Q30: 6.6 | AA30: kW
E31: 定格冷房COP | G31: 自動計算 | P31: σco | Q31: =IFERROR(Q$29/Q$30,"") -> 3.333333333 | AA31: σco＝Φco／Pco
E32: 定格暖房能力 | G32: EHPの仕様を入力 | P32: Φwo | Q32: 25 | AA32: kW
E33: 定格暖房消費電力 | G33: EHPの仕様を入力 | P33: Pwo | Q33: 6.4 | AA33: kW
E34: 定格暖房COP | G34: 自動計算 | P34: σwo | Q34: =IFERROR(Q$32/Q$33,"") -> 3.90625 | R34: =IFERROR(R$32/R$33,"") ->  | Z34: =IFERROR(Z$32/Z$33,"") ->  | AA34: σwo＝Φwo／Pwo
E35: 最大冷房負荷 | G35: 設計時の値を入力（不明の際は空白のまま） | P35: Qc | AA35: kW
E36: 台数 | G36: 同じ容量のEHPの台数を入力 | AA36: 台
E37: 機器選定余裕率 | G37: 自動計算 | P37: fs= | Q37: =IF(Q$35="",0.8,IF(Q$35=0,0.8,IF(Q$29<Q$35,1,Q$35/Q$29))) -> 0.8 | R37: =IF(R$35="",0.8,IF(R$35=0,0.8,IF(R$29<R$35,1,R$35/R$29))) -> 0.8 | S37: =IF(S$35="",0.8,IF(S$35=0,0.8,IF(S$29<S$35,1,S$35/S$29))) -> 0.8 | T37: =IF(T$35="",0.8,IF(T$35=0,0.8,IF(T$29<T$35,1,T$35/T$29))) -> 0.8 | U37: =IF(U$35="",0.8,IF(U$35=0,0.8,IF(U$29<U$35,1,U$35/U$29))) -> 0.8 | V37: =IF(V$35="",0.8,IF(V$35=0,0.8,IF(V$29<V$35,1,V$35/V$29))) -> 0.8 | W37: 0.8 | X37: 0.8 | Y37: 0.8 | Z37: 0.8
D42: 設備導入後 | Q42: 後1 | R42: 後2 | S42: 後3 | T42: 後4 | U42: 後5 | V42: 後6 | W42: 後7 | X42: 後8 | Y42: 後9 | Z42: 後10
E43: 定格冷房能力 | G43: EHPの仕様を入力 | P43: Φco | AA43: kW
E44: 定格冷房消費電力 | G44: EHPの仕様を入力 | P44: Pco | AA44: kW
E45: 定格冷房COP | G45: 自動計算 | P45: σco | Q45: =IFERROR(Q$43/Q$44,"") ->  | AA45: σco＝Φco／Pco
E46: 定格暖房能力 | G46: EHPの仕様を入力 | P46: Φwo | AA46: kW
E47: 定格暖房消費電力 | G47: EHPの仕様を入力 | P47: Pwo | AA47: kW
E48: 定格暖房COP | G48: 自動計算 | P48: σwo | Q48: =IFERROR(Q$46/Q$47,"") ->  | AA48: σwo＝Φwo／Pwo
E49: 最大冷房負荷 | G49: 設計時の値を入力（不明の際は空白のまま） | P49: Qc | AA49: kW
E50: 台数 | G50: 同じ容量のEHPの台数を入力 | AA50: 台
E51: 機器選定余裕率 | G51: 自動計算 | P51: fs= | Q51: =IF(Q$49="",0.8,IF(Q$49=0,0.8,IF(Q$43<Q$49,1,Q$49/Q$43))) -> 0.8 | R51: =IF(R$49="",0.8,IF(R$49=0,0.8,IF(R$43<R$49,1,R$49/R$43))) -> 0.8 | S51: =IF(S$49="",0.8,IF(S$49=0,0.8,IF(S$43<S$49,1,S$49/S$43))) -> 0.8 | T51: 0.8 | U51: 0.8 | V51: 0.8 | W51: 0.8 | X51: 0.8 | Y51: 0.8 | Z51: =IF(Z$49="",0.8,IF(Z$49=0,0.8,IF(Z$43<Z$49,1,Z$49/Z$43))) -> 0.8
C56: 設備導入前電力使用量[kWh]
D57: 冷房(Ec) | F57: 暖房(Ew) | H57: 合計(Ecw)
D58: =IFERROR(D74*F60+G74*I60+J74*L60+M74*O60+P74*R60+S74*U60+V74*X60+Y74*AA60+AB74*AD60+AE74*AG60,"") -> 0 | F58: =IFERROR(E74*F60+H74*I60+K74*L60+N74*O60+Q74*R60+T74*U60+W74*X60+Z74*AA60+AC74*AD60+AF74*AG60,"") -> 0 | H58: =IFERROR(SUM(D58:G58),"") -> 0
C60: 1台当たり | D60: 前1 | F60: =IF(Q36="",1,Q36) -> 1 | G60: 前2 | I60: =IF(R36="",1,R36) -> 1 | J60: 前3 | L60: =IF(S36="",1,S36) -> 1 | M60: 前4 | O60: =IF(T36="",1,T36) -> 1 | P60: 前5 | R60: =IF(U36="",1,U36) -> 1 | S60: 前6 | U60: =IF(V36="",1,V36) -> 1 | V60: 前7 | X60: =IF(W36="",1,W36) -> 1 | Y60: 前8 | AA60: =IF(X36="",1,X36) -> 1 | AB60: 前9 | AD60: =IF(Y36="",1,Y36) -> 1 | AE60: 前10 | AG60: =IF(Z36="",1,Z36) -> 1 | AH60: 1台当たり
C61: 月 期間 | D61: 冷房 | E61: 暖房 | F61: 月合計 | G61: 冷房 | H61: 暖房 | I61: 月合計 | J61: 冷房 | K61: 暖房 | L61: 月合計 | M61: 冷房 | N61: 暖房 | O61: 月合計 | P61: 冷房 | Q61: 暖房 | R61: 月合計 | S61: 冷房 | T61: 暖房 | U61: 月合計 | V61: 冷房 | W61: 暖房 | X61: 月合計 | Y61: 冷房 | Z61: 暖房 | AA61: 月合計 | AB61: 冷房 | AC61: 暖房 | AD61: 月合計 | AE61: 冷房 | AF61: 暖房 | AG61: 月合計 | AH61: 期間 月
C62: 4 | D62: =IF($C$7="---","",IFERROR($Q$29/$Q$31*$AU149*$Q$37,"")) ->  | E62: =IFERROR(($Q$29*$C$7)/($Q$34)*$AU289*$Q$37,"") ->  | F62: =IFERROR(SUM(D62:E62),"") -> 0 | G62: =IF($C$7="---","",IFERROR($R$29/$R$31*$AV149*$R$37,"")) ->  | H62: =IFERROR(($R$29*$C$7)/($R$34)*$AV289*$R$37,"") ->  | I62: =IFERROR(SUM(G62:H62),"") -> 0 | J62: =IF($C$7="---","",IFERROR($S$29/$S$31*$AW149*$S$37,"")) ->  | K62: =IFERROR(($S$29*$C$7)/($S$34)*$AW289*$S$37,"") ->  | L62: =IFERROR(SUM(J62:K62),"") -> 0 | M62: =IF($C$7="---","",IFERROR($T$29/$T$31*$AX149*$T$37,"")) ->  | N62: =IFERROR(($T$29*$C$7)/($T$34)*$AX289*$T$37,"") ->  | O62: =IFERROR(SUM(M62:N62),"") -> 0 | P62: =IF($C$7="---","",IFERROR($U$29/$U$31*$AY149*$U$37,"")) ->  | Q62: =IFERROR(($U$29*$C$7)/($U$34)*$AY289*$U$37,"") ->  | R62: =IFERROR(SUM(P62:Q62),"") -> 0 | S62: =IF($C$7="---","",IFERROR($V$29/$V$31*$AZ149*$V$37,"")) ->  | T62: =IFERROR(($V$29*$C$7)/($V$34)*$AZ289*$V$37,"") ->  | U62: =IFERROR(SUM(S62:T62),"") -> 0 | V62: =IF($C$7="---","",IFERROR($W$29/$W$31*$BA149*$W$37,"")) ->  | W62: =IFERROR(($W$29*$C$7)/($W$34)*$BA289*$W$37,"") ->  | X62: =IFERROR(SUM(V62:W62),"") -> 0 | Y62: =IF($C$7="---","",IFERROR($X$29/$X$31*$BB149*$X$37,"")) ->  | Z62: =IFERROR(($X$29*$C$7)/($X$34)*$BB289*$X$37,"") ->  | AA62: =IFERROR(SUM(Y62:Z62),"") -> 0 | AB62: =IF($C$7="---","",IFERROR($Y$29/$Y$31*$BC149*$Y$37,"")) ->  | AC62: =IFERROR(($Y$29*$C$7)/($Y$34)*$BC289*$Y$37,"") ->  | AD62: =IFERROR(SUM(AB62:AC62),"") -> 0 | AE62: =IF($C$7="---","",IFERROR($Z$29/$Z$31*$BD149*$Z$37,"")) ->  | AF62: =IFERROR(($Z$29*$C$7)/($Z$34)*$BD289*$Z$37,"") ->  | AG62: =IFERROR(SUM(AE62:AF62),"") -> 0 | AH62: 4
C63: 5 | D63: =IF($C$7="---","",IFERROR($Q$29/$Q$31*$AU150*$Q$37,"")) ->  | E63: =IFERROR(($Q$29*$C$7)/($Q$34)*$AU290*$Q$37,"") ->  | F63: =IFERROR(SUM(D63:E63),"") -> 0 | G63: =IF($C$7="---","",IFERROR($R$29/$R$31*$AV150*$R$37,"")) ->  | H63: =IFERROR(($R$29*$C$7)/($R$34)*$AV290*$R$37,"") ->  | I63: =IFERROR(SUM(G63:H63),"") -> 0 | J63: =IF($C$7="---","",IFERROR($S$29/$S$31*$AW150*$S$37,"")) ->  | K63: =IFERROR(($S$29*$C$7)/($S$34)*$AW290*$S$37,"") ->  | L63: =IFERROR(SUM(J63:K63),"") -> 0 | M63: =IF($C$7="---","",IFERROR($T$29/$T$31*$AX150*$T$37,"")) ->  | N63: =IFERROR(($T$29*$C$7)/($T$34)*$AX290*$T$37,"") ->  | O63: =IFERROR(SUM(M63:N63),"") -> 0 | P63: =IF($C$7="---","",IFERROR($U$29/$U$31*$AY150*$U$37,"")) ->  | Q63: =IFERROR(($U$29*$C$7)/($U$34)*$AY290*$U$37,"") ->  | R63: =IFERROR(SUM(P63:Q63),"") -> 0 | S63: =IF($C$7="---","",IFERROR($V$29/$V$31*$AZ150*$V$37,"")) ->  | T63: =IFERROR(($V$29*$C$7)/($V$34)*$AZ290*$V$37,"") ->  | U63: =IFERROR(SUM(S63:T63),"") -> 0 | V63: =IF($C$7="---","",IFERROR($W$29/$W$31*$BA150*$W$37,"")) ->  | W63: =IFERROR(($W$29*$C$7)/($W$34)*$BA290*$W$37,"") ->  | X63: =IFERROR(SUM(V63:W63),"") -> 0 | Y63: =IF($C$7="---","",IFERROR($X$29/$X$31*$BB150*$X$37,"")) ->  | Z63: =IFERROR(($X$29*$C$7)/($X$34)*$BB290*$X$37,"") ->  | AA63: =IFERROR(SUM(Y63:Z63),"") -> 0 | AB63: =IF($C$7="---","",IFERROR($Y$29/$Y$31*$BC150*$Y$37,"")) ->  | AC63: =IFERROR(($Y$29*$C$7)/($Y$34)*$BC290*$Y$37,"") ->  | AD63: =IFERROR(SUM(AB63:AC63),"") -> 0 | AE63: =IF($C$7="---","",IFERROR($Z$29/$Z$31*$BD150*$Z$37,"")) ->  | AF63: =IFERROR(($Z$29*$C$7)/($Z$34)*$BD290*$Z$37,"") ->  | AG63: =IFERROR(SUM(AE63:AF63),"") -> 0 | AH63: 5
C64: 6 | F64: =IFERROR(SUM(D64:E64),"") -> 0 | I64: =IFERROR(SUM(G64:H64),"") -> 0 | L64: =IFERROR(SUM(J64:K64),"") -> 0 | O64: =IFERROR(SUM(M64:N64),"") -> 0 | R64: =IFERROR(SUM(P64:Q64),"") -> 0 | U64: =IFERROR(SUM(S64:T64),"") -> 0 | X64: =IFERROR(SUM(V64:W64),"") -> 0 | AA64: =IFERROR(SUM(Y64:Z64),"") -> 0 | AD64: =IFERROR(SUM(AB64:AC64),"") -> 0 | AG64: =IFERROR(SUM(AE64:AF64),"") -> 0 | AH64: 6
C65: 7 | F65: 0 | I65: 0 | L65: 0 | O65: =IFERROR(SUM(M65:N65),"") -> 0 | R65: =IFERROR(SUM(P65:Q65),"") -> 0 | U65: 0 | X65: 0 | AA65: 0 | AD65: 0 | AG65: 0 | AH65: 7
C66: 8 | F66: 0 | I66: 0 | L66: 0 | O66: 0 | R66: 0 | U66: =IFERROR(SUM(S66:T66),"") -> 0 | X66: 0 | AA66: 0 | AD66: 0 | AG66: 0 | AH66: 8
C67: 9 | F67: 0 | I67: 0 | L67: 0 | O67: 0 | R67: 0 | U67: 0 | X67: =IFERROR(SUM(V67:W67),"") -> 0 | AA67: 0 | AD67: 0 | AG67: 0 | AH67: 9
C68: 10 | F68: 0 | I68: 0 | L68: 0 | O68: 0 | R68: 0 | U68: 0 | X68: 0 | AA68: =IFERROR(SUM(Y68:Z68),"") -> 0 | AD68: 0 | AG68: 0 | AH68: 10
C69: 11 | F69: 0 | I69: 0 | L69: 0 | O69: 0 | R69: 0 | U69: 0 | X69: 0 | AA69: 0 | AD69: =IFERROR(SUM(AB69:AC69),"") -> 0 | AG69: 0 | AH69: 11
C70: 12 | F70: =IFERROR(SUM(D70:E70),"") -> 0 | I70: =IFERROR(SUM(G70:H70),"") -> 0 | L70: =IFERROR(SUM(J70:K70),"") -> 0 | O70: =IFERROR(SUM(M70:N70),"") -> 0 | R70: =IFERROR(SUM(P70:Q70),"") -> 0 | U70: =IFERROR(SUM(S70:T70),"") -> 0 | X70: =IFERROR(SUM(V70:W70),"") -> 0 | AA70: =IFERROR(SUM(Y70:Z70),"") -> 0 | AD70: =IFERROR(SUM(AB70:AC70),"") -> 0 | AG70: =IFERROR(SUM(AE70:AF70),"") -> 0 | AH70: 12
C71: 1 | F71: 0 | I71: 0 | L71: 0 | O71: 0 | R71: 0 | U71: 0 | X71: 0 | AA71: 0 | AD71: 0 | AG71: =IFERROR(SUM(AE71:AF71),"") -> 0 | AH71: 1
C72: 2 | F72: 0 | I72: 0 | L72: 0 | O72: 0 | R72: 0 | U72: 0 | X72: 0 | AA72: 0 | AD72: 0 | AG72: 0 | AH72: 2
C73: 3 | F73: 0 | I73: 0 | L73: 0 | O73: 0 | R73: 0 | U73: 0 | X73: 0 | AA73: 0 | AD73: 0 | AG73: =IFERROR(SUM(AE73:AF73),"") -> 0 | AH73: 3
C74: 合計 | D74: =IFERROR(SUM($D$62:$D$73),"") -> 0 | E74: =IFERROR(SUM($E$62:$E$73),"") -> 0 | F74: =IFERROR(SUM($F$62:$F$73),"") -> 0 | G74: =IFERROR(SUM($G$62:$G$73),"") -> 0 | H74: =IFERROR(SUM($H$62:$H$73),"") -> 0 | I74: =IFERROR(SUM(I62:I73),"") -> 0 | J74: =IFERROR(SUM($J$62:$J$73),"") -> 0 | K74: =IFERROR(SUM($K$62:$K$73),"") -> 0 | L74: =IFERROR(SUM(L62:L73),"") -> 0 | M74: =IFERROR(SUM($M$62:$M$73),"") -> 0 | N74: =IFERROR(SUM($N$62:$N$73),"") -> 0 | O74: =IFERROR(SUM(O62:O73),"") -> 0 | P74: =IFERROR(SUM($P$62:$P$73),"") -> 0 | Q74: =IFERROR(SUM($Q$62:$Q$73),"") -> 0 | R74: =IFERROR(SUM(R62:R73),"") -> 0 | S74: =IFERROR(SUM($S$62:$S$73),"") -> 0 | T74: =IFERROR(SUM($T$62:$T$73),"") -> 0 | U74: =IFERROR(SUM(U62:U73),"") -> 0 | V74: =IFERROR(SUM($V$62:$V$73),"") -> 0 | W74: =IFERROR(SUM($W$62:$W$73),"") -> 0 | X74: =IFERROR(SUM(X62:X73),"") -> 0 | Y74: =IFERROR(SUM($Y$62:$Y$73),"") -> 0 | Z74: =IFERROR(SUM($Z$62:$Z$73),"") -> 0 | AA74: =IFERROR(SUM(AA62:AA73),"") -> 0 | AB74: =IFERROR(SUM($AB$62:$AB$73),"") -> 0 | AC74: =IFERROR(SUM($AC$62:$AC$73),"") -> 0 | AD74: =IFERROR(SUM(AD62:AD73),"") -> 0 | AE74: =IFERROR(SUM($AE$62:$AE$73),"") -> 0 | AF74: =IFERROR(SUM($AF$62:$AF$73),"") -> 0 | AG74: =IFERROR(SUM(AG62:AG73),"") -> 0 | AH74: 合計
C77: 設備導入後電力使用量[kWh]
D78: 冷房(Ec) | F78: 暖房(Ew) | H78: 合計(Ecw)
D79: =IFERROR(D95*F81+G95*I81+J95*L81+M95*O81+P95*R81+S95*U81+V95*X81+Y95*AA81+AB95*AD81+AE95*AG81,"") -> 0 | F79: =IFERROR(E95*F81+H95*I81+K95*L81+N95*O81+Q95*R81+T95*U81+W95*X81+Z95*AA81+AC95*AD81+AF95*AG81,"") -> 0 | H79: =IFERROR(SUM(D79:G79),"") -> 0
C81: 1台当たり | D81: 後1 | F81: =IF(Q50="",1,Q50) -> 1 | G81: 後2 | I81: =IF(R50="",1,R50) -> 1 | J81: 後3 | L81: =IF(S50="",1,S50) -> 1 | M81: 後4 | O81: =IF(T50="",1,T50) -> 1 | P81: 後5 | R81: =IF(U50="",1,U50) -> 1 | S81: 後6 | U81: =IF(V50="",1,V50) -> 1 | V81: 後7 | X81: =IF(W50="",1,W50) -> 1 | Y81: 後8 | AA81: =IF(X50="",1,X50) -> 1 | AB81: 後9 | AD81: =IF(Y50="",1,Y50) -> 1 | AE81: 後10 | AG81: =IF(Z50="",1,Z50) -> 1 | AH81: 1台当たり
C82: 月 期間 | D82: 冷房 | E82: 暖房 | F82: 月合計 | G82: 冷房 | H82: 暖房 | I82: 月合計 | J82: 冷房 | K82: 暖房 | L82: 月合計 | M82: 冷房 | N82: 暖房 | O82: 月合計 | P82: 冷房 | Q82: 暖房 | R82: 月合計 | S82: 冷房 | T82: 暖房 | U82: 月合計 | V82: 冷房 | W82: 暖房 | X82: 月合計 | Y82: 冷房 | Z82: 暖房 | AA82: 月合計 | AB82: 冷房 | AC82: 暖房 | AD82: 月合計 | AE82: 冷房 | AF82: 暖房 | AG82: 月合計 | AH82: 期間 月
C83: 4 | D83: =IF($C$7="---","",IFERROR($Q$43/$Q$45*$BF149*$Q$51,"")) ->  | E83: =IFERROR(($Q$43*$C$7)/($Q$48)*$BF289*$Q$51,"") ->  | F83: =IFERROR(SUM(D83:E83),"") -> 0 | G83: =IF($C$7="---","",IFERROR($R$43/$R$45*$BG149*$R$51,"")) ->  | H83: =IFERROR(($R$43*$C$7)/($R$48)*$BG289*$R$51,"") ->  | I83: =IFERROR(SUM(G83:H83),"") -> 0 | J83: =IF($C$7="---","",IFERROR($S$43/$S$45*$BH149*$S$51,"")) ->  | K83: =IFERROR(($S$43*$C$7)/($S$48)*$BH289*$S$51,"") ->  | L83: =IFERROR(SUM(J83:K83),"") -> 0 | M83: =IF($C$7="---","",IFERROR($T$43/$T$45*$BI149*$T$51,"")) ->  | N83: =IFERROR(($T$43*$C$7)/($T$48)*$BI289*$T$51,"") ->  | O83: =IFERROR(SUM(M83:N83),"") -> 0 | P83: =IF($C$7="---","",IFERROR($U$43/$U$45*$BJ149*$U$51,"")) ->  | Q83: =IFERROR(($U$43*$C$7)/($U$48)*$BJ289*$U$51,"") ->  | R83: =IFERROR(SUM(P83:Q83),"") -> 0 | S83: =IF($C$7="---","",IFERROR($V$43/$V$45*$BK149*$V$51,"")) ->  | T83: =IFERROR(($V$43*$C$7)/($V$48)*$BK289*$V$51,"") ->  | U83: =IFERROR(SUM(S83:T83),"") -> 0 | V83: =IF($C$7="---","",IFERROR($W$43/$W$45*$BL149*$W$51,"")) ->  | W83: =IFERROR(($W$43*$C$7)/($W$48)*$BL289*$W$51,"") ->  | X83: =IFERROR(SUM(V83:W83),"") -> 0 | Y83: =IF($C$7="---","",IFERROR($X$43/$X$45*$BM149*$X$51,"")) ->  | Z83: =IFERROR(($X$43*$C$7)/($X$48)*$BM289*$X$51,"") ->  | AA83: =IFERROR(SUM(Y83:Z83),"") -> 0 | AB83: =IF($C$7="---","",IFERROR($Y$43/$Y$45*$BN149*$Y$51,"")) ->  | AC83: =IFERROR(($Y$43*$C$7)/($Y$48)*$BN289*$Y$51,"") ->  | AD83: =IFERROR(SUM(AB83:AC83),"") -> 0 | AE83: =IF($C$7="---","",IFERROR($Z$43/$Z$45*$BO149*$Z$51,"")) ->  | AF83: =IFERROR(($Z$43*$C$7)/($Z$48)*$BO289*$Z$51,"") ->  | AG83: =IFERROR(SUM(AE83:AF83),"") -> 0 | AH83: 4
C84: 5 | D84: =IF($C$7="---","",IFERROR($Q$43/$Q$45*$BF150*$Q$51,"")) ->  | E84: =IFERROR(($Q$43*$C$7)/($Q$48)*$BF290*$Q$51,"") ->  | F84: =IFERROR(SUM(D84:E84),"") -> 0 | G84: =IF($C$7="---","",IFERROR($R$43/$R$45*$BG150*$R$51,"")) ->  | H84: =IFERROR(($R$43*$C$7)/($R$48)*$BG290*$R$51,"") ->  | I84: =IFERROR(SUM(G84:H84),"") -> 0 | J84: =IF($C$7="---","",IFERROR($S$43/$S$45*$BH150*$S$51,"")) ->  | K84: =IFERROR(($S$43*$C$7)/($S$48)*$BH290*$S$51,"") ->  | L84: =IFERROR(SUM(J84:K84),"") -> 0 | M84: =IF($C$7="---","",IFERROR($T$43/$T$45*$BI150*$T$51,"")) ->  | N84: =IFERROR(($T$43*$C$7)/($T$48)*$BI290*$T$51,"") ->  | O84: =IFERROR(SUM(M84:N84),"") -> 0 | P84: =IF($C$7="---","",IFERROR($U$43/$U$45*$BJ150*$U$51,"")) ->  | Q84: =IFERROR(($U$43*$C$7)/($U$48)*$BJ290*$U$51,"") ->  | R84: =IFERROR(SUM(P84:Q84),"") -> 0 | S84: =IF($C$7="---","",IFERROR($V$43/$V$45*$BK150*$V$51,"")) ->  | T84: =IFERROR(($V$43*$C$7)/($V$48)*$BK290*$V$51,"") ->  | U84: =IFERROR(SUM(S84:T84),"") -> 0 | V84: =IF($C$7="---","",IFERROR($W$43/$W$45*$BL150*$W$51,"")) ->  | W84: =IFERROR(($W$43*$C$7)/($W$48)*$BL290*$W$51,"") ->  | X84: =IFERROR(SUM(V84:W84),"") -> 0 | Y84: =IF($C$7="---","",IFERROR($X$43/$X$45*$BM150*$X$51,"")) ->  | Z84: =IFERROR(($X$43*$C$7)/($X$48)*$BM290*$X$51,"") ->  | AA84: =IFERROR(SUM(Y84:Z84),"") -> 0 | AB84: =IF($C$7="---","",IFERROR($Y$43/$Y$45*$BN150*$Y$51,"")) ->  | AC84: =IFERROR(($Y$43*$C$7)/($Y$48)*$BN290*$Y$51,"") ->  | AD84: =IFERROR(SUM(AB84:AC84),"") -> 0 | AE84: =IF($C$7="---","",IFERROR($Z$43/$Z$45*$BO150*$Z$51,"")) ->  | AF84: =IFERROR(($Z$43*$C$7)/($Z$48)*$BO290*$Z$51,"") ->  | AG84: =IFERROR(SUM(AE84:AF84),"") -> 0 | AH84: 5
C85: 6 | F85: =IFERROR(SUM(D85:E85),"") -> 0 | I85: =IFERROR(SUM(G85:H85),"") -> 0 | L85: =IFERROR(SUM(J85:K85),"") -> 0 | O85: =IFERROR(SUM(M85:N85),"") -> 0 | R85: =IFERROR(SUM(P85:Q85),"") -> 0 | U85: =IFERROR(SUM(S85:T85),"") -> 0 | X85: =IFERROR(SUM(V85:W85),"") -> 0 | AA85: =IFERROR(SUM(Y85:Z85),"") -> 0 | AD85: =IFERROR(SUM(AB85:AC85),"") -> 0 | AG85: =IFERROR(SUM(AE85:AF85),"") -> 0 | AH85: 6
C86: 7 | F86: 0 | I86: 0 | L86: =IFERROR(SUM(J86:K86),"") -> 0 | O86: 0 | R86: 0 | U86: 0 | X86: 0 | AA86: 0 | AD86: 0 | AG86: 0 | AH86: 7
C87: 8 | F87: 0 | I87: 0 | L87: =IFERROR(SUM(J87:K87),"") -> 0 | O87: =IFERROR(SUM(M87:N87),"") -> 0 | R87: 0 | U87: 0 | X87: 0 | AA87: 0 | AD87: 0 | AG87: 0 | AH87: 8
C88: 9 | F88: 0 | I88: 0 | L88: 0 | O88: 0 | R88: =IFERROR(SUM(P88:Q88),"") -> 0 | U88: 0 | X88: 0 | AA88: 0 | AD88: 0 | AG88: 0 | AH88: 9
C89: 10 | F89: 0 | I89: 0 | L89: 0 | O89: 0 | R89: 0 | U89: =IFERROR(SUM(S89:T89),"") -> 0 | X89: 0 | AA89: 0 | AD89: 0 | AG89: 0 | AH89: 10
C90: 11 | F90: 0 | I90: 0 | L90: 0 | O90: 0 | R90: 0 | U90: 0 | X90: 0 | AA90: =IFERROR(SUM(Y90:Z90),"") -> 0 | AD90: 0 | AG90: =IFERROR(SUM(AE90:AF90),"") -> 0 | AH90: 11
C91: 12 | F91: =IFERROR(SUM(D91:E91),"") -> 0 | I91: =IFERROR(SUM(G91:H91),"") -> 0 | L91: =IFERROR(SUM(J91:K91),"") -> 0 | O91: =IFERROR(SUM(M91:N91),"") -> 0 | R91: =IFERROR(SUM(P91:Q91),"") -> 0 | U91: =IFERROR(SUM(S91:T91),"") -> 0 | X91: =IFERROR(SUM(V91:W91),"") -> 0 | AA91: =IFERROR(SUM(Y91:Z91),"") -> 0 | AD91: =IFERROR(SUM(AB91:AC91),"") -> 0 | AG91: =IFERROR(SUM(AE91:AF91),"") -> 0 | AH91: 12
C92: 1 | F92: 0 | I92: 0 | L92: 0 | O92: 0 | R92: 0 | U92: 0 | X92: 0 | AA92: 0 | AD92: =IFERROR(SUM(AB92:AC92),"") -> 0 | AG92: 0 | AH92: 1
C93: 2 | F93: 0 | I93: 0 | L93: 0 | O93: 0 | R93: 0 | U93: 0 | X93: 0 | AA93: 0 | AD93: 0 | AG93: 0 | AH93: 2
C94: 3 | F94: 0 | I94: 0 | L94: 0 | O94: 0 | R94: 0 | U94: 0 | X94: 0 | AA94: 0 | AD94: 0 | AG94: 0 | AH94: 3
C95: 合計 | D95: =IFERROR(SUM(D83:D94),"") -> 0 | E95: 0 | F95: 0 | G95: 0 | H95: 0 | I95: 0 | J95: 0 | K95: 0 | L95: 0 | M95: 0 | N95: 0 | O95: 0 | P95: 0 | Q95: 0 | R95: 0 | S95: 0 | T95: 0 | U95: 0 | V95: 0 | W95: 0 | X95: 0 | Y95: 0 | Z95: 0 | AA95: 0 | AB95: 0 | AC95: 0 | AD95: 0 | AE95: 0 | AF95: 0 | AG95: 0 | AH95: 合計
C98: 作業表1(青色のセルを「24」、オレンジ色のセルを「19」として抽出）
D99: 時刻
C100: 月 | D100: 0 | E100: 1 | F100: 2 | G100: 3 | H100: 4 | I100: 5 | J100: 6 | K100: 7 | L100: 8 | M100: 9 | N100: 10 | O100: 11 | P100: 12 | Q100: 13 | R100: 14 | S100: 15 | T100: 16 | U100: 17 | V100: 18 | W100: 19 | X100: 20 | Y100: 21 | Z100: 22 | AA100: 23 | AB100: 月
C101: 4 | D101: =CELLCOLOR($D$12) -> -4142 | E101: =CELLCOLOR($E$12) -> -4142 | F101: =CELLCOLOR($F$12) -> -4142 | G101: =CELLCOLOR($G$12) -> -4142 | H101: =CELLCOLOR($H$12) -> -4142 | I101: =CELLCOLOR($I$12) -> -4142 | J101: =CELLCOLOR($J$12) -> -4142 | K101: =CELLCOLOR($K$12) -> -4142 | L101: =CELLCOLOR($L$12) -> -4142 | M101: =CELLCOLOR($M$12) -> -4142 | N101: =CELLCOLOR($N$12) -> -4142 | O101: =CELLCOLOR($O$12) -> -4142 | P101: =CELLCOLOR($P$12) -> -4142 | Q101: =CELLCOLOR($Q$12) -> -4142 | R101: =CELLCOLOR($R$12) -> -4142 | S101: =CELLCOLOR($S$12) -> -4142 | T101: =CELLCOLOR($T$12) -> -4142 | U101: =CELLCOLOR($U$12) -> -4142 | V101: =CELLCOLOR($V$12) -> -4142 | W101: =CELLCOLOR($W$12) -> -4142 | X101: =CELLCOLOR($X$12) -> -4142 | Y101: =CELLCOLOR($Y$12) -> -4142 | Z101: =CELLCOLOR($Z$12) -> -4142 | AA101: =CELLCOLOR($AA$12) -> -4142 | AB101: 4
C102: 5 | D102: =CELLCOLOR($D$13) -> -4142 | E102: =CELLCOLOR($E$13) -> -4142 | F102: =CELLCOLOR($F$13) -> -4142 | G102: =CELLCOLOR($G$13) -> -4142 | H102: =CELLCOLOR($H$13) -> -4142 | I102: =CELLCOLOR($I$13) -> -4142 | J102: =CELLCOLOR($J$13) -> -4142 | K102: =CELLCOLOR($K$13) -> -4142 | L102: =CELLCOLOR($L$13) -> -4142 | M102: =CELLCOLOR($M$13) -> -4142 | N102: =CELLCOLOR($N$13) -> -4142 | O102: =CELLCOLOR($O$13) -> -4142 | P102: =CELLCOLOR($P$13) -> -4142 | Q102: =CELLCOLOR($Q$13) -> -4142 | R102: =CELLCOLOR($R$13) -> -4142 | S102: =CELLCOLOR($S$13) -> -4142 | T102: =CELLCOLOR($T$13) -> -4142 | U102: =CELLCOLOR($U$13) -> -4142 | V102: =CELLCOLOR($V$13) -> -4142 | W102: =CELLCOLOR($W$13) -> -4142 | X102: =CELLCOLOR($X$13) -> -4142 | Y102: =CELLCOLOR($Y$13) -> -4142 | Z102: =CELLCOLOR($Z$13) -> -4142 | AA102: =CELLCOLOR($AA$13) -> -4142 | AB102: 5
C103: 6 | D103: =CELLCOLOR($D$14) -> -4142 | E103: =CELLCOLOR($E$14) -> -4142 | F103: =CELLCOLOR($F$14) -> -4142 | G103: =CELLCOLOR($G$14) -> -4142 | H103: =CELLCOLOR($H$14) -> -4142 | I103: =CELLCOLOR($I$14) -> -4142 | J103: =CELLCOLOR($J$14) -> -4142 | K103: =CELLCOLOR($K$14) -> -4142 | L103: =CELLCOLOR($L$14) -> -4142 | M103: =CELLCOLOR($M$14) -> -4142 | N103: =CELLCOLOR($N$14) -> -4142 | O103: =CELLCOLOR($O$14) -> -4142 | P103: =CELLCOLOR($P$14) -> -4142 | Q103: =CELLCOLOR($Q$14) -> -4142 | R103: =CELLCOLOR($R$14) -> -4142 | S103: =CELLCOLOR($S$14) -> -4142 | T103: =CELLCOLOR($T$14) -> -4142 | U103: =CELLCOLOR($U$14) -> -4142 | V103: =CELLCOLOR($V$14) -> -4142 | W103: =CELLCOLOR($W$14) -> -4142 | X103: =CELLCOLOR($X$14) -> -4142 | Y103: =CELLCOLOR($Y$14) -> -4142 | Z103: =CELLCOLOR($Z$14) -> -4142 | AA103: =CELLCOLOR($AA$14) -> -4142 | AB103: 6
C104: 7 | D104: =CELLCOLOR($D$15) -> -4142 | E104: =CELLCOLOR($E$15) -> -4142 | F104: =CELLCOLOR($F$15) -> -4142 | G104: =CELLCOLOR($G$15) -> -4142 | H104: =CELLCOLOR($H$15) -> -4142 | I104: =CELLCOLOR($I$15) -> -4142 | J104: =CELLCOLOR($J$15) -> -4142 | K104: =CELLCOLOR($K$15) -> -4142 | L104: =CELLCOLOR($L$15) -> -4142 | M104: =CELLCOLOR($M$15) -> -4142 | N104: =CELLCOLOR($N$15) -> -4142 | O104: =CELLCOLOR($O$15) -> -4142 | P104: =CELLCOLOR($P$15) -> -4142 | Q104: =CELLCOLOR($Q$15) -> -4142 | R104: =CELLCOLOR($R$15) -> -4142 | S104: =CELLCOLOR($S$15) -> -4142 | T104: =CELLCOLOR($T$15) -> -4142 | U104: =CELLCOLOR($U$15) -> -4142 | V104: =CELLCOLOR($V$15) -> -4142 | W104: =CELLCOLOR($W$15) -> -4142 | X104: =CELLCOLOR($X$15) -> -4142 | Y104: =CELLCOLOR($Y$15) -> -4142 | Z104: =CELLCOLOR($Z$15) -> -4142 | AA104: =CELLCOLOR($AA$15) -> -4142 | AB104: 7
C105: 8 | D105: =CELLCOLOR($D$16) -> -4142 | E105: =CELLCOLOR($E$16) -> -4142 | F105: =CELLCOLOR($F$16) -> -4142 | G105: =CELLCOLOR($G$16) -> -4142 | H105: =CELLCOLOR($H$16) -> -4142 | I105: =CELLCOLOR($I$16) -> -4142 | J105: =CELLCOLOR($J$16) -> -4142 | K105: =CELLCOLOR($K$16) -> -4142 | L105: =CELLCOLOR($L$16) -> -4142 | M105: =CELLCOLOR($M$16) -> -4142 | N105: =CELLCOLOR($N$16) -> -4142 | O105: =CELLCOLOR($O$16) -> -4142 | P105: =CELLCOLOR($P$16) -> -4142 | Q105: =CELLCOLOR($Q$16) -> -4142 | R105: =CELLCOLOR($R$16) -> -4142 | S105: =CELLCOLOR($S$16) -> -4142 | T105: =CELLCOLOR($T$16) -> -4142 | U105: =CELLCOLOR($U$16) -> -4142 | V105: =CELLCOLOR($V$16) -> -4142 | W105: =CELLCOLOR($W$16) -> -4142 | X105: =CELLCOLOR($X$16) -> -4142 | Y105: =CELLCOLOR($Y$16) -> -4142 | Z105: =CELLCOLOR($Z$16) -> -4142 | AA105: =CELLCOLOR($AA$16) -> -4142 | AB105: 8
C106: 9 | D106: =CELLCOLOR($D$17) -> -4142 | E106: =CELLCOLOR($E$17) -> -4142 | F106: =CELLCOLOR($F$17) -> -4142 | G106: =CELLCOLOR($G$17) -> -4142 | H106: =CELLCOLOR($H$17) -> -4142 | I106: =CELLCOLOR($I$17) -> -4142 | J106: =CELLCOLOR($J$17) -> -4142 | K106: =CELLCOLOR($K$17) -> -4142 | L106: =CELLCOLOR($L$17) -> -4142 | M106: =CELLCOLOR($M$17) -> -4142 | N106: =CELLCOLOR($N$17) -> -4142 | O106: =CELLCOLOR($O$17) -> -4142 | P106: =CELLCOLOR($P$17) -> -4142 | Q106: =CELLCOLOR($Q$17) -> -4142 | R106: =CELLCOLOR($R$17) -> -4142 | S106: =CELLCOLOR($S$17) -> -4142 | T106: =CELLCOLOR($T$17) -> -4142 | U106: =CELLCOLOR($U$17) -> -4142 | V106: =CELLCOLOR($V$17) -> -4142 | W106: =CELLCOLOR($W$17) -> -4142 | X106: =CELLCOLOR($X$17) -> -4142 | Y106: =CELLCOLOR($Y$17) -> -4142 | Z106: =CELLCOLOR($Z$17) -> -4142 | AA106: =CELLCOLOR($AA$17) -> -4142 | AB106: 9
C107: 10 | D107: =CELLCOLOR($D$18) -> -4142 | E107: =CELLCOLOR($E$18) -> -4142 | F107: =CELLCOLOR($F$18) -> -4142 | G107: =CELLCOLOR($G$18) -> -4142 | H107: =CELLCOLOR($H$18) -> -4142 | I107: =CELLCOLOR($I$18) -> -4142 | J107: =CELLCOLOR($J$18) -> -4142 | K107: =CELLCOLOR($K$18) -> -4142 | L107: =CELLCOLOR($L$18) -> -4142 | M107: =CELLCOLOR($M$18) -> -4142 | N107: =CELLCOLOR($N$18) -> -4142 | O107: =CELLCOLOR($O$18) -> -4142 | P107: =CELLCOLOR($P$18) -> -4142 | Q107: =CELLCOLOR($Q$18) -> -4142 | R107: =CELLCOLOR($R$18) -> -4142 | S107: =CELLCOLOR($S$18) -> -4142 | T107: =CELLCOLOR($T$18) -> -4142 | U107: =CELLCOLOR($U$18) -> -4142 | V107: =CELLCOLOR($V$18) -> -4142 | W107: =CELLCOLOR($W$18) -> -4142 | X107: =CELLCOLOR($X$18) -> -4142 | Y107: =CELLCOLOR($Y$18) -> -4142 | Z107: =CELLCOLOR($Z$18) -> -4142 | AA107: =CELLCOLOR($AA$18) -> -4142 | AB107: 10
C108: 11 | D108: =CELLCOLOR($D$19) -> -4142 | E108: =CELLCOLOR($E$19) -> -4142 | F108: =CELLCOLOR($F$19) -> -4142 | G108: =CELLCOLOR($G$19) -> -4142 | H108: =CELLCOLOR($H$19) -> -4142 | I108: =CELLCOLOR($I$19) -> -4142 | J108: =CELLCOLOR($J$19) -> -4142 | K108: =CELLCOLOR($K$19) -> -4142 | L108: =CELLCOLOR($L$19) -> -4142 | M108: =CELLCOLOR($M$19) -> -4142 | N108: =CELLCOLOR($N$19) -> -4142 | O108: =CELLCOLOR($O$19) -> -4142 | P108: =CELLCOLOR($P$19) -> -4142 | Q108: =CELLCOLOR($Q$19) -> -4142 | R108: =CELLCOLOR($R$19) -> -4142 | S108: =CELLCOLOR($S$19) -> -4142 | T108: =CELLCOLOR($T$19) -> -4142 | U108: =CELLCOLOR($U$19) -> -4142 | V108: =CELLCOLOR($V$19) -> -4142 | W108: =CELLCOLOR($W$19) -> -4142 | X108: =CELLCOLOR($X$19) -> -4142 | Y108: =CELLCOLOR($Y$19) -> -4142 | Z108: =CELLCOLOR($Z$19) -> -4142 | AA108: =CELLCOLOR($AA$19) -> -4142 | AB108: 11
C109: 12 | D109: =CELLCOLOR($D$20) -> -4142 | E109: =CELLCOLOR($E$20) -> -4142 | F109: =CELLCOLOR($F$20) -> -4142 | G109: =CELLCOLOR($G$20) -> -4142 | H109: =CELLCOLOR($H$20) -> -4142 | I109: =CELLCOLOR($I$20) -> -4142 | J109: =CELLCOLOR($J$20) -> -4142 | K109: =CELLCOLOR($K$20) -> -4142 | L109: =CELLCOLOR($L$20) -> -4142 | M109: =CELLCOLOR($M$20) -> -4142 | N109: =CELLCOLOR($N$20) -> -4142 | O109: =CELLCOLOR($O$20) -> -4142 | P109: =CELLCOLOR($P$20) -> -4142 | Q109: =CELLCOLOR($Q$20) -> -4142 | R109: =CELLCOLOR($R$20) -> -4142 | S109: =CELLCOLOR($S$20) -> -4142 | T109: =CELLCOLOR($T$20) -> -4142 | U109: =CELLCOLOR($U$20) -> -4142 | V109: =CELLCOLOR($V$20) -> -4142 | W109: =CELLCOLOR($W$20) -> -4142 | X109: =CELLCOLOR($X$20) -> -4142 | Y109: =CELLCOLOR($Y$20) -> -4142 | Z109: =CELLCOLOR($Z$20) -> -4142 | AA109: =CELLCOLOR($AA$20) -> -4142 | AB109: 12
C110: 1 | D110: =CELLCOLOR($D$21) -> -4142 | E110: =CELLCOLOR($E$21) -> -4142 | F110: =CELLCOLOR($F$21) -> -4142 | G110: =CELLCOLOR($G$21) -> -4142 | H110: =CELLCOLOR($H$21) -> -4142 | I110: =CELLCOLOR($I$21) -> -4142 | J110: =CELLCOLOR($J$21) -> -4142 | K110: =CELLCOLOR($K$21) -> -4142 | L110: =CELLCOLOR($L$21) -> -4142 | M110: =CELLCOLOR($M$21) -> -4142 | N110: =CELLCOLOR($N$21) -> -4142 | O110: =CELLCOLOR($O$21) -> -4142 | P110: =CELLCOLOR($P$21) -> -4142 | Q110: =CELLCOLOR($Q$21) -> -4142 | R110: =CELLCOLOR($R$21) -> -4142 | S110: =CELLCOLOR($S$21) -> -4142 | T110: =CELLCOLOR($T$21) -> -4142 | U110: =CELLCOLOR($U$21) -> -4142 | V110: =CELLCOLOR($V$21) -> -4142 | W110: =CELLCOLOR($W$21) -> -4142 | X110: =CELLCOLOR($X$21) -> -4142 | Y110: =CELLCOLOR($Y$21) -> -4142 | Z110: =CELLCOLOR($Z$21) -> -4142 | AA110: =CELLCOLOR($AA$21) -> -4142 | AB110: 1
C111: 2 | D111: =CELLCOLOR($D$22) -> -4142 | E111: =CELLCOLOR($E$22) -> -4142 | F111: =CELLCOLOR($F$22) -> -4142 | G111: =CELLCOLOR($G$22) -> -4142 | H111: =CELLCOLOR($H$22) -> -4142 | I111: =CELLCOLOR($I$22) -> -4142 | J111: =CELLCOLOR($J$22) -> -4142 | K111: =CELLCOLOR($K$22) -> -4142 | L111: =CELLCOLOR($L$22) -> -4142 | M111: =CELLCOLOR($M$22) -> -4142 | N111: =CELLCOLOR($N$22) -> -4142 | O111: =CELLCOLOR($O$22) -> -4142 | P111: =CELLCOLOR($P$22) -> -4142 | Q111: =CELLCOLOR($Q$22) -> -4142 | R111: =CELLCOLOR($R$22) -> -4142 | S111: =CELLCOLOR($S$22) -> -4142 | T111: =CELLCOLOR($T$22) -> -4142 | U111: =CELLCOLOR($U$22) -> -4142 | V111: =CELLCOLOR($V$22) -> -4142 | W111: =CELLCOLOR($W$22) -> -4142 | X111: =CELLCOLOR($X$22) -> -4142 | Y111: =CELLCOLOR($Y$22) -> -4142 | Z111: =CELLCOLOR($Z$22) -> -4142 | AA111: =CELLCOLOR($AA$22) -> -4142 | AB111: 2
C112: 3 | D112: =CELLCOLOR($D$23) -> -4142 | E112: =CELLCOLOR($E$23) -> -4142 | F112: =CELLCOLOR($F$23) -> -4142 | G112: =CELLCOLOR($G$23) -> -4142 | H112: =CELLCOLOR($H$23) -> -4142 | I112: =CELLCOLOR($I$23) -> -4142 | J112: =CELLCOLOR($J$23) -> -4142 | K112: =CELLCOLOR($K$23) -> -4142 | L112: =CELLCOLOR($L$23) -> -4142 | M112: =CELLCOLOR($M$23) -> -4142 | N112: =CELLCOLOR($N$23) -> -4142 | O112: =CELLCOLOR($O$23) -> -4142 | P112: =CELLCOLOR($P$23) -> -4142 | Q112: =CELLCOLOR($Q$23) -> -4142 | R112: =CELLCOLOR($R$23) -> -4142 | S112: =CELLCOLOR($S$23) -> -4142 | T112: =CELLCOLOR($T$23) -> -4142 | U112: =CELLCOLOR($U$23) -> -4142 | V112: =CELLCOLOR($V$23) -> -4142 | W112: =CELLCOLOR($W$23) -> -4142 | X112: =CELLCOLOR($X$23) -> -4142 | Y112: =CELLCOLOR($Y$23) -> -4142 | Z112: =CELLCOLOR($Z$23) -> -4142 | AA112: =CELLCOLOR($AA$23) -> -4142 | AB112: 3
C114: 作業表2-1(冷房) | E114: ●月▲時の平均気温(四捨五入で表示）
D115: 時刻
C116: 月 | D116: 0 | E116: 1 | F116: 2 | G116: 3 | H116: 4 | I116: 5 | J116: 6 | K116: 7 | L116: 8 | M116: 9 | N116: 10 | O116: 11 | P116: 12 | Q116: 13 | R116: 14 | S116: 15 | T116: 16 | U116: 17 | V116: 18 | W116: 19 | X116: 20 | Y116: 21 | Z116: 22 | AA116: 23 | AB116: 月
C117: 4 | D117: =IF($D$101=24,ROUND($D$12,0),"")&"" ->  | E117: =IF($E$101=24,ROUND($E$12,0),"")&"" ->  | F117: =IF($F$101=24,ROUND($F$12,0),"")&"" ->  | G117: =IF($G$101=24,ROUND($G$12,0),"")&"" ->  | H117: =IF($H$101=24,ROUND($H$12,0),"")&"" ->  | I117: =IF($I$101=24,ROUND($I$12,0),"")&"" ->  | J117: =IF($J$101=24,ROUND($J$12,0),"")&"" ->  | K117: =IF($K$101=24,ROUND($K$12,0),"")&"" ->  | L117: =IF($L$101=24,ROUND($L$12,0),"")&"" ->  | M117: =IF($M$101=24,ROUND($M$12,0),"")&"" ->  | N117: =IF($N$101=24,ROUND($N$12,0),"")&"" ->  | O117: =IF($O$101=24,ROUND($O$12,0),"")&"" ->  | P117: =IF($P$101=24,ROUND($P$12,0),"")&"" ->  | Q117: =IF($Q$101=24,ROUND($Q$12,0),"")&"" ->  | R117: =IF($R$101=24,ROUND($R$12,0),"")&"" ->  | S117: =IF($S$101=24,ROUND($S$12,0),"")&"" ->  | T117: =IF($T$101=24,ROUND($T$12,0),"")&"" ->  | U117: =IF($U$101=24,ROUND($U$12,0),"")&"" ->  | V117: =IF($V$101=24,ROUND($V$12,0),"")&"" ->  | W117: =IF($W$101=24,ROUND($W$12,0),"")&"" ->  | X117: =IF($X$101=24,ROUND($X$12,0),"")&"" ->  | Y117: =IF($Y$101=24,ROUND($Y$12,0),"")&"" ->  | Z117: =IF($Z$101=24,ROUND($Z$12,0),"")&"" ->  | AA117: =IF($AA$101=24,ROUND($AA$12,0),"")&"" ->  | AB117: 4
C118: 5 | D118: =IF($D$102=24,ROUND($D$13,0),"")&"" ->  | E118: =IF($E$102=24,ROUND($E$13,0),"")&"" ->  | F118: =IF($F$102=24,ROUND($F$13,0),"")&"" ->  | G118: =IF($G$102=24,ROUND($G$13,0),"")&"" ->  | H118: =IF($H$102=24,ROUND($H$13,0),"")&"" ->  | I118: =IF($I$102=24,ROUND($I$13,0),"")&"" ->  | J118: =IF($J$102=24,ROUND($J$13,0),"")&"" ->  | K118: =IF($K$102=24,ROUND($K$13,0),"")&"" ->  | L118: =IF($L$102=24,ROUND($L$13,0),"")&"" ->  | M118: =IF($M$102=24,ROUND($M$13,0),"")&"" ->  | N118: =IF($N$102=24,ROUND($N$13,0),"")&"" ->  | O118: =IF($O$102=24,ROUND($O$13,0),"")&"" ->  | P118: =IF($P$102=24,ROUND($P$13,0),"")&"" ->  | Q118: =IF($Q$102=24,ROUND($Q$13,0),"")&"" ->  | R118: =IF($R$102=24,ROUND($R$13,0),"")&"" ->  | S118: =IF($S$102=24,ROUND($S$13,0),"")&"" ->  | T118: =IF($T$102=24,ROUND($T$13,0),"")&"" ->  | U118: =IF($U$102=24,ROUND($U$13,0),"")&"" ->  | V118: =IF($V$102=24,ROUND($V$13,0),"")&"" ->  | W118: =IF($W$102=24,ROUND($W$13,0),"")&"" ->  | X118: =IF($X$102=24,ROUND($X$13,0),"")&"" ->  | Y118: =IF($Y$102=24,ROUND($Y$13,0),"")&"" ->  | Z118: =IF($Z$102=24,ROUND($Z$13,0),"")&"" ->  | AA118: =IF($AA$102=24,ROUND($AA$13,0),"")&"" ->  | AB118: 5
C119: 6 | D119: =IF($D$103=24,ROUND($D$14,0),"")&"" ->  | E119: =IF($E$103=24,ROUND($E$14,0),"")&"" ->  | F119: =IF($F$103=24,ROUND($F$14,0),"")&"" ->  | G119: =IF($G$103=24,ROUND($G$14,0),"")&"" ->  | H119: =IF($H$103=24,ROUND($H$14,0),"")&"" ->  | I119: =IF($I$103=24,ROUND($I$14,0),"")&"" ->  | J119: =IF($J$103=24,ROUND($J$14,0),"")&"" ->  | K119: =IF($K$103=24,ROUND($K$14,0),"")&"" ->  | L119: =IF($L$103=24,ROUND($L$14,0),"")&"" ->  | M119: =IF($M$103=24,ROUND($M$14,0),"")&"" ->  | N119: =IF($N$103=24,ROUND($N$14,0),"")&"" ->  | O119: =IF($O$103=24,ROUND($O$14,0),"")&"" ->  | P119: =IF($P$103=24,ROUND($P$14,0),"")&"" ->  | Q119: =IF($Q$103=24,ROUND($Q$14,0),"")&"" ->  | R119: =IF($R$103=24,ROUND($R$14,0),"")&"" ->  | S119: =IF($S$103=24,ROUND($S$14,0),"")&"" ->  | T119: =IF($T$103=24,ROUND($T$14,0),"")&"" ->  | U119: =IF($U$103=24,ROUND($U$14,0),"")&"" ->  | V119: =IF($V$103=24,ROUND($V$14,0),"")&"" ->  | W119: =IF($W$103=24,ROUND($W$14,0),"")&"" ->  | X119: =IF($X$103=24,ROUND($X$14,0),"")&"" ->  | Y119: =IF($Y$103=24,ROUND($Y$14,0),"")&"" ->  | Z119: =IF($Z$103=24,ROUND($Z$14,0),"")&"" ->  | AA119: =IF($AA$103=24,ROUND($AA$14,0),"")&"" ->  | AB119: 6
C120: 7 | D120: =IF($D$104=24,ROUND($D$15,0),"")&"" ->  | E120: =IF($E$104=24,ROUND($E$15,0),"")&"" ->  | F120: =IF($F$104=24,ROUND($F$15,0),"")&"" ->  | G120: =IF($G$104=24,ROUND($G$15,0),"")&"" ->  | H120: =IF($H$104=24,ROUND($H$15,0),"")&"" ->  | I120: =IF($I$104=24,ROUND($I$15,0),"")&"" ->  | J120: =IF($J$104=24,ROUND($J$15,0),"")&"" ->  | K120: =IF($K$104=24,ROUND($K$15,0),"")&"" ->  | L120: =IF($L$104=24,ROUND($L$15,0),"")&"" ->  | M120: =IF($M$104=24,ROUND($M$15,0),"")&"" ->  | N120: =IF($N$104=24,ROUND($N$15,0),"")&"" ->  | O120: =IF($O$104=24,ROUND($O$15,0),"")&"" ->  | P120: =IF($P$104=24,ROUND($P$15,0),"")&"" ->  | Q120: =IF($Q$104=24,ROUND($Q$15,0),"")&"" ->  | R120: =IF($R$104=24,ROUND($R$15,0),"")&"" ->  | S120: =IF($S$104=24,ROUND($S$15,0),"")&"" ->  | T120: =IF($T$104=24,ROUND($T$15,0),"")&"" ->  | U120: =IF($U$104=24,ROUND($U$15,0),"")&"" ->  | V120: =IF($V$104=24,ROUND($V$15,0),"")&"" ->  | W120: =IF($W$104=24,ROUND($W$15,0),"")&"" ->  | X120: =IF($X$104=24,ROUND($X$15,0),"")&"" ->  | Y120: =IF($Y$104=24,ROUND($Y$15,0),"")&"" ->  | Z120: =IF($Z$104=24,ROUND($Z$15,0),"")&"" ->  | AA120: =IF($AA$104=24,ROUND($AA$15,0),"")&"" ->  | AB120: 7
C121: 8 | D121: =IF($D$105=24,ROUND($D$16,0),"")&"" ->  | E121: =IF($E$105=24,ROUND($E$16,0),"")&"" ->  | F121: =IF($F$105=24,ROUND($F$16,0),"")&"" ->  | G121: =IF($G$105=24,ROUND($G$16,0),"")&"" ->  | H121: =IF($H$105=24,ROUND($H$16,0),"")&"" ->  | I121: =IF($I$105=24,ROUND($I$16,0),"")&"" ->  | J121: =IF($J$105=24,ROUND($J$16,0),"")&"" ->  | K121: =IF($K$105=24,ROUND($K$16,0),"")&"" ->  | L121: =IF($L$105=24,ROUND($L$16,0),"")&"" ->  | M121: =IF($M$105=24,ROUND($M$16,0),"")&"" ->  | N121: =IF($N$105=24,ROUND($N$16,0),"")&"" ->  | O121: =IF($O$105=24,ROUND($O$16,0),"")&"" ->  | P121: =IF($P$105=24,ROUND($P$16,0),"")&"" ->  | Q121: =IF($Q$105=24,ROUND($Q$16,0),"")&"" ->  | R121: =IF($R$105=24,ROUND($R$16,0),"")&"" ->  | S121: =IF($S$105=24,ROUND($S$16,0),"")&"" ->  | T121: =IF($T$105=24,ROUND($T$16,0),"")&"" ->  | U121: =IF($U$105=24,ROUND($U$16,0),"")&"" ->  | V121: =IF($V$105=24,ROUND($V$16,0),"")&"" ->  | W121: =IF($W$105=24,ROUND($W$16,0),"")&"" ->  | X121: =IF($X$105=24,ROUND($X$16,0),"")&"" ->  | Y121: =IF($Y$105=24,ROUND($Y$16,0),"")&"" ->  | Z121: =IF($Z$105=24,ROUND($Z$16,0),"")&"" ->  | AA121: =IF($AA$105=24,ROUND($AA$16,0),"")&"" ->  | AB121: 8
C122: 9 | D122: =IF($D$106=24,ROUND($D$17,0),"")&"" ->  | E122: =IF($E$106=24,ROUND($E$17,0),"")&"" ->  | F122: =IF($F$106=24,ROUND($F$17,0),"")&"" ->  | G122: =IF($G$106=24,ROUND($G$17,0),"")&"" ->  | H122: =IF($H$106=24,ROUND($H$17,0),"")&"" ->  | I122: =IF($I$106=24,ROUND($I$17,0),"")&"" ->  | J122: =IF($J$106=24,ROUND($J$17,0),"")&"" ->  | K122: =IF($K$106=24,ROUND($K$17,0),"")&"" ->  | L122: =IF($L$106=24,ROUND($L$17,0),"")&"" ->  | M122: =IF($M$106=24,ROUND($M$17,0),"")&"" ->  | N122: =IF($N$106=24,ROUND($N$17,0),"")&"" ->  | O122: =IF($O$106=24,ROUND($O$17,0),"")&"" ->  | P122: =IF($P$106=24,ROUND($P$17,0),"")&"" ->  | Q122: =IF($Q$106=24,ROUND($Q$17,0),"")&"" ->  | R122: =IF($R$106=24,ROUND($R$17,0),"")&"" ->  | S122: =IF($S$106=24,ROUND($S$17,0),"")&"" ->  | T122: =IF($T$106=24,ROUND($T$17,0),"")&"" ->  | U122: =IF($U$106=24,ROUND($U$17,0),"")&"" ->  | V122: =IF($V$106=24,ROUND($V$17,0),"")&"" ->  | W122: =IF($W$106=24,ROUND($W$17,0),"")&"" ->  | X122: =IF($X$106=24,ROUND($X$17,0),"")&"" ->  | Y122: =IF($Y$106=24,ROUND($Y$17,0),"")&"" ->  | Z122: =IF($Z$106=24,ROUND($Z$17,0),"")&"" ->  | AA122: =IF($AA$106=24,ROUND($AA$17,0),"")&"" ->  | AB122: 9
C123: 10 | D123: =IF($D$107=24,ROUND($D$18,0),"")&"" ->  | E123: =IF($E$107=24,ROUND($E$18,0),"")&"" ->  | F123: =IF($F$107=24,ROUND($F$18,0),"")&"" ->  | G123: =IF($G$107=24,ROUND($G$18,0),"")&"" ->  | H123: =IF($H$107=24,ROUND($H$18,0),"")&"" ->  | I123: =IF($I$107=24,ROUND($I$18,0),"")&"" ->  | J123: =IF($J$107=24,ROUND($J$18,0),"")&"" ->  | K123: =IF($K$107=24,ROUND($K$18,0),"")&"" ->  | L123: =IF($L$107=24,ROUND($L$18,0),"")&"" ->  | M123: =IF($M$107=24,ROUND($M$18,0),"")&"" ->  | N123: =IF($N$107=24,ROUND($N$18,0),"")&"" ->  | O123: =IF($O$107=24,ROUND($O$18,0),"")&"" ->  | P123: =IF($P$107=24,ROUND($P$18,0),"")&"" ->  | Q123: =IF($Q$107=24,ROUND($Q$18,0),"")&"" ->  | R123: =IF($R$107=24,ROUND($R$18,0),"")&"" ->  | S123: =IF($S$107=24,ROUND($S$18,0),"")&"" ->  | T123: =IF($T$107=24,ROUND($T$18,0),"")&"" ->  | U123: =IF($U$107=24,ROUND($U$18,0),"")&"" ->  | V123: =IF($V$107=24,ROUND($V$18,0),"")&"" ->  | W123: =IF($W$107=24,ROUND($W$18,0),"")&"" ->  | X123: =IF($X$107=24,ROUND($X$18,0),"")&"" ->  | Y123: =IF($Y$107=24,ROUND($Y$18,0),"")&"" ->  | Z123: =IF($Z$107=24,ROUND($Z$18,0),"")&"" ->  | AA123: =IF($AA$107=24,ROUND($AA$18,0),"")&"" ->  | AB123: 10
C124: 11 | D124: =IF($D$108=24,ROUND($D$19,0),"")&"" ->  | E124: =IF($E$108=24,ROUND($E$19,0),"")&"" ->  | F124: =IF($F$108=24,ROUND($F$19,0),"")&"" ->  | G124: =IF($G$108=24,ROUND($G$19,0),"")&"" ->  | H124: =IF($H$108=24,ROUND($H$19,0),"")&"" ->  | I124: =IF($I$108=24,ROUND($I$19,0),"")&"" ->  | J124: =IF($J$108=24,ROUND($J$19,0),"")&"" ->  | K124: =IF($K$108=24,ROUND($K$19,0),"")&"" ->  | L124: =IF($L$108=24,ROUND($L$19,0),"")&"" ->  | M124: =IF($M$108=24,ROUND($M$19,0),"")&"" ->  | N124: =IF($N$108=24,ROUND($N$19,0),"")&"" ->  | O124: =IF($O$108=24,ROUND($O$19,0),"")&"" ->  | P124: =IF($P$108=24,ROUND($P$19,0),"")&"" ->  | Q124: =IF($Q$108=24,ROUND($Q$19,0),"")&"" ->  | R124: =IF($R$108=24,ROUND($R$19,0),"")&"" ->  | S124: =IF($S$108=24,ROUND($S$19,0),"")&"" ->  | T124: =IF($T$108=24,ROUND($T$19,0),"")&"" ->  | U124: =IF($U$108=24,ROUND($U$19,0),"")&"" ->  | V124: =IF($V$108=24,ROUND($V$19,0),"")&"" ->  | W124: =IF($W$108=24,ROUND($W$19,0),"")&"" ->  | X124: =IF($X$108=24,ROUND($X$19,0),"")&"" ->  | Y124: =IF($Y$108=24,ROUND($Y$19,0),"")&"" ->  | Z124: =IF($Z$108=24,ROUND($Z$19,0),"")&"" ->  | AA124: =IF($AA$108=24,ROUND($AA$19,0),"")&"" ->  | AB124: 11
C125: 12 | D125: =IF($D$109=24,ROUND($D$20,0),"")&"" ->  | E125: =IF($E$109=24,ROUND($E$20,0),"")&"" ->  | F125: =IF($F$109=24,ROUND($F$20,0),"")&"" ->  | G125: =IF($G$109=24,ROUND($G$20,0),"")&"" ->  | H125: =IF($H$109=24,ROUND($H$20,0),"")&"" ->  | I125: =IF($I$109=24,ROUND($I$20,0),"")&"" ->  | J125: =IF($J$109=24,ROUND($J$20,0),"")&"" ->  | K125: =IF($K$109=24,ROUND($K$20,0),"")&"" ->  | L125: =IF($L$109=24,ROUND($L$20,0),"")&"" ->  | M125: =IF($M$109=24,ROUND($M$20,0),"")&"" ->  | N125: =IF($N$109=24,ROUND($N$20,0),"")&"" ->  | O125: =IF($O$109=24,ROUND($O$20,0),"")&"" ->  | P125: =IF($P$109=24,ROUND($P$20,0),"")&"" ->  | Q125: =IF($Q$109=24,ROUND($Q$20,0),"")&"" ->  | R125: =IF($R$109=24,ROUND($R$20,0),"")&"" ->  | S125: =IF($S$109=24,ROUND($S$20,0),"")&"" ->  | T125: =IF($T$109=24,ROUND($T$20,0),"")&"" ->  | U125: =IF($U$109=24,ROUND($U$20,0),"")&"" ->  | V125: =IF($V$109=24,ROUND($V$20,0),"")&"" ->  | W125: =IF($W$109=24,ROUND($W$20,0),"")&"" ->  | X125: =IF($X$109=24,ROUND($X$20,0),"")&"" ->  | Y125: =IF($Y$109=24,ROUND($Y$20,0),"")&"" ->  | Z125: =IF($Z$109=24,ROUND($Z$20,0),"")&"" ->  | AA125: =IF($AA$109=24,ROUND($AA$20,0),"")&"" ->  | AB125: 12
C126: 1 | D126: =IF($D$110=24,ROUND($D$21,0),"")&"" ->  | E126: =IF($E$110=24,ROUND($E$21,0),"")&"" ->  | F126: =IF($F$110=24,ROUND($F$21,0),"")&"" ->  | G126: =IF($G$110=24,ROUND($G$21,0),"")&"" ->  | H126: =IF($H$110=24,ROUND($H$21,0),"")&"" ->  | I126: =IF($I$110=24,ROUND($I$21,0),"")&"" ->  | J126: =IF($J$110=24,ROUND($J$21,0),"")&"" ->  | K126: =IF($K$110=24,ROUND($K$21,0),"")&"" ->  | L126: =IF($L$110=24,ROUND($L$21,0),"")&"" ->  | M126: =IF($M$110=24,ROUND($M$21,0),"")&"" ->  | N126: =IF($N$110=24,ROUND($N$21,0),"")&"" ->  | O126: =IF($O$110=24,ROUND($O$21,0),"")&"" ->  | P126: =IF($P$110=24,ROUND($P$21,0),"")&"" ->  | Q126: =IF($Q$110=24,ROUND($Q$21,0),"")&"" ->  | R126: =IF($R$110=24,ROUND($R$21,0),"")&"" ->  | S126: =IF($S$110=24,ROUND($S$21,0),"")&"" ->  | T126: =IF($T$110=24,ROUND($T$21,0),"")&"" ->  | U126: =IF($U$110=24,ROUND($U$21,0),"")&"" ->  | V126: =IF($V$110=24,ROUND($V$21,0),"")&"" ->  | W126: =IF($W$110=24,ROUND($W$21,0),"")&"" ->  | X126: =IF($X$110=24,ROUND($X$21,0),"")&"" ->  | Y126: =IF($Y$110=24,ROUND($Y$21,0),"")&"" ->  | Z126: =IF($Z$110=24,ROUND($Z$21,0),"")&"" ->  | AA126: =IF($AA$110=24,ROUND($AA$21,0),"")&"" ->  | AB126: 1
C127: 2 | D127: =IF($D$111=24,ROUND($D$22,0),"")&"" ->  | E127: =IF($E$111=24,ROUND($E$22,0),"")&"" ->  | F127: =IF($F$111=24,ROUND($F$22,0),"")&"" ->  | G127: =IF($G$111=24,ROUND($G$22,0),"")&"" ->  | H127: =IF($H$111=24,ROUND($H$22,0),"")&"" ->  | I127: =IF($I$111=24,ROUND($I$22,0),"")&"" ->  | J127: =IF($J$111=24,ROUND($J$22,0),"")&"" ->  | K127: =IF($K$111=24,ROUND($K$22,0),"")&"" ->  | L127: =IF($L$111=24,ROUND($L$22,0),"")&"" ->  | M127: =IF($M$111=24,ROUND($M$22,0),"")&"" ->  | N127: =IF($N$111=24,ROUND($N$22,0),"")&"" ->  | O127: =IF($O$111=24,ROUND($O$22,0),"")&"" ->  | P127: =IF($P$111=24,ROUND($P$22,0),"")&"" ->  | Q127: =IF($Q$111=24,ROUND($Q$22,0),"")&"" ->  | R127: =IF($R$111=24,ROUND($R$22,0),"")&"" ->  | S127: =IF($S$111=24,ROUND($S$22,0),"")&"" ->  | T127: =IF($T$111=24,ROUND($T$22,0),"")&"" ->  | U127: =IF($U$111=24,ROUND($U$22,0),"")&"" ->  | V127: =IF($V$111=24,ROUND($V$22,0),"")&"" ->  | W127: =IF($W$111=24,ROUND($W$22,0),"")&"" ->  | X127: =IF($X$111=24,ROUND($X$22,0),"")&"" ->  | Y127: =IF($Y$111=24,ROUND($Y$22,0),"")&"" ->  | Z127: =IF($Z$111=24,ROUND($Z$22,0),"")&"" ->  | AA127: =IF($AA$111=24,ROUND($AA$22,0),"")&"" ->  | AB127: 2
C128: 3 | D128: =IF($D$112=24,ROUND($D$23,0),"")&"" ->  | E128: =IF($E$112=24,ROUND($E$23,0),"")&"" ->  | F128: =IF($F$112=24,ROUND($F$23,0),"")&"" ->  | G128: =IF($G$112=24,ROUND($G$23,0),"")&"" ->  | H128: =IF($H$112=24,ROUND($H$23,0),"")&"" ->  | I128: =IF($I$112=24,ROUND($I$23,0),"")&"" ->  | J128: =IF($J$112=24,ROUND($J$23,0),"")&"" ->  | K128: =IF($K$112=24,ROUND($K$23,0),"")&"" ->  | L128: =IF($L$112=24,ROUND($L$23,0),"")&"" ->  | M128: =IF($M$112=24,ROUND($M$23,0),"")&"" ->  | N128: =IF($N$112=24,ROUND($N$23,0),"")&"" ->  | O128: =IF($O$112=24,ROUND($O$23,0),"")&"" ->  | P128: =IF($P$112=24,ROUND($P$23,0),"")&"" ->  | Q128: =IF($Q$112=24,ROUND($Q$23,0),"")&"" ->  | R128: =IF($R$112=24,ROUND($R$23,0),"")&"" ->  | S128: =IF($S$112=24,ROUND($S$23,0),"")&"" ->  | T128: =IF($T$112=24,ROUND($T$23,0),"")&"" ->  | U128: =IF($U$112=24,ROUND($U$23,0),"")&"" ->  | V128: =IF($V$112=24,ROUND($V$23,0),"")&"" ->  | W128: =IF($W$112=24,ROUND($W$23,0),"")&"" ->  | X128: =IF($X$112=24,ROUND($X$23,0),"")&"" ->  | Y128: =IF($Y$112=24,ROUND($Y$23,0),"")&"" ->  | Z128: =IF($Z$112=24,ROUND($Z$23,0),"")&"" ->  | AA128: =IF($AA$112=24,ROUND($AA$23,0),"")&"" ->  | AB128: 3
C130: 作業表2-2(暖房) | E130: ●月▲時の平均気温(四捨五入で表示）
D131: 時刻
C132: 月 | D132: 0 | E132: 1 | F132: 2 | G132: 3 | H132: 4 | I132: 5 | J132: 6 | K132: 7 | L132: 8 | M132: 9 | N132: 10 | O132: 11 | P132: 12 | Q132: 13 | R132: 14 | S132: 15 | T132: 16 | U132: 17 | V132: 18 | W132: 19 | X132: 20 | Y132: 21 | Z132: 22 | AA132: 23 | AB132: 月
C133: 4 | D133: =IF($D$101=19,ROUND($D$12,0),"")&"" ->  | E133: =IF($E$101=19,ROUND($E$12,0),"")&"" ->  | F133: =IF($F$101=19,ROUND($F$12,0),"")&"" ->  | G133: =IF($G$101=19,ROUND($G$12,0),"")&"" ->  | H133: =IF($H$101=19,ROUND($H$12,0),"")&"" ->  | I133: =IF($I$101=19,ROUND($I$12,0),"")&"" ->  | J133: =IF($J$101=19,ROUND($J$12,0),"")&"" ->  | K133: =IF($K$101=19,ROUND($K$12,0),"")&"" ->  | L133: =IF($L$101=19,ROUND($L$12,0),"")&"" ->  | M133: =IF($M$101=19,ROUND($M$12,0),"")&"" ->  | N133: =IF($N$101=19,ROUND($N$12,0),"")&"" ->  | O133: =IF($O$101=19,ROUND($O$12,0),"")&"" ->  | P133: =IF($P$101=19,ROUND($P$12,0),"")&"" ->  | Q133: =IF($Q$101=19,ROUND($Q$12,0),"")&"" ->  | R133: =IF($R$101=19,ROUND($R$12,0),"")&"" ->  | S133: =IF($S$101=19,ROUND($S$12,0),"")&"" ->  | T133: =IF($T$101=19,ROUND($T$12,0),"")&"" ->  | U133: =IF($U$101=19,ROUND($U$12,0),"")&"" ->  | V133: =IF($V$101=19,ROUND($V$12,0),"")&"" ->  | W133: =IF($W$101=19,ROUND($W$12,0),"")&"" ->  | X133: =IF($X$101=19,ROUND($X$12,0),"")&"" ->  | Y133: =IF($Y$101=19,ROUND($Y$12,0),"")&"" ->  | Z133: =IF($Z$101=19,ROUND($Z$12,0),"")&"" ->  | AA133: =IF($AA$101=19,ROUND($AA$12,0),"")&"" ->  | AB133: 4
C134: 5 | D134: =IF($D$102=19,ROUND($D$13,0),"")&"" ->  | E134: =IF($E$102=19,ROUND($E$13,0),"")&"" ->  | F134: =IF($F$102=19,ROUND($F$13,0),"")&"" ->  | G134: =IF($G$102=19,ROUND($G$13,0),"")&"" ->  | H134: =IF($H$102=19,ROUND($H$13,0),"")&"" ->  | I134: =IF($I$102=19,ROUND($I$13,0),"")&"" ->  | J134: =IF($J$102=19,ROUND($J$13,0),"")&"" ->  | K134: =IF($K$102=19,ROUND($K$13,0),"")&"" ->  | L134: =IF($L$102=19,ROUND($L$13,0),"")&"" ->  | M134: =IF($M$102=19,ROUND($M$13,0),"")&"" ->  | N134: =IF($N$102=19,ROUND($N$13,0),"")&"" ->  | O134: =IF($O$102=19,ROUND($O$13,0),"")&"" ->  | P134: =IF($P$102=19,ROUND($P$13,0),"")&"" ->  | Q134: =IF($Q$102=19,ROUND($Q$13,0),"")&"" ->  | R134: =IF($R$102=19,ROUND($R$13,0),"")&"" ->  | S134: =IF($S$102=19,ROUND($S$13,0),"")&"" ->  | T134: =IF($T$102=19,ROUND($T$13,0),"")&"" ->  | U134: =IF($U$102=19,ROUND($U$13,0),"")&"" ->  | V134: =IF($V$102=19,ROUND($V$13,0),"")&"" ->  | W134: =IF($W$102=19,ROUND($W$13,0),"")&"" ->  | X134: =IF($X$102=19,ROUND($X$13,0),"")&"" ->  | Y134: =IF($Y$102=19,ROUND($Y$13,0),"")&"" ->  | Z134: =IF($Z$102=19,ROUND($Z$13,0),"")&"" ->  | AA134: =IF($AA$102=19,ROUND($AA$13,0),"")&"" ->  | AB134: 5
C135: 6 | D135: =IF($D$103=19,ROUND($D$14,0),"")&"" ->  | E135: =IF($E$103=19,ROUND($E$14,0),"")&"" ->  | F135: =IF($F$103=19,ROUND($F$14,0),"")&"" ->  | G135: =IF($G$103=19,ROUND($G$14,0),"")&"" ->  | H135: =IF($H$103=19,ROUND($H$14,0),"")&"" ->  | I135: =IF($I$103=19,ROUND($I$14,0),"")&"" ->  | J135: =IF($J$103=19,ROUND($J$14,0),"")&"" ->  | K135: =IF($K$103=19,ROUND($K$14,0),"")&"" ->  | L135: =IF($L$103=19,ROUND($L$14,0),"")&"" ->  | M135: =IF($M$103=19,ROUND($M$14,0),"")&"" ->  | N135: =IF($N$103=19,ROUND($N$14,0),"")&"" ->  | O135: =IF($O$103=19,ROUND($O$14,0),"")&"" ->  | P135: =IF($P$103=19,ROUND($P$14,0),"")&"" ->  | Q135: =IF($Q$103=19,ROUND($Q$14,0),"")&"" ->  | R135: =IF($R$103=19,ROUND($R$14,0),"")&"" ->  | S135: =IF($S$103=19,ROUND($S$14,0),"")&"" ->  | T135: =IF($T$103=19,ROUND($T$14,0),"")&"" ->  | U135: =IF($U$103=19,ROUND($U$14,0),"")&"" ->  | V135: =IF($V$103=19,ROUND($V$14,0),"")&"" ->  | W135: =IF($W$103=19,ROUND($W$14,0),"")&"" ->  | X135: =IF($X$103=19,ROUND($X$14,0),"")&"" ->  | Y135: =IF($Y$103=19,ROUND($Y$14,0),"")&"" ->  | Z135: =IF($Z$103=19,ROUND($Z$14,0),"")&"" ->  | AA135: =IF($AA$103=19,ROUND($AA$14,0),"")&"" ->  | AB135: 6
C136: 7 | D136: =IF($D$104=19,ROUND($D$15,0),"")&"" ->  | E136: =IF($E$104=19,ROUND($E$15,0),"")&"" ->  | F136: =IF($F$104=19,ROUND($F$15,0),"")&"" ->  | G136: =IF($G$104=19,ROUND($G$15,0),"")&"" ->  | H136: =IF($H$104=19,ROUND($H$15,0),"")&"" ->  | I136: =IF($I$104=19,ROUND($I$15,0),"")&"" ->  | J136: =IF($J$104=19,ROUND($J$15,0),"")&"" ->  | K136: =IF($K$104=19,ROUND($K$15,0),"")&"" ->  | L136: =IF($L$104=19,ROUND($L$15,0),"")&"" ->  | M136: =IF($M$104=19,ROUND($M$15,0),"")&"" ->  | N136: =IF($N$104=19,ROUND($N$15,0),"")&"" ->  | O136: =IF($O$104=19,ROUND($O$15,0),"")&"" ->  | P136: =IF($P$104=19,ROUND($P$15,0),"")&"" ->  | Q136: =IF($Q$104=19,ROUND($Q$15,0),"")&"" ->  | R136: =IF($R$104=19,ROUND($R$15,0),"")&"" ->  | S136: =IF($S$104=19,ROUND($S$15,0),"")&"" ->  | T136: =IF($T$104=19,ROUND($T$15,0),"")&"" ->  | U136: =IF($U$104=19,ROUND($U$15,0),"")&"" ->  | V136: =IF($V$104=19,ROUND($V$15,0),"")&"" ->  | W136: =IF($W$104=19,ROUND($W$15,0),"")&"" ->  | X136: =IF($X$104=19,ROUND($X$15,0),"")&"" ->  | Y136: =IF($Y$104=19,ROUND($Y$15,0),"")&"" ->  | Z136: =IF($Z$104=19,ROUND($Z$15,0),"")&"" ->  | AA136: =IF($AA$104=19,ROUND($AA$15,0),"")&"" ->  | AB136: 7
C137: 8 | D137: =IF($D$105=19,ROUND($D$16,0),"")&"" ->  | E137: =IF($E$105=19,ROUND($E$16,0),"")&"" ->  | F137: =IF($F$105=19,ROUND($F$16,0),"")&"" ->  | G137: =IF($G$105=19,ROUND($G$16,0),"")&"" ->  | H137: =IF($H$105=19,ROUND($H$16,0),"")&"" ->  | I137: =IF($I$105=19,ROUND($I$16,0),"")&"" ->  | J137: =IF($J$105=19,ROUND($J$16,0),"")&"" ->  | K137: =IF($K$105=19,ROUND($K$16,0),"")&"" ->  | L137: =IF($L$105=19,ROUND($L$16,0),"")&"" ->  | M137: =IF($M$105=19,ROUND($M$16,0),"")&"" ->  | N137: =IF($N$105=19,ROUND($N$16,0),"")&"" ->  | O137: =IF($O$105=19,ROUND($O$16,0),"")&"" ->  | P137: =IF($P$105=19,ROUND($P$16,0),"")&"" ->  | Q137: =IF($Q$105=19,ROUND($Q$16,0),"")&"" ->  | R137: =IF($R$105=19,ROUND($R$16,0),"")&"" ->  | S137: =IF($S$105=19,ROUND($S$16,0),"")&"" ->  | T137: =IF($T$105=19,ROUND($T$16,0),"")&"" ->  | U137: =IF($U$105=19,ROUND($U$16,0),"")&"" ->  | V137: =IF($V$105=19,ROUND($V$16,0),"")&"" ->  | W137: =IF($W$105=19,ROUND($W$16,0),"")&"" ->  | X137: =IF($X$105=19,ROUND($X$16,0),"")&"" ->  | Y137: =IF($Y$105=19,ROUND($Y$16,0),"")&"" ->  | Z137: =IF($Z$105=19,ROUND($Z$16,0),"")&"" ->  | AA137: =IF($AA$105=19,ROUND($AA$16,0),"")&"" ->  | AB137: 8
C138: 9 | D138: =IF($D$106=19,ROUND($D$17,0),"")&"" ->  | E138: =IF($E$106=19,ROUND($E$17,0),"")&"" ->  | F138: =IF($F$106=19,ROUND($F$17,0),"")&"" ->  | G138: =IF($G$106=19,ROUND($G$17,0),"")&"" ->  | H138: =IF($H$106=19,ROUND($H$17,0),"")&"" ->  | I138: =IF($I$106=19,ROUND($I$17,0),"")&"" ->  | J138: =IF($J$106=19,ROUND($J$17,0),"")&"" ->  | K138: =IF($K$106=19,ROUND($K$17,0),"")&"" ->  | L138: =IF($L$106=19,ROUND($L$17,0),"")&"" ->  | M138: =IF($M$106=19,ROUND($M$17,0),"")&"" ->  | N138: =IF($N$106=19,ROUND($N$17,0),"")&"" ->  | O138: =IF($O$106=19,ROUND($O$17,0),"")&"" ->  | P138: =IF($P$106=19,ROUND($P$17,0),"")&"" ->  | Q138: =IF($Q$106=19,ROUND($Q$17,0),"")&"" ->  | R138: =IF($R$106=19,ROUND($R$17,0),"")&"" ->  | S138: =IF($S$106=19,ROUND($S$17,0),"")&"" ->  | T138: =IF($T$106=19,ROUND($T$17,0),"")&"" ->  | U138: =IF($U$106=19,ROUND($U$17,0),"")&"" ->  | V138: =IF($V$106=19,ROUND($V$17,0),"")&"" ->  | W138: =IF($W$106=19,ROUND($W$17,0),"")&"" ->  | X138: =IF($X$106=19,ROUND($X$17,0),"")&"" ->  | Y138: =IF($Y$106=19,ROUND($Y$17,0),"")&"" ->  | Z138: =IF($Z$106=19,ROUND($Z$17,0),"")&"" ->  | AA138: =IF($AA$106=19,ROUND($AA$17,0),"")&"" ->  | AB138: 9
C139: 10 | D139: =IF($D$107=19,ROUND($D$18,0),"")&"" ->  | E139: =IF($E$107=19,ROUND($E$18,0),"")&"" ->  | F139: =IF($F$107=19,ROUND($F$18,0),"")&"" ->  | G139: =IF($G$107=19,ROUND($G$18,0),"")&"" ->  | H139: =IF($H$107=19,ROUND($H$18,0),"")&"" ->  | I139: =IF($I$107=19,ROUND($I$18,0),"")&"" ->  | J139: =IF($J$107=19,ROUND($J$18,0),"")&"" ->  | K139: =IF($K$107=19,ROUND($K$18,0),"")&"" ->  | L139: =IF($L$107=19,ROUND($L$18,0),"")&"" ->  | M139: =IF($M$107=19,ROUND($M$18,0),"")&"" ->  | N139: =IF($N$107=19,ROUND($N$18,0),"")&"" ->  | O139: =IF($O$107=19,ROUND($O$18,0),"")&"" ->  | P139: =IF($P$107=19,ROUND($P$18,0),"")&"" ->  | Q139: =IF($Q$107=19,ROUND($Q$18,0),"")&"" ->  | R139: =IF($R$107=19,ROUND($R$18,0),"")&"" ->  | S139: =IF($S$107=19,ROUND($S$18,0),"")&"" ->  | T139: =IF($T$107=19,ROUND($T$18,0),"")&"" ->  | U139: =IF($U$107=19,ROUND($U$18,0),"")&"" ->  | V139: =IF($V$107=19,ROUND($V$18,0),"")&"" ->  | W139: =IF($W$107=19,ROUND($W$18,0),"")&"" ->  | X139: =IF($X$107=19,ROUND($X$18,0),"")&"" ->  | Y139: =IF($Y$107=19,ROUND($Y$18,0),"")&"" ->  | Z139: =IF($Z$107=19,ROUND($Z$18,0),"")&"" ->  | AA139: =IF($AA$107=19,ROUND($AA$18,0),"")&"" ->  | AB139: 10
C140: 11 | D140: =IF($D$108=19,ROUND($D$19,0),"")&"" ->  | E140: =IF($E$108=19,ROUND($E$19,0),"")&"" ->  | F140: =IF($F$108=19,ROUND($F$19,0),"")&"" ->  | G140: =IF($G$108=19,ROUND($G$19,0),"")&"" ->  | H140: =IF($H$108=19,ROUND($H$19,0),"")&"" ->  | I140: =IF($I$108=19,ROUND($I$19,0),"")&"" ->  | J140: =IF($J$108=19,ROUND($J$19,0),"")&"" ->  | K140: =IF($K$108=19,ROUND($K$19,0),"")&"" ->  | L140: =IF($L$108=19,ROUND($L$19,0),"")&"" ->  | M140: =IF($M$108=19,ROUND($M$19,0),"")&"" ->  | N140: =IF($N$108=19,ROUND($N$19,0),"")&"" ->  | O140: =IF($O$108=19,ROUND($O$19,0),"")&"" ->  | P140: =IF($P$108=19,ROUND($P$19,0),"")&"" ->  | Q140: =IF($Q$108=19,ROUND($Q$19,0),"")&"" ->  | R140: =IF($R$108=19,ROUND($R$19,0),"")&"" ->  | S140: =IF($S$108=19,ROUND($S$19,0),"")&"" ->  | T140: =IF($T$108=19,ROUND($T$19,0),"")&"" ->  | U140: =IF($U$108=19,ROUND($U$19,0),"")&"" ->  | V140: =IF($V$108=19,ROUND($V$19,0),"")&"" ->  | W140: =IF($W$108=19,ROUND($W$19,0),"")&"" ->  | X140: =IF($X$108=19,ROUND($X$19,0),"")&"" ->  | Y140: =IF($Y$108=19,ROUND($Y$19,0),"")&"" ->  | Z140: =IF($Z$108=19,ROUND($Z$19,0),"")&"" ->  | AA140: =IF($AA$108=19,ROUND($AA$19,0),"")&"" ->  | AB140: 11
C141: 12 | D141: =IF($D$109=19,ROUND($D$20,0),"")&"" ->  | E141: =IF($E$109=19,ROUND($E$20,0),"")&"" ->  | F141: =IF($F$109=19,ROUND($F$20,0),"")&"" ->  | G141: =IF($G$109=19,ROUND($G$20,0),"")&"" ->  | H141: =IF($H$109=19,ROUND($H$20,0),"")&"" ->  | I141: =IF($I$109=19,ROUND($I$20,0),"")&"" ->  | J141: =IF($J$109=19,ROUND($J$20,0),"")&"" ->  | K141: =IF($K$109=19,ROUND($K$20,0),"")&"" ->  | L141: =IF($L$109=19,ROUND($L$20,0),"")&"" ->  | M141: =IF($M$109=19,ROUND($M$20,0),"")&"" ->  | N141: =IF($N$109=19,ROUND($N$20,0),"")&"" ->  | O141: =IF($O$109=19,ROUND($O$20,0),"")&"" ->  | P141: =IF($P$109=19,ROUND($P$20,0),"")&"" ->  | Q141: =IF($Q$109=19,ROUND($Q$20,0),"")&"" ->  | R141: =IF($R$109=19,ROUND($R$20,0),"")&"" ->  | S141: =IF($S$109=19,ROUND($S$20,0),"")&"" ->  | T141: =IF($T$109=19,ROUND($T$20,0),"")&"" ->  | U141: =IF($U$109=19,ROUND($U$20,0),"")&"" ->  | V141: =IF($V$109=19,ROUND($V$20,0),"")&"" ->  | W141: =IF($W$109=19,ROUND($W$20,0),"")&"" ->  | X141: =IF($X$109=19,ROUND($X$20,0),"")&"" ->  | Y141: =IF($Y$109=19,ROUND($Y$20,0),"")&"" ->  | Z141: =IF($Z$109=19,ROUND($Z$20,0),"")&"" ->  | AA141: =IF($AA$109=19,ROUND($AA$20,0),"")&"" ->  | AB141: 12
C142: 1 | D142: =IF($D$110=19,ROUND($D$21,0),"")&"" ->  | E142: =IF($E$110=19,ROUND($E$21,0),"")&"" ->  | F142: =IF($F$110=19,ROUND($F$21,0),"")&"" ->  | G142: =IF($G$110=19,ROUND($G$21,0),"")&"" ->  | H142: =IF($H$110=19,ROUND($H$21,0),"")&"" ->  | I142: =IF($I$110=19,ROUND($I$21,0),"")&"" ->  | J142: =IF($J$110=19,ROUND($J$21,0),"")&"" ->  | K142: =IF($K$110=19,ROUND($K$21,0),"")&"" ->  | L142: =IF($L$110=19,ROUND($L$21,0),"")&"" ->  | M142: =IF($M$110=19,ROUND($M$21,0),"")&"" ->  | N142: =IF($N$110=19,ROUND($N$21,0),"")&"" ->  | O142: =IF($O$110=19,ROUND($O$21,0),"")&"" ->  | P142: =IF($P$110=19,ROUND($P$21,0),"")&"" ->  | Q142: =IF($Q$110=19,ROUND($Q$21,0),"")&"" ->  | R142: =IF($R$110=19,ROUND($R$21,0),"")&"" ->  | S142: =IF($S$110=19,ROUND($S$21,0),"")&"" ->  | T142: =IF($T$110=19,ROUND($T$21,0),"")&"" ->  | U142: =IF($U$110=19,ROUND($U$21,0),"")&"" ->  | V142: =IF($V$110=19,ROUND($V$21,0),"")&"" ->  | W142: =IF($W$110=19,ROUND($W$21,0),"")&"" ->  | X142: =IF($X$110=19,ROUND($X$21,0),"")&"" ->  | Y142: =IF($Y$110=19,ROUND($Y$21,0),"")&"" ->  | Z142: =IF($Z$110=19,ROUND($Z$21,0),"")&"" ->  | AA142: =IF($AA$110=19,ROUND($AA$21,0),"")&"" ->  | AB142: 1
C143: 2 | D143: =IF($D$111=19,ROUND($D$22,0),"")&"" ->  | E143: =IF($E$111=19,ROUND($E$22,0),"")&"" ->  | F143: =IF($F$111=19,ROUND($F$22,0),"")&"" ->  | G143: =IF($G$111=19,ROUND($G$22,0),"")&"" ->  | H143: =IF($H$111=19,ROUND($H$22,0),"")&"" ->  | I143: =IF($I$111=19,ROUND($I$22,0),"")&"" ->  | J143: =IF($J$111=19,ROUND($J$22,0),"")&"" ->  | K143: =IF($K$111=19,ROUND($K$22,0),"")&"" ->  | L143: =IF($L$111=19,ROUND($L$22,0),"")&"" ->  | M143: =IF($M$111=19,ROUND($M$22,0),"")&"" ->  | N143: =IF($N$111=19,ROUND($N$22,0),"")&"" ->  | O143: =IF($O$111=19,ROUND($O$22,0),"")&"" ->  | P143: =IF($P$111=19,ROUND($P$22,0),"")&"" ->  | Q143: =IF($Q$111=19,ROUND($Q$22,0),"")&"" ->  | R143: =IF($R$111=19,ROUND($R$22,0),"")&"" ->  | S143: =IF($S$111=19,ROUND($S$22,0),"")&"" ->  | T143: =IF($T$111=19,ROUND($T$22,0),"")&"" ->  | U143: =IF($U$111=19,ROUND($U$22,0),"")&"" ->  | V143: =IF($V$111=19,ROUND($V$22,0),"")&"" ->  | W143: =IF($W$111=19,ROUND($W$22,0),"")&"" ->  | X143: =IF($X$111=19,ROUND($X$22,0),"")&"" ->  | Y143: =IF($Y$111=19,ROUND($Y$22,0),"")&"" ->  | Z143: =IF($Z$111=19,ROUND($Z$22,0),"")&"" ->  | AA143: =IF($AA$111=19,ROUND($AA$22,0),"")&"" ->  | AB143: 2
C144: 3 | D144: =IF($D$112=19,ROUND($D$23,0),"")&"" ->  | E144: =IF($E$112=19,ROUND($E$23,0),"")&"" ->  | F144: =IF($F$112=19,ROUND($F$23,0),"")&"" ->  | G144: =IF($G$112=19,ROUND($G$23,0),"")&"" ->  | H144: =IF($H$112=19,ROUND($H$23,0),"")&"" ->  | I144: =IF($I$112=19,ROUND($I$23,0),"")&"" ->  | J144: =IF($J$112=19,ROUND($J$23,0),"")&"" ->  | K144: =IF($K$112=19,ROUND($K$23,0),"")&"" ->  | L144: =IF($L$112=19,ROUND($L$23,0),"")&"" ->  | M144: =IF($M$112=19,ROUND($M$23,0),"")&"" ->  | N144: =IF($N$112=19,ROUND($N$23,0),"")&"" ->  | O144: =IF($O$112=19,ROUND($O$23,0),"")&"" ->  | P144: =IF($P$112=19,ROUND($P$23,0),"")&"" ->  | Q144: =IF($Q$112=19,ROUND($Q$23,0),"")&"" ->  | R144: =IF($R$112=19,ROUND($R$23,0),"")&"" ->  | S144: =IF($S$112=19,ROUND($S$23,0),"")&"" ->  | T144: =IF($T$112=19,ROUND($T$23,0),"")&"" ->  | U144: =IF($U$112=19,ROUND($U$23,0),"")&"" ->  | V144: =IF($V$112=19,ROUND($V$23,0),"")&"" ->  | W144: =IF($W$112=19,ROUND($W$23,0),"")&"" ->  | X144: =IF($X$112=19,ROUND($X$23,0),"")&"" ->  | Y144: =IF($Y$112=19,ROUND($Y$23,0),"")&"" ->  | Z144: =IF($Z$112=19,ROUND($Z$23,0),"")&"" ->  | AA144: =IF($AA$112=19,ROUND($AA$23,0),"")&"" ->  | AB144: 3
C146: 冷房期間中 温度(T)が発生する時間[hour]
D147: 温度(T) | AU147: 月単位
C148: 月 | D148: -6 | E148: -5 | F148: -4 | G148: -3 | H148: -2 | I148: -1 | J148: 0 | K148: 1 | L148: 2 | M148: 3 | N148: 4 | O148: 5 | P148: 6 | Q148: 7 | R148: 8 | S148: 9 | T148: 10 | U148: 11 | V148: 12 | W148: 13 | X148: 14 | Y148: 15 | Z148: 16 | AA148: 17 | AB148: 18 | AC148: 19 | AD148: 20 | AE148: 21 | AF148: 22 | AG148: 23 | AH148: 24 | AI148: 25 | AJ148: 26 | AK148: 27 | AL148: 28 | AM148: 29 | AN148: 30 | AO148: 31 | AP148: 32 | AQ148: 33 | AR148: 34 | AS148: 35 | AT148: 月 | AU148: 前1 | AV148: 前2 | AW148: 前3 | AX148: 前4 | AY148: 前5 | AZ148: 前6 | BA148: 前7 | BB148: 前8 | BC148: 前9 | BD148: 前10 | BF148: 後1 | BG148: 後2 | BH148: 後3 | BI148: 後4 | BJ148: 後5 | BK148: 後6 | BL148: 後7 | BM148: 後8 | BN148: 後9 | BO148: 後10
C149: 4 | D149: =COUNTIF($D$117:$AA$117,$D$148)*$AB$12 -> 0 | E149: =COUNTIF($D$117:$AA$117,$E$148)*$AB$12 -> 0 | F149: =COUNTIF($D$117:$AA$117,$F$148)*$AB$12 -> 0 | G149: =COUNTIF($D$117:$AA$117,$G$148)*$AB$12 -> 0 | H149: =COUNTIF($D$117:$AA$117,$H$148)*$AB$12 -> 0 | I149: =COUNTIF($D$117:$AA$117,$I$148)*$AB$12 -> 0 | J149: =COUNTIF($D$117:$AA$117,$J$148)*$AB$12 -> 0 | K149: =COUNTIF($D$117:$AA$117,$K$148)*$AB$12 -> 0 | L149: =COUNTIF($D$117:$AA$117,$L$148)*$AB$12 -> 0 | M149: =COUNTIF($D$117:$AA$117,$M$148)*$AB$12 -> 0 | N149: =COUNTIF($D$117:$AA$117,$N$148)*$AB$12 -> 0 | O149: =COUNTIF($D$117:$AA$117,$O$148)*$AB$12 -> 0 | P149: =COUNTIF($D$117:$AA$117,$P$148)*$AB$12 -> 0 | Q149: =COUNTIF($D$117:$AA$117,$Q$148)*$AB$12 -> 0 | R149: =COUNTIF($D$117:$AA$117,$R$148)*$AB$12 -> 0 | S149: =COUNTIF($D$117:$AA$117,$S$148)*$AB$12 -> 0 | T149: =COUNTIF($D$117:$AA$117,$T$148)*$AB$12 -> 0 | U149: =COUNTIF($D$117:$AA$117,$U$148)*$AB$12 -> 0 | V149: =COUNTIF($D$117:$AA$117,$V$148)*$AB$12 -> 0 | W149: =COUNTIF($D$117:$AA$117,$W$148)*$AB$12 -> 0 | X149: =COUNTIF($D$117:$AA$117,$X$148)*$AB$12 -> 0 | Y149: =COUNTIF($D$117:$AA$117,$Y$148)*$AB$12 -> 0 | Z149: =COUNTIF($D$117:$AA$117,$Z$148)*$AB$12 -> 0 | AA149: =COUNTIF($D$117:$AA$117,$AA$148)*$AB$12 -> 0 | AB149: =COUNTIF($D$117:$AA$117,$AB$148)*$AB$12 -> 0 | AC149: =COUNTIF($D$117:$AA$117,$AC$148)*$AB$12 -> 0 | AD149: =COUNTIF($D$117:$AA$117,$AD$148)*$AB$12 -> 0 | AE149: =COUNTIF($D$117:$AA$117,$AE$148)*$AB$12 -> 0 | AF149: =COUNTIF($D$117:$AA$117,$AF$148)*$AB$12 -> 0 | AG149: =COUNTIF($D$117:$AA$117,$AG$148)*$AB$12 -> 0 | AH149: =COUNTIF($D$117:$AA$117,$AH$148)*$AB$12 -> 0 | AI149: =COUNTIF($D$117:$AA$117,$AI$148)*$AB$12 -> 0 | AJ149: =COUNTIF($D$117:$AA$117,$AJ$148)*$AB$12 -> 0 | AK149: =COUNTIF($D$117:$AA$117,$AK$148)*$AB$12 -> 0 | AL149: =COUNTIF($D$117:$AA$117,$AL$148)*$AB$12 -> 0 | AM149: =COUNTIF($D$117:$AA$117,$AM$148)*$AB$12 -> 0 | AN149: =COUNTIF($D$117:$AA$117,$AN$148)*$AB$12 -> 0 | AO149: =COUNTIF($D$117:$AA$117,$AO$148)*$AB$12 -> 0 | AP149: =COUNTIF($D$117:$AA$117,$AP$148)*$AB$12 -> 0 | AQ149: =COUNTIF($D$117:$AA$117,$AQ$148)*$AB$12 -> 0 | AR149: =COUNTIF($D$117:$AA$117,$AR$148)*$AB$12 -> 0 | AS149: =COUNTIF($D$117:$AA$117,$AS$148)*$AB$12 -> 0 | AT149: 4 | AU149: =IFERROR(SUMPRODUCT($D149:$AS149,$D$164:$AS$164),"") -> 0 | AV149: =IFERROR(SUMPRODUCT($D149:$AS149,$D$170:$AS$170),"") ->  | AW149: =IFERROR(SUMPRODUCT($D149:$AS149,$D$176:$AS$176),"") ->  | AX149: =IFERROR(SUMPRODUCT($D149:$AS149,$D$182:$AS$182),"") ->  | AY149: =IFERROR(SUMPRODUCT($D149:$AS149,$D$188:$AS$188),"") ->  | AZ149: =IFERROR(SUMPRODUCT($D149:$AS149,$D$194:$AS$194),"") ->  | BA149: =IFERROR(SUMPRODUCT($D149:$AS149,$D$200:$AS$200),"") ->  | BB149: =IFERROR(SUMPRODUCT($D149:$AS149,$D$206:$AS$206),"") ->  | BC149: =IFERROR(SUMPRODUCT($D149:$AS149,$D$212:$AS$212),"") ->  | BD149: =IFERROR(SUMPRODUCT($D149:$AS149,$D$218:$AS$218),"") ->  | BF149: =IFERROR(SUMPRODUCT($D149:$AS149,$D$225:$AS$225),"") ->  | BG149: =IFERROR(SUMPRODUCT($D149:$AS149,$D$231:$AS$231),"") ->  | BH149: =IFERROR(SUMPRODUCT($D149:$AS149,$D$237:$AS$237),"") ->  | BI149: =IFERROR(SUMPRODUCT($D149:$AS149,$D$243:$AS$243),"") ->  | BJ149: =IFERROR(SUMPRODUCT($D149:$AS149,$D$249:$AS$249),"") ->  | BK149: =IFERROR(SUMPRODUCT($D149:$AS149,$D$255:$AS$255),"") ->  | BL149: =IFERROR(SUMPRODUCT($D149:$AS149,$D$261:$AS$261),"") ->  | BM149: =IFERROR(SUMPRODUCT($D149:$AS149,$D$267:$AS$267),"") ->  | BN149: =IFERROR(SUMPRODUCT($D149:$AS149,$D$273:$AS$273),"") ->  | BO149: =IFERROR(SUMPRODUCT($D149:$AS149,$D$279:$AS$279),"") -> 
C150: 5 | D150: =COUNTIF($D$118:$AA$118,$D$148)*$AB$13 -> 0 | E150: =COUNTIF($D$118:$AA$118,$E$148)*$AB$13 -> 0 | F150: =COUNTIF($D$118:$AA$118,$F$148)*$AB$13 -> 0 | G150: =COUNTIF($D$118:$AA$118,$G$148)*$AB$13 -> 0 | H150: =COUNTIF($D$118:$AA$118,$H$148)*$AB$13 -> 0 | I150: =COUNTIF($D$118:$AA$118,$I$148)*$AB$13 -> 0 | J150: =COUNTIF($D$118:$AA$118,$J$148)*$AB$13 -> 0 | K150: =COUNTIF($D$118:$AA$118,$K$148)*$AB$13 -> 0 | L150: =COUNTIF($D$118:$AA$118,$L$148)*$AB$13 -> 0 | M150: =COUNTIF($D$118:$AA$118,$M$148)*$AB$13 -> 0 | N150: =COUNTIF($D$118:$AA$118,$N$148)*$AB$13 -> 0 | O150: =COUNTIF($D$118:$AA$118,$O$148)*$AB$13 -> 0 | P150: =COUNTIF($D$118:$AA$118,$P$148)*$AB$13 -> 0 | Q150: =COUNTIF($D$118:$AA$118,$Q$148)*$AB$13 -> 0 | R150: =COUNTIF($D$118:$AA$118,$R$148)*$AB$13 -> 0 | S150: =COUNTIF($D$118:$AA$118,$S$148)*$AB$13 -> 0 | T150: =COUNTIF($D$118:$AA$118,$T$148)*$AB$13 -> 0 | U150: =COUNTIF($D$118:$AA$118,$U$148)*$AB$13 -> 0 | V150: =COUNTIF($D$118:$AA$118,$V$148)*$AB$13 -> 0 | W150: =COUNTIF($D$118:$AA$118,$W$148)*$AB$13 -> 0 | X150: =COUNTIF($D$118:$AA$118,$X$148)*$AB$13 -> 0 | Y150: =COUNTIF($D$118:$AA$118,$Y$148)*$AB$13 -> 0 | Z150: =COUNTIF($D$118:$AA$118,$Z$148)*$AB$13 -> 0 | AA150: =COUNTIF($D$118:$AA$118,$AA$148)*$AB$13 -> 0 | AB150: =COUNTIF($D$118:$AA$118,$AB$148)*$AB$13 -> 0 | AC150: =COUNTIF($D$118:$AA$118,$AC$148)*$AB$13 -> 0 | AD150: =COUNTIF($D$118:$AA$118,$AD$148)*$AB$13 -> 0 | AE150: =COUNTIF($D$118:$AA$118,$AE$148)*$AB$13 -> 0 | AF150: =COUNTIF($D$118:$AA$118,$AF$148)*$AB$13 -> 0 | AG150: =COUNTIF($D$118:$AA$118,$AG$148)*$AB$13 -> 0 | AH150: =COUNTIF($D$118:$AA$118,$AH$148)*$AB$13 -> 0 | AI150: =COUNTIF($D$118:$AA$118,$AI$148)*$AB$13 -> 0 | AJ150: =COUNTIF($D$118:$AA$118,$AJ$148)*$AB$13 -> 0 | AK150: =COUNTIF($D$118:$AA$118,$AK$148)*$AB$13 -> 0 | AL150: =COUNTIF($D$118:$AA$118,$AL$148)*$AB$13 -> 0 | AM150: =COUNTIF($D$118:$AA$118,$AM$148)*$AB$13 -> 0 | AN150: =COUNTIF($D$118:$AA$118,$AN$148)*$AB$13 -> 0 | AO150: =COUNTIF($D$118:$AA$118,$AO$148)*$AB$13 -> 0 | AP150: =COUNTIF($D$118:$AA$118,$AP$148)*$AB$13 -> 0 | AQ150: =COUNTIF($D$118:$AA$118,$AQ$148)*$AB$13 -> 0 | AR150: =COUNTIF($D$118:$AA$118,$AR$148)*$AB$13 -> 0 | AS150: =COUNTIF($D$118:$AA$118,$AS$148)*$AB$13 -> 0 | AT150: 5 | AU150: =IFERROR(SUMPRODUCT($D150:$AS150,$D$164:$AS$164),"") -> 0 | AV150: =IFERROR(SUMPRODUCT($D150:$AS150,$D$170:$AS$170),"") ->  | AW150: =IFERROR(SUMPRODUCT($D150:$AS150,$D$176:$AS$176),"") ->  | AX150: =IFERROR(SUMPRODUCT($D150:$AS150,$D$182:$AS$182),"") ->  | AY150: =IFERROR(SUMPRODUCT($D150:$AS150,$D$188:$AS$188),"") ->  | AZ150: =IFERROR(SUMPRODUCT($D150:$AS150,$D$194:$AS$194),"") ->  | BA150: =IFERROR(SUMPRODUCT($D150:$AS150,$D$200:$AS$200),"") ->  | BB150: =IFERROR(SUMPRODUCT($D150:$AS150,$D$206:$AS$206),"") ->  | BC150: =IFERROR(SUMPRODUCT($D150:$AS150,$D$212:$AS$212),"") ->  | BD150: =IFERROR(SUMPRODUCT($D150:$AS150,$D$218:$AS$218),"") ->  | BF150: =IFERROR(SUMPRODUCT($D150:$AS150,$D$225:$AS$225),"") ->  | BG150: =IFERROR(SUMPRODUCT($D150:$AS150,$D$231:$AS$231),"") ->  | BH150: =IFERROR(SUMPRODUCT($D150:$AS150,$D$237:$AS$237),"") ->  | BI150: =IFERROR(SUMPRODUCT($D150:$AS150,$D$243:$AS$243),"") ->  | BJ150: =IFERROR(SUMPRODUCT($D150:$AS150,$D$249:$AS$249),"") ->  | BK150: =IFERROR(SUMPRODUCT($D150:$AS150,$D$255:$AS$255),"") ->  | BL150: =IFERROR(SUMPRODUCT($D150:$AS150,$D$261:$AS$261),"") ->  | BM150: =IFERROR(SUMPRODUCT($D150:$AS150,$D$267:$AS$267),"") ->  | BN150: =IFERROR(SUMPRODUCT($D150:$AS150,$D$273:$AS$273),"") ->  | BO150: =IFERROR(SUMPRODUCT($D150:$AS150,$D$279:$AS$279),"") -> 
C151: 6 | D151: =COUNTIF($D$119:$AA$119,$D$148)*$AB$14 -> 0 | E151: =COUNTIF($D$119:$AA$119,$E$148)*$AB$14 -> 0 | F151: =COUNTIF($D$119:$AA$119,$F$148)*$AB$14 -> 0 | G151: =COUNTIF($D$119:$AA$119,$G$148)*$AB$14 -> 0 | H151: =COUNTIF($D$119:$AA$119,$H$148)*$AB$14 -> 0 | I151: =COUNTIF($D$119:$AA$119,$I$148)*$AB$14 -> 0 | J151: =COUNTIF($D$119:$AA$119,$J$148)*$AB$14 -> 0 | K151: =COUNTIF($D$119:$AA$119,$K$148)*$AB$14 -> 0 | L151: =COUNTIF($D$119:$AA$119,$L$148)*$AB$14 -> 0 | M151: =COUNTIF($D$119:$AA$119,$M$148)*$AB$14 -> 0 | N151: =COUNTIF($D$119:$AA$119,$N$148)*$AB$14 -> 0 | O151: =COUNTIF($D$119:$AA$119,$O$148)*$AB$14 -> 0 | P151: =COUNTIF($D$119:$AA$119,$P$148)*$AB$14 -> 0 | Q151: =COUNTIF($D$119:$AA$119,$Q$148)*$AB$14 -> 0 | R151: =COUNTIF($D$119:$AA$119,$R$148)*$AB$14 -> 0 | S151: =COUNTIF($D$119:$AA$119,$S$148)*$AB$14 -> 0 | T151: =COUNTIF($D$119:$AA$119,$T$148)*$AB$14 -> 0 | U151: =COUNTIF($D$119:$AA$119,$U$148)*$AB$14 -> 0 | V151: =COUNTIF($D$119:$AA$119,$V$148)*$AB$14 -> 0 | W151: =COUNTIF($D$119:$AA$119,$W$148)*$AB$14 -> 0 | X151: =COUNTIF($D$119:$AA$119,$X$148)*$AB$14 -> 0 | Y151: =COUNTIF($D$119:$AA$119,$Y$148)*$AB$14 -> 0 | Z151: =COUNTIF($D$119:$AA$119,$Z$148)*$AB$14 -> 0 | AA151: =COUNTIF($D$119:$AA$119,$AA$148)*$AB$14 -> 0 | AB151: =COUNTIF($D$119:$AA$119,$AB$148)*$AB$14 -> 0 | AC151: =COUNTIF($D$119:$AA$119,$AC$148)*$AB$14 -> 0 | AD151: =COUNTIF($D$119:$AA$119,$AD$148)*$AB$14 -> 0 | AE151: =COUNTIF($D$119:$AA$119,$AE$148)*$AB$14 -> 0 | AF151: =COUNTIF($D$119:$AA$119,$AF$148)*$AB$14 -> 0 | AG151: =COUNTIF($D$119:$AA$119,$AG$148)*$AB$14 -> 0 | AH151: =COUNTIF($D$119:$AA$119,$AH$148)*$AB$14 -> 0 | AI151: =COUNTIF($D$119:$AA$119,$AI$148)*$AB$14 -> 0 | AJ151: =COUNTIF($D$119:$AA$119,$AJ$148)*$AB$14 -> 0 | AK151: =COUNTIF($D$119:$AA$119,$AK$148)*$AB$14 -> 0 | AL151: =COUNTIF($D$119:$AA$119,$AL$148)*$AB$14 -> 0 | AM151: =COUNTIF($D$119:$AA$119,$AM$148)*$AB$14 -> 0 | AN151: =COUNTIF($D$119:$AA$119,$AN$148)*$AB$14 -> 0 | AO151: =COUNTIF($D$119:$AA$119,$AO$148)*$AB$14 -> 0 | AP151: =COUNTIF($D$119:$AA$119,$AP$148)*$AB$14 -> 0 | AQ151: =COUNTIF($D$119:$AA$119,$AQ$148)*$AB$14 -> 0 | AR151: =COUNTIF($D$119:$AA$119,$AR$148)*$AB$14 -> 0 | AS151: =COUNTIF($D$119:$AA$119,$AS$148)*$AB$14 -> 0 | AT151: 6 | AU151: 0
C152: 7 | D152: =COUNTIF($D$120:$AA$120,$D$148)*$AB$15 -> 0 | E152: =COUNTIF($D$120:$AA$120,$E$148)*$AB$15 -> 0 | F152: =COUNTIF($D$120:$AA$120,$F$148)*$AB$15 -> 0 | G152: =COUNTIF($D$120:$AA$120,$G$148)*$AB$15 -> 0 | H152: =COUNTIF($D$120:$AA$120,$H$148)*$AB$15 -> 0 | I152: =COUNTIF($D$120:$AA$120,$I$148)*$AB$15 -> 0 | J152: =COUNTIF($D$120:$AA$120,$J$148)*$AB$15 -> 0 | K152: =COUNTIF($D$120:$AA$120,$K$148)*$AB$15 -> 0 | L152: =COUNTIF($D$120:$AA$120,$L$148)*$AB$15 -> 0 | M152: =COUNTIF($D$120:$AA$120,$M$148)*$AB$15 -> 0 | N152: =COUNTIF($D$120:$AA$120,$N$148)*$AB$15 -> 0 | O152: =COUNTIF($D$120:$AA$120,$O$148)*$AB$15 -> 0 | P152: =COUNTIF($D$120:$AA$120,$P$148)*$AB$15 -> 0 | Q152: =COUNTIF($D$120:$AA$120,$Q$148)*$AB$15 -> 0 | R152: =COUNTIF($D$120:$AA$120,$R$148)*$AB$15 -> 0 | S152: =COUNTIF($D$120:$AA$120,$S$148)*$AB$15 -> 0 | T152: =COUNTIF($D$120:$AA$120,$T$148)*$AB$15 -> 0 | U152: =COUNTIF($D$120:$AA$120,$U$148)*$AB$15 -> 0 | V152: =COUNTIF($D$120:$AA$120,$V$148)*$AB$15 -> 0 | W152: =COUNTIF($D$120:$AA$120,$W$148)*$AB$15 -> 0 | X152: =COUNTIF($D$120:$AA$120,$X$148)*$AB$15 -> 0 | Y152: =COUNTIF($D$120:$AA$120,$Y$148)*$AB$15 -> 0 | Z152: =COUNTIF($D$120:$AA$120,$Z$148)*$AB$15 -> 0 | AA152: =COUNTIF($D$120:$AA$120,$AA$148)*$AB$15 -> 0 | AB152: =COUNTIF($D$120:$AA$120,$AB$148)*$AB$15 -> 0 | AC152: =COUNTIF($D$120:$AA$120,$AC$148)*$AB$15 -> 0 | AD152: =COUNTIF($D$120:$AA$120,$AD$148)*$AB$15 -> 0 | AE152: =COUNTIF($D$120:$AA$120,$AE$148)*$AB$15 -> 0 | AF152: =COUNTIF($D$120:$AA$120,$AF$148)*$AB$15 -> 0 | AG152: =COUNTIF($D$120:$AA$120,$AG$148)*$AB$15 -> 0 | AH152: =COUNTIF($D$120:$AA$120,$AH$148)*$AB$15 -> 0 | AI152: =COUNTIF($D$120:$AA$120,$AI$148)*$AB$15 -> 0 | AJ152: =COUNTIF($D$120:$AA$120,$AJ$148)*$AB$15 -> 0 | AK152: =COUNTIF($D$120:$AA$120,$AK$148)*$AB$15 -> 0 | AL152: =COUNTIF($D$120:$AA$120,$AL$148)*$AB$15 -> 0 | AM152: =COUNTIF($D$120:$AA$120,$AM$148)*$AB$15 -> 0 | AN152: =COUNTIF($D$120:$AA$120,$AN$148)*$AB$15 -> 0 | AO152: =COUNTIF($D$120:$AA$120,$AO$148)*$AB$15 -> 0 | AP152: =COUNTIF($D$120:$AA$120,$AP$148)*$AB$15 -> 0 | AQ152: =COUNTIF($D$120:$AA$120,$AQ$148)*$AB$15 -> 0 | AR152: =COUNTIF($D$120:$AA$120,$AR$148)*$AB$15 -> 0 | AS152: =COUNTIF($D$120:$AA$120,$AS$148)*$AB$15 -> 0 | AT152: 7 | AU152: 0
C153: 8 | D153: =COUNTIF($D$121:$AA$121,$D$148)*$AB$16 -> 0 | E153: =COUNTIF($D$121:$AA$121,$E$148)*$AB$16 -> 0 | F153: =COUNTIF($D$121:$AA$121,$F$148)*$AB$16 -> 0 | G153: =COUNTIF($D$121:$AA$121,$G$148)*$AB$16 -> 0 | H153: =COUNTIF($D$121:$AA$121,$H$148)*$AB$16 -> 0 | I153: =COUNTIF($D$121:$AA$121,$I$148)*$AB$16 -> 0 | J153: =COUNTIF($D$121:$AA$121,$J$148)*$AB$16 -> 0 | K153: =COUNTIF($D$121:$AA$121,$K$148)*$AB$16 -> 0 | L153: =COUNTIF($D$121:$AA$121,$L$148)*$AB$16 -> 0 | M153: =COUNTIF($D$121:$AA$121,$M$148)*$AB$16 -> 0 | N153: =COUNTIF($D$121:$AA$121,$N$148)*$AB$16 -> 0 | O153: =COUNTIF($D$121:$AA$121,$O$148)*$AB$16 -> 0 | P153: =COUNTIF($D$121:$AA$121,$P$148)*$AB$16 -> 0 | Q153: =COUNTIF($D$121:$AA$121,$Q$148)*$AB$16 -> 0 | R153: =COUNTIF($D$121:$AA$121,$R$148)*$AB$16 -> 0 | S153: =COUNTIF($D$121:$AA$121,$S$148)*$AB$16 -> 0 | T153: =COUNTIF($D$121:$AA$121,$T$148)*$AB$16 -> 0 | U153: =COUNTIF($D$121:$AA$121,$U$148)*$AB$16 -> 0 | V153: =COUNTIF($D$121:$AA$121,$V$148)*$AB$16 -> 0 | W153: =COUNTIF($D$121:$AA$121,$W$148)*$AB$16 -> 0 | X153: =COUNTIF($D$121:$AA$121,$X$148)*$AB$16 -> 0 | Y153: =COUNTIF($D$121:$AA$121,$Y$148)*$AB$16 -> 0 | Z153: =COUNTIF($D$121:$AA$121,$Z$148)*$AB$16 -> 0 | AA153: =COUNTIF($D$121:$AA$121,$AA$148)*$AB$16 -> 0 | AB153: =COUNTIF($D$121:$AA$121,$AB$148)*$AB$16 -> 0 | AC153: =COUNTIF($D$121:$AA$121,$AC$148)*$AB$16 -> 0 | AD153: =COUNTIF($D$121:$AA$121,$AD$148)*$AB$16 -> 0 | AE153: =COUNTIF($D$121:$AA$121,$AE$148)*$AB$16 -> 0 | AF153: =COUNTIF($D$121:$AA$121,$AF$148)*$AB$16 -> 0 | AG153: =COUNTIF($D$121:$AA$121,$AG$148)*$AB$16 -> 0 | AH153: =COUNTIF($D$121:$AA$121,$AH$148)*$AB$16 -> 0 | AI153: =COUNTIF($D$121:$AA$121,$AI$148)*$AB$16 -> 0 | AJ153: =COUNTIF($D$121:$AA$121,$AJ$148)*$AB$16 -> 0 | AK153: =COUNTIF($D$121:$AA$121,$AK$148)*$AB$16 -> 0 | AL153: =COUNTIF($D$121:$AA$121,$AL$148)*$AB$16 -> 0 | AM153: =COUNTIF($D$121:$AA$121,$AM$148)*$AB$16 -> 0 | AN153: =COUNTIF($D$121:$AA$121,$AN$148)*$AB$16 -> 0 | AO153: =COUNTIF($D$121:$AA$121,$AO$148)*$AB$16 -> 0 | AP153: =COUNTIF($D$121:$AA$121,$AP$148)*$AB$16 -> 0 | AQ153: =COUNTIF($D$121:$AA$121,$AQ$148)*$AB$16 -> 0 | AR153: =COUNTIF($D$121:$AA$121,$AR$148)*$AB$16 -> 0 | AS153: =COUNTIF($D$121:$AA$121,$AS$148)*$AB$16 -> 0 | AT153: 8 | AU153: 0
C154: 9 | D154: =COUNTIF($D$122:$AA$122,$D$148)*$AB$17 -> 0 | E154: =COUNTIF($D$122:$AA$122,$E$148)*$AB$17 -> 0 | F154: =COUNTIF($D$122:$AA$122,$F$148)*$AB$17 -> 0 | G154: =COUNTIF($D$122:$AA$122,$G$148)*$AB$17 -> 0 | H154: =COUNTIF($D$122:$AA$122,$H$148)*$AB$17 -> 0 | I154: =COUNTIF($D$122:$AA$122,$I$148)*$AB$17 -> 0 | J154: =COUNTIF($D$122:$AA$122,$J$148)*$AB$17 -> 0 | K154: =COUNTIF($D$122:$AA$122,$K$148)*$AB$17 -> 0 | L154: =COUNTIF($D$122:$AA$122,$L$148)*$AB$17 -> 0 | M154: =COUNTIF($D$122:$AA$122,$M$148)*$AB$17 -> 0 | N154: =COUNTIF($D$122:$AA$122,$N$148)*$AB$17 -> 0 | O154: =COUNTIF($D$122:$AA$122,$O$148)*$AB$17 -> 0 | P154: =COUNTIF($D$122:$AA$122,$P$148)*$AB$17 -> 0 | Q154: =COUNTIF($D$122:$AA$122,$Q$148)*$AB$17 -> 0 | R154: =COUNTIF($D$122:$AA$122,$R$148)*$AB$17 -> 0 | S154: =COUNTIF($D$122:$AA$122,$S$148)*$AB$17 -> 0 | T154: =COUNTIF($D$122:$AA$122,$T$148)*$AB$17 -> 0 | U154: =COUNTIF($D$122:$AA$122,$U$148)*$AB$17 -> 0 | V154: =COUNTIF($D$122:$AA$122,$V$148)*$AB$17 -> 0 | W154: =COUNTIF($D$122:$AA$122,$W$148)*$AB$17 -> 0 | X154: =COUNTIF($D$122:$AA$122,$X$148)*$AB$17 -> 0 | Y154: =COUNTIF($D$122:$AA$122,$Y$148)*$AB$17 -> 0 | Z154: =COUNTIF($D$122:$AA$122,$Z$148)*$AB$17 -> 0 | AA154: =COUNTIF($D$122:$AA$122,$AA$148)*$AB$17 -> 0 | AB154: =COUNTIF($D$122:$AA$122,$AB$148)*$AB$17 -> 0 | AC154: =COUNTIF($D$122:$AA$122,$AC$148)*$AB$17 -> 0 | AD154: =COUNTIF($D$122:$AA$122,$AD$148)*$AB$17 -> 0 | AE154: =COUNTIF($D$122:$AA$122,$AE$148)*$AB$17 -> 0 | AF154: =COUNTIF($D$122:$AA$122,$AF$148)*$AB$17 -> 0 | AG154: =COUNTIF($D$122:$AA$122,$AG$148)*$AB$17 -> 0 | AH154: =COUNTIF($D$122:$AA$122,$AH$148)*$AB$17 -> 0 | AI154: =COUNTIF($D$122:$AA$122,$AI$148)*$AB$17 -> 0 | AJ154: =COUNTIF($D$122:$AA$122,$AJ$148)*$AB$17 -> 0 | AK154: =COUNTIF($D$122:$AA$122,$AK$148)*$AB$17 -> 0 | AL154: =COUNTIF($D$122:$AA$122,$AL$148)*$AB$17 -> 0 | AM154: =COUNTIF($D$122:$AA$122,$AM$148)*$AB$17 -> 0 | AN154: =COUNTIF($D$122:$AA$122,$AN$148)*$AB$17 -> 0 | AO154: =COUNTIF($D$122:$AA$122,$AO$148)*$AB$17 -> 0 | AP154: =COUNTIF($D$122:$AA$122,$AP$148)*$AB$17 -> 0 | AQ154: =COUNTIF($D$122:$AA$122,$AQ$148)*$AB$17 -> 0 | AR154: =COUNTIF($D$122:$AA$122,$AR$148)*$AB$17 -> 0 | AS154: =COUNTIF($D$122:$AA$122,$AS$148)*$AB$17 -> 0 | AT154: 9 | AU154: 0
C155: 10 | D155: =COUNTIF($D$123:$AA$123,$D$148)*$AB$18 -> 0 | E155: =COUNTIF($D$123:$AA$123,$E$148)*$AB$18 -> 0 | F155: =COUNTIF($D$123:$AA$123,$F$148)*$AB$18 -> 0 | G155: =COUNTIF($D$123:$AA$123,$G$148)*$AB$18 -> 0 | H155: =COUNTIF($D$123:$AA$123,$H$148)*$AB$18 -> 0 | I155: =COUNTIF($D$123:$AA$123,$I$148)*$AB$18 -> 0 | J155: =COUNTIF($D$123:$AA$123,$J$148)*$AB$18 -> 0 | K155: =COUNTIF($D$123:$AA$123,$K$148)*$AB$18 -> 0 | L155: =COUNTIF($D$123:$AA$123,$L$148)*$AB$18 -> 0 | M155: =COUNTIF($D$123:$AA$123,$M$148)*$AB$18 -> 0 | N155: =COUNTIF($D$123:$AA$123,$N$148)*$AB$18 -> 0 | O155: =COUNTIF($D$123:$AA$123,$O$148)*$AB$18 -> 0 | P155: =COUNTIF($D$123:$AA$123,$P$148)*$AB$18 -> 0 | Q155: =COUNTIF($D$123:$AA$123,$Q$148)*$AB$18 -> 0 | R155: =COUNTIF($D$123:$AA$123,$R$148)*$AB$18 -> 0 | S155: =COUNTIF($D$123:$AA$123,$S$148)*$AB$18 -> 0 | T155: =COUNTIF($D$123:$AA$123,$T$148)*$AB$18 -> 0 | U155: =COUNTIF($D$123:$AA$123,$U$148)*$AB$18 -> 0 | V155: =COUNTIF($D$123:$AA$123,$V$148)*$AB$18 -> 0 | W155: =COUNTIF($D$123:$AA$123,$W$148)*$AB$18 -> 0 | X155: =COUNTIF($D$123:$AA$123,$X$148)*$AB$18 -> 0 | Y155: =COUNTIF($D$123:$AA$123,$Y$148)*$AB$18 -> 0 | Z155: =COUNTIF($D$123:$AA$123,$Z$148)*$AB$18 -> 0 | AA155: =COUNTIF($D$123:$AA$123,$AA$148)*$AB$18 -> 0 | AB155: =COUNTIF($D$123:$AA$123,$AB$148)*$AB$18 -> 0 | AC155: =COUNTIF($D$123:$AA$123,$AC$148)*$AB$18 -> 0 | AD155: =COUNTIF($D$123:$AA$123,$AD$148)*$AB$18 -> 0 | AE155: =COUNTIF($D$123:$AA$123,$AE$148)*$AB$18 -> 0 | AF155: =COUNTIF($D$123:$AA$123,$AF$148)*$AB$18 -> 0 | AG155: =COUNTIF($D$123:$AA$123,$AG$148)*$AB$18 -> 0 | AH155: =COUNTIF($D$123:$AA$123,$AH$148)*$AB$18 -> 0 | AI155: =COUNTIF($D$123:$AA$123,$AI$148)*$AB$18 -> 0 | AJ155: =COUNTIF($D$123:$AA$123,$AJ$148)*$AB$18 -> 0 | AK155: =COUNTIF($D$123:$AA$123,$AK$148)*$AB$18 -> 0 | AL155: =COUNTIF($D$123:$AA$123,$AL$148)*$AB$18 -> 0 | AM155: =COUNTIF($D$123:$AA$123,$AM$148)*$AB$18 -> 0 | AN155: =COUNTIF($D$123:$AA$123,$AN$148)*$AB$18 -> 0 | AO155: =COUNTIF($D$123:$AA$123,$AO$148)*$AB$18 -> 0 | AP155: =COUNTIF($D$123:$AA$123,$AP$148)*$AB$18 -> 0 | AQ155: =COUNTIF($D$123:$AA$123,$AQ$148)*$AB$18 -> 0 | AR155: =COUNTIF($D$123:$AA$123,$AR$148)*$AB$18 -> 0 | AS155: =COUNTIF($D$123:$AA$123,$AS$148)*$AB$18 -> 0 | AT155: 10 | AU155: 0
C156: 11 | D156: =COUNTIF($D$124:$AA$124,$D$148)*$AB$19 -> 0 | E156: =COUNTIF($D$124:$AA$124,$E$148)*$AB$19 -> 0 | F156: =COUNTIF($D$124:$AA$124,$F$148)*$AB$19 -> 0 | G156: =COUNTIF($D$124:$AA$124,$G$148)*$AB$19 -> 0 | H156: =COUNTIF($D$124:$AA$124,$H$148)*$AB$19 -> 0 | I156: =COUNTIF($D$124:$AA$124,$I$148)*$AB$19 -> 0 | J156: =COUNTIF($D$124:$AA$124,$J$148)*$AB$19 -> 0 | K156: =COUNTIF($D$124:$AA$124,$K$148)*$AB$19 -> 0 | L156: =COUNTIF($D$124:$AA$124,$L$148)*$AB$19 -> 0 | M156: =COUNTIF($D$124:$AA$124,$M$148)*$AB$19 -> 0 | N156: =COUNTIF($D$124:$AA$124,$N$148)*$AB$19 -> 0 | O156: =COUNTIF($D$124:$AA$124,$O$148)*$AB$19 -> 0 | P156: =COUNTIF($D$124:$AA$124,$P$148)*$AB$19 -> 0 | Q156: =COUNTIF($D$124:$AA$124,$Q$148)*$AB$19 -> 0 | R156: =COUNTIF($D$124:$AA$124,$R$148)*$AB$19 -> 0 | S156: =COUNTIF($D$124:$AA$124,$S$148)*$AB$19 -> 0 | T156: =COUNTIF($D$124:$AA$124,$T$148)*$AB$19 -> 0 | U156: =COUNTIF($D$124:$AA$124,$U$148)*$AB$19 -> 0 | V156: =COUNTIF($D$124:$AA$124,$V$148)*$AB$19 -> 0 | W156: =COUNTIF($D$124:$AA$124,$W$148)*$AB$19 -> 0 | X156: =COUNTIF($D$124:$AA$124,$X$148)*$AB$19 -> 0 | Y156: =COUNTIF($D$124:$AA$124,$Y$148)*$AB$19 -> 0 | Z156: =COUNTIF($D$124:$AA$124,$Z$148)*$AB$19 -> 0 | AA156: =COUNTIF($D$124:$AA$124,$AA$148)*$AB$19 -> 0 | AB156: =COUNTIF($D$124:$AA$124,$AB$148)*$AB$19 -> 0 | AC156: =COUNTIF($D$124:$AA$124,$AC$148)*$AB$19 -> 0 | AD156: =COUNTIF($D$124:$AA$124,$AD$148)*$AB$19 -> 0 | AE156: =COUNTIF($D$124:$AA$124,$AE$148)*$AB$19 -> 0 | AF156: =COUNTIF($D$124:$AA$124,$AF$148)*$AB$19 -> 0 | AG156: =COUNTIF($D$124:$AA$124,$AG$148)*$AB$19 -> 0 | AH156: =COUNTIF($D$124:$AA$124,$AH$148)*$AB$19 -> 0 | AI156: =COUNTIF($D$124:$AA$124,$AI$148)*$AB$19 -> 0 | AJ156: =COUNTIF($D$124:$AA$124,$AJ$148)*$AB$19 -> 0 | AK156: =COUNTIF($D$124:$AA$124,$AK$148)*$AB$19 -> 0 | AL156: =COUNTIF($D$124:$AA$124,$AL$148)*$AB$19 -> 0 | AM156: =COUNTIF($D$124:$AA$124,$AM$148)*$AB$19 -> 0 | AN156: =COUNTIF($D$124:$AA$124,$AN$148)*$AB$19 -> 0 | AO156: =COUNTIF($D$124:$AA$124,$AO$148)*$AB$19 -> 0 | AP156: =COUNTIF($D$124:$AA$124,$AP$148)*$AB$19 -> 0 | AQ156: =COUNTIF($D$124:$AA$124,$AQ$148)*$AB$19 -> 0 | AR156: =COUNTIF($D$124:$AA$124,$AR$148)*$AB$19 -> 0 | AS156: =COUNTIF($D$124:$AA$124,$AS$148)*$AB$19 -> 0 | AT156: 11 | AU156: 0
C157: 12 | D157: =COUNTIF($D$125:$AA$125,$D$148)*$AB$20 -> 0 | E157: =COUNTIF($D$125:$AA$125,$E$148)*$AB$20 -> 0 | F157: =COUNTIF($D$125:$AA$125,$F$148)*$AB$20 -> 0 | G157: =COUNTIF($D$125:$AA$125,$G$148)*$AB$20 -> 0 | H157: =COUNTIF($D$125:$AA$125,$H$148)*$AB$20 -> 0 | I157: =COUNTIF($D$125:$AA$125,$I$148)*$AB$20 -> 0 | J157: =COUNTIF($D$125:$AA$125,$J$148)*$AB$20 -> 0 | K157: =COUNTIF($D$125:$AA$125,$K$148)*$AB$20 -> 0 | L157: =COUNTIF($D$125:$AA$125,$L$148)*$AB$20 -> 0 | M157: =COUNTIF($D$125:$AA$125,$M$148)*$AB$20 -> 0 | N157: =COUNTIF($D$125:$AA$125,$N$148)*$AB$20 -> 0 | O157: =COUNTIF($D$125:$AA$125,$O$148)*$AB$20 -> 0 | P157: =COUNTIF($D$125:$AA$125,$P$148)*$AB$20 -> 0 | Q157: =COUNTIF($D$125:$AA$125,$Q$148)*$AB$20 -> 0 | R157: =COUNTIF($D$125:$AA$125,$R$148)*$AB$20 -> 0 | S157: =COUNTIF($D$125:$AA$125,$S$148)*$AB$20 -> 0 | T157: =COUNTIF($D$125:$AA$125,$T$148)*$AB$20 -> 0 | U157: =COUNTIF($D$125:$AA$125,$U$148)*$AB$20 -> 0 | V157: =COUNTIF($D$125:$AA$125,$V$148)*$AB$20 -> 0 | W157: =COUNTIF($D$125:$AA$125,$W$148)*$AB$20 -> 0 | X157: =COUNTIF($D$125:$AA$125,$X$148)*$AB$20 -> 0 | Y157: =COUNTIF($D$125:$AA$125,$Y$148)*$AB$20 -> 0 | Z157: =COUNTIF($D$125:$AA$125,$Z$148)*$AB$20 -> 0 | AA157: =COUNTIF($D$125:$AA$125,$AA$148)*$AB$20 -> 0 | AB157: =COUNTIF($D$125:$AA$125,$AB$148)*$AB$20 -> 0 | AC157: =COUNTIF($D$125:$AA$125,$AC$148)*$AB$20 -> 0 | AD157: =COUNTIF($D$125:$AA$125,$AD$148)*$AB$20 -> 0 | AE157: =COUNTIF($D$125:$AA$125,$AE$148)*$AB$20 -> 0 | AF157: =COUNTIF($D$125:$AA$125,$AF$148)*$AB$20 -> 0 | AG157: =COUNTIF($D$125:$AA$125,$AG$148)*$AB$20 -> 0 | AH157: =COUNTIF($D$125:$AA$125,$AH$148)*$AB$20 -> 0 | AI157: =COUNTIF($D$125:$AA$125,$AI$148)*$AB$20 -> 0 | AJ157: =COUNTIF($D$125:$AA$125,$AJ$148)*$AB$20 -> 0 | AK157: =COUNTIF($D$125:$AA$125,$AK$148)*$AB$20 -> 0 | AL157: =COUNTIF($D$125:$AA$125,$AL$148)*$AB$20 -> 0 | AM157: =COUNTIF($D$125:$AA$125,$AM$148)*$AB$20 -> 0 | AN157: =COUNTIF($D$125:$AA$125,$AN$148)*$AB$20 -> 0 | AO157: =COUNTIF($D$125:$AA$125,$AO$148)*$AB$20 -> 0 | AP157: =COUNTIF($D$125:$AA$125,$AP$148)*$AB$20 -> 0 | AQ157: =COUNTIF($D$125:$AA$125,$AQ$148)*$AB$20 -> 0 | AR157: =COUNTIF($D$125:$AA$125,$AR$148)*$AB$20 -> 0 | AS157: =COUNTIF($D$125:$AA$125,$AS$148)*$AB$20 -> 0 | AT157: 12 | AU157: 0
C158: 1 | D158: =COUNTIF($D$126:$AA$126,$D$148)*$AB$21 -> 0 | E158: =COUNTIF($D$126:$AA$126,$E$148)*$AB$21 -> 0 | F158: =COUNTIF($D$126:$AA$126,$F$148)*$AB$21 -> 0 | G158: =COUNTIF($D$126:$AA$126,$G$148)*$AB$21 -> 0 | H158: =COUNTIF($D$126:$AA$126,$H$148)*$AB$21 -> 0 | I158: =COUNTIF($D$126:$AA$126,$I$148)*$AB$21 -> 0 | J158: =COUNTIF($D$126:$AA$126,$J$148)*$AB$21 -> 0 | K158: =COUNTIF($D$126:$AA$126,$K$148)*$AB$21 -> 0 | L158: =COUNTIF($D$126:$AA$126,$L$148)*$AB$21 -> 0 | M158: =COUNTIF($D$126:$AA$126,$M$148)*$AB$21 -> 0 | N158: =COUNTIF($D$126:$AA$126,$N$148)*$AB$21 -> 0 | O158: =COUNTIF($D$126:$AA$126,$O$148)*$AB$21 -> 0 | P158: =COUNTIF($D$126:$AA$126,$P$148)*$AB$21 -> 0 | Q158: =COUNTIF($D$126:$AA$126,$Q$148)*$AB$21 -> 0 | R158: =COUNTIF($D$126:$AA$126,$R$148)*$AB$21 -> 0 | S158: =COUNTIF($D$126:$AA$126,$S$148)*$AB$21 -> 0 | T158: =COUNTIF($D$126:$AA$126,$T$148)*$AB$21 -> 0 | U158: =COUNTIF($D$126:$AA$126,$U$148)*$AB$21 -> 0 | V158: =COUNTIF($D$126:$AA$126,$V$148)*$AB$21 -> 0 | W158: =COUNTIF($D$126:$AA$126,$W$148)*$AB$21 -> 0 | X158: =COUNTIF($D$126:$AA$126,$X$148)*$AB$21 -> 0 | Y158: =COUNTIF($D$126:$AA$126,$Y$148)*$AB$21 -> 0 | Z158: =COUNTIF($D$126:$AA$126,$Z$148)*$AB$21 -> 0 | AA158: =COUNTIF($D$126:$AA$126,$AA$148)*$AB$21 -> 0 | AB158: =COUNTIF($D$126:$AA$126,$AB$148)*$AB$21 -> 0 | AC158: =COUNTIF($D$126:$AA$126,$AC$148)*$AB$21 -> 0 | AD158: =COUNTIF($D$126:$AA$126,$AD$148)*$AB$21 -> 0 | AE158: =COUNTIF($D$126:$AA$126,$AE$148)*$AB$21 -> 0 | AF158: =COUNTIF($D$126:$AA$126,$AF$148)*$AB$21 -> 0 | AG158: =COUNTIF($D$126:$AA$126,$AG$148)*$AB$21 -> 0 | AH158: =COUNTIF($D$126:$AA$126,$AH$148)*$AB$21 -> 0 | AI158: =COUNTIF($D$126:$AA$126,$AI$148)*$AB$21 -> 0 | AJ158: =COUNTIF($D$126:$AA$126,$AJ$148)*$AB$21 -> 0 | AK158: =COUNTIF($D$126:$AA$126,$AK$148)*$AB$21 -> 0 | AL158: =COUNTIF($D$126:$AA$126,$AL$148)*$AB$21 -> 0 | AM158: =COUNTIF($D$126:$AA$126,$AM$148)*$AB$21 -> 0 | AN158: =COUNTIF($D$126:$AA$126,$AN$148)*$AB$21 -> 0 | AO158: =COUNTIF($D$126:$AA$126,$AO$148)*$AB$21 -> 0 | AP158: =COUNTIF($D$126:$AA$126,$AP$148)*$AB$21 -> 0 | AQ158: =COUNTIF($D$126:$AA$126,$AQ$148)*$AB$21 -> 0 | AR158: =COUNTIF($D$126:$AA$126,$AR$148)*$AB$21 -> 0 | AS158: =COUNTIF($D$126:$AA$126,$AS$148)*$AB$21 -> 0 | AT158: 1 | AU158: 0
C159: 2 | D159: =COUNTIF($D$127:$AA$127,$D$148)*$AB$22 -> 0 | E159: =COUNTIF($D$127:$AA$127,$E$148)*$AB$22 -> 0 | F159: =COUNTIF($D$127:$AA$127,$F$148)*$AB$22 -> 0 | G159: =COUNTIF($D$127:$AA$127,$G$148)*$AB$22 -> 0 | H159: =COUNTIF($D$127:$AA$127,$H$148)*$AB$22 -> 0 | I159: =COUNTIF($D$127:$AA$127,$I$148)*$AB$22 -> 0 | J159: =COUNTIF($D$127:$AA$127,$J$148)*$AB$22 -> 0 | K159: =COUNTIF($D$127:$AA$127,$K$148)*$AB$22 -> 0 | L159: =COUNTIF($D$127:$AA$127,$L$148)*$AB$22 -> 0 | M159: =COUNTIF($D$127:$AA$127,$M$148)*$AB$22 -> 0 | N159: =COUNTIF($D$127:$AA$127,$N$148)*$AB$22 -> 0 | O159: =COUNTIF($D$127:$AA$127,$O$148)*$AB$22 -> 0 | P159: =COUNTIF($D$127:$AA$127,$P$148)*$AB$22 -> 0 | Q159: =COUNTIF($D$127:$AA$127,$Q$148)*$AB$22 -> 0 | R159: =COUNTIF($D$127:$AA$127,$R$148)*$AB$22 -> 0 | S159: =COUNTIF($D$127:$AA$127,$S$148)*$AB$22 -> 0 | T159: =COUNTIF($D$127:$AA$127,$T$148)*$AB$22 -> 0 | U159: =COUNTIF($D$127:$AA$127,$U$148)*$AB$22 -> 0 | V159: =COUNTIF($D$127:$AA$127,$V$148)*$AB$22 -> 0 | W159: =COUNTIF($D$127:$AA$127,$W$148)*$AB$22 -> 0 | X159: =COUNTIF($D$127:$AA$127,$X$148)*$AB$22 -> 0 | Y159: =COUNTIF($D$127:$AA$127,$Y$148)*$AB$22 -> 0 | Z159: =COUNTIF($D$127:$AA$127,$Z$148)*$AB$22 -> 0 | AA159: =COUNTIF($D$127:$AA$127,$AA$148)*$AB$22 -> 0 | AB159: =COUNTIF($D$127:$AA$127,$AB$148)*$AB$22 -> 0 | AC159: =COUNTIF($D$127:$AA$127,$AC$148)*$AB$22 -> 0 | AD159: =COUNTIF($D$127:$AA$127,$AD$148)*$AB$22 -> 0 | AE159: =COUNTIF($D$127:$AA$127,$AE$148)*$AB$22 -> 0 | AF159: =COUNTIF($D$127:$AA$127,$AF$148)*$AB$22 -> 0 | AG159: =COUNTIF($D$127:$AA$127,$AG$148)*$AB$22 -> 0 | AH159: =COUNTIF($D$127:$AA$127,$AH$148)*$AB$22 -> 0 | AI159: =COUNTIF($D$127:$AA$127,$AI$148)*$AB$22 -> 0 | AJ159: =COUNTIF($D$127:$AA$127,$AJ$148)*$AB$22 -> 0 | AK159: =COUNTIF($D$127:$AA$127,$AK$148)*$AB$22 -> 0 | AL159: =COUNTIF($D$127:$AA$127,$AL$148)*$AB$22 -> 0 | AM159: =COUNTIF($D$127:$AA$127,$AM$148)*$AB$22 -> 0 | AN159: =COUNTIF($D$127:$AA$127,$AN$148)*$AB$22 -> 0 | AO159: =COUNTIF($D$127:$AA$127,$AO$148)*$AB$22 -> 0 | AP159: =COUNTIF($D$127:$AA$127,$AP$148)*$AB$22 -> 0 | AQ159: =COUNTIF($D$127:$AA$127,$AQ$148)*$AB$22 -> 0 | AR159: =COUNTIF($D$127:$AA$127,$AR$148)*$AB$22 -> 0 | AS159: =COUNTIF($D$127:$AA$127,$AS$148)*$AB$22 -> 0 | AT159: 2 | AU159: 0
C160: 3 | D160: =COUNTIF($D$128:$AA$128,$D$148)*$AB$23 -> 0 | E160: =COUNTIF($D$128:$AA$128,$E$148)*$AB$23 -> 0 | F160: =COUNTIF($D$128:$AA$128,$F$148)*$AB$23 -> 0 | G160: =COUNTIF($D$128:$AA$128,$G$148)*$AB$23 -> 0 | H160: =COUNTIF($D$128:$AA$128,$H$148)*$AB$23 -> 0 | I160: =COUNTIF($D$128:$AA$128,$I$148)*$AB$23 -> 0 | J160: =COUNTIF($D$128:$AA$128,$J$148)*$AB$23 -> 0 | K160: =COUNTIF($D$128:$AA$128,$K$148)*$AB$23 -> 0 | L160: =COUNTIF($D$128:$AA$128,$L$148)*$AB$23 -> 0 | M160: =COUNTIF($D$128:$AA$128,$M$148)*$AB$23 -> 0 | N160: =COUNTIF($D$128:$AA$128,$N$148)*$AB$23 -> 0 | O160: =COUNTIF($D$128:$AA$128,$O$148)*$AB$23 -> 0 | P160: =COUNTIF($D$128:$AA$128,$P$148)*$AB$23 -> 0 | Q160: =COUNTIF($D$128:$AA$128,$Q$148)*$AB$23 -> 0 | R160: =COUNTIF($D$128:$AA$128,$R$148)*$AB$23 -> 0 | S160: =COUNTIF($D$128:$AA$128,$S$148)*$AB$23 -> 0 | T160: =COUNTIF($D$128:$AA$128,$T$148)*$AB$23 -> 0 | U160: =COUNTIF($D$128:$AA$128,$U$148)*$AB$23 -> 0 | V160: =COUNTIF($D$128:$AA$128,$V$148)*$AB$23 -> 0 | W160: =COUNTIF($D$128:$AA$128,$W$148)*$AB$23 -> 0 | X160: =COUNTIF($D$128:$AA$128,$X$148)*$AB$23 -> 0 | Y160: =COUNTIF($D$128:$AA$128,$Y$148)*$AB$23 -> 0 | Z160: =COUNTIF($D$128:$AA$128,$Z$148)*$AB$23 -> 0 | AA160: =COUNTIF($D$128:$AA$128,$AA$148)*$AB$23 -> 0 | AB160: =COUNTIF($D$128:$AA$128,$AB$148)*$AB$23 -> 0 | AC160: =COUNTIF($D$128:$AA$128,$AC$148)*$AB$23 -> 0 | AD160: =COUNTIF($D$128:$AA$128,$AD$148)*$AB$23 -> 0 | AE160: =COUNTIF($D$128:$AA$128,$AE$148)*$AB$23 -> 0 | AF160: =COUNTIF($D$128:$AA$128,$AF$148)*$AB$23 -> 0 | AG160: =COUNTIF($D$128:$AA$128,$AG$148)*$AB$23 -> 0 | AH160: =COUNTIF($D$128:$AA$128,$AH$148)*$AB$23 -> 0 | AI160: =COUNTIF($D$128:$AA$128,$AI$148)*$AB$23 -> 0 | AJ160: =COUNTIF($D$128:$AA$128,$AJ$148)*$AB$23 -> 0 | AK160: =COUNTIF($D$128:$AA$128,$AK$148)*$AB$23 -> 0 | AL160: =COUNTIF($D$128:$AA$128,$AL$148)*$AB$23 -> 0 | AM160: =COUNTIF($D$128:$AA$128,$AM$148)*$AB$23 -> 0 | AN160: =COUNTIF($D$128:$AA$128,$AN$148)*$AB$23 -> 0 | AO160: =COUNTIF($D$128:$AA$128,$AO$148)*$AB$23 -> 0 | AP160: =COUNTIF($D$128:$AA$128,$AP$148)*$AB$23 -> 0 | AQ160: =COUNTIF($D$128:$AA$128,$AQ$148)*$AB$23 -> 0 | AR160: =COUNTIF($D$128:$AA$128,$AR$148)*$AB$23 -> 0 | AS160: =COUNTIF($D$128:$AA$128,$AS$148)*$AB$23 -> 0 | AT160: 3 | AU160: 0
C161: 冷房運転時間 | D161: =SUM($D$149:$D$160) -> 0 | E161: =SUM($E$149:$E$160) -> 0 | F161: =SUM($F$149:$F$160) -> 0 | G161: =SUM($G$149:$G$160) -> 0 | H161: =SUM($H$149:$H$160) -> 0 | I161: =SUM($I$149:$I$160) -> 0 | J161: =SUM($J$149:$J$160) -> 0 | K161: =SUM($K$149:$K$160) -> 0 | L161: =SUM($L$149:$L$160) -> 0 | M161: =SUM($M$149:$M$160) -> 0 | N161: =SUM($N$149:$N$160) -> 0 | O161: =SUM($O$149:$O$160) -> 0 | P161: =SUM($P$149:$P$160) -> 0 | Q161: =SUM($Q$149:$Q$160) -> 0 | R161: =SUM($R$149:$R$160) -> 0 | S161: =SUM($S$149:$S$160) -> 0 | T161: =SUM($T$149:$T$160) -> 0 | U161: =SUM($U$149:$U$160) -> 0 | V161: =SUM($V$149:$V$160) -> 0 | W161: =SUM($W$149:$W$160) -> 0 | X161: =SUM($X$149:$X$160) -> 0 | Y161: =SUM($Y$149:$Y$160) -> 0 | Z161: =SUM($Z$149:$Z$160) -> 0 | AA161: =SUM($AA$149:$AA$160) -> 0 | AB161: =SUM($AB$149:$AB$160) -> 0 | AC161: =SUM($AC$149:$AC$160) -> 0 | AD161: =SUM($AD$149:$AD$160) -> 0 | AE161: =SUM($AE$149:$AE$160) -> 0 | AF161: =SUM($AF$149:$AF$160) -> 0 | AG161: =SUM($AG$149:$AG$160) -> 0 | AH161: =SUM($AH$149:$AH$160) -> 0 | AI161: =SUM($AI$149:$AI$160) -> 0 | AJ161: =SUM($AJ$149:$AJ$160) -> 0 | AK161: =SUM($AK$149:$AK$160) -> 0 | AL161: =SUM($AL$149:$AL$160) -> 0 | AM161: =SUM($AM$149:$AM$160) -> 0 | AN161: =SUM($AN$149:$AN$160) -> 0 | AO161: =SUM($AO$149:$AO$160) -> 0 | AP161: =SUM($AP$149:$AP$160) -> 0 | AQ161: =SUM($AQ$149:$AQ$160) -> 0 | AR161: =SUM($AR$149:$AR$160) -> 0 | AS161: =SUM($AS$149:$AS$160) -> 0 | AT161: 冷房運転時間 | AU161: =SUM(AU149:AU160) -> 0 | AV161: =SUM(AV149:AV160) -> 0 | AW161: =SUM(AW149:AW160) -> 0 | AX161: 0 | AY161: 0 | AZ161: 0 | BA161: 0 | BB161: 0 | BC161: 0 | BD161: 0 | BF161: =SUM(BF149:BF160) -> 0 | BG161: =SUM(BG149:BG160) -> 0 | BH161: 0 | BI161: 0 | BJ161: 0 | BK161: 0 | BL161: 0 | BM161: 0 | BN161: 0 | BO161: 0
C162: 冷房空調負荷率 | D162: =IF((1/(35-$M$25))*(D$148-35)+1<0,0,IF((1/(35-$M$25))*(D$148-35)+1>1,1,(1/(35-$M$25))*(D$148-35)+1)) -> 0 | E162: 0 | F162: 0 | G162: 0 | H162: 0 | I162: 0 | J162: 0 | K162: 0 | L162: 0 | M162: 0 | N162: 0 | O162: 0 | P162: 0 | Q162: 0 | R162: 0 | S162: 0 | T162: 0 | U162: 0 | V162: 0 | W162: 0 | X162: 0 | Y162: 0 | Z162: 0 | AA162: 0 | AB162: 0 | AC162: 0.05882352941 | AD162: 0.1176470588 | AE162: 0.1764705882 | AF162: 0.2352941176 | AG162: 0.2941176471 | AH162: 0.3529411765 | AI162: 0.4117647059 | AJ162: 0.4705882353 | AK162: 0.5294117647 | AL162: 0.5882352941 | AM162: 0.6470588235 | AN162: 0.7058823529 | AO162: 0.7647058824 | AP162: 0.8235294118 | AQ162: 0.8823529412 | AR162: 0.9411764706 | AS162: 1 | AT162: 冷房空調負荷率 | AU162: αc
B164: 前1 | C164: 冷房時消費電力比 | D164: =$D$162/$D$168 -> 0 | E164: =$E$162/$E$168 -> 0 | F164: =$F$162/$F$168 -> 0 | G164: =$G$162/$G$168 -> 0 | H164: =$H$162/$H$168 -> 0 | I164: =$I$162/$I$168 -> 0 | J164: =$J$162/$J$168 -> 0 | K164: =$K$162/$K$168 -> 0 | L164: =$L$162/$L$168 -> 0 | M164: =$M$162/$M$168 -> 0 | N164: =$N$162/$N$168 -> 0 | O164: =$O$162/$O$168 -> 0 | P164: =$P$162/$P$168 -> 0 | Q164: =$Q$162/$Q$168 -> 0 | R164: =$R$162/$R$168 -> 0 | S164: =$S$162/$S$168 -> 0 | T164: =$T$162/$T$168 -> 0 | U164: =$U$162/$U$168 -> 0 | V164: =$V$162/$V$168 -> 0 | W164: =$W$162/$W$168 -> 0 | X164: =$X$162/$X$168 -> 0 | Y164: =$Y$162/$Y$168 -> 0 | Z164: =$Z$162/$Z$168 -> 0 | AA164: =$AA$162/$AA$168 -> 0 | AB164: =$AB$162/$AB$168 -> 0 | AC164: =$AC$162/$AC$168 -> 0.03761061947 | AD164: =$AD$162/$AD$168 -> 0.0774448144 | AE164: =$AE$162/$AE$168 -> 0.1195751542 | AF164: =$AF$162/$AF$168 -> 0.1640774007 | AG164: =$AG$162/$AG$168 -> 0.2110306861 | AH164: =$AH$162/$AH$168 -> 0.260517702 | AI164: =$AI$162/$AI$168 -> 0.3126249023 | AJ164: =$AJ$162/$AJ$168 -> 0.3674427189 | AK164: =$AK$162/$AK$168 -> 0.4250657942 | AL164: =$AL$162/$AL$168 -> 0.485593228 | AM164: =$AM$162/$AM$168 -> 0.5491288437 | AN164: =$AN$162/$AN$168 -> 0.6157814731 | AO164: =$AO$162/$AO$168 -> 0.6856652617 | AP164: =$AP$162/$AP$168 -> 0.7588999972 | AQ164: =$AQ$162/$AQ$168 -> 0.8356114627 | AR164: =$AR$162/$AR$168 -> 0.9159318162 | AS164: =$AS$162/$AS$168 -> 1 | AT164: 冷房時消費電力比 | AU164: εc
C165: 冷房能力 | D165: =($Q$29-1.077*$Q$29)/6*($D$148-35)+$Q$29 -> 33.57566667 | E165: =($Q$29-1.077*$Q$29)/6*($E$148-35)+$Q$29 -> 33.29333333 | F165: =($Q$29-1.077*$Q$29)/6*($F$148-35)+$Q$29 -> 33.011 | G165: =($Q$29-1.077*$Q$29)/6*($G$148-35)+$Q$29 -> 32.72866667 | H165: =($Q$29-1.077*$Q$29)/6*($H$148-35)+$Q$29 -> 32.44633333 | I165: =($Q$29-1.077*$Q$29)/6*($I$148-35)+$Q$29 -> 32.164 | J165: =($Q$29-1.077*$Q$29)/6*($J$148-35)+$Q$29 -> 31.88166667 | K165: =($Q$29-1.077*$Q$29)/6*($K$148-35)+$Q$29 -> 31.59933333 | L165: =($Q$29-1.077*$Q$29)/6*($L$148-35)+$Q$29 -> 31.317 | M165: =($Q$29-1.077*$Q$29)/6*($M$148-35)+$Q$29 -> 31.03466667 | N165: =($Q$29-1.077*$Q$29)/6*($N$148-35)+$Q$29 -> 30.75233333 | O165: =($Q$29-1.077*$Q$29)/6*($O$148-35)+$Q$29 -> 30.47 | P165: =($Q$29-1.077*$Q$29)/6*($P$148-35)+$Q$29 -> 30.18766667 | Q165: =($Q$29-1.077*$Q$29)/6*($Q$148-35)+$Q$29 -> 29.90533333 | R165: =($Q$29-1.077*$Q$29)/6*($R$148-35)+$Q$29 -> 29.623 | S165: =($Q$29-1.077*$Q$29)/6*($S$148-35)+$Q$29 -> 29.34066667 | T165: =($Q$29-1.077*$Q$29)/6*($T$148-35)+$Q$29 -> 29.05833333 | U165: =($Q$29-1.077*$Q$29)/6*($U$148-35)+$Q$29 -> 28.776 | V165: =($Q$29-1.077*$Q$29)/6*($V$148-35)+$Q$29 -> 28.49366667 | W165: =($Q$29-1.077*$Q$29)/6*($W$148-35)+$Q$29 -> 28.21133333 | X165: =($Q$29-1.077*$Q$29)/6*($X$148-35)+$Q$29 -> 27.929 | Y165: =($Q$29-1.077*$Q$29)/6*($Y$148-35)+$Q$29 -> 27.64666667 | Z165: =($Q$29-1.077*$Q$29)/6*($Z$148-35)+$Q$29 -> 27.36433333 | AA165: =($Q$29-1.077*$Q$29)/6*($AA$148-35)+$Q$29 -> 27.082 | AB165: =($Q$29-1.077*$Q$29)/6*($AB$148-35)+$Q$29 -> 26.79966667 | AC165: =($Q$29-1.077*$Q$29)/6*($AC$148-35)+$Q$29 -> 26.51733333 | AD165: =($Q$29-1.077*$Q$29)/6*($AD$148-35)+$Q$29 -> 26.235 | AE165: =($Q$29-1.077*$Q$29)/6*($AE$148-35)+$Q$29 -> 25.95266667 | AF165: =($Q$29-1.077*$Q$29)/6*($AF$148-35)+$Q$29 -> 25.67033333 | AG165: =($Q$29-1.077*$Q$29)/6*($AG$148-35)+$Q$29 -> 25.388 | AH165: =($Q$29-1.077*$Q$29)/6*($AH$148-35)+$Q$29 -> 25.10566667 | AI165: =($Q$29-1.077*$Q$29)/6*($AI$148-35)+$Q$29 -> 24.82333333 | AJ165: =($Q$29-1.077*$Q$29)/6*($AJ$148-35)+$Q$29 -> 24.541 | AK165: =($Q$29-1.077*$Q$29)/6*($AK$148-35)+$Q$29 -> 24.25866667 | AL165: =($Q$29-1.077*$Q$29)/6*($AL$148-35)+$Q$29 -> 23.97633333 | AM165: =($Q$29-1.077*$Q$29)/6*($AM$148-35)+$Q$29 -> 23.694 | AN165: =($Q$29-1.077*$Q$29)/6*($AN$148-35)+$Q$29 -> 23.41166667 | AO165: =($Q$29-1.077*$Q$29)/6*($AO$148-35)+$Q$29 -> 23.12933333 | AP165: =($Q$29-1.077*$Q$29)/6*($AP$148-35)+$Q$29 -> 22.847 | AQ165: =($Q$29-1.077*$Q$29)/6*($AQ$148-35)+$Q$29 -> 22.56466667 | AR165: =($Q$29-1.077*$Q$29)/6*($AR$148-35)+$Q$29 -> 22.28233333 | AS165: =($Q$29-1.077*$Q$29)/6*($AS$148-35)+$Q$29 -> 22 | AT165: 冷房能力 | AU165: Φc
C166: 冷房消費電力 | D166: =($Q$30-0.914*$Q$30)/6*($D$148-35)+$Q$30 -> 2.7214 | E166: =($Q$30-0.914*$Q$30)/6*($E$148-35)+$Q$30 -> 2.816 | F166: =($Q$30-0.914*$Q$30)/6*($F$148-35)+$Q$30 -> 2.9106 | G166: =($Q$30-0.914*$Q$30)/6*($G$148-35)+$Q$30 -> 3.0052 | H166: =($Q$30-0.914*$Q$30)/6*($H$148-35)+$Q$30 -> 3.0998 | I166: =($Q$30-0.914*$Q$30)/6*($I$148-35)+$Q$30 -> 3.1944 | J166: =($Q$30-0.914*$Q$30)/6*($J$148-35)+$Q$30 -> 3.289 | K166: =($Q$30-0.914*$Q$30)/6*($K$148-35)+$Q$30 -> 3.3836 | L166: =($Q$30-0.914*$Q$30)/6*($L$148-35)+$Q$30 -> 3.4782 | M166: =($Q$30-0.914*$Q$30)/6*($M$148-35)+$Q$30 -> 3.5728 | N166: =($Q$30-0.914*$Q$30)/6*($N$148-35)+$Q$30 -> 3.6674 | O166: =($Q$30-0.914*$Q$30)/6*($O$148-35)+$Q$30 -> 3.762 | P166: =($Q$30-0.914*$Q$30)/6*($P$148-35)+$Q$30 -> 3.8566 | Q166: =($Q$30-0.914*$Q$30)/6*($Q$148-35)+$Q$30 -> 3.9512 | R166: =($Q$30-0.914*$Q$30)/6*($R$148-35)+$Q$30 -> 4.0458 | S166: =($Q$30-0.914*$Q$30)/6*($S$148-35)+$Q$30 -> 4.1404 | T166: =($Q$30-0.914*$Q$30)/6*($T$148-35)+$Q$30 -> 4.235 | U166: =($Q$30-0.914*$Q$30)/6*($U$148-35)+$Q$30 -> 4.3296 | V166: =($Q$30-0.914*$Q$30)/6*($V$148-35)+$Q$30 -> 4.4242 | W166: =($Q$30-0.914*$Q$30)/6*($W$148-35)+$Q$30 -> 4.5188 | X166: =($Q$30-0.914*$Q$30)/6*($X$148-35)+$Q$30 -> 4.6134 | Y166: =($Q$30-0.914*$Q$30)/6*($Y$148-35)+$Q$30 -> 4.708 | Z166: =($Q$30-0.914*$Q$30)/6*($Z$148-35)+$Q$30 -> 4.8026 | AA166: =($Q$30-0.914*$Q$30)/6*($AA$148-35)+$Q$30 -> 4.8972 | AB166: =($Q$30-0.914*$Q$30)/6*($AB$148-35)+$Q$30 -> 4.9918 | AC166: =($Q$30-0.914*$Q$30)/6*($AC$148-35)+$Q$30 -> 5.0864 | AD166: =($Q$30-0.914*$Q$30)/6*($AD$148-35)+$Q$30 -> 5.181 | AE166: =($Q$30-0.914*$Q$30)/6*($AE$148-35)+$Q$30 -> 5.2756 | AF166: =($Q$30-0.914*$Q$30)/6*($AF$148-35)+$Q$30 -> 5.3702 | AG166: =($Q$30-0.914*$Q$30)/6*($AG$148-35)+$Q$30 -> 5.4648 | AH166: =($Q$30-0.914*$Q$30)/6*($AH$148-35)+$Q$30 -> 5.5594 | AI166: =($Q$30-0.914*$Q$30)/6*($AI$148-35)+$Q$30 -> 5.654 | AJ166: =($Q$30-0.914*$Q$30)/6*($AJ$148-35)+$Q$30 -> 5.7486 | AK166: =($Q$30-0.914*$Q$30)/6*($AK$148-35)+$Q$30 -> 5.8432 | AL166: =($Q$30-0.914*$Q$30)/6*($AL$148-35)+$Q$30 -> 5.9378 | AM166: =($Q$30-0.914*$Q$30)/6*($AM$148-35)+$Q$30 -> 6.0324 | AN166: =($Q$30-0.914*$Q$30)/6*($AN$148-35)+$Q$30 -> 6.127 | AO166: =($Q$30-0.914*$Q$30)/6*($AO$148-35)+$Q$30 -> 6.2216 | AP166: =($Q$30-0.914*$Q$30)/6*($AP$148-35)+$Q$30 -> 6.3162 | AQ166: =($Q$30-0.914*$Q$30)/6*($AQ$148-35)+$Q$30 -> 6.4108 | AR166: =($Q$30-0.914*$Q$30)/6*($AR$148-35)+$Q$30 -> 6.5054 | AS166: =($Q$30-0.914*$Q$30)/6*($AS$148-35)+$Q$30 -> 6.6 | AT166: 冷房消費電力 | AU166: Pc
C167: 冷房COP | D167: =$D$165/$D$166 -> 12.33764484 | E167: =$E$165/$E$166 -> 11.82291667 | F167: =$F$165/$F$166 -> 11.34164777 | G167: =$G$165/$G$166 -> 10.89067838 | H167: =$H$165/$H$166 -> 10.46723445 | I167: =$I$165/$I$166 -> 10.06887052 | J167: =$J$165/$J$166 -> 9.69342252 | K167: =$K$165/$K$166 -> 9.338968357 | L167: =$L$165/$L$166 -> 9.003795066 | M167: =$M$165/$M$166 -> 8.6863711 | N167: =$N$165/$N$166 -> 8.385322935 | O167: =$O$165/$O$166 -> 8.099415205 | P167: =$P$165/$P$166 -> 7.827533752 | Q167: =$Q$165/$Q$166 -> 7.568671121 | R167: =$R$165/$R$166 -> 7.321914084 | S167: =$S$165/$S$166 -> 7.086432873 | T167: =$T$165/$T$166 -> 6.861471861 | U167: =$U$165/$U$166 -> 6.646341463 | V167: =$V$165/$V$166 -> 6.440411072 | W167: =$W$165/$W$166 -> 6.243102889 | X167: =$X$165/$X$166 -> 6.053886505 | Y167: =$Y$165/$Y$166 -> 5.872274143 | Z167: =$Z$165/$Z$166 -> 5.697816461 | AA167: =$AA$165/$AA$166 -> 5.530098832 | AB167: =$AB$165/$AB$166 -> 5.368738064 | AC167: =$AC$165/$AC$166 -> 5.213379469 | AD167: =$AD$165/$AD$166 -> 5.063694268 | AE167: =$AE$165/$AE$166 -> 4.919377259 | AF167: =$AF$165/$AF$166 -> 4.780144749 | AG167: =$AG$165/$AG$166 -> 4.645732689 | AH167: =$AH$165/$AH$166 -> 4.515895001 | AI167: =$AI$165/$AI$166 -> 4.390402075 | AJ167: =$AJ$165/$AJ$166 -> 4.269039418 | AK167: =$AK$165/$AK$166 -> 4.151606426 | AL167: =$AL$165/$AL$166 -> 4.037915277 | AM167: =$AM$165/$AM$166 -> 3.927789934 | AN167: =$AN$165/$AN$166 -> 3.82106523 | AO167: =$AO$165/$AO$166 -> 3.717586044 | AP167: =$AP$165/$AP$166 -> 3.617206548 | AQ167: =$AQ$165/$AQ$166 -> 3.519789522 | AR167: =$AR$165/$AR$166 -> 3.425205727 | AS167: =$AS$165/$AS$166 -> 3.333333333 | AT167: 冷房COP | AU167: σc
C168: 冷房COP比 | D168: =D$167/$Q$31 -> 3.701293452 | E168: =E$167/$Q$31 -> 3.546875 | F168: 3.402494331 | G168: 3.267203514 | H168: 3.140170334 | I168: 3.020661157 | J168: 2.908026756 | K168: 2.801690507 | L168: 2.70113852 | M168: 2.60591133 | N168: 2.515596881 | O168: 2.429824561 | P168: 2.348260125 | Q168: 2.270601336 | R168: 2.196574225 | S168: 2.125929862 | T168: 2.058441558 | U168: 1.993902439 | V168: 1.932123322 | W168: 1.872930867 | X168: 1.816165951 | Y168: 1.761682243 | Z168: 1.709344938 | AA168: 1.65902965 | AB168: 1.610621419 | AC168: 1.564013841 | AD168: 1.51910828 | AE168: 1.475813178 | AF168: 1.434043425 | AG168: 1.393719807 | AH168: 1.3547685 | AI168: 1.317120623 | AJ168: 1.280711825 | AK168: 1.245481928 | AL168: 1.211374583 | AM168: 1.17833698 | AN168: 1.146319569 | AO168: 1.115275813 | AP168: 1.085161964 | AQ168: 1.055936857 | AR168: 1.027561718 | AS168: 1 | AT168: 冷房COP比 | AU168: βc
C169: Σ | D169: =$D$161*$D$164 -> 0 | E169: =$E$161*$E$164 -> 0 | F169: =$F$161*$F$164 -> 0 | G169: =$G$161*$G$164 -> 0 | H169: =$H$161*$H$164 -> 0 | I169: =$I$161*$I$164 -> 0 | J169: =$J$161*$J$164 -> 0 | K169: =$K$161*$K$164 -> 0 | L169: =$L$161*$L$164 -> 0 | M169: =$M$161*$M$164 -> 0 | N169: =$N$161*$N$164 -> 0 | O169: =$O$161*$O$164 -> 0 | P169: =$P$161*$P$164 -> 0 | Q169: =$Q$161*$Q$164 -> 0 | R169: =$R$161*$R$164 -> 0 | S169: =$S$161*$S$164 -> 0 | T169: =$T$161*$T$164 -> 0 | U169: =$U$161*$U$164 -> 0 | V169: =$V$161*$V$164 -> 0 | W169: =$W$161*$W$164 -> 0 | X169: =$X$161*$X$164 -> 0 | Y169: =$Y$161*$Y$164 -> 0 | Z169: =$Z$161*$Z$164 -> 0 | AA169: =$AA$161*$AA$164 -> 0 | AB169: =$AB$161*$AB$164 -> 0 | AC169: =$AC$161*$AC$164 -> 0 | AD169: =$AD$161*$AD$164 -> 0 | AE169: =$AE$161*$AE$164 -> 0 | AF169: =$AF$161*$AF$164 -> 0 | AG169: =$AG$161*$AG$164 -> 0 | AH169: =$AH$161*$AH$164 -> 0 | AI169: =$AI$161*$AI$164 -> 0 | AJ169: =$AJ$161*$AJ$164 -> 0 | AK169: =$AK$161*$AK$164 -> 0 | AL169: =$AL$161*$AL$164 -> 0 | AM169: =$AM$161*$AM$164 -> 0 | AN169: =$AN$161*$AN$164 -> 0 | AO169: =$AO$161*$AO$164 -> 0 | AP169: =$AP$161*$AP$164 -> 0 | AQ169: =$AQ$161*$AQ$164 -> 0 | AR169: =$AR$161*$AR$164 -> 0 | AS169: =$AS$161*$AS$164 -> 0 | AT169: =SUM($D$169:$AS$169) -> 0 | AU169: Σ
B170: 前2 | C170: 冷房時消費電力比 | D170: =D$162/D$174 ->  | E170: =E$162/E$174 ->  | AN170: =AN$162/AN$174 ->  | AS170: =AS$162/AS$174 ->  | AT170: 冷房時消費電力比 | AU170: εc
C171: 冷房能力 | D171: =($R$29-1.077*$R$29)/6*($D$148-35)+$R$29 -> 0 | E171: =($R$29-1.077*$R$29)/6*($E$148-35)+$R$29 -> 0 | F171: =($R$29-1.077*$R$29)/6*($F$148-35)+$R$29 -> 0 | G171: =($R$29-1.077*$R$29)/6*($G$148-35)+$R$29 -> 0 | H171: =($R$29-1.077*$R$29)/6*($H$148-35)+$R$29 -> 0 | I171: =($R$29-1.077*$R$29)/6*($I$148-35)+$R$29 -> 0 | J171: =($R$29-1.077*$R$29)/6*($J$148-35)+$R$29 -> 0 | K171: =($R$29-1.077*$R$29)/6*($K$148-35)+$R$29 -> 0 | L171: =($R$29-1.077*$R$29)/6*($L$148-35)+$R$29 -> 0 | M171: =($R$29-1.077*$R$29)/6*($M$148-35)+$R$29 -> 0 | N171: =($R$29-1.077*$R$29)/6*($N$148-35)+$R$29 -> 0 | O171: =($R$29-1.077*$R$29)/6*($O$148-35)+$R$29 -> 0 | P171: =($R$29-1.077*$R$29)/6*($P$148-35)+$R$29 -> 0 | Q171: =($R$29-1.077*$R$29)/6*($Q$148-35)+$R$29 -> 0 | R171: =($R$29-1.077*$R$29)/6*($R$148-35)+$R$29 -> 0 | S171: =($R$29-1.077*$R$29)/6*($S$148-35)+$R$29 -> 0 | T171: =($R$29-1.077*$R$29)/6*($T$148-35)+$R$29 -> 0 | U171: =($R$29-1.077*$R$29)/6*($U$148-35)+$R$29 -> 0 | V171: =($R$29-1.077*$R$29)/6*($V$148-35)+$R$29 -> 0 | W171: =($R$29-1.077*$R$29)/6*($W$148-35)+$R$29 -> 0 | X171: =($R$29-1.077*$R$29)/6*($X$148-35)+$R$29 -> 0 | Y171: =($R$29-1.077*$R$29)/6*($Y$148-35)+$R$29 -> 0 | Z171: =($R$29-1.077*$R$29)/6*($Z$148-35)+$R$29 -> 0 | AA171: =($R$29-1.077*$R$29)/6*($AA$148-35)+$R$29 -> 0 | AB171: =($R$29-1.077*$R$29)/6*($AB$148-35)+$R$29 -> 0 | AC171: =($R$29-1.077*$R$29)/6*($AC$148-35)+$R$29 -> 0 | AD171: =($R$29-1.077*$R$29)/6*($AD$148-35)+$R$29 -> 0 | AE171: =($R$29-1.077*$R$29)/6*($AE$148-35)+$R$29 -> 0 | AF171: =($R$29-1.077*$R$29)/6*($AF$148-35)+$R$29 -> 0 | AG171: =($R$29-1.077*$R$29)/6*($AG$148-35)+$R$29 -> 0 | AH171: =($R$29-1.077*$R$29)/6*($AH$148-35)+$R$29 -> 0 | AI171: =($R$29-1.077*$R$29)/6*($AI$148-35)+$R$29 -> 0 | AJ171: =($R$29-1.077*$R$29)/6*($AJ$148-35)+$R$29 -> 0 | AK171: =($R$29-1.077*$R$29)/6*($AK$148-35)+$R$29 -> 0 | AL171: =($R$29-1.077*$R$29)/6*($AL$148-35)+$R$29 -> 0 | AM171: =($R$29-1.077*$R$29)/6*($AM$148-35)+$R$29 -> 0 | AN171: =($R$29-1.077*$R$29)/6*($AN$148-35)+$R$29 -> 0 | AO171: =($R$29-1.077*$R$29)/6*($AO$148-35)+$R$29 -> 0 | AP171: =($R$29-1.077*$R$29)/6*($AP$148-35)+$R$29 -> 0 | AQ171: =($R$29-1.077*$R$29)/6*($AQ$148-35)+$R$29 -> 0 | AR171: =($R$29-1.077*$R$29)/6*($AR$148-35)+$R$29 -> 0 | AS171: =($R$29-1.077*$R$29)/6*($AS$148-35)+$R$29 -> 0 | AT171: 冷房能力 | AU171: Φc
C172: 冷房消費電力 | D172: =($R$30-0.914*$R$30)/6*($D$148-35)+$R$30 -> 0 | E172: =($R$30-0.914*$R$30)/6*($E$148-35)+$R$30 -> 0 | F172: =($R$30-0.914*$R$30)/6*($F$148-35)+$R$30 -> 0 | G172: =($R$30-0.914*$R$30)/6*($G$148-35)+$R$30 -> 0 | H172: =($R$30-0.914*$R$30)/6*($H$148-35)+$R$30 -> 0 | I172: =($R$30-0.914*$R$30)/6*($I$148-35)+$R$30 -> 0 | J172: =($R$30-0.914*$R$30)/6*($J$148-35)+$R$30 -> 0 | K172: =($R$30-0.914*$R$30)/6*($K$148-35)+$R$30 -> 0 | L172: =($R$30-0.914*$R$30)/6*($L$148-35)+$R$30 -> 0 | M172: =($R$30-0.914*$R$30)/6*($M$148-35)+$R$30 -> 0 | N172: =($R$30-0.914*$R$30)/6*($N$148-35)+$R$30 -> 0 | O172: =($R$30-0.914*$R$30)/6*($O$148-35)+$R$30 -> 0 | P172: =($R$30-0.914*$R$30)/6*($P$148-35)+$R$30 -> 0 | Q172: =($R$30-0.914*$R$30)/6*($Q$148-35)+$R$30 -> 0 | R172: =($R$30-0.914*$R$30)/6*($R$148-35)+$R$30 -> 0 | S172: =($R$30-0.914*$R$30)/6*($S$148-35)+$R$30 -> 0 | T172: =($R$30-0.914*$R$30)/6*($T$148-35)+$R$30 -> 0 | U172: =($R$30-0.914*$R$30)/6*($U$148-35)+$R$30 -> 0 | V172: =($R$30-0.914*$R$30)/6*($V$148-35)+$R$30 -> 0 | W172: =($R$30-0.914*$R$30)/6*($W$148-35)+$R$30 -> 0 | X172: =($R$30-0.914*$R$30)/6*($X$148-35)+$R$30 -> 0 | Y172: =($R$30-0.914*$R$30)/6*($Y$148-35)+$R$30 -> 0 | Z172: =($R$30-0.914*$R$30)/6*($Z$148-35)+$R$30 -> 0 | AA172: =($R$30-0.914*$R$30)/6*($AA$148-35)+$R$30 -> 0 | AB172: =($R$30-0.914*$R$30)/6*($AB$148-35)+$R$30 -> 0 | AC172: =($R$30-0.914*$R$30)/6*($AC$148-35)+$R$30 -> 0 | AD172: =($R$30-0.914*$R$30)/6*($AD$148-35)+$R$30 -> 0 | AE172: =($R$30-0.914*$R$30)/6*($AE$148-35)+$R$30 -> 0 | AF172: =($R$30-0.914*$R$30)/6*($AF$148-35)+$R$30 -> 0 | AG172: =($R$30-0.914*$R$30)/6*($AG$148-35)+$R$30 -> 0 | AH172: =($R$30-0.914*$R$30)/6*($AH$148-35)+$R$30 -> 0 | AI172: =($R$30-0.914*$R$30)/6*($AI$148-35)+$R$30 -> 0 | AJ172: =($R$30-0.914*$R$30)/6*($AJ$148-35)+$R$30 -> 0 | AK172: =($R$30-0.914*$R$30)/6*($AK$148-35)+$R$30 -> 0 | AL172: =($R$30-0.914*$R$30)/6*($AL$148-35)+$R$30 -> 0 | AM172: =($R$30-0.914*$R$30)/6*($AM$148-35)+$R$30 -> 0 | AN172: =($R$30-0.914*$R$30)/6*($AN$148-35)+$R$30 -> 0 | AO172: =($R$30-0.914*$R$30)/6*($AO$148-35)+$R$30 -> 0 | AP172: =($R$30-0.914*$R$30)/6*($AP$148-35)+$R$30 -> 0 | AQ172: =($R$30-0.914*$R$30)/6*($AQ$148-35)+$R$30 -> 0 | AR172: =($R$30-0.914*$R$30)/6*($AR$148-35)+$R$30 -> 0 | AS172: =($R$30-0.914*$R$30)/6*($AS$148-35)+$R$30 -> 0 | AT172: 冷房消費電力 | AU172: Pc
C173: 冷房COP | D173: =D$171/D$172 ->  | E173: =E$171/E$172 ->  | AN173: =AN$171/AN$172 ->  | AT173: 冷房COP | AU173: σc
C174: 冷房COP比 | D174: =D$173/$R$31 ->  | E174: =E$173/$R$31 ->  | AT174: 冷房COP比 | AU174: βc
C175: Σ | D175: =D$161*D$170 ->  | E175: =E$161*E$170 ->  | G175: =G$161*G$170 ->  | AT175: =SUM($D$175:$AS$175) ->  | AU175: Σ
B176: 前3 | C176: 冷房時消費電力比 | D176: =D$162/D$180 ->  | E176: =E$162/E$180 ->  | AS176: =AS$162/AS$180 ->  | AT176: 冷房時消費電力比 | AU176: εc
C177: 冷房能力 | D177: =($S$29-1.077*$S$29)/6*($D$148-35)+$S$29 -> 0 | E177: =($S$29-1.077*$S$29)/6*($E$148-35)+$S$29 -> 0 | F177: =($S$29-1.077*$S$29)/6*($F$148-35)+$S$29 -> 0 | G177: =($S$29-1.077*$S$29)/6*($G$148-35)+$S$29 -> 0 | H177: =($S$29-1.077*$S$29)/6*($H$148-35)+$S$29 -> 0 | I177: =($S$29-1.077*$S$29)/6*($I$148-35)+$S$29 -> 0 | J177: =($S$29-1.077*$S$29)/6*($J$148-35)+$S$29 -> 0 | K177: =($S$29-1.077*$S$29)/6*($K$148-35)+$S$29 -> 0 | L177: =($S$29-1.077*$S$29)/6*($L$148-35)+$S$29 -> 0 | M177: =($S$29-1.077*$S$29)/6*($M$148-35)+$S$29 -> 0 | N177: =($S$29-1.077*$S$29)/6*($N$148-35)+$S$29 -> 0 | O177: =($S$29-1.077*$S$29)/6*($O$148-35)+$S$29 -> 0 | P177: =($S$29-1.077*$S$29)/6*($P$148-35)+$S$29 -> 0 | Q177: =($S$29-1.077*$S$29)/6*($Q$148-35)+$S$29 -> 0 | R177: =($S$29-1.077*$S$29)/6*($R$148-35)+$S$29 -> 0 | S177: =($S$29-1.077*$S$29)/6*($S$148-35)+$S$29 -> 0 | T177: =($S$29-1.077*$S$29)/6*($T$148-35)+$S$29 -> 0 | U177: =($S$29-1.077*$S$29)/6*($U$148-35)+$S$29 -> 0 | V177: =($S$29-1.077*$S$29)/6*($V$148-35)+$S$29 -> 0 | W177: =($S$29-1.077*$S$29)/6*($W$148-35)+$S$29 -> 0 | X177: =($S$29-1.077*$S$29)/6*($X$148-35)+$S$29 -> 0 | Y177: =($S$29-1.077*$S$29)/6*($Y$148-35)+$S$29 -> 0 | Z177: =($S$29-1.077*$S$29)/6*($Z$148-35)+$S$29 -> 0 | AA177: =($S$29-1.077*$S$29)/6*($AA$148-35)+$S$29 -> 0 | AB177: =($S$29-1.077*$S$29)/6*($AB$148-35)+$S$29 -> 0 | AC177: =($S$29-1.077*$S$29)/6*($AC$148-35)+$S$29 -> 0 | AD177: =($S$29-1.077*$S$29)/6*($AD$148-35)+$S$29 -> 0 | AE177: =($S$29-1.077*$S$29)/6*($AE$148-35)+$S$29 -> 0 | AF177: =($S$29-1.077*$S$29)/6*($AF$148-35)+$S$29 -> 0 | AG177: =($S$29-1.077*$S$29)/6*($AG$148-35)+$S$29 -> 0 | AH177: =($S$29-1.077*$S$29)/6*($AH$148-35)+$S$29 -> 0 | AI177: =($S$29-1.077*$S$29)/6*($AI$148-35)+$S$29 -> 0 | AJ177: =($S$29-1.077*$S$29)/6*($AJ$148-35)+$S$29 -> 0 | AK177: =($S$29-1.077*$S$29)/6*($AK$148-35)+$S$29 -> 0 | AL177: =($S$29-1.077*$S$29)/6*($AL$148-35)+$S$29 -> 0 | AM177: =($S$29-1.077*$S$29)/6*($AM$148-35)+$S$29 -> 0 | AN177: =($S$29-1.077*$S$29)/6*($AN$148-35)+$S$29 -> 0 | AO177: =($S$29-1.077*$S$29)/6*($AO$148-35)+$S$29 -> 0 | AP177: =($S$29-1.077*$S$29)/6*($AP$148-35)+$S$29 -> 0 | AQ177: =($S$29-1.077*$S$29)/6*($AQ$148-35)+$S$29 -> 0 | AR177: =($S$29-1.077*$S$29)/6*($AR$148-35)+$S$29 -> 0 | AS177: =($S$29-1.077*$S$29)/6*($AS$148-35)+$S$29 -> 0 | AT177: 冷房能力 | AU177: Φc
C178: 冷房消費電力 | D178: =($S$30-0.914*$S$30)/6*($D$148-35)+$S$30 -> 0 | E178: =($S$30-0.914*$S$30)/6*($E$148-35)+$S$30 -> 0 | F178: =($S$30-0.914*$S$30)/6*($F$148-35)+$S$30 -> 0 | G178: =($S$30-0.914*$S$30)/6*($G$148-35)+$S$30 -> 0 | H178: =($S$30-0.914*$S$30)/6*($H$148-35)+$S$30 -> 0 | I178: =($S$30-0.914*$S$30)/6*($I$148-35)+$S$30 -> 0 | J178: =($S$30-0.914*$S$30)/6*($J$148-35)+$S$30 -> 0 | K178: =($S$30-0.914*$S$30)/6*($K$148-35)+$S$30 -> 0 | L178: =($S$30-0.914*$S$30)/6*($L$148-35)+$S$30 -> 0 | M178: =($S$30-0.914*$S$30)/6*($M$148-35)+$S$30 -> 0 | N178: =($S$30-0.914*$S$30)/6*($N$148-35)+$S$30 -> 0 | O178: =($S$30-0.914*$S$30)/6*($O$148-35)+$S$30 -> 0 | P178: =($S$30-0.914*$S$30)/6*($P$148-35)+$S$30 -> 0 | Q178: =($S$30-0.914*$S$30)/6*($Q$148-35)+$S$30 -> 0 | R178: =($S$30-0.914*$S$30)/6*($R$148-35)+$S$30 -> 0 | S178: =($S$30-0.914*$S$30)/6*($S$148-35)+$S$30 -> 0 | T178: =($S$30-0.914*$S$30)/6*($T$148-35)+$S$30 -> 0 | U178: =($S$30-0.914*$S$30)/6*($U$148-35)+$S$30 -> 0 | V178: =($S$30-0.914*$S$30)/6*($V$148-35)+$S$30 -> 0 | W178: =($S$30-0.914*$S$30)/6*($W$148-35)+$S$30 -> 0 | X178: =($S$30-0.914*$S$30)/6*($X$148-35)+$S$30 -> 0 | Y178: =($S$30-0.914*$S$30)/6*($Y$148-35)+$S$30 -> 0 | Z178: =($S$30-0.914*$S$30)/6*($Z$148-35)+$S$30 -> 0 | AA178: =($S$30-0.914*$S$30)/6*($AA$148-35)+$S$30 -> 0 | AB178: =($S$30-0.914*$S$30)/6*($AB$148-35)+$S$30 -> 0 | AC178: =($S$30-0.914*$S$30)/6*($AC$148-35)+$S$30 -> 0 | AD178: =($S$30-0.914*$S$30)/6*($AD$148-35)+$S$30 -> 0 | AE178: =($S$30-0.914*$S$30)/6*($AE$148-35)+$S$30 -> 0 | AF178: =($S$30-0.914*$S$30)/6*($AF$148-35)+$S$30 -> 0 | AG178: =($S$30-0.914*$S$30)/6*($AG$148-35)+$S$30 -> 0 | AH178: =($S$30-0.914*$S$30)/6*($AH$148-35)+$S$30 -> 0 | AI178: =($S$30-0.914*$S$30)/6*($AI$148-35)+$S$30 -> 0 | AJ178: =($S$30-0.914*$S$30)/6*($AJ$148-35)+$S$30 -> 0 | AK178: =($S$30-0.914*$S$30)/6*($AK$148-35)+$S$30 -> 0 | AL178: =($S$30-0.914*$S$30)/6*($AL$148-35)+$S$30 -> 0 | AM178: =($S$30-0.914*$S$30)/6*($AM$148-35)+$S$30 -> 0 | AN178: =($S$30-0.914*$S$30)/6*($AN$148-35)+$S$30 -> 0 | AO178: =($S$30-0.914*$S$30)/6*($AO$148-35)+$S$30 -> 0 | AP178: =($S$30-0.914*$S$30)/6*($AP$148-35)+$S$30 -> 0 | AQ178: =($S$30-0.914*$S$30)/6*($AQ$148-35)+$S$30 -> 0 | AR178: =($S$30-0.914*$S$30)/6*($AR$148-35)+$S$30 -> 0 | AS178: =($S$30-0.914*$S$30)/6*($AS$148-35)+$S$30 -> 0 | AT178: 冷房消費電力 | AU178: Pc
C179: 冷房COP | D179: =D$177/D$178 ->  | E179: =E$177/E$178 ->  | AT179: 冷房COP | AU179: σc
C180: 冷房COP比 | D180: =D$179/$S$31 ->  | E180: =E$179/$S$31 ->  | AT180: 冷房COP比 | AU180: βc
C181: Σ | D181: =D$161*D$176 ->  | E181: =E$161*E$176 ->  | G181: =G$161*G$176 ->  | AT181: =SUM($D$181:$AS$181) ->  | AU181: Σ
B182: 前4 | C182: 冷房時消費電力比 | D182: =D$162/D$186 ->  | E182: =E$162/E$186 ->  | AS182: =AS$162/AS$186 ->  | AT182: 冷房時消費電力比 | AU182: εc
C183: 冷房能力 | D183: =($T$29-1.077*$T$29)/6*($D$148-35)+$T$29 -> 0 | E183: =($T$29-1.077*$T$29)/6*($E$148-35)+$T$29 -> 0 | F183: =($T$29-1.077*$T$29)/6*($F$148-35)+$T$29 -> 0 | G183: =($T$29-1.077*$T$29)/6*($G$148-35)+$T$29 -> 0 | H183: =($T$29-1.077*$T$29)/6*($H$148-35)+$T$29 -> 0 | I183: =($T$29-1.077*$T$29)/6*($I$148-35)+$T$29 -> 0 | J183: =($T$29-1.077*$T$29)/6*($J$148-35)+$T$29 -> 0 | K183: =($T$29-1.077*$T$29)/6*($K$148-35)+$T$29 -> 0 | L183: =($T$29-1.077*$T$29)/6*($L$148-35)+$T$29 -> 0 | M183: =($T$29-1.077*$T$29)/6*($M$148-35)+$T$29 -> 0 | N183: =($T$29-1.077*$T$29)/6*($N$148-35)+$T$29 -> 0 | O183: =($T$29-1.077*$T$29)/6*($O$148-35)+$T$29 -> 0 | P183: =($T$29-1.077*$T$29)/6*($P$148-35)+$T$29 -> 0 | Q183: =($T$29-1.077*$T$29)/6*($Q$148-35)+$T$29 -> 0 | R183: =($T$29-1.077*$T$29)/6*($R$148-35)+$T$29 -> 0 | S183: =($T$29-1.077*$T$29)/6*($S$148-35)+$T$29 -> 0 | T183: =($T$29-1.077*$T$29)/6*($T$148-35)+$T$29 -> 0 | U183: =($T$29-1.077*$T$29)/6*($U$148-35)+$T$29 -> 0 | V183: =($T$29-1.077*$T$29)/6*($V$148-35)+$T$29 -> 0 | W183: =($T$29-1.077*$T$29)/6*($W$148-35)+$T$29 -> 0 | X183: =($T$29-1.077*$T$29)/6*($X$148-35)+$T$29 -> 0 | Y183: =($T$29-1.077*$T$29)/6*($Y$148-35)+$T$29 -> 0 | Z183: =($T$29-1.077*$T$29)/6*($Z$148-35)+$T$29 -> 0 | AA183: =($T$29-1.077*$T$29)/6*($AA$148-35)+$T$29 -> 0 | AB183: =($T$29-1.077*$T$29)/6*($AB$148-35)+$T$29 -> 0 | AC183: =($T$29-1.077*$T$29)/6*($AC$148-35)+$T$29 -> 0 | AD183: =($T$29-1.077*$T$29)/6*($AD$148-35)+$T$29 -> 0 | AE183: =($T$29-1.077*$T$29)/6*($AE$148-35)+$T$29 -> 0 | AF183: =($T$29-1.077*$T$29)/6*($AF$148-35)+$T$29 -> 0 | AG183: =($T$29-1.077*$T$29)/6*($AG$148-35)+$T$29 -> 0 | AH183: =($T$29-1.077*$T$29)/6*($AH$148-35)+$T$29 -> 0 | AI183: =($T$29-1.077*$T$29)/6*($AI$148-35)+$T$29 -> 0 | AJ183: =($T$29-1.077*$T$29)/6*($AJ$148-35)+$T$29 -> 0 | AK183: =($T$29-1.077*$T$29)/6*($AK$148-35)+$T$29 -> 0 | AL183: =($T$29-1.077*$T$29)/6*($AL$148-35)+$T$29 -> 0 | AM183: =($T$29-1.077*$T$29)/6*($AM$148-35)+$T$29 -> 0 | AN183: =($T$29-1.077*$T$29)/6*($AN$148-35)+$T$29 -> 0 | AO183: =($T$29-1.077*$T$29)/6*($AO$148-35)+$T$29 -> 0 | AP183: =($T$29-1.077*$T$29)/6*($AP$148-35)+$T$29 -> 0 | AQ183: =($T$29-1.077*$T$29)/6*($AQ$148-35)+$T$29 -> 0 | AR183: =($T$29-1.077*$T$29)/6*($AR$148-35)+$T$29 -> 0 | AS183: =($T$29-1.077*$T$29)/6*($AS$148-35)+$T$29 -> 0 | AT183: 冷房能力 | AU183: Φc
C184: 冷房消費電力 | D184: =($T$30-0.914*$T$30)/6*($D$148-35)+$T$30 -> 0 | E184: =($T$30-0.914*$T$30)/6*($E$148-35)+$T$30 -> 0 | F184: =($T$30-0.914*$T$30)/6*($F$148-35)+$T$30 -> 0 | G184: =($T$30-0.914*$T$30)/6*($G$148-35)+$T$30 -> 0 | H184: =($T$30-0.914*$T$30)/6*($H$148-35)+$T$30 -> 0 | I184: =($T$30-0.914*$T$30)/6*($I$148-35)+$T$30 -> 0 | J184: =($T$30-0.914*$T$30)/6*($J$148-35)+$T$30 -> 0 | K184: =($T$30-0.914*$T$30)/6*($K$148-35)+$T$30 -> 0 | L184: =($T$30-0.914*$T$30)/6*($L$148-35)+$T$30 -> 0 | M184: =($T$30-0.914*$T$30)/6*($M$148-35)+$T$30 -> 0 | N184: =($T$30-0.914*$T$30)/6*($N$148-35)+$T$30 -> 0 | O184: =($T$30-0.914*$T$30)/6*($O$148-35)+$T$30 -> 0 | P184: =($T$30-0.914*$T$30)/6*($P$148-35)+$T$30 -> 0 | Q184: =($T$30-0.914*$T$30)/6*($Q$148-35)+$T$30 -> 0 | R184: =($T$30-0.914*$T$30)/6*($R$148-35)+$T$30 -> 0 | S184: =($T$30-0.914*$T$30)/6*($S$148-35)+$T$30 -> 0 | T184: =($T$30-0.914*$T$30)/6*($T$148-35)+$T$30 -> 0 | U184: =($T$30-0.914*$T$30)/6*($U$148-35)+$T$30 -> 0 | V184: =($T$30-0.914*$T$30)/6*($V$148-35)+$T$30 -> 0 | W184: =($T$30-0.914*$T$30)/6*($W$148-35)+$T$30 -> 0 | X184: =($T$30-0.914*$T$30)/6*($X$148-35)+$T$30 -> 0 | Y184: =($T$30-0.914*$T$30)/6*($Y$148-35)+$T$30 -> 0 | Z184: =($T$30-0.914*$T$30)/6*($Z$148-35)+$T$30 -> 0 | AA184: =($T$30-0.914*$T$30)/6*($AA$148-35)+$T$30 -> 0 | AB184: =($T$30-0.914*$T$30)/6*($AB$148-35)+$T$30 -> 0 | AC184: =($T$30-0.914*$T$30)/6*($AC$148-35)+$T$30 -> 0 | AD184: =($T$30-0.914*$T$30)/6*($AD$148-35)+$T$30 -> 0 | AE184: =($T$30-0.914*$T$30)/6*($AE$148-35)+$T$30 -> 0 | AF184: =($T$30-0.914*$T$30)/6*($AF$148-35)+$T$30 -> 0 | AG184: =($T$30-0.914*$T$30)/6*($AG$148-35)+$T$30 -> 0 | AH184: =($T$30-0.914*$T$30)/6*($AH$148-35)+$T$30 -> 0 | AI184: =($T$30-0.914*$T$30)/6*($AI$148-35)+$T$30 -> 0 | AJ184: =($T$30-0.914*$T$30)/6*($AJ$148-35)+$T$30 -> 0 | AK184: =($T$30-0.914*$T$30)/6*($AK$148-35)+$T$30 -> 0 | AL184: =($T$30-0.914*$T$30)/6*($AL$148-35)+$T$30 -> 0 | AM184: =($T$30-0.914*$T$30)/6*($AM$148-35)+$T$30 -> 0 | AN184: =($T$30-0.914*$T$30)/6*($AN$148-35)+$T$30 -> 0 | AO184: =($T$30-0.914*$T$30)/6*($AO$148-35)+$T$30 -> 0 | AP184: =($T$30-0.914*$T$30)/6*($AP$148-35)+$T$30 -> 0 | AQ184: =($T$30-0.914*$T$30)/6*($AQ$148-35)+$T$30 -> 0 | AR184: =($T$30-0.914*$T$30)/6*($AR$148-35)+$T$30 -> 0 | AS184: =($T$30-0.914*$T$30)/6*($AS$148-35)+$T$30 -> 0 | AT184: 冷房消費電力 | AU184: Pc
C185: 冷房COP | D185: =D$183/D$184 ->  | E185: =E$183/E$184 ->  | AT185: 冷房COP | AU185: σc
C186: 冷房COP比 | D186: =D$185/$T$31 ->  | E186: =E$185/$T$31 ->  | AT186: 冷房COP比 | AU186: βc
C187: Σ | D187: =D$161*D$182 ->  | E187: =E$161*E$182 ->  | G187: =G$161*G$182 ->  | AT187: =SUM($D$187:$AS$187) ->  | AU187: Σ
B188: 前5 | C188: 冷房時消費電力比 | D188: =D$162/D$192 ->  | E188: =E$162/E$192 ->  | AS188: =AS$162/AS$192 ->  | AT188: 冷房時消費電力比 | AU188: εc
C189: 冷房能力 | D189: =($U$29-1.077*$U$29)/6*($D$148-35)+$U$29 -> 0 | E189: =($U$29-1.077*$U$29)/6*($E$148-35)+$U$29 -> 0 | F189: =($U$29-1.077*$U$29)/6*($F$148-35)+$U$29 -> 0 | G189: =($U$29-1.077*$U$29)/6*($G$148-35)+$U$29 -> 0 | H189: =($U$29-1.077*$U$29)/6*($H$148-35)+$U$29 -> 0 | I189: =($U$29-1.077*$U$29)/6*($I$148-35)+$U$29 -> 0 | J189: =($U$29-1.077*$U$29)/6*($J$148-35)+$U$29 -> 0 | K189: =($U$29-1.077*$U$29)/6*($K$148-35)+$U$29 -> 0 | L189: =($U$29-1.077*$U$29)/6*($L$148-35)+$U$29 -> 0 | M189: =($U$29-1.077*$U$29)/6*($M$148-35)+$U$29 -> 0 | N189: =($U$29-1.077*$U$29)/6*($N$148-35)+$U$29 -> 0 | O189: =($U$29-1.077*$U$29)/6*($O$148-35)+$U$29 -> 0 | P189: =($U$29-1.077*$U$29)/6*($P$148-35)+$U$29 -> 0 | Q189: =($U$29-1.077*$U$29)/6*($Q$148-35)+$U$29 -> 0 | R189: =($U$29-1.077*$U$29)/6*($R$148-35)+$U$29 -> 0 | S189: =($U$29-1.077*$U$29)/6*($S$148-35)+$U$29 -> 0 | T189: =($U$29-1.077*$U$29)/6*($T$148-35)+$U$29 -> 0 | U189: =($U$29-1.077*$U$29)/6*($U$148-35)+$U$29 -> 0 | V189: =($U$29-1.077*$U$29)/6*($V$148-35)+$U$29 -> 0 | W189: =($U$29-1.077*$U$29)/6*($W$148-35)+$U$29 -> 0 | X189: =($U$29-1.077*$U$29)/6*($X$148-35)+$U$29 -> 0 | Y189: =($U$29-1.077*$U$29)/6*($Y$148-35)+$U$29 -> 0 | Z189: =($U$29-1.077*$U$29)/6*($Z$148-35)+$U$29 -> 0 | AA189: =($U$29-1.077*$U$29)/6*($AA$148-35)+$U$29 -> 0 | AB189: =($U$29-1.077*$U$29)/6*($AB$148-35)+$U$29 -> 0 | AC189: =($U$29-1.077*$U$29)/6*($AC$148-35)+$U$29 -> 0 | AD189: =($U$29-1.077*$U$29)/6*($AD$148-35)+$U$29 -> 0 | AE189: =($U$29-1.077*$U$29)/6*($AE$148-35)+$U$29 -> 0 | AF189: =($U$29-1.077*$U$29)/6*($AF$148-35)+$U$29 -> 0 | AG189: =($U$29-1.077*$U$29)/6*($AG$148-35)+$U$29 -> 0 | AH189: =($U$29-1.077*$U$29)/6*($AH$148-35)+$U$29 -> 0 | AI189: =($U$29-1.077*$U$29)/6*($AI$148-35)+$U$29 -> 0 | AJ189: =($U$29-1.077*$U$29)/6*($AJ$148-35)+$U$29 -> 0 | AK189: =($U$29-1.077*$U$29)/6*($AK$148-35)+$U$29 -> 0 | AL189: =($U$29-1.077*$U$29)/6*($AL$148-35)+$U$29 -> 0 | AM189: =($U$29-1.077*$U$29)/6*($AM$148-35)+$U$29 -> 0 | AN189: =($U$29-1.077*$U$29)/6*($AN$148-35)+$U$29 -> 0 | AO189: =($U$29-1.077*$U$29)/6*($AO$148-35)+$U$29 -> 0 | AP189: =($U$29-1.077*$U$29)/6*($AP$148-35)+$U$29 -> 0 | AQ189: =($U$29-1.077*$U$29)/6*($AQ$148-35)+$U$29 -> 0 | AR189: =($U$29-1.077*$U$29)/6*($AR$148-35)+$U$29 -> 0 | AS189: =($U$29-1.077*$U$29)/6*($AS$148-35)+$U$29 -> 0 | AT189: 冷房能力 | AU189: Φc
C190: 冷房消費電力 | D190: =($U$30-0.914*$U$30)/6*($D$148-35)+$U$30 -> 0 | E190: =($U$30-0.914*$U$30)/6*($E$148-35)+$U$30 -> 0 | F190: =($U$30-0.914*$U$30)/6*($F$148-35)+$U$30 -> 0 | G190: =($U$30-0.914*$U$30)/6*($G$148-35)+$U$30 -> 0 | H190: =($U$30-0.914*$U$30)/6*($H$148-35)+$U$30 -> 0 | I190: =($U$30-0.914*$U$30)/6*($I$148-35)+$U$30 -> 0 | J190: =($U$30-0.914*$U$30)/6*($J$148-35)+$U$30 -> 0 | K190: =($U$30-0.914*$U$30)/6*($K$148-35)+$U$30 -> 0 | L190: =($U$30-0.914*$U$30)/6*($L$148-35)+$U$30 -> 0 | M190: =($U$30-0.914*$U$30)/6*($M$148-35)+$U$30 -> 0 | N190: =($U$30-0.914*$U$30)/6*($N$148-35)+$U$30 -> 0 | O190: =($U$30-0.914*$U$30)/6*($O$148-35)+$U$30 -> 0 | P190: =($U$30-0.914*$U$30)/6*($P$148-35)+$U$30 -> 0 | Q190: =($U$30-0.914*$U$30)/6*($Q$148-35)+$U$30 -> 0 | R190: =($U$30-0.914*$U$30)/6*($R$148-35)+$U$30 -> 0 | S190: =($U$30-0.914*$U$30)/6*($S$148-35)+$U$30 -> 0 | T190: =($U$30-0.914*$U$30)/6*($T$148-35)+$U$30 -> 0 | U190: =($U$30-0.914*$U$30)/6*($U$148-35)+$U$30 -> 0 | V190: =($U$30-0.914*$U$30)/6*($V$148-35)+$U$30 -> 0 | W190: =($U$30-0.914*$U$30)/6*($W$148-35)+$U$30 -> 0 | X190: =($U$30-0.914*$U$30)/6*($X$148-35)+$U$30 -> 0 | Y190: =($U$30-0.914*$U$30)/6*($Y$148-35)+$U$30 -> 0 | Z190: =($U$30-0.914*$U$30)/6*($Z$148-35)+$U$30 -> 0 | AA190: =($U$30-0.914*$U$30)/6*($AA$148-35)+$U$30 -> 0 | AB190: =($U$30-0.914*$U$30)/6*($AB$148-35)+$U$30 -> 0 | AC190: =($U$30-0.914*$U$30)/6*($AC$148-35)+$U$30 -> 0 | AD190: =($U$30-0.914*$U$30)/6*($AD$148-35)+$U$30 -> 0 | AE190: =($U$30-0.914*$U$30)/6*($AE$148-35)+$U$30 -> 0 | AF190: =($U$30-0.914*$U$30)/6*($AF$148-35)+$U$30 -> 0 | AG190: =($U$30-0.914*$U$30)/6*($AG$148-35)+$U$30 -> 0 | AH190: =($U$30-0.914*$U$30)/6*($AH$148-35)+$U$30 -> 0 | AI190: =($U$30-0.914*$U$30)/6*($AI$148-35)+$U$30 -> 0 | AJ190: =($U$30-0.914*$U$30)/6*($AJ$148-35)+$U$30 -> 0 | AK190: =($U$30-0.914*$U$30)/6*($AK$148-35)+$U$30 -> 0 | AL190: =($U$30-0.914*$U$30)/6*($AL$148-35)+$U$30 -> 0 | AM190: =($U$30-0.914*$U$30)/6*($AM$148-35)+$U$30 -> 0 | AN190: =($U$30-0.914*$U$30)/6*($AN$148-35)+$U$30 -> 0 | AO190: =($U$30-0.914*$U$30)/6*($AO$148-35)+$U$30 -> 0 | AP190: =($U$30-0.914*$U$30)/6*($AP$148-35)+$U$30 -> 0 | AQ190: =($U$30-0.914*$U$30)/6*($AQ$148-35)+$U$30 -> 0 | AR190: =($U$30-0.914*$U$30)/6*($AR$148-35)+$U$30 -> 0 | AS190: =($U$30-0.914*$U$30)/6*($AS$148-35)+$U$30 -> 0 | AT190: 冷房消費電力 | AU190: Pc
C191: 冷房COP | D191: =D$189/D$190 ->  | E191: =E$189/E$190 ->  | AT191: 冷房COP | AU191: σc
C192: 冷房COP比 | D192: =D$191/$U$31 ->  | E192: =E$191/$U$31 ->  | AT192: 冷房COP比 | AU192: βc
C193: Σ | D193: =D$161*D$188 ->  | E193: =E$161*E$188 ->  | G193: =G$161*G$188 ->  | AT193: =SUM($D$193:$AS$193) ->  | AU193: Σ
B194: 前6 | C194: 冷房時消費電力比 | D194: =D$162/D$198 ->  | E194: =E$162/E$198 ->  | AS194: =AS$162/AS$198 ->  | AT194: 冷房時消費電力比 | AU194: εc
C195: 冷房能力 | D195: =($V$29-1.077*$V$29)/6*($D$148-35)+$V$29 -> 0 | E195: =($V$29-1.077*$V$29)/6*($E$148-35)+$V$29 -> 0 | F195: =($V$29-1.077*$V$29)/6*($F$148-35)+$V$29 -> 0 | G195: =($V$29-1.077*$V$29)/6*($G$148-35)+$V$29 -> 0 | H195: =($V$29-1.077*$V$29)/6*($H$148-35)+$V$29 -> 0 | I195: =($V$29-1.077*$V$29)/6*($I$148-35)+$V$29 -> 0 | J195: =($V$29-1.077*$V$29)/6*($J$148-35)+$V$29 -> 0 | K195: =($V$29-1.077*$V$29)/6*($K$148-35)+$V$29 -> 0 | L195: =($V$29-1.077*$V$29)/6*($L$148-35)+$V$29 -> 0 | M195: =($V$29-1.077*$V$29)/6*($M$148-35)+$V$29 -> 0 | N195: =($V$29-1.077*$V$29)/6*($N$148-35)+$V$29 -> 0 | O195: =($V$29-1.077*$V$29)/6*($O$148-35)+$V$29 -> 0 | P195: =($V$29-1.077*$V$29)/6*($P$148-35)+$V$29 -> 0 | Q195: =($V$29-1.077*$V$29)/6*($Q$148-35)+$V$29 -> 0 | R195: =($V$29-1.077*$V$29)/6*($R$148-35)+$V$29 -> 0 | S195: =($V$29-1.077*$V$29)/6*($S$148-35)+$V$29 -> 0 | T195: =($V$29-1.077*$V$29)/6*($T$148-35)+$V$29 -> 0 | U195: =($V$29-1.077*$V$29)/6*($U$148-35)+$V$29 -> 0 | V195: =($V$29-1.077*$V$29)/6*($V$148-35)+$V$29 -> 0 | W195: =($V$29-1.077*$V$29)/6*($W$148-35)+$V$29 -> 0 | X195: =($V$29-1.077*$V$29)/6*($X$148-35)+$V$29 -> 0 | Y195: =($V$29-1.077*$V$29)/6*($Y$148-35)+$V$29 -> 0 | Z195: =($V$29-1.077*$V$29)/6*($Z$148-35)+$V$29 -> 0 | AA195: =($V$29-1.077*$V$29)/6*($AA$148-35)+$V$29 -> 0 | AB195: =($V$29-1.077*$V$29)/6*($AB$148-35)+$V$29 -> 0 | AC195: =($V$29-1.077*$V$29)/6*($AC$148-35)+$V$29 -> 0 | AD195: =($V$29-1.077*$V$29)/6*($AD$148-35)+$V$29 -> 0 | AE195: =($V$29-1.077*$V$29)/6*($AE$148-35)+$V$29 -> 0 | AF195: =($V$29-1.077*$V$29)/6*($AF$148-35)+$V$29 -> 0 | AG195: =($V$29-1.077*$V$29)/6*($AG$148-35)+$V$29 -> 0 | AH195: =($V$29-1.077*$V$29)/6*($AH$148-35)+$V$29 -> 0 | AI195: =($V$29-1.077*$V$29)/6*($AI$148-35)+$V$29 -> 0 | AJ195: =($V$29-1.077*$V$29)/6*($AJ$148-35)+$V$29 -> 0 | AK195: =($V$29-1.077*$V$29)/6*($AK$148-35)+$V$29 -> 0 | AL195: =($V$29-1.077*$V$29)/6*($AL$148-35)+$V$29 -> 0 | AM195: =($V$29-1.077*$V$29)/6*($AM$148-35)+$V$29 -> 0 | AN195: =($V$29-1.077*$V$29)/6*($AN$148-35)+$V$29 -> 0 | AO195: =($V$29-1.077*$V$29)/6*($AO$148-35)+$V$29 -> 0 | AP195: =($V$29-1.077*$V$29)/6*($AP$148-35)+$V$29 -> 0 | AQ195: =($V$29-1.077*$V$29)/6*($AQ$148-35)+$V$29 -> 0 | AR195: =($V$29-1.077*$V$29)/6*($AR$148-35)+$V$29 -> 0 | AS195: =($V$29-1.077*$V$29)/6*($AS$148-35)+$V$29 -> 0 | AT195: 冷房能力 | AU195: Φc
C196: 冷房消費電力 | D196: =($V$30-0.914*$V$30)/6*($D$148-35)+$V$30 -> 0 | E196: =($V$30-0.914*$V$30)/6*($E$148-35)+$V$30 -> 0 | F196: =($V$30-0.914*$V$30)/6*($F$148-35)+$V$30 -> 0 | G196: =($V$30-0.914*$V$30)/6*($G$148-35)+$V$30 -> 0 | H196: =($V$30-0.914*$V$30)/6*($H$148-35)+$V$30 -> 0 | I196: =($V$30-0.914*$V$30)/6*($I$148-35)+$V$30 -> 0 | J196: =($V$30-0.914*$V$30)/6*($J$148-35)+$V$30 -> 0 | K196: =($V$30-0.914*$V$30)/6*($K$148-35)+$V$30 -> 0 | L196: =($V$30-0.914*$V$30)/6*($L$148-35)+$V$30 -> 0 | M196: =($V$30-0.914*$V$30)/6*($M$148-35)+$V$30 -> 0 | N196: =($V$30-0.914*$V$30)/6*($N$148-35)+$V$30 -> 0 | O196: =($V$30-0.914*$V$30)/6*($O$148-35)+$V$30 -> 0 | P196: =($V$30-0.914*$V$30)/6*($P$148-35)+$V$30 -> 0 | Q196: =($V$30-0.914*$V$30)/6*($Q$148-35)+$V$30 -> 0 | R196: =($V$30-0.914*$V$30)/6*($R$148-35)+$V$30 -> 0 | S196: =($V$30-0.914*$V$30)/6*($S$148-35)+$V$30 -> 0 | T196: =($V$30-0.914*$V$30)/6*($T$148-35)+$V$30 -> 0 | U196: =($V$30-0.914*$V$30)/6*($U$148-35)+$V$30 -> 0 | V196: =($V$30-0.914*$V$30)/6*($V$148-35)+$V$30 -> 0 | W196: =($V$30-0.914*$V$30)/6*($W$148-35)+$V$30 -> 0 | X196: =($V$30-0.914*$V$30)/6*($X$148-35)+$V$30 -> 0 | Y196: =($V$30-0.914*$V$30)/6*($Y$148-35)+$V$30 -> 0 | Z196: =($V$30-0.914*$V$30)/6*($Z$148-35)+$V$30 -> 0 | AA196: =($V$30-0.914*$V$30)/6*($AA$148-35)+$V$30 -> 0 | AB196: =($V$30-0.914*$V$30)/6*($AB$148-35)+$V$30 -> 0 | AC196: =($V$30-0.914*$V$30)/6*($AC$148-35)+$V$30 -> 0 | AD196: =($V$30-0.914*$V$30)/6*($AD$148-35)+$V$30 -> 0 | AE196: =($V$30-0.914*$V$30)/6*($AE$148-35)+$V$30 -> 0 | AF196: =($V$30-0.914*$V$30)/6*($AF$148-35)+$V$30 -> 0 | AG196: =($V$30-0.914*$V$30)/6*($AG$148-35)+$V$30 -> 0 | AH196: =($V$30-0.914*$V$30)/6*($AH$148-35)+$V$30 -> 0 | AI196: =($V$30-0.914*$V$30)/6*($AI$148-35)+$V$30 -> 0 | AJ196: =($V$30-0.914*$V$30)/6*($AJ$148-35)+$V$30 -> 0 | AK196: =($V$30-0.914*$V$30)/6*($AK$148-35)+$V$30 -> 0 | AL196: =($V$30-0.914*$V$30)/6*($AL$148-35)+$V$30 -> 0 | AM196: =($V$30-0.914*$V$30)/6*($AM$148-35)+$V$30 -> 0 | AN196: =($V$30-0.914*$V$30)/6*($AN$148-35)+$V$30 -> 0 | AO196: =($V$30-0.914*$V$30)/6*($AO$148-35)+$V$30 -> 0 | AP196: =($V$30-0.914*$V$30)/6*($AP$148-35)+$V$30 -> 0 | AQ196: =($V$30-0.914*$V$30)/6*($AQ$148-35)+$V$30 -> 0 | AR196: =($V$30-0.914*$V$30)/6*($AR$148-35)+$V$30 -> 0 | AS196: =($V$30-0.914*$V$30)/6*($AS$148-35)+$V$30 -> 0 | AT196: 冷房消費電力 | AU196: Pc
C197: 冷房COP | D197: =D$195/D$196 ->  | E197: =E$195/E$196 ->  | AT197: 冷房COP | AU197: σc
C198: 冷房COP比 | D198: =D$197/$V$31 ->  | E198: =E$197/$V$31 ->  | AT198: 冷房COP比 | AU198: βc
C199: Σ | D199: =D$161*D$194 ->  | E199: =E$161*E$194 ->  | G199: =G$161*G$194 ->  | AT199: =SUM($D$199:$AS$199) ->  | AU199: Σ
B200: 前7 | C200: 冷房時消費電力比 | D200: =D$162/D$204 ->  | E200: =E$162/E$204 ->  | AS200: =AS$162/AS$204 ->  | AT200: 冷房時消費電力比 | AU200: εc
C201: 冷房能力 | D201: =($W$29-1.077*$W$29)/6*($D$148-35)+$W$29 -> 0 | E201: =($W$29-1.077*$W$29)/6*($E$148-35)+$W$29 -> 0 | F201: =($W$29-1.077*$W$29)/6*($F$148-35)+$W$29 -> 0 | G201: =($W$29-1.077*$W$29)/6*($G$148-35)+$W$29 -> 0 | H201: =($W$29-1.077*$W$29)/6*($H$148-35)+$W$29 -> 0 | I201: =($W$29-1.077*$W$29)/6*($I$148-35)+$W$29 -> 0 | J201: =($W$29-1.077*$W$29)/6*($J$148-35)+$W$29 -> 0 | K201: =($W$29-1.077*$W$29)/6*($K$148-35)+$W$29 -> 0 | L201: =($W$29-1.077*$W$29)/6*($L$148-35)+$W$29 -> 0 | M201: =($W$29-1.077*$W$29)/6*($M$148-35)+$W$29 -> 0 | N201: =($W$29-1.077*$W$29)/6*($N$148-35)+$W$29 -> 0 | O201: =($W$29-1.077*$W$29)/6*($O$148-35)+$W$29 -> 0 | P201: =($W$29-1.077*$W$29)/6*($P$148-35)+$W$29 -> 0 | Q201: =($W$29-1.077*$W$29)/6*($Q$148-35)+$W$29 -> 0 | R201: =($W$29-1.077*$W$29)/6*($R$148-35)+$W$29 -> 0 | S201: =($W$29-1.077*$W$29)/6*($S$148-35)+$W$29 -> 0 | T201: =($W$29-1.077*$W$29)/6*($T$148-35)+$W$29 -> 0 | U201: =($W$29-1.077*$W$29)/6*($U$148-35)+$W$29 -> 0 | V201: =($W$29-1.077*$W$29)/6*($V$148-35)+$W$29 -> 0 | W201: =($W$29-1.077*$W$29)/6*($W$148-35)+$W$29 -> 0 | X201: =($W$29-1.077*$W$29)/6*($X$148-35)+$W$29 -> 0 | Y201: =($W$29-1.077*$W$29)/6*($Y$148-35)+$W$29 -> 0 | Z201: =($W$29-1.077*$W$29)/6*($Z$148-35)+$W$29 -> 0 | AA201: =($W$29-1.077*$W$29)/6*($AA$148-35)+$W$29 -> 0 | AB201: =($W$29-1.077*$W$29)/6*($AB$148-35)+$W$29 -> 0 | AC201: =($W$29-1.077*$W$29)/6*($AC$148-35)+$W$29 -> 0 | AD201: =($W$29-1.077*$W$29)/6*($AD$148-35)+$W$29 -> 0 | AE201: =($W$29-1.077*$W$29)/6*($AE$148-35)+$W$29 -> 0 | AF201: =($W$29-1.077*$W$29)/6*($AF$148-35)+$W$29 -> 0 | AG201: =($W$29-1.077*$W$29)/6*($AG$148-35)+$W$29 -> 0 | AH201: =($W$29-1.077*$W$29)/6*($AH$148-35)+$W$29 -> 0 | AI201: =($W$29-1.077*$W$29)/6*($AI$148-35)+$W$29 -> 0 | AJ201: =($W$29-1.077*$W$29)/6*($AJ$148-35)+$W$29 -> 0 | AK201: =($W$29-1.077*$W$29)/6*($AK$148-35)+$W$29 -> 0 | AL201: =($W$29-1.077*$W$29)/6*($AL$148-35)+$W$29 -> 0 | AM201: =($W$29-1.077*$W$29)/6*($AM$148-35)+$W$29 -> 0 | AN201: =($W$29-1.077*$W$29)/6*($AN$148-35)+$W$29 -> 0 | AO201: =($W$29-1.077*$W$29)/6*($AO$148-35)+$W$29 -> 0 | AP201: =($W$29-1.077*$W$29)/6*($AP$148-35)+$W$29 -> 0 | AQ201: =($W$29-1.077*$W$29)/6*($AQ$148-35)+$W$29 -> 0 | AR201: =($W$29-1.077*$W$29)/6*($AR$148-35)+$W$29 -> 0 | AS201: =($W$29-1.077*$W$29)/6*($AS$148-35)+$W$29 -> 0 | AT201: 冷房能力 | AU201: Φc
C202: 冷房消費電力 | D202: =($W$30-0.914*$W$30)/6*($D$148-35)+$W$30 -> 0 | E202: =($W$30-0.914*$W$30)/6*($E$148-35)+$W$30 -> 0 | F202: =($W$30-0.914*$W$30)/6*($F$148-35)+$W$30 -> 0 | G202: =($W$30-0.914*$W$30)/6*($G$148-35)+$W$30 -> 0 | H202: =($W$30-0.914*$W$30)/6*($H$148-35)+$W$30 -> 0 | I202: =($W$30-0.914*$W$30)/6*($I$148-35)+$W$30 -> 0 | J202: =($W$30-0.914*$W$30)/6*($J$148-35)+$W$30 -> 0 | K202: =($W$30-0.914*$W$30)/6*($K$148-35)+$W$30 -> 0 | L202: =($W$30-0.914*$W$30)/6*($L$148-35)+$W$30 -> 0 | M202: =($W$30-0.914*$W$30)/6*($M$148-35)+$W$30 -> 0 | N202: =($W$30-0.914*$W$30)/6*($N$148-35)+$W$30 -> 0 | O202: =($W$30-0.914*$W$30)/6*($O$148-35)+$W$30 -> 0 | P202: =($W$30-0.914*$W$30)/6*($P$148-35)+$W$30 -> 0 | Q202: =($W$30-0.914*$W$30)/6*($Q$148-35)+$W$30 -> 0 | R202: =($W$30-0.914*$W$30)/6*($R$148-35)+$W$30 -> 0 | S202: =($W$30-0.914*$W$30)/6*($S$148-35)+$W$30 -> 0 | T202: =($W$30-0.914*$W$30)/6*($T$148-35)+$W$30 -> 0 | U202: =($W$30-0.914*$W$30)/6*($U$148-35)+$W$30 -> 0 | V202: =($W$30-0.914*$W$30)/6*($V$148-35)+$W$30 -> 0 | W202: =($W$30-0.914*$W$30)/6*($W$148-35)+$W$30 -> 0 | X202: =($W$30-0.914*$W$30)/6*($X$148-35)+$W$30 -> 0 | Y202: =($W$30-0.914*$W$30)/6*($Y$148-35)+$W$30 -> 0 | Z202: =($W$30-0.914*$W$30)/6*($Z$148-35)+$W$30 -> 0 | AA202: =($W$30-0.914*$W$30)/6*($AA$148-35)+$W$30 -> 0 | AB202: =($W$30-0.914*$W$30)/6*($AB$148-35)+$W$30 -> 0 | AC202: =($W$30-0.914*$W$30)/6*($AC$148-35)+$W$30 -> 0 | AD202: =($W$30-0.914*$W$30)/6*($AD$148-35)+$W$30 -> 0 | AE202: =($W$30-0.914*$W$30)/6*($AE$148-35)+$W$30 -> 0 | AF202: =($W$30-0.914*$W$30)/6*($AF$148-35)+$W$30 -> 0 | AG202: =($W$30-0.914*$W$30)/6*($AG$148-35)+$W$30 -> 0 | AH202: =($W$30-0.914*$W$30)/6*($AH$148-35)+$W$30 -> 0 | AI202: =($W$30-0.914*$W$30)/6*($AI$148-35)+$W$30 -> 0 | AJ202: =($W$30-0.914*$W$30)/6*($AJ$148-35)+$W$30 -> 0 | AK202: =($W$30-0.914*$W$30)/6*($AK$148-35)+$W$30 -> 0 | AL202: =($W$30-0.914*$W$30)/6*($AL$148-35)+$W$30 -> 0 | AM202: =($W$30-0.914*$W$30)/6*($AM$148-35)+$W$30 -> 0 | AN202: =($W$30-0.914*$W$30)/6*($AN$148-35)+$W$30 -> 0 | AO202: =($W$30-0.914*$W$30)/6*($AO$148-35)+$W$30 -> 0 | AP202: =($W$30-0.914*$W$30)/6*($AP$148-35)+$W$30 -> 0 | AQ202: =($W$30-0.914*$W$30)/6*($AQ$148-35)+$W$30 -> 0 | AR202: =($W$30-0.914*$W$30)/6*($AR$148-35)+$W$30 -> 0 | AS202: =($W$30-0.914*$W$30)/6*($AS$148-35)+$W$30 -> 0 | AT202: 冷房消費電力 | AU202: Pc
C203: 冷房COP | D203: =D$201/D$202 ->  | E203: =E$201/E$202 ->  | AT203: 冷房COP | AU203: σc
C204: 冷房COP比 | D204: =D$203/$W$31 ->  | E204: =E$203/$W$31 ->  | AT204: 冷房COP比 | AU204: βc
C205: Σ | D205: =D$161*D$200 ->  | E205: =E$161*E$200 ->  | G205: =G$161*G$200 ->  | AT205: =SUM($D$205:$AS$205) ->  | AU205: Σ
B206: 前8 | C206: 冷房時消費電力比 | D206: =D$162/D$210 ->  | E206: =E$162/E$210 ->  | AT206: 冷房時消費電力比 | AU206: εc
C207: 冷房能力 | D207: =($X$29-1.077*$X$29)/6*($D$148-35)+$X$29 -> 0 | E207: =($X$29-1.077*$X$29)/6*($E$148-35)+$X$29 -> 0 | F207: =($X$29-1.077*$X$29)/6*($F$148-35)+$X$29 -> 0 | G207: =($X$29-1.077*$X$29)/6*($G$148-35)+$X$29 -> 0 | H207: =($X$29-1.077*$X$29)/6*($H$148-35)+$X$29 -> 0 | I207: =($X$29-1.077*$X$29)/6*($I$148-35)+$X$29 -> 0 | J207: =($X$29-1.077*$X$29)/6*($J$148-35)+$X$29 -> 0 | K207: =($X$29-1.077*$X$29)/6*($K$148-35)+$X$29 -> 0 | L207: =($X$29-1.077*$X$29)/6*($L$148-35)+$X$29 -> 0 | M207: =($X$29-1.077*$X$29)/6*($M$148-35)+$X$29 -> 0 | N207: =($X$29-1.077*$X$29)/6*($N$148-35)+$X$29 -> 0 | O207: =($X$29-1.077*$X$29)/6*($O$148-35)+$X$29 -> 0 | P207: =($X$29-1.077*$X$29)/6*($P$148-35)+$X$29 -> 0 | Q207: =($X$29-1.077*$X$29)/6*($Q$148-35)+$X$29 -> 0 | R207: =($X$29-1.077*$X$29)/6*($R$148-35)+$X$29 -> 0 | S207: =($X$29-1.077*$X$29)/6*($S$148-35)+$X$29 -> 0 | T207: =($X$29-1.077*$X$29)/6*($T$148-35)+$X$29 -> 0 | U207: =($X$29-1.077*$X$29)/6*($U$148-35)+$X$29 -> 0 | V207: =($X$29-1.077*$X$29)/6*($V$148-35)+$X$29 -> 0 | W207: =($X$29-1.077*$X$29)/6*($W$148-35)+$X$29 -> 0 | X207: =($X$29-1.077*$X$29)/6*($X$148-35)+$X$29 -> 0 | Y207: =($X$29-1.077*$X$29)/6*($Y$148-35)+$X$29 -> 0 | Z207: =($X$29-1.077*$X$29)/6*($Z$148-35)+$X$29 -> 0 | AA207: =($X$29-1.077*$X$29)/6*($AA$148-35)+$X$29 -> 0 | AB207: =($X$29-1.077*$X$29)/6*($AB$148-35)+$X$29 -> 0 | AC207: =($X$29-1.077*$X$29)/6*($AC$148-35)+$X$29 -> 0 | AD207: =($X$29-1.077*$X$29)/6*($AD$148-35)+$X$29 -> 0 | AE207: =($X$29-1.077*$X$29)/6*($AE$148-35)+$X$29 -> 0 | AF207: =($X$29-1.077*$X$29)/6*($AF$148-35)+$X$29 -> 0 | AG207: =($X$29-1.077*$X$29)/6*($AG$148-35)+$X$29 -> 0 | AH207: =($X$29-1.077*$X$29)/6*($AH$148-35)+$X$29 -> 0 | AI207: =($X$29-1.077*$X$29)/6*($AI$148-35)+$X$29 -> 0 | AJ207: =($X$29-1.077*$X$29)/6*($AJ$148-35)+$X$29 -> 0 | AK207: =($X$29-1.077*$X$29)/6*($AK$148-35)+$X$29 -> 0 | AL207: =($X$29-1.077*$X$29)/6*($AL$148-35)+$X$29 -> 0 | AM207: =($X$29-1.077*$X$29)/6*($AM$148-35)+$X$29 -> 0 | AN207: =($X$29-1.077*$X$29)/6*($AN$148-35)+$X$29 -> 0 | AO207: =($X$29-1.077*$X$29)/6*($AO$148-35)+$X$29 -> 0 | AP207: =($X$29-1.077*$X$29)/6*($AP$148-35)+$X$29 -> 0 | AQ207: =($X$29-1.077*$X$29)/6*($AQ$148-35)+$X$29 -> 0 | AR207: =($X$29-1.077*$X$29)/6*($AR$148-35)+$X$29 -> 0 | AS207: =($X$29-1.077*$X$29)/6*($AS$148-35)+$X$29 -> 0 | AT207: 冷房能力 | AU207: Φc
C208: 冷房消費電力 | D208: =($X$30-0.914*$X$30)/6*($D$148-35)+$X$30 -> 0 | E208: =($X$30-0.914*$X$30)/6*($E$148-35)+$X$30 -> 0 | F208: =($X$30-0.914*$X$30)/6*($F$148-35)+$X$30 -> 0 | G208: =($X$30-0.914*$X$30)/6*($G$148-35)+$X$30 -> 0 | H208: =($X$30-0.914*$X$30)/6*($H$148-35)+$X$30 -> 0 | I208: =($X$30-0.914*$X$30)/6*($I$148-35)+$X$30 -> 0 | J208: =($X$30-0.914*$X$30)/6*($J$148-35)+$X$30 -> 0 | K208: =($X$30-0.914*$X$30)/6*($K$148-35)+$X$30 -> 0 | L208: =($X$30-0.914*$X$30)/6*($L$148-35)+$X$30 -> 0 | M208: =($X$30-0.914*$X$30)/6*($M$148-35)+$X$30 -> 0 | N208: =($X$30-0.914*$X$30)/6*($N$148-35)+$X$30 -> 0 | O208: =($X$30-0.914*$X$30)/6*($O$148-35)+$X$30 -> 0 | P208: =($X$30-0.914*$X$30)/6*($P$148-35)+$X$30 -> 0 | Q208: =($X$30-0.914*$X$30)/6*($Q$148-35)+$X$30 -> 0 | R208: =($X$30-0.914*$X$30)/6*($R$148-35)+$X$30 -> 0 | S208: =($X$30-0.914*$X$30)/6*($S$148-35)+$X$30 -> 0 | T208: =($X$30-0.914*$X$30)/6*($T$148-35)+$X$30 -> 0 | U208: =($X$30-0.914*$X$30)/6*($U$148-35)+$X$30 -> 0 | V208: =($X$30-0.914*$X$30)/6*($V$148-35)+$X$30 -> 0 | W208: =($X$30-0.914*$X$30)/6*($W$148-35)+$X$30 -> 0 | X208: =($X$30-0.914*$X$30)/6*($X$148-35)+$X$30 -> 0 | Y208: =($X$30-0.914*$X$30)/6*($Y$148-35)+$X$30 -> 0 | Z208: =($X$30-0.914*$X$30)/6*($Z$148-35)+$X$30 -> 0 | AA208: =($X$30-0.914*$X$30)/6*($AA$148-35)+$X$30 -> 0 | AB208: =($X$30-0.914*$X$30)/6*($AB$148-35)+$X$30 -> 0 | AC208: =($X$30-0.914*$X$30)/6*($AC$148-35)+$X$30 -> 0 | AD208: =($X$30-0.914*$X$30)/6*($AD$148-35)+$X$30 -> 0 | AE208: =($X$30-0.914*$X$30)/6*($AE$148-35)+$X$30 -> 0 | AF208: =($X$30-0.914*$X$30)/6*($AF$148-35)+$X$30 -> 0 | AG208: =($X$30-0.914*$X$30)/6*($AG$148-35)+$X$30 -> 0 | AH208: =($X$30-0.914*$X$30)/6*($AH$148-35)+$X$30 -> 0 | AI208: =($X$30-0.914*$X$30)/6*($AI$148-35)+$X$30 -> 0 | AJ208: =($X$30-0.914*$X$30)/6*($AJ$148-35)+$X$30 -> 0 | AK208: =($X$30-0.914*$X$30)/6*($AK$148-35)+$X$30 -> 0 | AL208: =($X$30-0.914*$X$30)/6*($AL$148-35)+$X$30 -> 0 | AM208: =($X$30-0.914*$X$30)/6*($AM$148-35)+$X$30 -> 0 | AN208: =($X$30-0.914*$X$30)/6*($AN$148-35)+$X$30 -> 0 | AO208: =($X$30-0.914*$X$30)/6*($AO$148-35)+$X$30 -> 0 | AP208: =($X$30-0.914*$X$30)/6*($AP$148-35)+$X$30 -> 0 | AQ208: =($X$30-0.914*$X$30)/6*($AQ$148-35)+$X$30 -> 0 | AR208: =($X$30-0.914*$X$30)/6*($AR$148-35)+$X$30 -> 0 | AS208: =($X$30-0.914*$X$30)/6*($AS$148-35)+$X$30 -> 0 | AT208: 冷房消費電力 | AU208: Pc
C209: 冷房COP | D209: =D$207/D$208 ->  | E209: =E$207/E$208 ->  | AT209: 冷房COP | AU209: σc
C210: 冷房COP比 | D210: =D$209/$X$31 ->  | E210: =E$209/$X$31 ->  | AT210: 冷房COP比 | AU210: βc
C211: Σ | D211: =D$161*D$206 ->  | E211: =E$161*E$206 ->  | G211: =G$161*G$206 ->  | AT211: =SUM($D$211:$AS$211) ->  | AU211: Σ
B212: 前9 | C212: 冷房時消費電力比 | D212: =D$162/D$216 ->  | E212: =E$162/E$216 ->  | AS212: =AS$162/AS$216 ->  | AT212: 冷房時消費電力比 | AU212: εc
C213: 冷房能力 | D213: =($Y$29-1.077*$Y$29)/6*($D$148-35)+$Y$29 -> 0 | E213: =($Y$29-1.077*$Y$29)/6*($E$148-35)+$Y$29 -> 0 | F213: =($Y$29-1.077*$Y$29)/6*($F$148-35)+$Y$29 -> 0 | G213: =($Y$29-1.077*$Y$29)/6*($G$148-35)+$Y$29 -> 0 | H213: =($Y$29-1.077*$Y$29)/6*($H$148-35)+$Y$29 -> 0 | I213: =($Y$29-1.077*$Y$29)/6*($I$148-35)+$Y$29 -> 0 | J213: =($Y$29-1.077*$Y$29)/6*($J$148-35)+$Y$29 -> 0 | K213: =($Y$29-1.077*$Y$29)/6*($K$148-35)+$Y$29 -> 0 | L213: =($Y$29-1.077*$Y$29)/6*($L$148-35)+$Y$29 -> 0 | M213: =($Y$29-1.077*$Y$29)/6*($M$148-35)+$Y$29 -> 0 | N213: =($Y$29-1.077*$Y$29)/6*($N$148-35)+$Y$29 -> 0 | O213: =($Y$29-1.077*$Y$29)/6*($O$148-35)+$Y$29 -> 0 | P213: =($Y$29-1.077*$Y$29)/6*($P$148-35)+$Y$29 -> 0 | Q213: =($Y$29-1.077*$Y$29)/6*($Q$148-35)+$Y$29 -> 0 | R213: =($Y$29-1.077*$Y$29)/6*($R$148-35)+$Y$29 -> 0 | S213: =($Y$29-1.077*$Y$29)/6*($S$148-35)+$Y$29 -> 0 | T213: =($Y$29-1.077*$Y$29)/6*($T$148-35)+$Y$29 -> 0 | U213: =($Y$29-1.077*$Y$29)/6*($U$148-35)+$Y$29 -> 0 | V213: =($Y$29-1.077*$Y$29)/6*($V$148-35)+$Y$29 -> 0 | W213: =($Y$29-1.077*$Y$29)/6*($W$148-35)+$Y$29 -> 0 | X213: =($Y$29-1.077*$Y$29)/6*($X$148-35)+$Y$29 -> 0 | Y213: =($Y$29-1.077*$Y$29)/6*($Y$148-35)+$Y$29 -> 0 | Z213: =($Y$29-1.077*$Y$29)/6*($Z$148-35)+$Y$29 -> 0 | AA213: =($Y$29-1.077*$Y$29)/6*($AA$148-35)+$Y$29 -> 0 | AB213: =($Y$29-1.077*$Y$29)/6*($AB$148-35)+$Y$29 -> 0 | AC213: =($Y$29-1.077*$Y$29)/6*($AC$148-35)+$Y$29 -> 0 | AD213: =($Y$29-1.077*$Y$29)/6*($AD$148-35)+$Y$29 -> 0 | AE213: =($Y$29-1.077*$Y$29)/6*($AE$148-35)+$Y$29 -> 0 | AF213: =($Y$29-1.077*$Y$29)/6*($AF$148-35)+$Y$29 -> 0 | AG213: =($Y$29-1.077*$Y$29)/6*($AG$148-35)+$Y$29 -> 0 | AH213: =($Y$29-1.077*$Y$29)/6*($AH$148-35)+$Y$29 -> 0 | AI213: =($Y$29-1.077*$Y$29)/6*($AI$148-35)+$Y$29 -> 0 | AJ213: =($Y$29-1.077*$Y$29)/6*($AJ$148-35)+$Y$29 -> 0 | AK213: =($Y$29-1.077*$Y$29)/6*($AK$148-35)+$Y$29 -> 0 | AL213: =($Y$29-1.077*$Y$29)/6*($AL$148-35)+$Y$29 -> 0 | AM213: =($Y$29-1.077*$Y$29)/6*($AM$148-35)+$Y$29 -> 0 | AN213: =($Y$29-1.077*$Y$29)/6*($AN$148-35)+$Y$29 -> 0 | AO213: =($Y$29-1.077*$Y$29)/6*($AO$148-35)+$Y$29 -> 0 | AP213: =($Y$29-1.077*$Y$29)/6*($AP$148-35)+$Y$29 -> 0 | AQ213: =($Y$29-1.077*$Y$29)/6*($AQ$148-35)+$Y$29 -> 0 | AR213: =($Y$29-1.077*$Y$29)/6*($AR$148-35)+$Y$29 -> 0 | AS213: =($Y$29-1.077*$Y$29)/6*($AS$148-35)+$Y$29 -> 0 | AT213: 冷房能力 | AU213: Φc
C214: 冷房消費電力 | D214: =($Y$30-0.914*$Y$30)/6*($D$148-35)+$Y$30 -> 0 | E214: =($Y$30-0.914*$Y$30)/6*($E$148-35)+$Y$30 -> 0 | F214: =($Y$30-0.914*$Y$30)/6*($F$148-35)+$Y$30 -> 0 | G214: =($Y$30-0.914*$Y$30)/6*($G$148-35)+$Y$30 -> 0 | H214: =($Y$30-0.914*$Y$30)/6*($H$148-35)+$Y$30 -> 0 | I214: =($Y$30-0.914*$Y$30)/6*($I$148-35)+$Y$30 -> 0 | J214: =($Y$30-0.914*$Y$30)/6*($J$148-35)+$Y$30 -> 0 | K214: =($Y$30-0.914*$Y$30)/6*($K$148-35)+$Y$30 -> 0 | L214: =($Y$30-0.914*$Y$30)/6*($L$148-35)+$Y$30 -> 0 | M214: =($Y$30-0.914*$Y$30)/6*($M$148-35)+$Y$30 -> 0 | N214: =($Y$30-0.914*$Y$30)/6*($N$148-35)+$Y$30 -> 0 | O214: =($Y$30-0.914*$Y$30)/6*($O$148-35)+$Y$30 -> 0 | P214: =($Y$30-0.914*$Y$30)/6*($P$148-35)+$Y$30 -> 0 | Q214: =($Y$30-0.914*$Y$30)/6*($Q$148-35)+$Y$30 -> 0 | R214: =($Y$30-0.914*$Y$30)/6*($R$148-35)+$Y$30 -> 0 | S214: =($Y$30-0.914*$Y$30)/6*($S$148-35)+$Y$30 -> 0 | T214: =($Y$30-0.914*$Y$30)/6*($T$148-35)+$Y$30 -> 0 | U214: =($Y$30-0.914*$Y$30)/6*($U$148-35)+$Y$30 -> 0 | V214: =($Y$30-0.914*$Y$30)/6*($V$148-35)+$Y$30 -> 0 | W214: =($Y$30-0.914*$Y$30)/6*($W$148-35)+$Y$30 -> 0 | X214: =($Y$30-0.914*$Y$30)/6*($X$148-35)+$Y$30 -> 0 | Y214: =($Y$30-0.914*$Y$30)/6*($Y$148-35)+$Y$30 -> 0 | Z214: =($Y$30-0.914*$Y$30)/6*($Z$148-35)+$Y$30 -> 0 | AA214: =($Y$30-0.914*$Y$30)/6*($AA$148-35)+$Y$30 -> 0 | AB214: =($Y$30-0.914*$Y$30)/6*($AB$148-35)+$Y$30 -> 0 | AC214: =($Y$30-0.914*$Y$30)/6*($AC$148-35)+$Y$30 -> 0 | AD214: =($Y$30-0.914*$Y$30)/6*($AD$148-35)+$Y$30 -> 0 | AE214: =($Y$30-0.914*$Y$30)/6*($AE$148-35)+$Y$30 -> 0 | AF214: =($Y$30-0.914*$Y$30)/6*($AF$148-35)+$Y$30 -> 0 | AG214: =($Y$30-0.914*$Y$30)/6*($AG$148-35)+$Y$30 -> 0 | AH214: =($Y$30-0.914*$Y$30)/6*($AH$148-35)+$Y$30 -> 0 | AI214: =($Y$30-0.914*$Y$30)/6*($AI$148-35)+$Y$30 -> 0 | AJ214: =($Y$30-0.914*$Y$30)/6*($AJ$148-35)+$Y$30 -> 0 | AK214: =($Y$30-0.914*$Y$30)/6*($AK$148-35)+$Y$30 -> 0 | AL214: =($Y$30-0.914*$Y$30)/6*($AL$148-35)+$Y$30 -> 0 | AM214: =($Y$30-0.914*$Y$30)/6*($AM$148-35)+$Y$30 -> 0 | AN214: =($Y$30-0.914*$Y$30)/6*($AN$148-35)+$Y$30 -> 0 | AO214: =($Y$30-0.914*$Y$30)/6*($AO$148-35)+$Y$30 -> 0 | AP214: =($Y$30-0.914*$Y$30)/6*($AP$148-35)+$Y$30 -> 0 | AQ214: =($Y$30-0.914*$Y$30)/6*($AQ$148-35)+$Y$30 -> 0 | AR214: =($Y$30-0.914*$Y$30)/6*($AR$148-35)+$Y$30 -> 0 | AS214: =($Y$30-0.914*$Y$30)/6*($AS$148-35)+$Y$30 -> 0 | AT214: 冷房消費電力 | AU214: Pc
C215: 冷房COP | D215: =D$213/D$214 ->  | E215: =E$213/E$214 ->  | AT215: 冷房COP | AU215: σc
C216: 冷房COP比 | D216: =D$215/$Y$31 ->  | E216: =E$215/$Y$31 ->  | AT216: 冷房COP比 | AU216: βc
C217: Σ | D217: =D$161*D$212 ->  | E217: =E$161*E$212 ->  | G217: =G$161*G$212 ->  | AT217: =SUM($D$217:$AS$217) ->  | AU217: Σ
B218: 前10 | C218: 冷房時消費電力比 | D218: =D$162/D$222 ->  | E218: =E$162/E$222 ->  | AS218: =AS$162/AS$222 ->  | AT218: 冷房時消費電力比 | AU218: εc
C219: 冷房能力 | D219: =($Z$29-1.077*$Z$29)/6*($D$148-35)+$Z$29 -> 0 | E219: =($Z$29-1.077*$Z$29)/6*($E$148-35)+$Z$29 -> 0 | F219: =($Z$29-1.077*$Z$29)/6*($F$148-35)+$Z$29 -> 0 | G219: =($Z$29-1.077*$Z$29)/6*($G$148-35)+$Z$29 -> 0 | H219: =($Z$29-1.077*$Z$29)/6*($H$148-35)+$Z$29 -> 0 | I219: =($Z$29-1.077*$Z$29)/6*($I$148-35)+$Z$29 -> 0 | J219: =($Z$29-1.077*$Z$29)/6*($J$148-35)+$Z$29 -> 0 | K219: =($Z$29-1.077*$Z$29)/6*($K$148-35)+$Z$29 -> 0 | L219: =($Z$29-1.077*$Z$29)/6*($L$148-35)+$Z$29 -> 0 | M219: =($Z$29-1.077*$Z$29)/6*($M$148-35)+$Z$29 -> 0 | N219: =($Z$29-1.077*$Z$29)/6*($N$148-35)+$Z$29 -> 0 | O219: =($Z$29-1.077*$Z$29)/6*($O$148-35)+$Z$29 -> 0 | P219: =($Z$29-1.077*$Z$29)/6*($P$148-35)+$Z$29 -> 0 | Q219: =($Z$29-1.077*$Z$29)/6*($Q$148-35)+$Z$29 -> 0 | R219: =($Z$29-1.077*$Z$29)/6*($R$148-35)+$Z$29 -> 0 | S219: =($Z$29-1.077*$Z$29)/6*($S$148-35)+$Z$29 -> 0 | T219: =($Z$29-1.077*$Z$29)/6*($T$148-35)+$Z$29 -> 0 | U219: =($Z$29-1.077*$Z$29)/6*($U$148-35)+$Z$29 -> 0 | V219: =($Z$29-1.077*$Z$29)/6*($V$148-35)+$Z$29 -> 0 | W219: =($Z$29-1.077*$Z$29)/6*($W$148-35)+$Z$29 -> 0 | X219: =($Z$29-1.077*$Z$29)/6*($X$148-35)+$Z$29 -> 0 | Y219: =($Z$29-1.077*$Z$29)/6*($Y$148-35)+$Z$29 -> 0 | Z219: =($Z$29-1.077*$Z$29)/6*($Z$148-35)+$Z$29 -> 0 | AA219: =($Z$29-1.077*$Z$29)/6*($AA$148-35)+$Z$29 -> 0 | AB219: =($Z$29-1.077*$Z$29)/6*($AB$148-35)+$Z$29 -> 0 | AC219: =($Z$29-1.077*$Z$29)/6*($AC$148-35)+$Z$29 -> 0 | AD219: =($Z$29-1.077*$Z$29)/6*($AD$148-35)+$Z$29 -> 0 | AE219: =($Z$29-1.077*$Z$29)/6*($AE$148-35)+$Z$29 -> 0 | AF219: =($Z$29-1.077*$Z$29)/6*($AF$148-35)+$Z$29 -> 0 | AG219: =($Z$29-1.077*$Z$29)/6*($AG$148-35)+$Z$29 -> 0 | AH219: =($Z$29-1.077*$Z$29)/6*($AH$148-35)+$Z$29 -> 0 | AI219: =($Z$29-1.077*$Z$29)/6*($AI$148-35)+$Z$29 -> 0 | AJ219: =($Z$29-1.077*$Z$29)/6*($AJ$148-35)+$Z$29 -> 0 | AK219: =($Z$29-1.077*$Z$29)/6*($AK$148-35)+$Z$29 -> 0 | AL219: =($Z$29-1.077*$Z$29)/6*($AL$148-35)+$Z$29 -> 0 | AM219: =($Z$29-1.077*$Z$29)/6*($AM$148-35)+$Z$29 -> 0 | AN219: =($Z$29-1.077*$Z$29)/6*($AN$148-35)+$Z$29 -> 0 | AO219: =($Z$29-1.077*$Z$29)/6*($AO$148-35)+$Z$29 -> 0 | AP219: =($Z$29-1.077*$Z$29)/6*($AP$148-35)+$Z$29 -> 0 | AQ219: =($Z$29-1.077*$Z$29)/6*($AQ$148-35)+$Z$29 -> 0 | AR219: =($Z$29-1.077*$Z$29)/6*($AR$148-35)+$Z$29 -> 0 | AS219: =($Z$29-1.077*$Z$29)/6*($AS$148-35)+$Z$29 -> 0 | AT219: 冷房能力 | AU219: Φc
C220: 冷房消費電力 | D220: =($Z$30-0.914*$Z$30)/6*($D$148-35)+$Z$30 -> 0 | E220: =($Z$30-0.914*$Z$30)/6*($E$148-35)+$Z$30 -> 0 | F220: =($Z$30-0.914*$Z$30)/6*($F$148-35)+$Z$30 -> 0 | G220: =($Z$30-0.914*$Z$30)/6*($G$148-35)+$Z$30 -> 0 | H220: =($Z$30-0.914*$Z$30)/6*($H$148-35)+$Z$30 -> 0 | I220: =($Z$30-0.914*$Z$30)/6*($I$148-35)+$Z$30 -> 0 | J220: =($Z$30-0.914*$Z$30)/6*($J$148-35)+$Z$30 -> 0 | K220: =($Z$30-0.914*$Z$30)/6*($K$148-35)+$Z$30 -> 0 | L220: =($Z$30-0.914*$Z$30)/6*($L$148-35)+$Z$30 -> 0 | M220: =($Z$30-0.914*$Z$30)/6*($M$148-35)+$Z$30 -> 0 | N220: =($Z$30-0.914*$Z$30)/6*($N$148-35)+$Z$30 -> 0 | O220: =($Z$30-0.914*$Z$30)/6*($O$148-35)+$Z$30 -> 0 | P220: =($Z$30-0.914*$Z$30)/6*($P$148-35)+$Z$30 -> 0 | Q220: =($Z$30-0.914*$Z$30)/6*($Q$148-35)+$Z$30 -> 0 | R220: =($Z$30-0.914*$Z$30)/6*($R$148-35)+$Z$30 -> 0 | S220: =($Z$30-0.914*$Z$30)/6*($S$148-35)+$Z$30 -> 0 | T220: =($Z$30-0.914*$Z$30)/6*($T$148-35)+$Z$30 -> 0 | U220: =($Z$30-0.914*$Z$30)/6*($U$148-35)+$Z$30 -> 0 | V220: =($Z$30-0.914*$Z$30)/6*($V$148-35)+$Z$30 -> 0 | W220: =($Z$30-0.914*$Z$30)/6*($W$148-35)+$Z$30 -> 0 | X220: =($Z$30-0.914*$Z$30)/6*($X$148-35)+$Z$30 -> 0 | Y220: =($Z$30-0.914*$Z$30)/6*($Y$148-35)+$Z$30 -> 0 | Z220: =($Z$30-0.914*$Z$30)/6*($Z$148-35)+$Z$30 -> 0 | AA220: =($Z$30-0.914*$Z$30)/6*($AA$148-35)+$Z$30 -> 0 | AB220: =($Z$30-0.914*$Z$30)/6*($AB$148-35)+$Z$30 -> 0 | AC220: =($Z$30-0.914*$Z$30)/6*($AC$148-35)+$Z$30 -> 0 | AD220: =($Z$30-0.914*$Z$30)/6*($AD$148-35)+$Z$30 -> 0 | AE220: =($Z$30-0.914*$Z$30)/6*($AE$148-35)+$Z$30 -> 0 | AF220: =($Z$30-0.914*$Z$30)/6*($AF$148-35)+$Z$30 -> 0 | AG220: =($Z$30-0.914*$Z$30)/6*($AG$148-35)+$Z$30 -> 0 | AH220: =($Z$30-0.914*$Z$30)/6*($AH$148-35)+$Z$30 -> 0 | AI220: =($Z$30-0.914*$Z$30)/6*($AI$148-35)+$Z$30 -> 0 | AJ220: =($Z$30-0.914*$Z$30)/6*($AJ$148-35)+$Z$30 -> 0 | AK220: =($Z$30-0.914*$Z$30)/6*($AK$148-35)+$Z$30 -> 0 | AL220: =($Z$30-0.914*$Z$30)/6*($AL$148-35)+$Z$30 -> 0 | AM220: =($Z$30-0.914*$Z$30)/6*($AM$148-35)+$Z$30 -> 0 | AN220: =($Z$30-0.914*$Z$30)/6*($AN$148-35)+$Z$30 -> 0 | AO220: =($Z$30-0.914*$Z$30)/6*($AO$148-35)+$Z$30 -> 0 | AP220: =($Z$30-0.914*$Z$30)/6*($AP$148-35)+$Z$30 -> 0 | AQ220: =($Z$30-0.914*$Z$30)/6*($AQ$148-35)+$Z$30 -> 0 | AR220: =($Z$30-0.914*$Z$30)/6*($AR$148-35)+$Z$30 -> 0 | AS220: =($Z$30-0.914*$Z$30)/6*($AS$148-35)+$Z$30 -> 0 | AT220: 冷房消費電力 | AU220: Pc
C221: 冷房COP | D221: =D$219/D$220 ->  | E221: =E$219/E$220 ->  | AT221: 冷房COP | AU221: σc
... 199 more rows

Sheet 寒冷地(γ既定値)
C2: EHPの設置場所
C3: =IF(必ずこのシートから始めてください!$L$8="","",必ずこのシートから始めてください!$L$8) ->  | F3: 手順1：空調を行う月、時間を下記の指定の色で塗る(指定の色以外で塗ると計算できません。)
C4: =VLOOKUP($C$3,γ一覧表!$C$3:$E$50,2,FALSE) ->  | G4: 冷房 | H4: 青 | I4: 【左から5列目、一番薄い色(アクセント1,白＋基本色80％)】
G5: 暖房 | H5: オレンジ | I5: 【左から6番目、一番薄い色(アクセント2,白＋基本色80％)】
C6: 使用するγ値 | F6: 手順2：各月の運転日数を入力する
C7: =IFERROR(IF(VLOOKUP($C$3,γ一覧表!$C$3:$E$50,3,FALSE)<=1,"---",IFERROR(VLOOKUP($C$3,γ一覧表!$C$3:$E$50,3,FALSE),"---")),"---") -> --- | F7: 手順3：Ctrl + Alt + F9を同時に押す | R7: ●時刻別平均気温表記載の数値は、選択された都道府県の県庁所在地の月別、時刻別平均気温
F8: 手順4：黄色のセルに値を入力する(緑は自動計算) | R8: ●本データは気象庁発表の1992年4月1日から2022年3月31日までの30年の1時間データを整理したもの
C9: 時刻別平均気温[℃] | R9: ●2月はうるう日を含みます
D10: 時刻 | AB10: =SUM($AB$11:$AB$23) -> 0 | AC10: =必ずこのシートから始めてください!M3 -> Ver.2.1
C11: 月 | D11: 0 | E11: 1 | F11: 2 | G11: 3 | H11: 4 | I11: 5 | J11: 6 | K11: 7 | L11: 8 | M11: 9 | N11: 10 | O11: 11 | P11: 12 | Q11: 13 | R11: 14 | S11: 15 | T11: 16 | U11: 17 | V11: 18 | W11: 19 | X11: 20 | Y11: 21 | Z11: 22 | AA11: 23 | AB11: 運転日数 | AC11: 月
C12: 4 | D12: =IFERROR(INDIRECT($C$4&"!B5"),"") ->  | E12: =IFERROR(INDIRECT($C$4&"!C5"),"") ->  | F12: =IFERROR(INDIRECT($C$4&"!D5"),"") ->  | G12: =IFERROR(INDIRECT($C$4&"!E5"),"") ->  | H12: =IFERROR(INDIRECT($C$4&"!F5"),"") ->  | I12: =IFERROR(INDIRECT($C$4&"!G5"),"") ->  | J12: =IFERROR(INDIRECT($C$4&"!H5"),"") ->  | K12: =IFERROR(INDIRECT($C$4&"!I5"),"") ->  | L12: =IFERROR(INDIRECT($C$4&"!J5"),"") ->  | M12: =IFERROR(INDIRECT($C$4&"!K5"),"") ->  | N12: =IFERROR(INDIRECT($C$4&"!L5"),"") ->  | O12: =IFERROR(INDIRECT($C$4&"!M5"),"") ->  | P12: =IFERROR(INDIRECT($C$4&"!N5"),"") ->  | Q12: =IFERROR(INDIRECT($C$4&"!O5"),"") ->  | R12: =IFERROR(INDIRECT($C$4&"!P5"),"") ->  | S12: =IFERROR(INDIRECT($C$4&"!Q5"),"") ->  | T12: =IFERROR(INDIRECT($C$4&"!R5"),"") ->  | U12: =IFERROR(INDIRECT($C$4&"!S5"),"") ->  | V12: =IFERROR(INDIRECT($C$4&"!T5"),"") ->  | W12: =IFERROR(INDIRECT($C$4&"!U5"),"") ->  | X12: =IFERROR(INDIRECT($C$4&"!V5"),"") ->  | Y12: =IFERROR(INDIRECT($C$4&"!W5"),"") ->  | Z12: =IFERROR(INDIRECT($C$4&"!X5"),"") ->  | AA12: =IFERROR(INDIRECT($C$4&"!Y5"),"") ->  | AC12: 4
C13: 5 | D13: =IFERROR(INDIRECT($C$4&"!B6"),"") ->  | E13: =IFERROR(INDIRECT($C$4&"!C6"),"") ->  | F13: =IFERROR(INDIRECT($C$4&"!D6"),"") ->  | G13: =IFERROR(INDIRECT($C$4&"!E6"),"") ->  | H13: =IFERROR(INDIRECT($C$4&"!F6"),"") ->  | I13: =IFERROR(INDIRECT($C$4&"!G6"),"") ->  | J13: =IFERROR(INDIRECT($C$4&"!H6"),"") ->  | K13: =IFERROR(INDIRECT($C$4&"!I6"),"") ->  | L13: =IFERROR(INDIRECT($C$4&"!J6"),"") ->  | M13: =IFERROR(INDIRECT($C$4&"!K6"),"") ->  | N13: =IFERROR(INDIRECT($C$4&"!L6"),"") ->  | O13: =IFERROR(INDIRECT($C$4&"!M6"),"") ->  | P13: =IFERROR(INDIRECT($C$4&"!N6"),"") ->  | Q13: =IFERROR(INDIRECT($C$4&"!O6"),"") ->  | R13: =IFERROR(INDIRECT($C$4&"!P6"),"") ->  | S13: =IFERROR(INDIRECT($C$4&"!Q6"),"") ->  | T13: =IFERROR(INDIRECT($C$4&"!R6"),"") ->  | U13: =IFERROR(INDIRECT($C$4&"!S6"),"") ->  | V13: =IFERROR(INDIRECT($C$4&"!T6"),"") ->  | W13: =IFERROR(INDIRECT($C$4&"!U6"),"") ->  | X13: =IFERROR(INDIRECT($C$4&"!V6"),"") ->  | Y13: =IFERROR(INDIRECT($C$4&"!W6"),"") ->  | Z13: =IFERROR(INDIRECT($C$4&"!X6"),"") ->  | AA13: =IFERROR(INDIRECT($C$4&"!Y6"),"") ->  | AC13: 5
C14: 6 | D14: =IFERROR(INDIRECT($C$4&"!B7"),"") ->  | E14: =IFERROR(INDIRECT($C$4&"!C7"),"") ->  | F14: =IFERROR(INDIRECT($C$4&"!D7"),"") ->  | G14: =IFERROR(INDIRECT($C$4&"!E7"),"") ->  | H14: =IFERROR(INDIRECT($C$4&"!F7"),"") ->  | I14: =IFERROR(INDIRECT($C$4&"!G7"),"") ->  | J14: =IFERROR(INDIRECT($C$4&"!H7"),"") ->  | K14: =IFERROR(INDIRECT($C$4&"!I7"),"") ->  | L14: =IFERROR(INDIRECT($C$4&"!J7"),"") ->  | M14: =IFERROR(INDIRECT($C$4&"!K7"),"") ->  | N14: =IFERROR(INDIRECT($C$4&"!L7"),"") ->  | O14: =IFERROR(INDIRECT($C$4&"!M7"),"") ->  | P14: =IFERROR(INDIRECT($C$4&"!N7"),"") ->  | Q14: =IFERROR(INDIRECT($C$4&"!O7"),"") ->  | R14: =IFERROR(INDIRECT($C$4&"!P7"),"") ->  | S14: =IFERROR(INDIRECT($C$4&"!Q7"),"") ->  | T14: =IFERROR(INDIRECT($C$4&"!R7"),"") ->  | U14: =IFERROR(INDIRECT($C$4&"!S7"),"") ->  | V14: =IFERROR(INDIRECT($C$4&"!T7"),"") ->  | W14: =IFERROR(INDIRECT($C$4&"!U7"),"") ->  | X14: =IFERROR(INDIRECT($C$4&"!V7"),"") ->  | Y14: =IFERROR(INDIRECT($C$4&"!W7"),"") ->  | Z14: =IFERROR(INDIRECT($C$4&"!X7"),"") ->  | AA14: =IFERROR(INDIRECT($C$4&"!Y7"),"") ->  | AC14: 6
C15: 7 | D15: =IFERROR(INDIRECT($C$4&"!B8"),"") ->  | E15: =IFERROR(INDIRECT($C$4&"!C8"),"") ->  | F15: =IFERROR(INDIRECT($C$4&"!D8"),"") ->  | G15: =IFERROR(INDIRECT($C$4&"!E8"),"") ->  | H15: =IFERROR(INDIRECT($C$4&"!F8"),"") ->  | I15: =IFERROR(INDIRECT($C$4&"!G8"),"") ->  | J15: =IFERROR(INDIRECT($C$4&"!H8"),"") ->  | K15: =IFERROR(INDIRECT($C$4&"!I8"),"") ->  | L15: =IFERROR(INDIRECT($C$4&"!J8"),"") ->  | M15: =IFERROR(INDIRECT($C$4&"!K8"),"") ->  | N15: =IFERROR(INDIRECT($C$4&"!L8"),"") ->  | O15: =IFERROR(INDIRECT($C$4&"!M8"),"") ->  | P15: =IFERROR(INDIRECT($C$4&"!N8"),"") ->  | Q15: =IFERROR(INDIRECT($C$4&"!O8"),"") ->  | R15: =IFERROR(INDIRECT($C$4&"!P8"),"") ->  | S15: =IFERROR(INDIRECT($C$4&"!Q8"),"") ->  | T15: =IFERROR(INDIRECT($C$4&"!R8"),"") ->  | U15: =IFERROR(INDIRECT($C$4&"!S8"),"") ->  | V15: =IFERROR(INDIRECT($C$4&"!T8"),"") ->  | W15: =IFERROR(INDIRECT($C$4&"!U8"),"") ->  | X15: =IFERROR(INDIRECT($C$4&"!V8"),"") ->  | Y15: =IFERROR(INDIRECT($C$4&"!W8"),"") ->  | Z15: =IFERROR(INDIRECT($C$4&"!X8"),"") ->  | AA15: =IFERROR(INDIRECT($C$4&"!Y8"),"") ->  | AC15: 7
C16: 8 | D16: =IFERROR(INDIRECT($C$4&"!B9"),"") ->  | E16: =IFERROR(INDIRECT($C$4&"!C9"),"") ->  | F16: =IFERROR(INDIRECT($C$4&"!D9"),"") ->  | G16: =IFERROR(INDIRECT($C$4&"!E9"),"") ->  | H16: =IFERROR(INDIRECT($C$4&"!F9"),"") ->  | I16: =IFERROR(INDIRECT($C$4&"!G9"),"") ->  | J16: =IFERROR(INDIRECT($C$4&"!H9"),"") ->  | K16: =IFERROR(INDIRECT($C$4&"!I9"),"") ->  | L16: =IFERROR(INDIRECT($C$4&"!J9"),"") ->  | M16: =IFERROR(INDIRECT($C$4&"!K9"),"") ->  | N16: =IFERROR(INDIRECT($C$4&"!L9"),"") ->  | O16: =IFERROR(INDIRECT($C$4&"!M9"),"") ->  | P16: =IFERROR(INDIRECT($C$4&"!N9"),"") ->  | Q16: =IFERROR(INDIRECT($C$4&"!O9"),"") ->  | R16: =IFERROR(INDIRECT($C$4&"!P9"),"") ->  | S16: =IFERROR(INDIRECT($C$4&"!Q9"),"") ->  | T16: =IFERROR(INDIRECT($C$4&"!R9"),"") ->  | U16: =IFERROR(INDIRECT($C$4&"!S9"),"") ->  | V16: =IFERROR(INDIRECT($C$4&"!T9"),"") ->  | W16: =IFERROR(INDIRECT($C$4&"!U9"),"") ->  | X16: =IFERROR(INDIRECT($C$4&"!V9"),"") ->  | Y16: =IFERROR(INDIRECT($C$4&"!W9"),"") ->  | Z16: =IFERROR(INDIRECT($C$4&"!X9"),"") ->  | AA16: =IFERROR(INDIRECT($C$4&"!Y9"),"") ->  | AC16: 8
C17: 9 | D17: =IFERROR(INDIRECT($C$4&"!B10"),"") ->  | E17: =IFERROR(INDIRECT($C$4&"!C10"),"") ->  | F17: =IFERROR(INDIRECT($C$4&"!D10"),"") ->  | G17: =IFERROR(INDIRECT($C$4&"!E10"),"") ->  | H17: =IFERROR(INDIRECT($C$4&"!F10"),"") ->  | I17: =IFERROR(INDIRECT($C$4&"!G10"),"") ->  | J17: =IFERROR(INDIRECT($C$4&"!H10"),"") ->  | K17: =IFERROR(INDIRECT($C$4&"!I10"),"") ->  | L17: =IFERROR(INDIRECT($C$4&"!J10"),"") ->  | M17: =IFERROR(INDIRECT($C$4&"!K10"),"") ->  | N17: =IFERROR(INDIRECT($C$4&"!L10"),"") ->  | O17: =IFERROR(INDIRECT($C$4&"!M10"),"") ->  | P17: =IFERROR(INDIRECT($C$4&"!N10"),"") ->  | Q17: =IFERROR(INDIRECT($C$4&"!O10"),"") ->  | R17: =IFERROR(INDIRECT($C$4&"!P10"),"") ->  | S17: =IFERROR(INDIRECT($C$4&"!Q10"),"") ->  | T17: =IFERROR(INDIRECT($C$4&"!R10"),"") ->  | U17: =IFERROR(INDIRECT($C$4&"!S10"),"") ->  | V17: =IFERROR(INDIRECT($C$4&"!T10"),"") ->  | W17: =IFERROR(INDIRECT($C$4&"!U10"),"") ->  | X17: =IFERROR(INDIRECT($C$4&"!V10"),"") ->  | Y17: =IFERROR(INDIRECT($C$4&"!W10"),"") ->  | Z17: =IFERROR(INDIRECT($C$4&"!X10"),"") ->  | AA17: =IFERROR(INDIRECT($C$4&"!Y10"),"") ->  | AC17: 9
C18: 10 | D18: =IFERROR(INDIRECT($C$4&"!B11"),"") ->  | E18: =IFERROR(INDIRECT($C$4&"!C11"),"") ->  | F18: =IFERROR(INDIRECT($C$4&"!D11"),"") ->  | G18: =IFERROR(INDIRECT($C$4&"!E11"),"") ->  | H18: =IFERROR(INDIRECT($C$4&"!F11"),"") ->  | I18: =IFERROR(INDIRECT($C$4&"!G11"),"") ->  | J18: =IFERROR(INDIRECT($C$4&"!H11"),"") ->  | K18: =IFERROR(INDIRECT($C$4&"!I11"),"") ->  | L18: =IFERROR(INDIRECT($C$4&"!J11"),"") ->  | M18: =IFERROR(INDIRECT($C$4&"!K11"),"") ->  | N18: =IFERROR(INDIRECT($C$4&"!L11"),"") ->  | O18: =IFERROR(INDIRECT($C$4&"!M11"),"") ->  | P18: =IFERROR(INDIRECT($C$4&"!N11"),"") ->  | Q18: =IFERROR(INDIRECT($C$4&"!O11"),"") ->  | R18: =IFERROR(INDIRECT($C$4&"!P11"),"") ->  | S18: =IFERROR(INDIRECT($C$4&"!Q11"),"") ->  | T18: =IFERROR(INDIRECT($C$4&"!R11"),"") ->  | U18: =IFERROR(INDIRECT($C$4&"!S11"),"") ->  | V18: =IFERROR(INDIRECT($C$4&"!T11"),"") ->  | W18: =IFERROR(INDIRECT($C$4&"!U11"),"") ->  | X18: =IFERROR(INDIRECT($C$4&"!V11"),"") ->  | Y18: =IFERROR(INDIRECT($C$4&"!W11"),"") ->  | Z18: =IFERROR(INDIRECT($C$4&"!X11"),"") ->  | AA18: =IFERROR(INDIRECT($C$4&"!Y11"),"") ->  | AC18: 10
C19: 11 | D19: =IFERROR(INDIRECT($C$4&"!B12"),"") ->  | E19: =IFERROR(INDIRECT($C$4&"!C12"),"") ->  | F19: =IFERROR(INDIRECT($C$4&"!D12"),"") ->  | G19: =IFERROR(INDIRECT($C$4&"!E12"),"") ->  | H19: =IFERROR(INDIRECT($C$4&"!F12"),"") ->  | I19: =IFERROR(INDIRECT($C$4&"!G12"),"") ->  | J19: =IFERROR(INDIRECT($C$4&"!H12"),"") ->  | K19: =IFERROR(INDIRECT($C$4&"!I12"),"") ->  | L19: =IFERROR(INDIRECT($C$4&"!J12"),"") ->  | M19: =IFERROR(INDIRECT($C$4&"!K12"),"") ->  | N19: =IFERROR(INDIRECT($C$4&"!L12"),"") ->  | O19: =IFERROR(INDIRECT($C$4&"!M12"),"") ->  | P19: =IFERROR(INDIRECT($C$4&"!N12"),"") ->  | Q19: =IFERROR(INDIRECT($C$4&"!O12"),"") ->  | R19: =IFERROR(INDIRECT($C$4&"!P12"),"") ->  | S19: =IFERROR(INDIRECT($C$4&"!Q12"),"") ->  | T19: =IFERROR(INDIRECT($C$4&"!R12"),"") ->  | U19: =IFERROR(INDIRECT($C$4&"!S12"),"") ->  | V19: =IFERROR(INDIRECT($C$4&"!T12"),"") ->  | W19: =IFERROR(INDIRECT($C$4&"!U12"),"") ->  | X19: =IFERROR(INDIRECT($C$4&"!V12"),"") ->  | Y19: =IFERROR(INDIRECT($C$4&"!W12"),"") ->  | Z19: =IFERROR(INDIRECT($C$4&"!X12"),"") ->  | AA19: =IFERROR(INDIRECT($C$4&"!Y12"),"") ->  | AC19: 11
C20: 12 | D20: =IFERROR(INDIRECT($C$4&"!B13"),"") ->  | E20: =IFERROR(INDIRECT($C$4&"!C13"),"") ->  | F20: =IFERROR(INDIRECT($C$4&"!D13"),"") ->  | G20: =IFERROR(INDIRECT($C$4&"!E13"),"") ->  | H20: =IFERROR(INDIRECT($C$4&"!F13"),"") ->  | I20: =IFERROR(INDIRECT($C$4&"!G13"),"") ->  | J20: =IFERROR(INDIRECT($C$4&"!H13"),"") ->  | K20: =IFERROR(INDIRECT($C$4&"!I13"),"") ->  | L20: =IFERROR(INDIRECT($C$4&"!J13"),"") ->  | M20: =IFERROR(INDIRECT($C$4&"!K13"),"") ->  | N20: =IFERROR(INDIRECT($C$4&"!L13"),"") ->  | O20: =IFERROR(INDIRECT($C$4&"!M13"),"") ->  | P20: =IFERROR(INDIRECT($C$4&"!N13"),"") ->  | Q20: =IFERROR(INDIRECT($C$4&"!O13"),"") ->  | R20: =IFERROR(INDIRECT($C$4&"!P13"),"") ->  | S20: =IFERROR(INDIRECT($C$4&"!Q13"),"") ->  | T20: =IFERROR(INDIRECT($C$4&"!R13"),"") ->  | U20: =IFERROR(INDIRECT($C$4&"!S13"),"") ->  | V20: =IFERROR(INDIRECT($C$4&"!T13"),"") ->  | W20: =IFERROR(INDIRECT($C$4&"!U13"),"") ->  | X20: =IFERROR(INDIRECT($C$4&"!V13"),"") ->  | Y20: =IFERROR(INDIRECT($C$4&"!W13"),"") ->  | Z20: =IFERROR(INDIRECT($C$4&"!X13"),"") ->  | AA20: =IFERROR(INDIRECT($C$4&"!Y13"),"") ->  | AC20: 12
C21: 1 | D21: =IFERROR(INDIRECT($C$4&"!B14"),"") ->  | E21: =IFERROR(INDIRECT($C$4&"!C14"),"") ->  | F21: =IFERROR(INDIRECT($C$4&"!D14"),"") ->  | G21: =IFERROR(INDIRECT($C$4&"!E14"),"") ->  | H21: =IFERROR(INDIRECT($C$4&"!F14"),"") ->  | I21: =IFERROR(INDIRECT($C$4&"!G14"),"") ->  | J21: =IFERROR(INDIRECT($C$4&"!H14"),"") ->  | K21: =IFERROR(INDIRECT($C$4&"!I14"),"") ->  | L21: =IFERROR(INDIRECT($C$4&"!J14"),"") ->  | M21: =IFERROR(INDIRECT($C$4&"!K14"),"") ->  | N21: =IFERROR(INDIRECT($C$4&"!L14"),"") ->  | O21: =IFERROR(INDIRECT($C$4&"!M14"),"") ->  | P21: =IFERROR(INDIRECT($C$4&"!N14"),"") ->  | Q21: =IFERROR(INDIRECT($C$4&"!O14"),"") ->  | R21: =IFERROR(INDIRECT($C$4&"!P14"),"") ->  | S21: =IFERROR(INDIRECT($C$4&"!Q14"),"") ->  | T21: =IFERROR(INDIRECT($C$4&"!R14"),"") ->  | U21: =IFERROR(INDIRECT($C$4&"!S14"),"") ->  | V21: =IFERROR(INDIRECT($C$4&"!T14"),"") ->  | W21: =IFERROR(INDIRECT($C$4&"!U14"),"") ->  | X21: =IFERROR(INDIRECT($C$4&"!V14"),"") ->  | Y21: =IFERROR(INDIRECT($C$4&"!W14"),"") ->  | Z21: =IFERROR(INDIRECT($C$4&"!X14"),"") ->  | AA21: =IFERROR(INDIRECT($C$4&"!Y14"),"") ->  | AC21: 1
C22: 2 | D22: =IFERROR(INDIRECT($C$4&"!B15"),"") ->  | E22: =IFERROR(INDIRECT($C$4&"!C15"),"") ->  | F22: =IFERROR(INDIRECT($C$4&"!D15"),"") ->  | G22: =IFERROR(INDIRECT($C$4&"!E15"),"") ->  | H22: =IFERROR(INDIRECT($C$4&"!F15"),"") ->  | I22: =IFERROR(INDIRECT($C$4&"!G15"),"") ->  | J22: =IFERROR(INDIRECT($C$4&"!H15"),"") ->  | K22: =IFERROR(INDIRECT($C$4&"!I15"),"") ->  | L22: =IFERROR(INDIRECT($C$4&"!J15"),"") ->  | M22: =IFERROR(INDIRECT($C$4&"!K15"),"") ->  | N22: =IFERROR(INDIRECT($C$4&"!L15"),"") ->  | O22: =IFERROR(INDIRECT($C$4&"!M15"),"") ->  | P22: =IFERROR(INDIRECT($C$4&"!N15"),"") ->  | Q22: =IFERROR(INDIRECT($C$4&"!O15"),"") ->  | R22: =IFERROR(INDIRECT($C$4&"!P15"),"") ->  | S22: =IFERROR(INDIRECT($C$4&"!Q15"),"") ->  | T22: =IFERROR(INDIRECT($C$4&"!R15"),"") ->  | U22: =IFERROR(INDIRECT($C$4&"!S15"),"") ->  | V22: =IFERROR(INDIRECT($C$4&"!T15"),"") ->  | W22: =IFERROR(INDIRECT($C$4&"!U15"),"") ->  | X22: =IFERROR(INDIRECT($C$4&"!V15"),"") ->  | Y22: =IFERROR(INDIRECT($C$4&"!W15"),"") ->  | Z22: =IFERROR(INDIRECT($C$4&"!X15"),"") ->  | AA22: =IFERROR(INDIRECT($C$4&"!Y15"),"") ->  | AC22: 2
C23: 3 | D23: =IFERROR(INDIRECT($C$4&"!B16"),"") ->  | E23: =IFERROR(INDIRECT($C$4&"!C16"),"") ->  | F23: =IFERROR(INDIRECT($C$4&"!D16"),"") ->  | G23: =IFERROR(INDIRECT($C$4&"!E16"),"") ->  | H23: =IFERROR(INDIRECT($C$4&"!F16"),"") ->  | I23: =IFERROR(INDIRECT($C$4&"!G16"),"") ->  | J23: =IFERROR(INDIRECT($C$4&"!H16"),"") ->  | K23: =IFERROR(INDIRECT($C$4&"!I16"),"") ->  | L23: =IFERROR(INDIRECT($C$4&"!J16"),"") ->  | M23: =IFERROR(INDIRECT($C$4&"!K16"),"") ->  | N23: =IFERROR(INDIRECT($C$4&"!L16"),"") ->  | O23: =IFERROR(INDIRECT($C$4&"!M16"),"") ->  | P23: =IFERROR(INDIRECT($C$4&"!N16"),"") ->  | Q23: =IFERROR(INDIRECT($C$4&"!O16"),"") ->  | R23: =IFERROR(INDIRECT($C$4&"!P16"),"") ->  | S23: =IFERROR(INDIRECT($C$4&"!Q16"),"") ->  | T23: =IFERROR(INDIRECT($C$4&"!R16"),"") ->  | U23: =IFERROR(INDIRECT($C$4&"!S16"),"") ->  | V23: =IFERROR(INDIRECT($C$4&"!T16"),"") ->  | W23: =IFERROR(INDIRECT($C$4&"!U16"),"") ->  | X23: =IFERROR(INDIRECT($C$4&"!V16"),"") ->  | Y23: =IFERROR(INDIRECT($C$4&"!W16"),"") ->  | Z23: =IFERROR(INDIRECT($C$4&"!X16"),"") ->  | AA23: =IFERROR(INDIRECT($C$4&"!Y16"),"") ->  | AC23: 3
D25: 共通1 | E25: 冷房負荷ゼロ点 | G25: 冷房が不要になると思われる外気温度を入力 | L25: Tco | M25: 18 | N25: ℃ | P25: 共通2 | Q25: 暖房設計外気温 | S25: 設備設計時に最大暖房負荷計算を行った外気温度(JIS B8616のth100に相当) | AA25: Td | AB25: -5 | AC25: ℃
E26: 暖房負荷ゼロ点 | G26: 暖房が不要になると思われる外気温度を入力 | L26: Two | M26: 12 | N26: ℃ | Q26: 設計暖房能力 | S26: 最大暖房負荷に対して選定したEHPの暖房能力(原則、最大空調負荷に等しい) | AA26: Φwd | AB26: 25 | AC26: kW
D28: 設備導入前 | Q28: 前1 | R28: 前2 | S28: 前3 | T28: 前4 | U28: 前5 | V28: 前6 | W28: 前7 | X28: 前8 | Y28: 前9 | Z28: 前10
E29: 定格冷房能力 | G29: EHPの仕様を入力 | P29: Φco | Q29: 22 | AA29: kW
E30: 定格冷房消費電力 | G30: EHPの仕様を入力 | P30: Pco | Q30: 6.6 | AA30: kW
E31: 定格冷房COP | G31: 自動計算 | P31: σco | Q31: =IFERROR(Q29/Q30,"") -> 3.333333333 | W31: =IFERROR(W29/W30,"") ->  | Z31: =IFERROR(Z29/Z30,"") ->  | AA31: σco＝Φco／Pco
E32: 定格暖房能力 | G32: EHPの仕様を入力 | P32: Φwo | Q32: 25 | AA32: kW
E33: 定格暖房消費電力 | G33: EHPの仕様を入力 | P33: Pwo | Q33: 6.4 | AA33: kW
E34: 定格暖房COP | G34: 自動計算 | P34: σwo | Q34: =IFERROR(Q32/Q33,"") -> 3.90625 | W34: =IFERROR(W32/W33,"") ->  | X34: =IFERROR(X32/X33,"") ->  | Y34: =IFERROR(Y32/Y33,"") ->  | Z34: =IFERROR(Z32/Z33,"") ->  | AA34: σwo＝Φwo／Pwo
E35: 低温暖房能力 | G35: EHPの仕様を入力 | J35: 着霜を考慮した外気温2℃時の空調機の性能 | P35: Φw2 | Q35: 25 | AA35: kW
E36: 低温暖房消費電力 | G36: EHPの仕様を入力 | J36: 寒冷地向け空調機では、カタログ等に記載 | P36: Pw2 | Q36: 9.3 | AA36: kW
E37: 低温暖房COP | G37: 自動計算 | P37: σw2 | Q37: =IFERROR(Q35/Q36,"") -> 2.688172043 | W37: =IFERROR(W35/W36,"") ->  | X37: =IFERROR(X35/X36,"") ->  | Y37: =IFERROR(Y35/Y36,"") ->  | Z37: =IFERROR(Z35/Z36,"") ->  | AA37: σw2＝Φw2／Pw2
E38: 台数 | G38: 同じ容量のEHPの台数を入力 | AA38: 台
D42: 設備導入後 | Q42: 後1 | R42: 後2 | S42: 後3 | T42: 後4 | U42: 後5 | V42: 後6 | W42: 後7 | X42: 後8 | Y42: 後9 | Z42: 後10
E43: 定格冷房能力 | G43: EHPの仕様を入力 | P43: Φco | AA43: kW
E44: 定格冷房消費電力 | G44: EHPの仕様を入力 | P44: Pco | AA44: kW
E45: 定格冷房COP | G45: 自動計算 | P45: σco | Q45: =IFERROR(Q43/Q44,"") ->  | W45: =IFERROR(W43/W44,"") ->  | X45: =IFERROR(X43/X44,"") ->  | Y45: =IFERROR(Y43/Y44,"") ->  | Z45: =IFERROR(Z43/Z44,"") ->  | AA45: σco＝Φco／Pco
E46: 定格暖房能力 | G46: EHPの仕様を入力 | P46: Φwo | AA46: kW
E47: 定格暖房消費電力 | G47: EHPの仕様を入力 | P47: Pwo | AA47: kW
E48: 定格暖房COP | G48: 自動計算 | P48: σwo | Q48: =IFERROR(Q46/Q47,"") ->  | W48: =IFERROR(W46/W47,"") ->  | X48: =IFERROR(X46/X47,"") ->  | Y48: =IFERROR(Y46/Y47,"") ->  | Z48: =IFERROR(Z46/Z47,"") ->  | AA48: σwo＝Φwo／Pwo
E49: 低温暖房能力 | G49: EHPの仕様を入力 | J49: 着霜を考慮した外気温2℃時の空調機の性能 | P49: Φw2 | AA49: kW
E50: 低温暖房消費電力 | G50: EHPの仕様を入力 | J50: 寒冷地向け空調機では、カタログ等に記載 | P50: Pw2 | AA50: kW
E51: 低温暖房COP | G51: 自動計算 | P51: σw2 | Q51: =IFERROR(Q49/Q50,"") ->  | W51: =IFERROR(W49/W50,"") ->  | X51: =IFERROR(X49/X50,"") ->  | Y51: =IFERROR(Y49/Y50,"") ->  | Z51: =IFERROR(Z49/Z50,"") ->  | AA51: σw2＝Φw2／Pw2
E52: 台数 | G52: 同じ容量のEHPの台数を入力 | AA52: 台
C56: 設備導入前電力使用量[kWh]
D57: 冷房(Ec) | F57: 暖房(Ew) | H57: 合計(Ecw)
D58: =IFERROR(D74*F60+G74*I60+J74*L60+M74*O60+P74*R60+S74*U60+V74*X60+Y74*AA60+AB74*AD60+AE74*AG60,"") -> 0 | F58: =IFERROR(E74*F60+H74*I60+K74*L60+N74*O60+Q74*R60+T74*U60+W74*X60+Z74*AA60+AC74*AD60+AF74*AG60,"") -> 0 | H58: =IFERROR(SUM(D58:G58),"") -> 0
C60: 1台当たり | D60: 前1 | F60: =IF(Q38="",1,Q38) -> 1 | G60: 前2 | I60: =IF(R38="",1,R38) -> 1 | J60: 前3 | L60: =IF(S38="",1,S38) -> 1 | M60: 前4 | O60: =IF(T38="",1,T38) -> 1 | P60: 前5 | R60: =IF(U38="",1,U38) -> 1 | S60: 前6 | U60: =IF(V38="",1,V38) -> 1 | V60: 前7 | X60: =IF(W38="",1,W38) -> 1 | Y60: 前8 | AA60: =IF(X38="",1,X38) -> 1 | AB60: 前9 | AD60: =IF(Y38="",1,Y38) -> 1 | AE60: 前10 | AG60: =IF(Z38="",1,Z38) -> 1 | AH60: 1台当たり
C61: 月 期間 | D61: 冷房 | E61: 暖房 | F61: 月合計 | G61: 冷房 | H61: 暖房 | I61: 月合計 | J61: 冷房 | K61: 暖房 | L61: 月合計 | M61: 冷房 | N61: 暖房 | O61: 月合計 | P61: 冷房 | Q61: 暖房 | R61: 月合計 | S61: 冷房 | T61: 暖房 | U61: 月合計 | V61: 冷房 | W61: 暖房 | X61: 月合計 | Y61: 冷房 | Z61: 暖房 | AA61: 月合計 | AB61: 冷房 | AC61: 暖房 | AD61: 月合計 | AE61: 冷房 | AF61: 暖房 | AG61: 月合計 | AH61: 期間 月
C62: 4 | D62: =IFERROR($AB$26/($C$7*$Q$31)*AU149,"") ->  | E62: =IFERROR($AU289,"") -> 0 | F62: =IFERROR(SUM(D62:E62),"") -> 0 | G62: =IFERROR($AB$26/($C$7*$R$31)*AV149,"") ->  | H62: =IFERROR($AV289,"") ->  | I62: =IFERROR(SUM(G62:H62),"") -> 0 | J62: =IFERROR($AB$26/($C$7*$S$31)*AW149,"") ->  | K62: =IFERROR($AW289,"") ->  | L62: =IFERROR(SUM(J62:K62),"") -> 0 | M62: =IFERROR($AB$26/($C$7*$T$31)*AX149,"") ->  | N62: =IFERROR($AX289,"") ->  | O62: =IFERROR(SUM(M62:N62),"") -> 0 | P62: =IFERROR($AB$26/($C$7*$U$31)*AY149,"") ->  | Q62: =IFERROR($AY289,"") ->  | R62: =IFERROR(SUM(P62:Q62),"") -> 0 | S62: =IFERROR($AB$26/($C$7*$V$31)*AZ149,"") ->  | T62: =IFERROR($AZ289,"") ->  | U62: =IFERROR(SUM(S62:T62),"") -> 0 | V62: =IFERROR($AB$26/($C$7*$W$31)*BA149,"") ->  | W62: =IFERROR($BA289,"") ->  | X62: =IFERROR(SUM(V62:W62),"") -> 0 | Y62: =IFERROR($AB$26/($C$7*$X$31)*BB149,"") ->  | Z62: =IFERROR($BB289,"") ->  | AA62: =IFERROR(SUM(Y62:Z62),"") -> 0 | AB62: =IFERROR($AB$26/($C$7*$Y$31)*BC149,"") ->  | AC62: =IFERROR($BC289,"") ->  | AD62: =IFERROR(SUM(AB62:AC62),"") -> 0 | AE62: =IFERROR($AB$26/($C$7*$Z$31)*BD149,"") ->  | AF62: =IFERROR($BD289,"") ->  | AG62: =IFERROR(SUM(AE62:AF62),"") -> 0 | AH62: 4
C63: 5 | E63: =IFERROR($AU290,"") -> 0 | F63: =IFERROR(SUM(D63:E63),"") -> 0 | H63: =IFERROR($AV290,"") ->  | I63: =IFERROR(SUM(G63:H63),"") -> 0 | K63: =IFERROR($AW290,"") ->  | L63: =IFERROR(SUM(J63:K63),"") -> 0 | N63: =IFERROR($AX290,"") ->  | O63: =IFERROR(SUM(M63:N63),"") -> 0 | Q63: =IFERROR($AY290,"") ->  | R63: =IFERROR(SUM(P63:Q63),"") -> 0 | T63: =IFERROR($AZ290,"") ->  | U63: =IFERROR(SUM(S63:T63),"") -> 0 | W63: =IFERROR($BA290,"") ->  | X63: =IFERROR(SUM(V63:W63),"") -> 0 | Z63: =IFERROR($BB290,"") ->  | AA63: =IFERROR(SUM(Y63:Z63),"") -> 0 | AC63: =IFERROR($BC290,"") ->  | AD63: =IFERROR(SUM(AB63:AC63),"") -> 0 | AF63: =IFERROR($BD290,"") ->  | AG63: =IFERROR(SUM(AE63:AF63),"") -> 0 | AH63: 5
C64: 6 | E64: 0 | F64: 0 | I64: 0 | L64: 0 | O64: 0 | R64: 0 | U64: 0 | X64: 0 | AA64: 0 | AD64: 0 | AG64: 0 | AH64: 6
C65: 7 | E65: 0 | F65: 0 | I65: 0 | L65: 0 | O65: 0 | R65: 0 | U65: 0 | X65: 0 | AA65: 0 | AD65: 0 | AG65: 0 | AH65: 7
C66: 8 | E66: 0 | F66: 0 | I66: 0 | L66: 0 | O66: 0 | R66: 0 | U66: 0 | X66: 0 | AA66: 0 | AD66: 0 | AG66: 0 | AH66: 8
C67: 9 | E67: 0 | F67: 0 | I67: 0 | L67: 0 | O67: 0 | R67: 0 | U67: 0 | X67: 0 | AA67: 0 | AD67: 0 | AG67: 0 | AH67: 9
C68: 10 | E68: 0 | F68: 0 | I68: 0 | L68: 0 | O68: 0 | R68: 0 | U68: 0 | X68: 0 | AA68: 0 | AD68: 0 | AG68: 0 | AH68: 10
C69: 11 | E69: 0 | F69: 0 | I69: 0 | L69: 0 | O69: 0 | R69: 0 | U69: 0 | X69: 0 | AA69: 0 | AD69: 0 | AG69: 0 | AH69: 11
C70: 12 | E70: 0 | F70: 0 | I70: 0 | L70: 0 | O70: 0 | R70: 0 | U70: 0 | X70: 0 | AA70: 0 | AD70: 0 | AG70: 0 | AH70: 12
C71: 1 | E71: 0 | F71: 0 | I71: 0 | L71: 0 | O71: 0 | R71: 0 | U71: 0 | X71: 0 | AA71: 0 | AD71: 0 | AG71: 0 | AH71: 1
C72: 2 | E72: 0 | F72: 0 | I72: 0 | L72: 0 | O72: 0 | R72: 0 | U72: 0 | X72: 0 | AA72: 0 | AD72: 0 | AG72: 0 | AH72: 2
C73: 3 | E73: 0 | F73: 0 | I73: 0 | L73: 0 | O73: 0 | R73: 0 | U73: 0 | X73: 0 | AA73: 0 | AD73: 0 | AG73: 0 | AH73: 3
C74: 合計 | D74: =IFERROR(SUM($D$62:$D$73),"") -> 0 | E74: =IFERROR(SUM($E$62:$E$73),"") -> 0 | F74: =IFERROR(SUM($F$62:$F$73),"") -> 0 | G74: =IFERROR(SUM($G$62:$G$73),"") -> 0 | H74: =IFERROR(SUM($H$62:$H$73),"") -> 0 | I74: =IFERROR(SUM(I62:I73),"") -> 0 | J74: =IFERROR(SUM($J$62:$J$73),"") -> 0 | K74: =IFERROR(SUM($K$62:$K$73),"") -> 0 | L74: =IFERROR(SUM(L62:L73),"") -> 0 | M74: =IFERROR(SUM($M$62:$M$73),"") -> 0 | N74: =IFERROR(SUM($N$62:$N$73),"") -> 0 | O74: =IFERROR(SUM(O62:O73),"") -> 0 | P74: =IFERROR(SUM($P$62:$P$73),"") -> 0 | Q74: =IFERROR(SUM($Q$62:$Q$73),"") -> 0 | R74: =IFERROR(SUM(R62:R73),"") -> 0 | S74: =IFERROR(SUM($S$62:$S$73),"") -> 0 | T74: =IFERROR(SUM($T$62:$T$73),"") -> 0 | U74: =IFERROR(SUM(U62:U73),"") -> 0 | V74: =IFERROR(SUM($V$62:$V$73),"") -> 0 | W74: =IFERROR(SUM($W$62:$W$73),"") -> 0 | X74: =IFERROR(SUM(X62:X73),"") -> 0 | Y74: =IFERROR(SUM($Y$62:$Y$73),"") -> 0 | Z74: =IFERROR(SUM($Z$62:$Z$73),"") -> 0 | AA74: =IFERROR(SUM(AA62:AA73),"") -> 0 | AB74: =IFERROR(SUM($AB$62:$AB$73),"") -> 0 | AC74: =IFERROR(SUM($AC$62:$AC$73),"") -> 0 | AD74: =IFERROR(SUM(AD62:AD73),"") -> 0 | AE74: =IFERROR(SUM($AE$62:$AE$73),"") -> 0 | AF74: =IFERROR(SUM($AF$62:$AF$73),"") -> 0 | AG74: =IFERROR(SUM(AG62:AG73),"") -> 0 | AH74: 合計
C77: 設備導入後電力使用量[kWh]
D78: 冷房(Ec) | F78: 暖房(Ew) | H78: 合計(Ecw)
D79: =IFERROR(D95*F81+G95*I81+J95*L81+M95*O81+P95*R81+S95*U81+V95*X81+Y95*AA81+AB95*AD81+AE95*AG81,"") -> 0 | F79: =IFERROR(E95*F81+H95*I81+K95*L81+N95*O81+Q95*R81+T95*U81+W95*X81+Z95*AA81+AC95*AD81+AF95*AG81,"") -> 0 | H79: =IFERROR(SUM(D79:G79),"") -> 0
C81: 1台当たり | D81: 後1 | F81: =IF(Q52="",1,Q52) -> 1 | G81: 後2 | I81: =IF(R52="",1,R52) -> 1 | J81: 後3 | L81: =IF(S52="",1,S52) -> 1 | M81: 後4 | O81: =IF(T52="",1,T52) -> 1 | P81: 後5 | R81: =IF(U52="",1,U52) -> 1 | S81: 後6 | U81: =IF(V52="",1,V52) -> 1 | V81: 後7 | X81: =IF(W52="",1,W52) -> 1 | Y81: 後8 | AA81: =IF(X52="",1,X52) -> 1 | AB81: 後9 | AD81: =IF(Y52="",1,Y52) -> 1 | AE81: 後10 | AG81: =IF(Z52="",1,Z52) -> 1 | AH81: 1台当たり
C82: 月 期間 | D82: 冷房 | E82: 暖房 | F82: 月合計 | G82: 冷房 | H82: 暖房 | I82: 月合計 | J82: 冷房 | K82: 暖房 | L82: 月合計 | M82: 冷房 | N82: 暖房 | O82: 月合計 | P82: 冷房 | Q82: 暖房 | R82: 月合計 | S82: 冷房 | T82: 暖房 | U82: 月合計 | V82: 冷房 | W82: 暖房 | X82: 月合計 | Y82: 冷房 | Z82: 暖房 | AA82: 月合計 | AB82: 冷房 | AC82: 暖房 | AD82: 月合計 | AE82: 冷房 | AF82: 暖房 | AG82: 月合計 | AH82: 期間 月
C83: 4 | D83: =IFERROR($AB$26/($C$7*$Q$45)*BF149,"") ->  | E83: =IFERROR($BF289,"") ->  | F83: =IFERROR(SUM(D83:E83),"") -> 0 | G83: =IFERROR($AB$26/($C$7*$R$45)*BG149,"") ->  | H83: =IFERROR($BG289,"") ->  | I83: =IFERROR(SUM(G83:H83),"") -> 0 | J83: =IFERROR($AB$26/($C$7*$S$45)*BH149,"") ->  | K83: =IFERROR($BH289,"") ->  | L83: =IFERROR(SUM(J83:K83),"") -> 0 | M83: =IFERROR($AB$26/($C$7*$T$45)*BI149,"") ->  | N83: =IFERROR($BI289,"") ->  | O83: =IFERROR(SUM(M83:N83),"") -> 0 | P83: =IFERROR($AB$26/($C$7*$U$45)*BJ149,"") ->  | Q83: =IFERROR($BJ289,"") ->  | R83: =IFERROR(SUM(P83:Q83),"") -> 0 | S83: =IFERROR($AB$26/($C$7*$V$45)*BK149,"") ->  | T83: =IFERROR($BK289,"") ->  | U83: =IFERROR(SUM(S83:T83),"") -> 0 | V83: =IFERROR($AB$26/($C$7*$W$45)*BL149,"") ->  | W83: =IFERROR($BL289,"") ->  | X83: =IFERROR(SUM(V83:W83),"") -> 0 | Y83: =IFERROR($AB$26/($C$7*$X$45)*BM149,"") ->  | Z83: =IFERROR($BM289,"") ->  | AA83: =IFERROR(SUM(Y83:Z83),"") -> 0 | AB83: =IFERROR($AB$26/($C$7*$Y$45)*BN149,"") ->  | AC83: =IFERROR($BN289,"") ->  | AD83: =IFERROR(SUM(AB83:AC83),"") -> 0 | AE83: =IFERROR($AB$26/($C$7*$Z$45)*BO149,"") ->  | AF83: =IFERROR($BO289,"") ->  | AG83: =IFERROR(SUM(AE83:AF83),"") -> 0 | AH83: 4
C84: 5 | E84: =IFERROR($BF290,"") ->  | F84: =IFERROR(SUM(D84:E84),"") -> 0 | H84: =IFERROR($BG290,"") ->  | I84: =IFERROR(SUM(G84:H84),"") -> 0 | K84: =IFERROR($BH290,"") ->  | L84: =IFERROR(SUM(J84:K84),"") -> 0 | N84: =IFERROR($BI290,"") ->  | O84: =IFERROR(SUM(M84:N84),"") -> 0 | Q84: =IFERROR($BJ290,"") ->  | R84: =IFERROR(SUM(P84:Q84),"") -> 0 | T84: =IFERROR($BK290,"") ->  | U84: =IFERROR(SUM(S84:T84),"") -> 0 | W84: =IFERROR($BL290,"") ->  | X84: =IFERROR(SUM(V84:W84),"") -> 0 | Z84: =IFERROR($BM290,"") ->  | AA84: =IFERROR(SUM(Y84:Z84),"") -> 0 | AC84: =IFERROR($BN290,"") ->  | AD84: =IFERROR(SUM(AB84:AC84),"") -> 0 | AF84: =IFERROR($BO290,"") ->  | AG84: =IFERROR(SUM(AE84:AF84),"") -> 0 | AH84: 5
C85: 6 | F85: 0 | I85: 0 | L85: 0 | O85: 0 | R85: 0 | U85: 0 | X85: 0 | AA85: 0 | AD85: 0 | AG85: 0 | AH85: 6
C86: 7 | F86: 0 | I86: 0 | L86: 0 | O86: 0 | R86: 0 | U86: 0 | X86: 0 | AA86: 0 | AD86: 0 | AG86: 0 | AH86: 7
C87: 8 | F87: 0 | I87: 0 | L87: 0 | O87: 0 | R87: 0 | U87: 0 | X87: 0 | AA87: 0 | AD87: 0 | AG87: 0 | AH87: 8
C88: 9 | F88: 0 | I88: 0 | L88: 0 | O88: 0 | R88: 0 | U88: 0 | X88: 0 | AA88: 0 | AD88: 0 | AG88: 0 | AH88: 9
C89: 10 | F89: 0 | I89: 0 | L89: 0 | O89: 0 | R89: 0 | U89: 0 | X89: 0 | AA89: 0 | AD89: 0 | AG89: 0 | AH89: 10
C90: 11 | F90: 0 | I90: 0 | L90: 0 | O90: 0 | R90: 0 | U90: 0 | X90: 0 | AA90: 0 | AD90: 0 | AG90: 0 | AH90: 11
C91: 12 | F91: 0 | I91: 0 | L91: 0 | O91: 0 | R91: 0 | U91: 0 | X91: 0 | AA91: 0 | AD91: 0 | AG91: 0 | AH91: 12
C92: 1 | F92: 0 | I92: 0 | L92: 0 | O92: 0 | R92: 0 | U92: 0 | X92: 0 | AA92: 0 | AD92: 0 | AG92: 0 | AH92: 1
C93: 2 | F93: 0 | I93: 0 | L93: 0 | O93: 0 | R93: 0 | U93: 0 | X93: 0 | AA93: 0 | AD93: 0 | AG93: 0 | AH93: 2
C94: 3 | F94: 0 | I94: 0 | L94: 0 | O94: 0 | R94: 0 | U94: 0 | X94: 0 | AA94: 0 | AD94: 0 | AG94: 0 | AH94: 3
C95: 合計 | D95: =IFERROR(SUM(D83:D94),"") -> 0 | E95: 0 | F95: 0 | G95: 0 | H95: 0 | I95: 0 | J95: 0 | K95: 0 | L95: 0 | M95: 0 | N95: 0 | O95: 0 | P95: 0 | Q95: 0 | R95: 0 | S95: 0 | T95: 0 | U95: 0 | V95: 0 | W95: 0 | X95: 0 | Y95: 0 | Z95: 0 | AA95: 0 | AB95: 0 | AC95: 0 | AD95: 0 | AE95: 0 | AF95: 0 | AG95: 0 | AH95: 合計
C98: 作業表1(青色のセルを「24」、オレンジ色のセルを「19」として抽出）
D99: 時刻
C100: 月 | D100: 0 | E100: 1 | F100: 2 | G100: 3 | H100: 4 | I100: 5 | J100: 6 | K100: 7 | L100: 8 | M100: 9 | N100: 10 | O100: 11 | P100: 12 | Q100: 13 | R100: 14 | S100: 15 | T100: 16 | U100: 17 | V100: 18 | W100: 19 | X100: 20 | Y100: 21 | Z100: 22 | AA100: 23 | AB100: 月
C101: 4 | D101: =CELLCOLOR($D$12) -> -4142 | E101: =CELLCOLOR($E$12) -> -4142 | F101: =CELLCOLOR($F$12) -> -4142 | G101: =CELLCOLOR($G$12) -> -4142 | H101: =CELLCOLOR($H$12) -> -4142 | I101: =CELLCOLOR($I$12) -> -4142 | J101: =CELLCOLOR($J$12) -> -4142 | K101: =CELLCOLOR($K$12) -> -4142 | L101: =CELLCOLOR($L$12) -> -4142 | M101: =CELLCOLOR($M$12) -> -4142 | N101: =CELLCOLOR($N$12) -> -4142 | O101: =CELLCOLOR($O$12) -> -4142 | P101: =CELLCOLOR($P$12) -> -4142 | Q101: =CELLCOLOR($Q$12) -> -4142 | R101: =CELLCOLOR($R$12) -> -4142 | S101: =CELLCOLOR($S$12) -> -4142 | T101: =CELLCOLOR($T$12) -> -4142 | U101: =CELLCOLOR($U$12) -> -4142 | V101: =CELLCOLOR($V$12) -> -4142 | W101: =CELLCOLOR($W$12) -> -4142 | X101: =CELLCOLOR($X$12) -> -4142 | Y101: =CELLCOLOR($Y$12) -> -4142 | Z101: =CELLCOLOR($Z$12) -> -4142 | AA101: =CELLCOLOR($AA$12) -> -4142 | AB101: 4
C102: 5 | D102: =CELLCOLOR($D$13) -> -4142 | E102: =CELLCOLOR($E$13) -> -4142 | F102: =CELLCOLOR($F$13) -> -4142 | G102: =CELLCOLOR($G$13) -> -4142 | H102: =CELLCOLOR($H$13) -> -4142 | I102: =CELLCOLOR($I$13) -> -4142 | J102: =CELLCOLOR($J$13) -> -4142 | K102: =CELLCOLOR($K$13) -> -4142 | L102: =CELLCOLOR($L$13) -> -4142 | M102: =CELLCOLOR($M$13) -> -4142 | N102: =CELLCOLOR($N$13) -> -4142 | O102: =CELLCOLOR($O$13) -> -4142 | P102: =CELLCOLOR($P$13) -> -4142 | Q102: =CELLCOLOR($Q$13) -> -4142 | R102: =CELLCOLOR($R$13) -> -4142 | S102: =CELLCOLOR($S$13) -> -4142 | T102: =CELLCOLOR($T$13) -> -4142 | U102: =CELLCOLOR($U$13) -> -4142 | V102: =CELLCOLOR($V$13) -> -4142 | W102: =CELLCOLOR($W$13) -> -4142 | X102: =CELLCOLOR($X$13) -> -4142 | Y102: =CELLCOLOR($Y$13) -> -4142 | Z102: =CELLCOLOR($Z$13) -> -4142 | AA102: =CELLCOLOR($AA$13) -> -4142 | AB102: 5
C103: 6 | D103: =CELLCOLOR($D$14) -> -4142 | E103: =CELLCOLOR($E$14) -> -4142 | F103: =CELLCOLOR($F$14) -> -4142 | G103: =CELLCOLOR($G$14) -> -4142 | H103: =CELLCOLOR($H$14) -> -4142 | I103: =CELLCOLOR($I$14) -> -4142 | J103: =CELLCOLOR($J$14) -> -4142 | K103: =CELLCOLOR($K$14) -> -4142 | L103: =CELLCOLOR($L$14) -> -4142 | M103: =CELLCOLOR($M$14) -> -4142 | N103: =CELLCOLOR($N$14) -> -4142 | O103: =CELLCOLOR($O$14) -> -4142 | P103: =CELLCOLOR($P$14) -> -4142 | Q103: =CELLCOLOR($Q$14) -> -4142 | R103: =CELLCOLOR($R$14) -> -4142 | S103: =CELLCOLOR($S$14) -> -4142 | T103: =CELLCOLOR($T$14) -> -4142 | U103: =CELLCOLOR($U$14) -> -4142 | V103: =CELLCOLOR($V$14) -> -4142 | W103: =CELLCOLOR($W$14) -> -4142 | X103: =CELLCOLOR($X$14) -> -4142 | Y103: =CELLCOLOR($Y$14) -> -4142 | Z103: =CELLCOLOR($Z$14) -> -4142 | AA103: =CELLCOLOR($AA$14) -> -4142 | AB103: 6
C104: 7 | D104: =CELLCOLOR($D$15) -> -4142 | E104: =CELLCOLOR($E$15) -> -4142 | F104: =CELLCOLOR($F$15) -> -4142 | G104: =CELLCOLOR($G$15) -> -4142 | H104: =CELLCOLOR($H$15) -> -4142 | I104: =CELLCOLOR($I$15) -> -4142 | J104: =CELLCOLOR($J$15) -> -4142 | K104: =CELLCOLOR($K$15) -> -4142 | L104: =CELLCOLOR($L$15) -> -4142 | M104: =CELLCOLOR($M$15) -> -4142 | N104: =CELLCOLOR($N$15) -> -4142 | O104: =CELLCOLOR($O$15) -> -4142 | P104: =CELLCOLOR($P$15) -> -4142 | Q104: =CELLCOLOR($Q$15) -> -4142 | R104: =CELLCOLOR($R$15) -> -4142 | S104: =CELLCOLOR($S$15) -> -4142 | T104: =CELLCOLOR($T$15) -> -4142 | U104: =CELLCOLOR($U$15) -> -4142 | V104: =CELLCOLOR($V$15) -> -4142 | W104: =CELLCOLOR($W$15) -> -4142 | X104: =CELLCOLOR($X$15) -> -4142 | Y104: =CELLCOLOR($Y$15) -> -4142 | Z104: =CELLCOLOR($Z$15) -> -4142 | AA104: =CELLCOLOR($AA$15) -> -4142 | AB104: 7
C105: 8 | D105: =CELLCOLOR($D$16) -> -4142 | E105: =CELLCOLOR($E$16) -> -4142 | F105: =CELLCOLOR($F$16) -> -4142 | G105: =CELLCOLOR($G$16) -> -4142 | H105: =CELLCOLOR($H$16) -> -4142 | I105: =CELLCOLOR($I$16) -> -4142 | J105: =CELLCOLOR($J$16) -> -4142 | K105: =CELLCOLOR($K$16) -> -4142 | L105: =CELLCOLOR($L$16) -> -4142 | M105: =CELLCOLOR($M$16) -> -4142 | N105: =CELLCOLOR($N$16) -> -4142 | O105: =CELLCOLOR($O$16) -> -4142 | P105: =CELLCOLOR($P$16) -> -4142 | Q105: =CELLCOLOR($Q$16) -> -4142 | R105: =CELLCOLOR($R$16) -> -4142 | S105: =CELLCOLOR($S$16) -> -4142 | T105: =CELLCOLOR($T$16) -> -4142 | U105: =CELLCOLOR($U$16) -> -4142 | V105: =CELLCOLOR($V$16) -> -4142 | W105: =CELLCOLOR($W$16) -> -4142 | X105: =CELLCOLOR($X$16) -> -4142 | Y105: =CELLCOLOR($Y$16) -> -4142 | Z105: =CELLCOLOR($Z$16) -> -4142 | AA105: =CELLCOLOR($AA$16) -> -4142 | AB105: 8
C106: 9 | D106: =CELLCOLOR($D$17) -> -4142 | E106: =CELLCOLOR($E$17) -> -4142 | F106: =CELLCOLOR($F$17) -> -4142 | G106: =CELLCOLOR($G$17) -> -4142 | H106: =CELLCOLOR($H$17) -> -4142 | I106: =CELLCOLOR($I$17) -> -4142 | J106: =CELLCOLOR($J$17) -> -4142 | K106: =CELLCOLOR($K$17) -> -4142 | L106: =CELLCOLOR($L$17) -> -4142 | M106: =CELLCOLOR($M$17) -> -4142 | N106: =CELLCOLOR($N$17) -> -4142 | O106: =CELLCOLOR($O$17) -> -4142 | P106: =CELLCOLOR($P$17) -> -4142 | Q106: =CELLCOLOR($Q$17) -> -4142 | R106: =CELLCOLOR($R$17) -> -4142 | S106: =CELLCOLOR($S$17) -> -4142 | T106: =CELLCOLOR($T$17) -> -4142 | U106: =CELLCOLOR($U$17) -> -4142 | V106: =CELLCOLOR($V$17) -> -4142 | W106: =CELLCOLOR($W$17) -> -4142 | X106: =CELLCOLOR($X$17) -> -4142 | Y106: =CELLCOLOR($Y$17) -> -4142 | Z106: =CELLCOLOR($Z$17) -> -4142 | AA106: =CELLCOLOR($AA$17) -> -4142 | AB106: 9
C107: 10 | D107: =CELLCOLOR($D$18) -> -4142 | E107: =CELLCOLOR($E$18) -> -4142 | F107: =CELLCOLOR($F$18) -> -4142 | G107: =CELLCOLOR($G$18) -> -4142 | H107: =CELLCOLOR($H$18) -> -4142 | I107: =CELLCOLOR($I$18) -> -4142 | J107: =CELLCOLOR($J$18) -> -4142 | K107: =CELLCOLOR($K$18) -> -4142 | L107: =CELLCOLOR($L$18) -> -4142 | M107: =CELLCOLOR($M$18) -> -4142 | N107: =CELLCOLOR($N$18) -> -4142 | O107: =CELLCOLOR($O$18) -> -4142 | P107: =CELLCOLOR($P$18) -> -4142 | Q107: =CELLCOLOR($Q$18) -> -4142 | R107: =CELLCOLOR($R$18) -> -4142 | S107: =CELLCOLOR($S$18) -> -4142 | T107: =CELLCOLOR($T$18) -> -4142 | U107: =CELLCOLOR($U$18) -> -4142 | V107: =CELLCOLOR($V$18) -> -4142 | W107: =CELLCOLOR($W$18) -> -4142 | X107: =CELLCOLOR($X$18) -> -4142 | Y107: =CELLCOLOR($Y$18) -> -4142 | Z107: =CELLCOLOR($Z$18) -> -4142 | AA107: =CELLCOLOR($AA$18) -> -4142 | AB107: 10
C108: 11 | D108: =CELLCOLOR($D$19) -> -4142 | E108: =CELLCOLOR($E$19) -> -4142 | F108: =CELLCOLOR($F$19) -> -4142 | G108: =CELLCOLOR($G$19) -> -4142 | H108: =CELLCOLOR($H$19) -> -4142 | I108: =CELLCOLOR($I$19) -> -4142 | J108: =CELLCOLOR($J$19) -> -4142 | K108: =CELLCOLOR($K$19) -> -4142 | L108: =CELLCOLOR($L$19) -> -4142 | M108: =CELLCOLOR($M$19) -> -4142 | N108: =CELLCOLOR($N$19) -> -4142 | O108: =CELLCOLOR($O$19) -> -4142 | P108: =CELLCOLOR($P$19) -> -4142 | Q108: =CELLCOLOR($Q$19) -> -4142 | R108: =CELLCOLOR($R$19) -> -4142 | S108: =CELLCOLOR($S$19) -> -4142 | T108: =CELLCOLOR($T$19) -> -4142 | U108: =CELLCOLOR($U$19) -> -4142 | V108: =CELLCOLOR($V$19) -> -4142 | W108: =CELLCOLOR($W$19) -> -4142 | X108: =CELLCOLOR($X$19) -> -4142 | Y108: =CELLCOLOR($Y$19) -> -4142 | Z108: =CELLCOLOR($Z$19) -> -4142 | AA108: =CELLCOLOR($AA$19) -> -4142 | AB108: 11
C109: 12 | D109: =CELLCOLOR($D$20) -> -4142 | E109: =CELLCOLOR($E$20) -> -4142 | F109: =CELLCOLOR($F$20) -> -4142 | G109: =CELLCOLOR($G$20) -> -4142 | H109: =CELLCOLOR($H$20) -> -4142 | I109: =CELLCOLOR($I$20) -> -4142 | J109: =CELLCOLOR($J$20) -> -4142 | K109: =CELLCOLOR($K$20) -> -4142 | L109: =CELLCOLOR($L$20) -> -4142 | M109: =CELLCOLOR($M$20) -> -4142 | N109: =CELLCOLOR($N$20) -> -4142 | O109: =CELLCOLOR($O$20) -> -4142 | P109: =CELLCOLOR($P$20) -> -4142 | Q109: =CELLCOLOR($Q$20) -> -4142 | R109: =CELLCOLOR($R$20) -> -4142 | S109: =CELLCOLOR($S$20) -> -4142 | T109: =CELLCOLOR($T$20) -> -4142 | U109: =CELLCOLOR($U$20) -> -4142 | V109: =CELLCOLOR($V$20) -> -4142 | W109: =CELLCOLOR($W$20) -> -4142 | X109: =CELLCOLOR($X$20) -> -4142 | Y109: =CELLCOLOR($Y$20) -> -4142 | Z109: =CELLCOLOR($Z$20) -> -4142 | AA109: =CELLCOLOR($AA$20) -> -4142 | AB109: 12
C110: 1 | D110: =CELLCOLOR($D$21) -> -4142 | E110: =CELLCOLOR($E$21) -> -4142 | F110: =CELLCOLOR($F$21) -> -4142 | G110: =CELLCOLOR($G$21) -> -4142 | H110: =CELLCOLOR($H$21) -> -4142 | I110: =CELLCOLOR($I$21) -> -4142 | J110: =CELLCOLOR($J$21) -> -4142 | K110: =CELLCOLOR($K$21) -> -4142 | L110: =CELLCOLOR($L$21) -> -4142 | M110: =CELLCOLOR($M$21) -> -4142 | N110: =CELLCOLOR($N$21) -> -4142 | O110: =CELLCOLOR($O$21) -> -4142 | P110: =CELLCOLOR($P$21) -> -4142 | Q110: =CELLCOLOR($Q$21) -> -4142 | R110: =CELLCOLOR($R$21) -> -4142 | S110: =CELLCOLOR($S$21) -> -4142 | T110: =CELLCOLOR($T$21) -> -4142 | U110: =CELLCOLOR($U$21) -> -4142 | V110: =CELLCOLOR($V$21) -> -4142 | W110: =CELLCOLOR($W$21) -> -4142 | X110: =CELLCOLOR($X$21) -> -4142 | Y110: =CELLCOLOR($Y$21) -> -4142 | Z110: =CELLCOLOR($Z$21) -> -4142 | AA110: =CELLCOLOR($AA$21) -> -4142 | AB110: 1
C111: 2 | D111: =CELLCOLOR($D$22) -> -4142 | E111: =CELLCOLOR($E$22) -> -4142 | F111: =CELLCOLOR($F$22) -> -4142 | G111: =CELLCOLOR($G$22) -> -4142 | H111: =CELLCOLOR($H$22) -> -4142 | I111: =CELLCOLOR($I$22) -> -4142 | J111: =CELLCOLOR($J$22) -> -4142 | K111: =CELLCOLOR($K$22) -> -4142 | L111: =CELLCOLOR($L$22) -> -4142 | M111: =CELLCOLOR($M$22) -> -4142 | N111: =CELLCOLOR($N$22) -> -4142 | O111: =CELLCOLOR($O$22) -> -4142 | P111: =CELLCOLOR($P$22) -> -4142 | Q111: =CELLCOLOR($Q$22) -> -4142 | R111: =CELLCOLOR($R$22) -> -4142 | S111: =CELLCOLOR($S$22) -> -4142 | T111: =CELLCOLOR($T$22) -> -4142 | U111: =CELLCOLOR($U$22) -> -4142 | V111: =CELLCOLOR($V$22) -> -4142 | W111: =CELLCOLOR($W$22) -> -4142 | X111: =CELLCOLOR($X$22) -> -4142 | Y111: =CELLCOLOR($Y$22) -> -4142 | Z111: =CELLCOLOR($Z$22) -> -4142 | AA111: =CELLCOLOR($AA$22) -> -4142 | AB111: 2
C112: 3 | D112: =CELLCOLOR($D$23) -> -4142 | E112: =CELLCOLOR($E$23) -> -4142 | F112: =CELLCOLOR($F$23) -> -4142 | G112: =CELLCOLOR($G$23) -> -4142 | H112: =CELLCOLOR($H$23) -> -4142 | I112: =CELLCOLOR($I$23) -> -4142 | J112: =CELLCOLOR($J$23) -> -4142 | K112: =CELLCOLOR($K$23) -> -4142 | L112: =CELLCOLOR($L$23) -> -4142 | M112: =CELLCOLOR($M$23) -> -4142 | N112: =CELLCOLOR($N$23) -> -4142 | O112: =CELLCOLOR($O$23) -> -4142 | P112: =CELLCOLOR($P$23) -> -4142 | Q112: =CELLCOLOR($Q$23) -> -4142 | R112: =CELLCOLOR($R$23) -> -4142 | S112: =CELLCOLOR($S$23) -> -4142 | T112: =CELLCOLOR($T$23) -> -4142 | U112: =CELLCOLOR($U$23) -> -4142 | V112: =CELLCOLOR($V$23) -> -4142 | W112: =CELLCOLOR($W$23) -> -4142 | X112: =CELLCOLOR($X$23) -> -4142 | Y112: =CELLCOLOR($Y$23) -> -4142 | Z112: =CELLCOLOR($Z$23) -> -4142 | AA112: =CELLCOLOR($AA$23) -> -4142 | AB112: 3
C114: 作業表2-1(冷房) | E114: ●月▲時の平均気温(四捨五入で表示）
D115: 時刻
C116: 月 | D116: 0 | E116: 1 | F116: 2 | G116: 3 | H116: 4 | I116: 5 | J116: 6 | K116: 7 | L116: 8 | M116: 9 | N116: 10 | O116: 11 | P116: 12 | Q116: 13 | R116: 14 | S116: 15 | T116: 16 | U116: 17 | V116: 18 | W116: 19 | X116: 20 | Y116: 21 | Z116: 22 | AA116: 23 | AB116: 月
C117: 4 | D117: =IF($D$101=24,ROUND($D$12,0),"")&"" ->  | E117: =IF($E$101=24,ROUND($E$12,0),"")&"" ->  | F117: =IF($F$101=24,ROUND($F$12,0),"")&"" ->  | G117: =IF($G$101=24,ROUND($G$12,0),"")&"" ->  | H117: =IF($H$101=24,ROUND($H$12,0),"")&"" ->  | I117: =IF($I$101=24,ROUND($I$12,0),"")&"" ->  | J117: =IF($J$101=24,ROUND($J$12,0),"")&"" ->  | K117: =IF($K$101=24,ROUND($K$12,0),"")&"" ->  | L117: =IF($L$101=24,ROUND($L$12,0),"")&"" ->  | M117: =IF($M$101=24,ROUND($M$12,0),"")&"" ->  | N117: =IF($N$101=24,ROUND($N$12,0),"")&"" ->  | O117: =IF($O$101=24,ROUND($O$12,0),"")&"" ->  | P117: =IF($P$101=24,ROUND($P$12,0),"")&"" ->  | Q117: =IF($Q$101=24,ROUND($Q$12,0),"")&"" ->  | R117: =IF($R$101=24,ROUND($R$12,0),"")&"" ->  | S117: =IF($S$101=24,ROUND($S$12,0),"")&"" ->  | T117: =IF($T$101=24,ROUND($T$12,0),"")&"" ->  | U117: =IF($U$101=24,ROUND($U$12,0),"")&"" ->  | V117: =IF($V$101=24,ROUND($V$12,0),"")&"" ->  | W117: =IF($W$101=24,ROUND($W$12,0),"")&"" ->  | X117: =IF($X$101=24,ROUND($X$12,0),"")&"" ->  | Y117: =IF($Y$101=24,ROUND($Y$12,0),"")&"" ->  | Z117: =IF($Z$101=24,ROUND($Z$12,0),"")&"" ->  | AA117: =IF($AA$101=24,ROUND($AA$12,0),"")&"" ->  | AB117: 4
C118: 5 | D118: =IF($D$102=24,ROUND($D$13,0),"")&"" ->  | E118: =IF($E$102=24,ROUND($E$13,0),"")&"" ->  | F118: =IF($F$102=24,ROUND($F$13,0),"")&"" ->  | G118: =IF($G$102=24,ROUND($G$13,0),"")&"" ->  | H118: =IF($H$102=24,ROUND($H$13,0),"")&"" ->  | I118: =IF($I$102=24,ROUND($I$13,0),"")&"" ->  | J118: =IF($J$102=24,ROUND($J$13,0),"")&"" ->  | K118: =IF($K$102=24,ROUND($K$13,0),"")&"" ->  | L118: =IF($L$102=24,ROUND($L$13,0),"")&"" ->  | M118: =IF($M$102=24,ROUND($M$13,0),"")&"" ->  | N118: =IF($N$102=24,ROUND($N$13,0),"")&"" ->  | O118: =IF($O$102=24,ROUND($O$13,0),"")&"" ->  | P118: =IF($P$102=24,ROUND($P$13,0),"")&"" ->  | Q118: =IF($Q$102=24,ROUND($Q$13,0),"")&"" ->  | R118: =IF($R$102=24,ROUND($R$13,0),"")&"" ->  | S118: =IF($S$102=24,ROUND($S$13,0),"")&"" ->  | T118: =IF($T$102=24,ROUND($T$13,0),"")&"" ->  | U118: =IF($U$102=24,ROUND($U$13,0),"")&"" ->  | V118: =IF($V$102=24,ROUND($V$13,0),"")&"" ->  | W118: =IF($W$102=24,ROUND($W$13,0),"")&"" ->  | X118: =IF($X$102=24,ROUND($X$13,0),"")&"" ->  | Y118: =IF($Y$102=24,ROUND($Y$13,0),"")&"" ->  | Z118: =IF($Z$102=24,ROUND($Z$13,0),"")&"" ->  | AA118: =IF($AA$102=24,ROUND($AA$13,0),"")&"" ->  | AB118: 5
C119: 6 | D119: =IF($D$103=24,ROUND($D$14,0),"")&"" ->  | E119: =IF($E$103=24,ROUND($E$14,0),"")&"" ->  | F119: =IF($F$103=24,ROUND($F$14,0),"")&"" ->  | G119: =IF($G$103=24,ROUND($G$14,0),"")&"" ->  | H119: =IF($H$103=24,ROUND($H$14,0),"")&"" ->  | I119: =IF($I$103=24,ROUND($I$14,0),"")&"" ->  | J119: =IF($J$103=24,ROUND($J$14,0),"")&"" ->  | K119: =IF($K$103=24,ROUND($K$14,0),"")&"" ->  | L119: =IF($L$103=24,ROUND($L$14,0),"")&"" ->  | M119: =IF($M$103=24,ROUND($M$14,0),"")&"" ->  | N119: =IF($N$103=24,ROUND($N$14,0),"")&"" ->  | O119: =IF($O$103=24,ROUND($O$14,0),"")&"" ->  | P119: =IF($P$103=24,ROUND($P$14,0),"")&"" ->  | Q119: =IF($Q$103=24,ROUND($Q$14,0),"")&"" ->  | R119: =IF($R$103=24,ROUND($R$14,0),"")&"" ->  | S119: =IF($S$103=24,ROUND($S$14,0),"")&"" ->  | T119: =IF($T$103=24,ROUND($T$14,0),"")&"" ->  | U119: =IF($U$103=24,ROUND($U$14,0),"")&"" ->  | V119: =IF($V$103=24,ROUND($V$14,0),"")&"" ->  | W119: =IF($W$103=24,ROUND($W$14,0),"")&"" ->  | X119: =IF($X$103=24,ROUND($X$14,0),"")&"" ->  | Y119: =IF($Y$103=24,ROUND($Y$14,0),"")&"" ->  | Z119: =IF($Z$103=24,ROUND($Z$14,0),"")&"" ->  | AA119: =IF($AA$103=24,ROUND($AA$14,0),"")&"" ->  | AB119: 6
C120: 7 | D120: =IF($D$104=24,ROUND($D$15,0),"")&"" ->  | E120: =IF($E$104=24,ROUND($E$15,0),"")&"" ->  | F120: =IF($F$104=24,ROUND($F$15,0),"")&"" ->  | G120: =IF($G$104=24,ROUND($G$15,0),"")&"" ->  | H120: =IF($H$104=24,ROUND($H$15,0),"")&"" ->  | I120: =IF($I$104=24,ROUND($I$15,0),"")&"" ->  | J120: =IF($J$104=24,ROUND($J$15,0),"")&"" ->  | K120: =IF($K$104=24,ROUND($K$15,0),"")&"" ->  | L120: =IF($L$104=24,ROUND($L$15,0),"")&"" ->  | M120: =IF($M$104=24,ROUND($M$15,0),"")&"" ->  | N120: =IF($N$104=24,ROUND($N$15,0),"")&"" ->  | O120: =IF($O$104=24,ROUND($O$15,0),"")&"" ->  | P120: =IF($P$104=24,ROUND($P$15,0),"")&"" ->  | Q120: =IF($Q$104=24,ROUND($Q$15,0),"")&"" ->  | R120: =IF($R$104=24,ROUND($R$15,0),"")&"" ->  | S120: =IF($S$104=24,ROUND($S$15,0),"")&"" ->  | T120: =IF($T$104=24,ROUND($T$15,0),"")&"" ->  | U120: =IF($U$104=24,ROUND($U$15,0),"")&"" ->  | V120: =IF($V$104=24,ROUND($V$15,0),"")&"" ->  | W120: =IF($W$104=24,ROUND($W$15,0),"")&"" ->  | X120: =IF($X$104=24,ROUND($X$15,0),"")&"" ->  | Y120: =IF($Y$104=24,ROUND($Y$15,0),"")&"" ->  | Z120: =IF($Z$104=24,ROUND($Z$15,0),"")&"" ->  | AA120: =IF($AA$104=24,ROUND($AA$15,0),"")&"" ->  | AB120: 7
C121: 8 | D121: =IF($D$105=24,ROUND($D$16,0),"")&"" ->  | E121: =IF($E$105=24,ROUND($E$16,0),"")&"" ->  | F121: =IF($F$105=24,ROUND($F$16,0),"")&"" ->  | G121: =IF($G$105=24,ROUND($G$16,0),"")&"" ->  | H121: =IF($H$105=24,ROUND($H$16,0),"")&"" ->  | I121: =IF($I$105=24,ROUND($I$16,0),"")&"" ->  | J121: =IF($J$105=24,ROUND($J$16,0),"")&"" ->  | K121: =IF($K$105=24,ROUND($K$16,0),"")&"" ->  | L121: =IF($L$105=24,ROUND($L$16,0),"")&"" ->  | M121: =IF($M$105=24,ROUND($M$16,0),"")&"" ->  | N121: =IF($N$105=24,ROUND($N$16,0),"")&"" ->  | O121: =IF($O$105=24,ROUND($O$16,0),"")&"" ->  | P121: =IF($P$105=24,ROUND($P$16,0),"")&"" ->  | Q121: =IF($Q$105=24,ROUND($Q$16,0),"")&"" ->  | R121: =IF($R$105=24,ROUND($R$16,0),"")&"" ->  | S121: =IF($S$105=24,ROUND($S$16,0),"")&"" ->  | T121: =IF($T$105=24,ROUND($T$16,0),"")&"" ->  | U121: =IF($U$105=24,ROUND($U$16,0),"")&"" ->  | V121: =IF($V$105=24,ROUND($V$16,0),"")&"" ->  | W121: =IF($W$105=24,ROUND($W$16,0),"")&"" ->  | X121: =IF($X$105=24,ROUND($X$16,0),"")&"" ->  | Y121: =IF($Y$105=24,ROUND($Y$16,0),"")&"" ->  | Z121: =IF($Z$105=24,ROUND($Z$16,0),"")&"" ->  | AA121: =IF($AA$105=24,ROUND($AA$16,0),"")&"" ->  | AB121: 8
C122: 9 | D122: =IF($D$106=24,ROUND($D$17,0),"")&"" ->  | E122: =IF($E$106=24,ROUND($E$17,0),"")&"" ->  | F122: =IF($F$106=24,ROUND($F$17,0),"")&"" ->  | G122: =IF($G$106=24,ROUND($G$17,0),"")&"" ->  | H122: =IF($H$106=24,ROUND($H$17,0),"")&"" ->  | I122: =IF($I$106=24,ROUND($I$17,0),"")&"" ->  | J122: =IF($J$106=24,ROUND($J$17,0),"")&"" ->  | K122: =IF($K$106=24,ROUND($K$17,0),"")&"" ->  | L122: =IF($L$106=24,ROUND($L$17,0),"")&"" ->  | M122: =IF($M$106=24,ROUND($M$17,0),"")&"" ->  | N122: =IF($N$106=24,ROUND($N$17,0),"")&"" ->  | O122: =IF($O$106=24,ROUND($O$17,0),"")&"" ->  | P122: =IF($P$106=24,ROUND($P$17,0),"")&"" ->  | Q122: =IF($Q$106=24,ROUND($Q$17,0),"")&"" ->  | R122: =IF($R$106=24,ROUND($R$17,0),"")&"" ->  | S122: =IF($S$106=24,ROUND($S$17,0),"")&"" ->  | T122: =IF($T$106=24,ROUND($T$17,0),"")&"" ->  | U122: =IF($U$106=24,ROUND($U$17,0),"")&"" ->  | V122: =IF($V$106=24,ROUND($V$17,0),"")&"" ->  | W122: =IF($W$106=24,ROUND($W$17,0),"")&"" ->  | X122: =IF($X$106=24,ROUND($X$17,0),"")&"" ->  | Y122: =IF($Y$106=24,ROUND($Y$17,0),"")&"" ->  | Z122: =IF($Z$106=24,ROUND($Z$17,0),"")&"" ->  | AA122: =IF($AA$106=24,ROUND($AA$17,0),"")&"" ->  | AB122: 9
C123: 10 | D123: =IF($D$107=24,ROUND($D$18,0),"")&"" ->  | E123: =IF($E$107=24,ROUND($E$18,0),"")&"" ->  | F123: =IF($F$107=24,ROUND($F$18,0),"")&"" ->  | G123: =IF($G$107=24,ROUND($G$18,0),"")&"" ->  | H123: =IF($H$107=24,ROUND($H$18,0),"")&"" ->  | I123: =IF($I$107=24,ROUND($I$18,0),"")&"" ->  | J123: =IF($J$107=24,ROUND($J$18,0),"")&"" ->  | K123: =IF($K$107=24,ROUND($K$18,0),"")&"" ->  | L123: =IF($L$107=24,ROUND($L$18,0),"")&"" ->  | M123: =IF($M$107=24,ROUND($M$18,0),"")&"" ->  | N123: =IF($N$107=24,ROUND($N$18,0),"")&"" ->  | O123: =IF($O$107=24,ROUND($O$18,0),"")&"" ->  | P123: =IF($P$107=24,ROUND($P$18,0),"")&"" ->  | Q123: =IF($Q$107=24,ROUND($Q$18,0),"")&"" ->  | R123: =IF($R$107=24,ROUND($R$18,0),"")&"" ->  | S123: =IF($S$107=24,ROUND($S$18,0),"")&"" ->  | T123: =IF($T$107=24,ROUND($T$18,0),"")&"" ->  | U123: =IF($U$107=24,ROUND($U$18,0),"")&"" ->  | V123: =IF($V$107=24,ROUND($V$18,0),"")&"" ->  | W123: =IF($W$107=24,ROUND($W$18,0),"")&"" ->  | X123: =IF($X$107=24,ROUND($X$18,0),"")&"" ->  | Y123: =IF($Y$107=24,ROUND($Y$18,0),"")&"" ->  | Z123: =IF($Z$107=24,ROUND($Z$18,0),"")&"" ->  | AA123: =IF($AA$107=24,ROUND($AA$18,0),"")&"" ->  | AB123: 10
C124: 11 | D124: =IF($D$108=24,ROUND($D$19,0),"")&"" ->  | E124: =IF($E$108=24,ROUND($E$19,0),"")&"" ->  | F124: =IF($F$108=24,ROUND($F$19,0),"")&"" ->  | G124: =IF($G$108=24,ROUND($G$19,0),"")&"" ->  | H124: =IF($H$108=24,ROUND($H$19,0),"")&"" ->  | I124: =IF($I$108=24,ROUND($I$19,0),"")&"" ->  | J124: =IF($J$108=24,ROUND($J$19,0),"")&"" ->  | K124: =IF($K$108=24,ROUND($K$19,0),"")&"" ->  | L124: =IF($L$108=24,ROUND($L$19,0),"")&"" ->  | M124: =IF($M$108=24,ROUND($M$19,0),"")&"" ->  | N124: =IF($N$108=24,ROUND($N$19,0),"")&"" ->  | O124: =IF($O$108=24,ROUND($O$19,0),"")&"" ->  | P124: =IF($P$108=24,ROUND($P$19,0),"")&"" ->  | Q124: =IF($Q$108=24,ROUND($Q$19,0),"")&"" ->  | R124: =IF($R$108=24,ROUND($R$19,0),"")&"" ->  | S124: =IF($S$108=24,ROUND($S$19,0),"")&"" ->  | T124: =IF($T$108=24,ROUND($T$19,0),"")&"" ->  | U124: =IF($U$108=24,ROUND($U$19,0),"")&"" ->  | V124: =IF($V$108=24,ROUND($V$19,0),"")&"" ->  | W124: =IF($W$108=24,ROUND($W$19,0),"")&"" ->  | X124: =IF($X$108=24,ROUND($X$19,0),"")&"" ->  | Y124: =IF($Y$108=24,ROUND($Y$19,0),"")&"" ->  | Z124: =IF($Z$108=24,ROUND($Z$19,0),"")&"" ->  | AA124: =IF($AA$108=24,ROUND($AA$19,0),"")&"" ->  | AB124: 11
C125: 12 | D125: =IF($D$109=24,ROUND($D$20,0),"")&"" ->  | E125: =IF($E$109=24,ROUND($E$20,0),"")&"" ->  | F125: =IF($F$109=24,ROUND($F$20,0),"")&"" ->  | G125: =IF($G$109=24,ROUND($G$20,0),"")&"" ->  | H125: =IF($H$109=24,ROUND($H$20,0),"")&"" ->  | I125: =IF($I$109=24,ROUND($I$20,0),"")&"" ->  | J125: =IF($J$109=24,ROUND($J$20,0),"")&"" ->  | K125: =IF($K$109=24,ROUND($K$20,0),"")&"" ->  | L125: =IF($L$109=24,ROUND($L$20,0),"")&"" ->  | M125: =IF($M$109=24,ROUND($M$20,0),"")&"" ->  | N125: =IF($N$109=24,ROUND($N$20,0),"")&"" ->  | O125: =IF($O$109=24,ROUND($O$20,0),"")&"" ->  | P125: =IF($P$109=24,ROUND($P$20,0),"")&"" ->  | Q125: =IF($Q$109=24,ROUND($Q$20,0),"")&"" ->  | R125: =IF($R$109=24,ROUND($R$20,0),"")&"" ->  | S125: =IF($S$109=24,ROUND($S$20,0),"")&"" ->  | T125: =IF($T$109=24,ROUND($T$20,0),"")&"" ->  | U125: =IF($U$109=24,ROUND($U$20,0),"")&"" ->  | V125: =IF($V$109=24,ROUND($V$20,0),"")&"" ->  | W125: =IF($W$109=24,ROUND($W$20,0),"")&"" ->  | X125: =IF($X$109=24,ROUND($X$20,0),"")&"" ->  | Y125: =IF($Y$109=24,ROUND($Y$20,0),"")&"" ->  | Z125: =IF($Z$109=24,ROUND($Z$20,0),"")&"" ->  | AA125: =IF($AA$109=24,ROUND($AA$20,0),"")&"" ->  | AB125: 12
C126: 1 | D126: =IF($D$110=24,ROUND($D$21,0),"")&"" ->  | E126: =IF($E$110=24,ROUND($E$21,0),"")&"" ->  | F126: =IF($F$110=24,ROUND($F$21,0),"")&"" ->  | G126: =IF($G$110=24,ROUND($G$21,0),"")&"" ->  | H126: =IF($H$110=24,ROUND($H$21,0),"")&"" ->  | I126: =IF($I$110=24,ROUND($I$21,0),"")&"" ->  | J126: =IF($J$110=24,ROUND($J$21,0),"")&"" ->  | K126: =IF($K$110=24,ROUND($K$21,0),"")&"" ->  | L126: =IF($L$110=24,ROUND($L$21,0),"")&"" ->  | M126: =IF($M$110=24,ROUND($M$21,0),"")&"" ->  | N126: =IF($N$110=24,ROUND($N$21,0),"")&"" ->  | O126: =IF($O$110=24,ROUND($O$21,0),"")&"" ->  | P126: =IF($P$110=24,ROUND($P$21,0),"")&"" ->  | Q126: =IF($Q$110=24,ROUND($Q$21,0),"")&"" ->  | R126: =IF($R$110=24,ROUND($R$21,0),"")&"" ->  | S126: =IF($S$110=24,ROUND($S$21,0),"")&"" ->  | T126: =IF($T$110=24,ROUND($T$21,0),"")&"" ->  | U126: =IF($U$110=24,ROUND($U$21,0),"")&"" ->  | V126: =IF($V$110=24,ROUND($V$21,0),"")&"" ->  | W126: =IF($W$110=24,ROUND($W$21,0),"")&"" ->  | X126: =IF($X$110=24,ROUND($X$21,0),"")&"" ->  | Y126: =IF($Y$110=24,ROUND($Y$21,0),"")&"" ->  | Z126: =IF($Z$110=24,ROUND($Z$21,0),"")&"" ->  | AA126: =IF($AA$110=24,ROUND($AA$21,0),"")&"" ->  | AB126: 1
C127: 2 | D127: =IF($D$111=24,ROUND($D$22,0),"")&"" ->  | E127: =IF($E$111=24,ROUND($E$22,0),"")&"" ->  | F127: =IF($F$111=24,ROUND($F$22,0),"")&"" ->  | G127: =IF($G$111=24,ROUND($G$22,0),"")&"" ->  | H127: =IF($H$111=24,ROUND($H$22,0),"")&"" ->  | I127: =IF($I$111=24,ROUND($I$22,0),"")&"" ->  | J127: =IF($J$111=24,ROUND($J$22,0),"")&"" ->  | K127: =IF($K$111=24,ROUND($K$22,0),"")&"" ->  | L127: =IF($L$111=24,ROUND($L$22,0),"")&"" ->  | M127: =IF($M$111=24,ROUND($M$22,0),"")&"" ->  | N127: =IF($N$111=24,ROUND($N$22,0),"")&"" ->  | O127: =IF($O$111=24,ROUND($O$22,0),"")&"" ->  | P127: =IF($P$111=24,ROUND($P$22,0),"")&"" ->  | Q127: =IF($Q$111=24,ROUND($Q$22,0),"")&"" ->  | R127: =IF($R$111=24,ROUND($R$22,0),"")&"" ->  | S127: =IF($S$111=24,ROUND($S$22,0),"")&"" ->  | T127: =IF($T$111=24,ROUND($T$22,0),"")&"" ->  | U127: =IF($U$111=24,ROUND($U$22,0),"")&"" ->  | V127: =IF($V$111=24,ROUND($V$22,0),"")&"" ->  | W127: =IF($W$111=24,ROUND($W$22,0),"")&"" ->  | X127: =IF($X$111=24,ROUND($X$22,0),"")&"" ->  | Y127: =IF($Y$111=24,ROUND($Y$22,0),"")&"" ->  | Z127: =IF($Z$111=24,ROUND($Z$22,0),"")&"" ->  | AA127: =IF($AA$111=24,ROUND($AA$22,0),"")&"" ->  | AB127: 2
C128: 3 | D128: =IF($D$112=24,ROUND($D$23,0),"")&"" ->  | E128: =IF($E$112=24,ROUND($E$23,0),"")&"" ->  | F128: =IF($F$112=24,ROUND($F$23,0),"")&"" ->  | G128: =IF($G$112=24,ROUND($G$23,0),"")&"" ->  | H128: =IF($H$112=24,ROUND($H$23,0),"")&"" ->  | I128: =IF($I$112=24,ROUND($I$23,0),"")&"" ->  | J128: =IF($J$112=24,ROUND($J$23,0),"")&"" ->  | K128: =IF($K$112=24,ROUND($K$23,0),"")&"" ->  | L128: =IF($L$112=24,ROUND($L$23,0),"")&"" ->  | M128: =IF($M$112=24,ROUND($M$23,0),"")&"" ->  | N128: =IF($N$112=24,ROUND($N$23,0),"")&"" ->  | O128: =IF($O$112=24,ROUND($O$23,0),"")&"" ->  | P128: =IF($P$112=24,ROUND($P$23,0),"")&"" ->  | Q128: =IF($Q$112=24,ROUND($Q$23,0),"")&"" ->  | R128: =IF($R$112=24,ROUND($R$23,0),"")&"" ->  | S128: =IF($S$112=24,ROUND($S$23,0),"")&"" ->  | T128: =IF($T$112=24,ROUND($T$23,0),"")&"" ->  | U128: =IF($U$112=24,ROUND($U$23,0),"")&"" ->  | V128: =IF($V$112=24,ROUND($V$23,0),"")&"" ->  | W128: =IF($W$112=24,ROUND($W$23,0),"")&"" ->  | X128: =IF($X$112=24,ROUND($X$23,0),"")&"" ->  | Y128: =IF($Y$112=24,ROUND($Y$23,0),"")&"" ->  | Z128: =IF($Z$112=24,ROUND($Z$23,0),"")&"" ->  | AA128: =IF($AA$112=24,ROUND($AA$23,0),"")&"" ->  | AB128: 3
C130: 作業表2-2(暖房) | E130: ●月▲時の平均気温(四捨五入で表示）
D131: 時刻
C132: 月 | D132: 0 | E132: 1 | F132: 2 | G132: 3 | H132: 4 | I132: 5 | J132: 6 | K132: 7 | L132: 8 | M132: 9 | N132: 10 | O132: 11 | P132: 12 | Q132: 13 | R132: 14 | S132: 15 | T132: 16 | U132: 17 | V132: 18 | W132: 19 | X132: 20 | Y132: 21 | Z132: 22 | AA132: 23 | AB132: 月
C133: 4 | D133: =IF($D$101=19,ROUND($D$12,0),"")&"" ->  | E133: =IF($E$101=19,ROUND($E$12,0),"")&"" ->  | F133: =IF($F$101=19,ROUND($F$12,0),"")&"" ->  | G133: =IF($G$101=19,ROUND($G$12,0),"")&"" ->  | H133: =IF($H$101=19,ROUND($H$12,0),"")&"" ->  | I133: =IF($I$101=19,ROUND($I$12,0),"")&"" ->  | J133: =IF($J$101=19,ROUND($J$12,0),"")&"" ->  | K133: =IF($K$101=19,ROUND($K$12,0),"")&"" ->  | L133: =IF($L$101=19,ROUND($L$12,0),"")&"" ->  | M133: =IF($M$101=19,ROUND($M$12,0),"")&"" ->  | N133: =IF($N$101=19,ROUND($N$12,0),"")&"" ->  | O133: =IF($O$101=19,ROUND($O$12,0),"")&"" ->  | P133: =IF($P$101=19,ROUND($P$12,0),"")&"" ->  | Q133: =IF($Q$101=19,ROUND($Q$12,0),"")&"" ->  | R133: =IF($R$101=19,ROUND($R$12,0),"")&"" ->  | S133: =IF($S$101=19,ROUND($S$12,0),"")&"" ->  | T133: =IF($T$101=19,ROUND($T$12,0),"")&"" ->  | U133: =IF($U$101=19,ROUND($U$12,0),"")&"" ->  | V133: =IF($V$101=19,ROUND($V$12,0),"")&"" ->  | W133: =IF($W$101=19,ROUND($W$12,0),"")&"" ->  | X133: =IF($X$101=19,ROUND($X$12,0),"")&"" ->  | Y133: =IF($Y$101=19,ROUND($Y$12,0),"")&"" ->  | Z133: =IF($Z$101=19,ROUND($Z$12,0),"")&"" ->  | AA133: =IF($AA$101=19,ROUND($AA$12,0),"")&"" ->  | AB133: 4
C134: 5 | D134: =IF($D$102=19,ROUND($D$13,0),"")&"" ->  | E134: =IF($E$102=19,ROUND($E$13,0),"")&"" ->  | F134: =IF($F$102=19,ROUND($F$13,0),"")&"" ->  | G134: =IF($G$102=19,ROUND($G$13,0),"")&"" ->  | H134: =IF($H$102=19,ROUND($H$13,0),"")&"" ->  | I134: =IF($I$102=19,ROUND($I$13,0),"")&"" ->  | J134: =IF($J$102=19,ROUND($J$13,0),"")&"" ->  | K134: =IF($K$102=19,ROUND($K$13,0),"")&"" ->  | L134: =IF($L$102=19,ROUND($L$13,0),"")&"" ->  | M134: =IF($M$102=19,ROUND($M$13,0),"")&"" ->  | N134: =IF($N$102=19,ROUND($N$13,0),"")&"" ->  | O134: =IF($O$102=19,ROUND($O$13,0),"")&"" ->  | P134: =IF($P$102=19,ROUND($P$13,0),"")&"" ->  | Q134: =IF($Q$102=19,ROUND($Q$13,0),"")&"" ->  | R134: =IF($R$102=19,ROUND($R$13,0),"")&"" ->  | S134: =IF($S$102=19,ROUND($S$13,0),"")&"" ->  | T134: =IF($T$102=19,ROUND($T$13,0),"")&"" ->  | U134: =IF($U$102=19,ROUND($U$13,0),"")&"" ->  | V134: =IF($V$102=19,ROUND($V$13,0),"")&"" ->  | W134: =IF($W$102=19,ROUND($W$13,0),"")&"" ->  | X134: =IF($X$102=19,ROUND($X$13,0),"")&"" ->  | Y134: =IF($Y$102=19,ROUND($Y$13,0),"")&"" ->  | Z134: =IF($Z$102=19,ROUND($Z$13,0),"")&"" ->  | AA134: =IF($AA$102=19,ROUND($AA$13,0),"")&"" ->  | AB134: 5
C135: 6 | D135: =IF($D$103=19,ROUND($D$14,0),"")&"" ->  | E135: =IF($E$103=19,ROUND($E$14,0),"")&"" ->  | F135: =IF($F$103=19,ROUND($F$14,0),"")&"" ->  | G135: =IF($G$103=19,ROUND($G$14,0),"")&"" ->  | H135: =IF($H$103=19,ROUND($H$14,0),"")&"" ->  | I135: =IF($I$103=19,ROUND($I$14,0),"")&"" ->  | J135: =IF($J$103=19,ROUND($J$14,0),"")&"" ->  | K135: =IF($K$103=19,ROUND($K$14,0),"")&"" ->  | L135: =IF($L$103=19,ROUND($L$14,0),"")&"" ->  | M135: =IF($M$103=19,ROUND($M$14,0),"")&"" ->  | N135: =IF($N$103=19,ROUND($N$14,0),"")&"" ->  | O135: =IF($O$103=19,ROUND($O$14,0),"")&"" ->  | P135: =IF($P$103=19,ROUND($P$14,0),"")&"" ->  | Q135: =IF($Q$103=19,ROUND($Q$14,0),"")&"" ->  | R135: =IF($R$103=19,ROUND($R$14,0),"")&"" ->  | S135: =IF($S$103=19,ROUND($S$14,0),"")&"" ->  | T135: =IF($T$103=19,ROUND($T$14,0),"")&"" ->  | U135: =IF($U$103=19,ROUND($U$14,0),"")&"" ->  | V135: =IF($V$103=19,ROUND($V$14,0),"")&"" ->  | W135: =IF($W$103=19,ROUND($W$14,0),"")&"" ->  | X135: =IF($X$103=19,ROUND($X$14,0),"")&"" ->  | Y135: =IF($Y$103=19,ROUND($Y$14,0),"")&"" ->  | Z135: =IF($Z$103=19,ROUND($Z$14,0),"")&"" ->  | AA135: =IF($AA$103=19,ROUND($AA$14,0),"")&"" ->  | AB135: 6
C136: 7 | D136: =IF($D$104=19,ROUND($D$15,0),"")&"" ->  | E136: =IF($E$104=19,ROUND($E$15,0),"")&"" ->  | F136: =IF($F$104=19,ROUND($F$15,0),"")&"" ->  | G136: =IF($G$104=19,ROUND($G$15,0),"")&"" ->  | H136: =IF($H$104=19,ROUND($H$15,0),"")&"" ->  | I136: =IF($I$104=19,ROUND($I$15,0),"")&"" ->  | J136: =IF($J$104=19,ROUND($J$15,0),"")&"" ->  | K136: =IF($K$104=19,ROUND($K$15,0),"")&"" ->  | L136: =IF($L$104=19,ROUND($L$15,0),"")&"" ->  | M136: =IF($M$104=19,ROUND($M$15,0),"")&"" ->  | N136: =IF($N$104=19,ROUND($N$15,0),"")&"" ->  | O136: =IF($O$104=19,ROUND($O$15,0),"")&"" ->  | P136: =IF($P$104=19,ROUND($P$15,0),"")&"" ->  | Q136: =IF($Q$104=19,ROUND($Q$15,0),"")&"" ->  | R136: =IF($R$104=19,ROUND($R$15,0),"")&"" ->  | S136: =IF($S$104=19,ROUND($S$15,0),"")&"" ->  | T136: =IF($T$104=19,ROUND($T$15,0),"")&"" ->  | U136: =IF($U$104=19,ROUND($U$15,0),"")&"" ->  | V136: =IF($V$104=19,ROUND($V$15,0),"")&"" ->  | W136: =IF($W$104=19,ROUND($W$15,0),"")&"" ->  | X136: =IF($X$104=19,ROUND($X$15,0),"")&"" ->  | Y136: =IF($Y$104=19,ROUND($Y$15,0),"")&"" ->  | Z136: =IF($Z$104=19,ROUND($Z$15,0),"")&"" ->  | AA136: =IF($AA$104=19,ROUND($AA$15,0),"")&"" ->  | AB136: 7
C137: 8 | D137: =IF($D$105=19,ROUND($D$16,0),"")&"" ->  | E137: =IF($E$105=19,ROUND($E$16,0),"")&"" ->  | F137: =IF($F$105=19,ROUND($F$16,0),"")&"" ->  | G137: =IF($G$105=19,ROUND($G$16,0),"")&"" ->  | H137: =IF($H$105=19,ROUND($H$16,0),"")&"" ->  | I137: =IF($I$105=19,ROUND($I$16,0),"")&"" ->  | J137: =IF($J$105=19,ROUND($J$16,0),"")&"" ->  | K137: =IF($K$105=19,ROUND($K$16,0),"")&"" ->  | L137: =IF($L$105=19,ROUND($L$16,0),"")&"" ->  | M137: =IF($M$105=19,ROUND($M$16,0),"")&"" ->  | N137: =IF($N$105=19,ROUND($N$16,0),"")&"" ->  | O137: =IF($O$105=19,ROUND($O$16,0),"")&"" ->  | P137: =IF($P$105=19,ROUND($P$16,0),"")&"" ->  | Q137: =IF($Q$105=19,ROUND($Q$16,0),"")&"" ->  | R137: =IF($R$105=19,ROUND($R$16,0),"")&"" ->  | S137: =IF($S$105=19,ROUND($S$16,0),"")&"" ->  | T137: =IF($T$105=19,ROUND($T$16,0),"")&"" ->  | U137: =IF($U$105=19,ROUND($U$16,0),"")&"" ->  | V137: =IF($V$105=19,ROUND($V$16,0),"")&"" ->  | W137: =IF($W$105=19,ROUND($W$16,0),"")&"" ->  | X137: =IF($X$105=19,ROUND($X$16,0),"")&"" ->  | Y137: =IF($Y$105=19,ROUND($Y$16,0),"")&"" ->  | Z137: =IF($Z$105=19,ROUND($Z$16,0),"")&"" ->  | AA137: =IF($AA$105=19,ROUND($AA$16,0),"")&"" ->  | AB137: 8
C138: 9 | D138: =IF($D$106=19,ROUND($D$17,0),"")&"" ->  | E138: =IF($E$106=19,ROUND($E$17,0),"")&"" ->  | F138: =IF($F$106=19,ROUND($F$17,0),"")&"" ->  | G138: =IF($G$106=19,ROUND($G$17,0),"")&"" ->  | H138: =IF($H$106=19,ROUND($H$17,0),"")&"" ->  | I138: =IF($I$106=19,ROUND($I$17,0),"")&"" ->  | J138: =IF($J$106=19,ROUND($J$17,0),"")&"" ->  | K138: =IF($K$106=19,ROUND($K$17,0),"")&"" ->  | L138: =IF($L$106=19,ROUND($L$17,0),"")&"" ->  | M138: =IF($M$106=19,ROUND($M$17,0),"")&"" ->  | N138: =IF($N$106=19,ROUND($N$17,0),"")&"" ->  | O138: =IF($O$106=19,ROUND($O$17,0),"")&"" ->  | P138: =IF($P$106=19,ROUND($P$17,0),"")&"" ->  | Q138: =IF($Q$106=19,ROUND($Q$17,0),"")&"" ->  | R138: =IF($R$106=19,ROUND($R$17,0),"")&"" ->  | S138: =IF($S$106=19,ROUND($S$17,0),"")&"" ->  | T138: =IF($T$106=19,ROUND($T$17,0),"")&"" ->  | U138: =IF($U$106=19,ROUND($U$17,0),"")&"" ->  | V138: =IF($V$106=19,ROUND($V$17,0),"")&"" ->  | W138: =IF($W$106=19,ROUND($W$17,0),"")&"" ->  | X138: =IF($X$106=19,ROUND($X$17,0),"")&"" ->  | Y138: =IF($Y$106=19,ROUND($Y$17,0),"")&"" ->  | Z138: =IF($Z$106=19,ROUND($Z$17,0),"")&"" ->  | AA138: =IF($AA$106=19,ROUND($AA$17,0),"")&"" ->  | AB138: 9
C139: 10 | D139: =IF($D$107=19,ROUND($D$18,0),"")&"" ->  | E139: =IF($E$107=19,ROUND($E$18,0),"")&"" ->  | F139: =IF($F$107=19,ROUND($F$18,0),"")&"" ->  | G139: =IF($G$107=19,ROUND($G$18,0),"")&"" ->  | H139: =IF($H$107=19,ROUND($H$18,0),"")&"" ->  | I139: =IF($I$107=19,ROUND($I$18,0),"")&"" ->  | J139: =IF($J$107=19,ROUND($J$18,0),"")&"" ->  | K139: =IF($K$107=19,ROUND($K$18,0),"")&"" ->  | L139: =IF($L$107=19,ROUND($L$18,0),"")&"" ->  | M139: =IF($M$107=19,ROUND($M$18,0),"")&"" ->  | N139: =IF($N$107=19,ROUND($N$18,0),"")&"" ->  | O139: =IF($O$107=19,ROUND($O$18,0),"")&"" ->  | P139: =IF($P$107=19,ROUND($P$18,0),"")&"" ->  | Q139: =IF($Q$107=19,ROUND($Q$18,0),"")&"" ->  | R139: =IF($R$107=19,ROUND($R$18,0),"")&"" ->  | S139: =IF($S$107=19,ROUND($S$18,0),"")&"" ->  | T139: =IF($T$107=19,ROUND($T$18,0),"")&"" ->  | U139: =IF($U$107=19,ROUND($U$18,0),"")&"" ->  | V139: =IF($V$107=19,ROUND($V$18,0),"")&"" ->  | W139: =IF($W$107=19,ROUND($W$18,0),"")&"" ->  | X139: =IF($X$107=19,ROUND($X$18,0),"")&"" ->  | Y139: =IF($Y$107=19,ROUND($Y$18,0),"")&"" ->  | Z139: =IF($Z$107=19,ROUND($Z$18,0),"")&"" ->  | AA139: =IF($AA$107=19,ROUND($AA$18,0),"")&"" ->  | AB139: 10
C140: 11 | D140: =IF($D$108=19,ROUND($D$19,0),"")&"" ->  | E140: =IF($E$108=19,ROUND($E$19,0),"")&"" ->  | F140: =IF($F$108=19,ROUND($F$19,0),"")&"" ->  | G140: =IF($G$108=19,ROUND($G$19,0),"")&"" ->  | H140: =IF($H$108=19,ROUND($H$19,0),"")&"" ->  | I140: =IF($I$108=19,ROUND($I$19,0),"")&"" ->  | J140: =IF($J$108=19,ROUND($J$19,0),"")&"" ->  | K140: =IF($K$108=19,ROUND($K$19,0),"")&"" ->  | L140: =IF($L$108=19,ROUND($L$19,0),"")&"" ->  | M140: =IF($M$108=19,ROUND($M$19,0),"")&"" ->  | N140: =IF($N$108=19,ROUND($N$19,0),"")&"" ->  | O140: =IF($O$108=19,ROUND($O$19,0),"")&"" ->  | P140: =IF($P$108=19,ROUND($P$19,0),"")&"" ->  | Q140: =IF($Q$108=19,ROUND($Q$19,0),"")&"" ->  | R140: =IF($R$108=19,ROUND($R$19,0),"")&"" ->  | S140: =IF($S$108=19,ROUND($S$19,0),"")&"" ->  | T140: =IF($T$108=19,ROUND($T$19,0),"")&"" ->  | U140: =IF($U$108=19,ROUND($U$19,0),"")&"" ->  | V140: =IF($V$108=19,ROUND($V$19,0),"")&"" ->  | W140: =IF($W$108=19,ROUND($W$19,0),"")&"" ->  | X140: =IF($X$108=19,ROUND($X$19,0),"")&"" ->  | Y140: =IF($Y$108=19,ROUND($Y$19,0),"")&"" ->  | Z140: =IF($Z$108=19,ROUND($Z$19,0),"")&"" ->  | AA140: =IF($AA$108=19,ROUND($AA$19,0),"")&"" ->  | AB140: 11
C141: 12 | D141: =IF($D$109=19,ROUND($D$20,0),"")&"" ->  | E141: =IF($E$109=19,ROUND($E$20,0),"")&"" ->  | F141: =IF($F$109=19,ROUND($F$20,0),"")&"" ->  | G141: =IF($G$109=19,ROUND($G$20,0),"")&"" ->  | H141: =IF($H$109=19,ROUND($H$20,0),"")&"" ->  | I141: =IF($I$109=19,ROUND($I$20,0),"")&"" ->  | J141: =IF($J$109=19,ROUND($J$20,0),"")&"" ->  | K141: =IF($K$109=19,ROUND($K$20,0),"")&"" ->  | L141: =IF($L$109=19,ROUND($L$20,0),"")&"" ->  | M141: =IF($M$109=19,ROUND($M$20,0),"")&"" ->  | N141: =IF($N$109=19,ROUND($N$20,0),"")&"" ->  | O141: =IF($O$109=19,ROUND($O$20,0),"")&"" ->  | P141: =IF($P$109=19,ROUND($P$20,0),"")&"" ->  | Q141: =IF($Q$109=19,ROUND($Q$20,0),"")&"" ->  | R141: =IF($R$109=19,ROUND($R$20,0),"")&"" ->  | S141: =IF($S$109=19,ROUND($S$20,0),"")&"" ->  | T141: =IF($T$109=19,ROUND($T$20,0),"")&"" ->  | U141: =IF($U$109=19,ROUND($U$20,0),"")&"" ->  | V141: =IF($V$109=19,ROUND($V$20,0),"")&"" ->  | W141: =IF($W$109=19,ROUND($W$20,0),"")&"" ->  | X141: =IF($X$109=19,ROUND($X$20,0),"")&"" ->  | Y141: =IF($Y$109=19,ROUND($Y$20,0),"")&"" ->  | Z141: =IF($Z$109=19,ROUND($Z$20,0),"")&"" ->  | AA141: =IF($AA$109=19,ROUND($AA$20,0),"")&"" ->  | AB141: 12
C142: 1 | D142: =IF($D$110=19,ROUND($D$21,0),"")&"" ->  | E142: =IF($E$110=19,ROUND($E$21,0),"")&"" ->  | F142: =IF($F$110=19,ROUND($F$21,0),"")&"" ->  | G142: =IF($G$110=19,ROUND($G$21,0),"")&"" ->  | H142: =IF($H$110=19,ROUND($H$21,0),"")&"" ->  | I142: =IF($I$110=19,ROUND($I$21,0),"")&"" ->  | J142: =IF($J$110=19,ROUND($J$21,0),"")&"" ->  | K142: =IF($K$110=19,ROUND($K$21,0),"")&"" ->  | L142: =IF($L$110=19,ROUND($L$21,0),"")&"" ->  | M142: =IF($M$110=19,ROUND($M$21,0),"")&"" ->  | N142: =IF($N$110=19,ROUND($N$21,0),"")&"" ->  | O142: =IF($O$110=19,ROUND($O$21,0),"")&"" ->  | P142: =IF($P$110=19,ROUND($P$21,0),"")&"" ->  | Q142: =IF($Q$110=19,ROUND($Q$21,0),"")&"" ->  | R142: =IF($R$110=19,ROUND($R$21,0),"")&"" ->  | S142: =IF($S$110=19,ROUND($S$21,0),"")&"" ->  | T142: =IF($T$110=19,ROUND($T$21,0),"")&"" ->  | U142: =IF($U$110=19,ROUND($U$21,0),"")&"" ->  | V142: =IF($V$110=19,ROUND($V$21,0),"")&"" ->  | W142: =IF($W$110=19,ROUND($W$21,0),"")&"" ->  | X142: =IF($X$110=19,ROUND($X$21,0),"")&"" ->  | Y142: =IF($Y$110=19,ROUND($Y$21,0),"")&"" ->  | Z142: =IF($Z$110=19,ROUND($Z$21,0),"")&"" ->  | AA142: =IF($AA$110=19,ROUND($AA$21,0),"")&"" ->  | AB142: 1
C143: 2 | D143: =IF($D$111=19,ROUND($D$22,0),"")&"" ->  | E143: =IF($E$111=19,ROUND($E$22,0),"")&"" ->  | F143: =IF($F$111=19,ROUND($F$22,0),"")&"" ->  | G143: =IF($G$111=19,ROUND($G$22,0),"")&"" ->  | H143: =IF($H$111=19,ROUND($H$22,0),"")&"" ->  | I143: =IF($I$111=19,ROUND($I$22,0),"")&"" ->  | J143: =IF($J$111=19,ROUND($J$22,0),"")&"" ->  | K143: =IF($K$111=19,ROUND($K$22,0),"")&"" ->  | L143: =IF($L$111=19,ROUND($L$22,0),"")&"" ->  | M143: =IF($M$111=19,ROUND($M$22,0),"")&"" ->  | N143: =IF($N$111=19,ROUND($N$22,0),"")&"" ->  | O143: =IF($O$111=19,ROUND($O$22,0),"")&"" ->  | P143: =IF($P$111=19,ROUND($P$22,0),"")&"" ->  | Q143: =IF($Q$111=19,ROUND($Q$22,0),"")&"" ->  | R143: =IF($R$111=19,ROUND($R$22,0),"")&"" ->  | S143: =IF($S$111=19,ROUND($S$22,0),"")&"" ->  | T143: =IF($T$111=19,ROUND($T$22,0),"")&"" ->  | U143: =IF($U$111=19,ROUND($U$22,0),"")&"" ->  | V143: =IF($V$111=19,ROUND($V$22,0),"")&"" ->  | W143: =IF($W$111=19,ROUND($W$22,0),"")&"" ->  | X143: =IF($X$111=19,ROUND($X$22,0),"")&"" ->  | Y143: =IF($Y$111=19,ROUND($Y$22,0),"")&"" ->  | Z143: =IF($Z$111=19,ROUND($Z$22,0),"")&"" ->  | AA143: =IF($AA$111=19,ROUND($AA$22,0),"")&"" ->  | AB143: 2
C144: 3 | D144: =IF($D$112=19,ROUND($D$23,0),"")&"" ->  | E144: =IF($E$112=19,ROUND($E$23,0),"")&"" ->  | F144: =IF($F$112=19,ROUND($F$23,0),"")&"" ->  | G144: =IF($G$112=19,ROUND($G$23,0),"")&"" ->  | H144: =IF($H$112=19,ROUND($H$23,0),"")&"" ->  | I144: =IF($I$112=19,ROUND($I$23,0),"")&"" ->  | J144: =IF($J$112=19,ROUND($J$23,0),"")&"" ->  | K144: =IF($K$112=19,ROUND($K$23,0),"")&"" ->  | L144: =IF($L$112=19,ROUND($L$23,0),"")&"" ->  | M144: =IF($M$112=19,ROUND($M$23,0),"")&"" ->  | N144: =IF($N$112=19,ROUND($N$23,0),"")&"" ->  | O144: =IF($O$112=19,ROUND($O$23,0),"")&"" ->  | P144: =IF($P$112=19,ROUND($P$23,0),"")&"" ->  | Q144: =IF($Q$112=19,ROUND($Q$23,0),"")&"" ->  | R144: =IF($R$112=19,ROUND($R$23,0),"")&"" ->  | S144: =IF($S$112=19,ROUND($S$23,0),"")&"" ->  | T144: =IF($T$112=19,ROUND($T$23,0),"")&"" ->  | U144: =IF($U$112=19,ROUND($U$23,0),"")&"" ->  | V144: =IF($V$112=19,ROUND($V$23,0),"")&"" ->  | W144: =IF($W$112=19,ROUND($W$23,0),"")&"" ->  | X144: =IF($X$112=19,ROUND($X$23,0),"")&"" ->  | Y144: =IF($Y$112=19,ROUND($Y$23,0),"")&"" ->  | Z144: =IF($Z$112=19,ROUND($Z$23,0),"")&"" ->  | AA144: =IF($AA$112=19,ROUND($AA$23,0),"")&"" ->  | AB144: 3
C146: 冷房期間中 温度(T)が発生する時間[hour]
D147: 温度(T) | AU147: 月単位
C148: 月 | D148: -6 | E148: -5 | F148: -4 | G148: -3 | H148: -2 | I148: -1 | J148: 0 | K148: 1 | L148: 2 | M148: 3 | N148: 4 | O148: 5 | P148: 6 | Q148: 7 | R148: 8 | S148: 9 | T148: 10 | U148: 11 | V148: 12 | W148: 13 | X148: 14 | Y148: 15 | Z148: 16 | AA148: 17 | AB148: 18 | AC148: 19 | AD148: 20 | AE148: 21 | AF148: 22 | AG148: 23 | AH148: 24 | AI148: 25 | AJ148: 26 | AK148: 27 | AL148: 28 | AM148: 29 | AN148: 30 | AO148: 31 | AP148: 32 | AQ148: 33 | AR148: 34 | AS148: 35 | AT148: 月 | AU148: 前1 | AV148: 前2 | AW148: 前3 | AX148: 前4 | AY148: 前5 | AZ148: 前6 | BA148: 前7 | BB148: 前8 | BC148: 前9 | BD148: 前10 | BF148: 後1 | BG148: 後2 | BH148: 後3 | BI148: 後4 | BJ148: 後5 | BK148: 後6 | BL148: 後7 | BM148: 後8 | BN148: 後9 | BO148: 後10
C149: 4 | D149: =COUNTIF($D$117:$AA$117,$D$148)*$AB$12 -> 0 | E149: =COUNTIF($D$117:$AA$117,$E$148)*$AB$12 -> 0 | F149: =COUNTIF($D$117:$AA$117,$F$148)*$AB$12 -> 0 | G149: =COUNTIF($D$117:$AA$117,$G$148)*$AB$12 -> 0 | H149: =COUNTIF($D$117:$AA$117,$H$148)*$AB$12 -> 0 | I149: =COUNTIF($D$117:$AA$117,$I$148)*$AB$12 -> 0 | J149: =COUNTIF($D$117:$AA$117,$J$148)*$AB$12 -> 0 | K149: =COUNTIF($D$117:$AA$117,$K$148)*$AB$12 -> 0 | L149: =COUNTIF($D$117:$AA$117,$L$148)*$AB$12 -> 0 | M149: =COUNTIF($D$117:$AA$117,$M$148)*$AB$12 -> 0 | N149: =COUNTIF($D$117:$AA$117,$N$148)*$AB$12 -> 0 | O149: =COUNTIF($D$117:$AA$117,$O$148)*$AB$12 -> 0 | P149: =COUNTIF($D$117:$AA$117,$P$148)*$AB$12 -> 0 | Q149: =COUNTIF($D$117:$AA$117,$Q$148)*$AB$12 -> 0 | R149: =COUNTIF($D$117:$AA$117,$R$148)*$AB$12 -> 0 | S149: =COUNTIF($D$117:$AA$117,$S$148)*$AB$12 -> 0 | T149: =COUNTIF($D$117:$AA$117,$T$148)*$AB$12 -> 0 | U149: =COUNTIF($D$117:$AA$117,$U$148)*$AB$12 -> 0 | V149: =COUNTIF($D$117:$AA$117,$V$148)*$AB$12 -> 0 | W149: =COUNTIF($D$117:$AA$117,$W$148)*$AB$12 -> 0 | X149: =COUNTIF($D$117:$AA$117,$X$148)*$AB$12 -> 0 | Y149: =COUNTIF($D$117:$AA$117,$Y$148)*$AB$12 -> 0 | Z149: =COUNTIF($D$117:$AA$117,$Z$148)*$AB$12 -> 0 | AA149: =COUNTIF($D$117:$AA$117,$AA$148)*$AB$12 -> 0 | AB149: =COUNTIF($D$117:$AA$117,$AB$148)*$AB$12 -> 0 | AC149: =COUNTIF($D$117:$AA$117,$AC$148)*$AB$12 -> 0 | AD149: =COUNTIF($D$117:$AA$117,$AD$148)*$AB$12 -> 0 | AE149: =COUNTIF($D$117:$AA$117,$AE$148)*$AB$12 -> 0 | AF149: =COUNTIF($D$117:$AA$117,$AF$148)*$AB$12 -> 0 | AG149: =COUNTIF($D$117:$AA$117,$AG$148)*$AB$12 -> 0 | AH149: =COUNTIF($D$117:$AA$117,$AH$148)*$AB$12 -> 0 | AI149: =COUNTIF($D$117:$AA$117,$AI$148)*$AB$12 -> 0 | AJ149: =COUNTIF($D$117:$AA$117,$AJ$148)*$AB$12 -> 0 | AK149: =COUNTIF($D$117:$AA$117,$AK$148)*$AB$12 -> 0 | AL149: =COUNTIF($D$117:$AA$117,$AL$148)*$AB$12 -> 0 | AM149: =COUNTIF($D$117:$AA$117,$AM$148)*$AB$12 -> 0 | AN149: =COUNTIF($D$117:$AA$117,$AN$148)*$AB$12 -> 0 | AO149: =COUNTIF($D$117:$AA$117,$AO$148)*$AB$12 -> 0 | AP149: =COUNTIF($D$117:$AA$117,$AP$148)*$AB$12 -> 0 | AQ149: =COUNTIF($D$117:$AA$117,$AQ$148)*$AB$12 -> 0 | AR149: =COUNTIF($D$117:$AA$117,$AR$148)*$AB$12 -> 0 | AS149: =COUNTIF($D$117:$AA$117,$AS$148)*$AB$12 -> 0 | AT149: 4 | AU149: =IFERROR(SUMPRODUCT($D149:$AS149,$D$164:$AS$164),"") -> 0 | AV149: =IFERROR(SUMPRODUCT($D149:$AS149,$D$170:$AS$170),"") ->  | AW149: =IFERROR(SUMPRODUCT($D149:$AS149,$D$176:$AS$176),"") ->  | AX149: =IFERROR(SUMPRODUCT($D149:$AS149,$D$182:$AS$182),"") ->  | AY149: =IFERROR(SUMPRODUCT($D149:$AS149,$D$188:$AS$188),"") ->  | AZ149: =IFERROR(SUMPRODUCT($D149:$AS149,$D$194:$AS$194),"") ->  | BA149: =IFERROR(SUMPRODUCT($D149:$AS149,$D$200:$AS$200),"") ->  | BB149: =IFERROR(SUMPRODUCT($D149:$AS149,$D$206:$AS$206),"") ->  | BC149: =IFERROR(SUMPRODUCT($D149:$AS149,$D$212:$AS$212),"") ->  | BD149: =IFERROR(SUMPRODUCT($D149:$AS149,$D$218:$AS$218),"") ->  | BF149: =IFERROR(SUMPRODUCT($D149:$AS149,$D$225:$AS$225),"") ->  | BG149: =IFERROR(SUMPRODUCT($D149:$AS149,$D$231:$AS$231),"") ->  | BH149: =IFERROR(SUMPRODUCT($D149:$AS149,$D$237:$AS$237),"") ->  | BI149: =IFERROR(SUMPRODUCT($D149:$AS149,$D$243:$AS$243),"") ->  | BJ149: =IFERROR(SUMPRODUCT($D149:$AS149,$D$249:$AS$249),"") ->  | BK149: =IFERROR(SUMPRODUCT($D149:$AS149,$D$255:$AS$255),"") ->  | BL149: =IFERROR(SUMPRODUCT($D149:$AS149,$D$261:$AS$261),"") ->  | BM149: =IFERROR(SUMPRODUCT($D149:$AS149,$D$267:$AS$267),"") ->  | BN149: =IFERROR(SUMPRODUCT($D149:$AS149,$D$273:$AS$273),"") ->  | BO149: =IFERROR(SUMPRODUCT($D149:$AS149,$D$279:$AS$279),"") -> 
C150: 5 | D150: =COUNTIF($D$118:$AA$118,$D$148)*$AB$13 -> 0 | E150: =COUNTIF($D$118:$AA$118,$E$148)*$AB$13 -> 0 | F150: =COUNTIF($D$118:$AA$118,$F$148)*$AB$13 -> 0 | G150: =COUNTIF($D$118:$AA$118,$G$148)*$AB$13 -> 0 | H150: =COUNTIF($D$118:$AA$118,$H$148)*$AB$13 -> 0 | I150: =COUNTIF($D$118:$AA$118,$I$148)*$AB$13 -> 0 | J150: =COUNTIF($D$118:$AA$118,$J$148)*$AB$13 -> 0 | K150: =COUNTIF($D$118:$AA$118,$K$148)*$AB$13 -> 0 | L150: =COUNTIF($D$118:$AA$118,$L$148)*$AB$13 -> 0 | M150: =COUNTIF($D$118:$AA$118,$M$148)*$AB$13 -> 0 | N150: =COUNTIF($D$118:$AA$118,$N$148)*$AB$13 -> 0 | O150: =COUNTIF($D$118:$AA$118,$O$148)*$AB$13 -> 0 | P150: =COUNTIF($D$118:$AA$118,$P$148)*$AB$13 -> 0 | Q150: =COUNTIF($D$118:$AA$118,$Q$148)*$AB$13 -> 0 | R150: =COUNTIF($D$118:$AA$118,$R$148)*$AB$13 -> 0 | S150: =COUNTIF($D$118:$AA$118,$S$148)*$AB$13 -> 0 | T150: =COUNTIF($D$118:$AA$118,$T$148)*$AB$13 -> 0 | U150: =COUNTIF($D$118:$AA$118,$U$148)*$AB$13 -> 0 | V150: =COUNTIF($D$118:$AA$118,$V$148)*$AB$13 -> 0 | W150: =COUNTIF($D$118:$AA$118,$W$148)*$AB$13 -> 0 | X150: =COUNTIF($D$118:$AA$118,$X$148)*$AB$13 -> 0 | Y150: =COUNTIF($D$118:$AA$118,$Y$148)*$AB$13 -> 0 | Z150: =COUNTIF($D$118:$AA$118,$Z$148)*$AB$13 -> 0 | AA150: =COUNTIF($D$118:$AA$118,$AA$148)*$AB$13 -> 0 | AB150: =COUNTIF($D$118:$AA$118,$AB$148)*$AB$13 -> 0 | AC150: =COUNTIF($D$118:$AA$118,$AC$148)*$AB$13 -> 0 | AD150: =COUNTIF($D$118:$AA$118,$AD$148)*$AB$13 -> 0 | AE150: =COUNTIF($D$118:$AA$118,$AE$148)*$AB$13 -> 0 | AF150: =COUNTIF($D$118:$AA$118,$AF$148)*$AB$13 -> 0 | AG150: =COUNTIF($D$118:$AA$118,$AG$148)*$AB$13 -> 0 | AH150: =COUNTIF($D$118:$AA$118,$AH$148)*$AB$13 -> 0 | AI150: =COUNTIF($D$118:$AA$118,$AI$148)*$AB$13 -> 0 | AJ150: =COUNTIF($D$118:$AA$118,$AJ$148)*$AB$13 -> 0 | AK150: =COUNTIF($D$118:$AA$118,$AK$148)*$AB$13 -> 0 | AL150: =COUNTIF($D$118:$AA$118,$AL$148)*$AB$13 -> 0 | AM150: =COUNTIF($D$118:$AA$118,$AM$148)*$AB$13 -> 0 | AN150: =COUNTIF($D$118:$AA$118,$AN$148)*$AB$13 -> 0 | AO150: =COUNTIF($D$118:$AA$118,$AO$148)*$AB$13 -> 0 | AP150: =COUNTIF($D$118:$AA$118,$AP$148)*$AB$13 -> 0 | AQ150: =COUNTIF($D$118:$AA$118,$AQ$148)*$AB$13 -> 0 | AR150: =COUNTIF($D$118:$AA$118,$AR$148)*$AB$13 -> 0 | AS150: =COUNTIF($D$118:$AA$118,$AS$148)*$AB$13 -> 0 | AT150: 5 | AU150: =IFERROR(SUMPRODUCT($D150:$AS150,$D$164:$AS$164),"") -> 0 | AV150: =IFERROR(SUMPRODUCT($D150:$AS150,$D$170:$AS$170),"") ->  | AW150: =IFERROR(SUMPRODUCT($D150:$AS150,$D$176:$AS$176),"") ->  | AX150: =IFERROR(SUMPRODUCT($D150:$AS150,$D$182:$AS$182),"") ->  | AY150: =IFERROR(SUMPRODUCT($D150:$AS150,$D$188:$AS$188),"") ->  | AZ150: =IFERROR(SUMPRODUCT($D150:$AS150,$D$194:$AS$194),"") ->  | BA150: =IFERROR(SUMPRODUCT($D150:$AS150,$D$200:$AS$200),"") ->  | BB150: =IFERROR(SUMPRODUCT($D150:$AS150,$D$206:$AS$206),"") ->  | BC150: =IFERROR(SUMPRODUCT($D150:$AS150,$D$212:$AS$212),"") ->  | BD150: =IFERROR(SUMPRODUCT($D150:$AS150,$D$218:$AS$218),"") ->  | BF150: =IFERROR(SUMPRODUCT($D150:$AS150,$D$225:$AS$225),"") ->  | BG150: =IFERROR(SUMPRODUCT($D150:$AS150,$D$231:$AS$231),"") ->  | BH150: =IFERROR(SUMPRODUCT($D150:$AS150,$D$237:$AS$237),"") ->  | BI150: =IFERROR(SUMPRODUCT($D150:$AS150,$D$243:$AS$243),"") ->  | BJ150: =IFERROR(SUMPRODUCT($D150:$AS150,$D$249:$AS$249),"") ->  | BK150: =IFERROR(SUMPRODUCT($D150:$AS150,$D$255:$AS$255),"") ->  | BL150: =IFERROR(SUMPRODUCT($D150:$AS150,$D$261:$AS$261),"") ->  | BM150: =IFERROR(SUMPRODUCT($D150:$AS150,$D$267:$AS$267),"") ->  | BN150: =IFERROR(SUMPRODUCT($D150:$AS150,$D$273:$AS$273),"") ->  | BO150: =IFERROR(SUMPRODUCT($D150:$AS150,$D$279:$AS$279),"") -> 
C151: 6 | D151: =COUNTIF($D$119:$AA$119,$D$148)*$AB$14 -> 0 | E151: =COUNTIF($D$119:$AA$119,$E$148)*$AB$14 -> 0 | F151: =COUNTIF($D$119:$AA$119,$F$148)*$AB$14 -> 0 | G151: =COUNTIF($D$119:$AA$119,$G$148)*$AB$14 -> 0 | H151: =COUNTIF($D$119:$AA$119,$H$148)*$AB$14 -> 0 | I151: =COUNTIF($D$119:$AA$119,$I$148)*$AB$14 -> 0 | J151: =COUNTIF($D$119:$AA$119,$J$148)*$AB$14 -> 0 | K151: =COUNTIF($D$119:$AA$119,$K$148)*$AB$14 -> 0 | L151: =COUNTIF($D$119:$AA$119,$L$148)*$AB$14 -> 0 | M151: =COUNTIF($D$119:$AA$119,$M$148)*$AB$14 -> 0 | N151: =COUNTIF($D$119:$AA$119,$N$148)*$AB$14 -> 0 | O151: =COUNTIF($D$119:$AA$119,$O$148)*$AB$14 -> 0 | P151: =COUNTIF($D$119:$AA$119,$P$148)*$AB$14 -> 0 | Q151: =COUNTIF($D$119:$AA$119,$Q$148)*$AB$14 -> 0 | R151: =COUNTIF($D$119:$AA$119,$R$148)*$AB$14 -> 0 | S151: =COUNTIF($D$119:$AA$119,$S$148)*$AB$14 -> 0 | T151: =COUNTIF($D$119:$AA$119,$T$148)*$AB$14 -> 0 | U151: =COUNTIF($D$119:$AA$119,$U$148)*$AB$14 -> 0 | V151: =COUNTIF($D$119:$AA$119,$V$148)*$AB$14 -> 0 | W151: =COUNTIF($D$119:$AA$119,$W$148)*$AB$14 -> 0 | X151: =COUNTIF($D$119:$AA$119,$X$148)*$AB$14 -> 0 | Y151: =COUNTIF($D$119:$AA$119,$Y$148)*$AB$14 -> 0 | Z151: =COUNTIF($D$119:$AA$119,$Z$148)*$AB$14 -> 0 | AA151: =COUNTIF($D$119:$AA$119,$AA$148)*$AB$14 -> 0 | AB151: =COUNTIF($D$119:$AA$119,$AB$148)*$AB$14 -> 0 | AC151: =COUNTIF($D$119:$AA$119,$AC$148)*$AB$14 -> 0 | AD151: =COUNTIF($D$119:$AA$119,$AD$148)*$AB$14 -> 0 | AE151: =COUNTIF($D$119:$AA$119,$AE$148)*$AB$14 -> 0 | AF151: =COUNTIF($D$119:$AA$119,$AF$148)*$AB$14 -> 0 | AG151: =COUNTIF($D$119:$AA$119,$AG$148)*$AB$14 -> 0 | AH151: =COUNTIF($D$119:$AA$119,$AH$148)*$AB$14 -> 0 | AI151: =COUNTIF($D$119:$AA$119,$AI$148)*$AB$14 -> 0 | AJ151: =COUNTIF($D$119:$AA$119,$AJ$148)*$AB$14 -> 0 | AK151: =COUNTIF($D$119:$AA$119,$AK$148)*$AB$14 -> 0 | AL151: =COUNTIF($D$119:$AA$119,$AL$148)*$AB$14 -> 0 | AM151: =COUNTIF($D$119:$AA$119,$AM$148)*$AB$14 -> 0 | AN151: =COUNTIF($D$119:$AA$119,$AN$148)*$AB$14 -> 0 | AO151: =COUNTIF($D$119:$AA$119,$AO$148)*$AB$14 -> 0 | AP151: =COUNTIF($D$119:$AA$119,$AP$148)*$AB$14 -> 0 | AQ151: =COUNTIF($D$119:$AA$119,$AQ$148)*$AB$14 -> 0 | AR151: =COUNTIF($D$119:$AA$119,$AR$148)*$AB$14 -> 0 | AS151: =COUNTIF($D$119:$AA$119,$AS$148)*$AB$14 -> 0 | AT151: 6 | AU151: 0
C152: 7 | D152: =COUNTIF($D$120:$AA$120,$D$148)*$AB$15 -> 0 | E152: =COUNTIF($D$120:$AA$120,$E$148)*$AB$15 -> 0 | F152: =COUNTIF($D$120:$AA$120,$F$148)*$AB$15 -> 0 | G152: =COUNTIF($D$120:$AA$120,$G$148)*$AB$15 -> 0 | H152: =COUNTIF($D$120:$AA$120,$H$148)*$AB$15 -> 0 | I152: =COUNTIF($D$120:$AA$120,$I$148)*$AB$15 -> 0 | J152: =COUNTIF($D$120:$AA$120,$J$148)*$AB$15 -> 0 | K152: =COUNTIF($D$120:$AA$120,$K$148)*$AB$15 -> 0 | L152: =COUNTIF($D$120:$AA$120,$L$148)*$AB$15 -> 0 | M152: =COUNTIF($D$120:$AA$120,$M$148)*$AB$15 -> 0 | N152: =COUNTIF($D$120:$AA$120,$N$148)*$AB$15 -> 0 | O152: =COUNTIF($D$120:$AA$120,$O$148)*$AB$15 -> 0 | P152: =COUNTIF($D$120:$AA$120,$P$148)*$AB$15 -> 0 | Q152: =COUNTIF($D$120:$AA$120,$Q$148)*$AB$15 -> 0 | R152: =COUNTIF($D$120:$AA$120,$R$148)*$AB$15 -> 0 | S152: =COUNTIF($D$120:$AA$120,$S$148)*$AB$15 -> 0 | T152: =COUNTIF($D$120:$AA$120,$T$148)*$AB$15 -> 0 | U152: =COUNTIF($D$120:$AA$120,$U$148)*$AB$15 -> 0 | V152: =COUNTIF($D$120:$AA$120,$V$148)*$AB$15 -> 0 | W152: =COUNTIF($D$120:$AA$120,$W$148)*$AB$15 -> 0 | X152: =COUNTIF($D$120:$AA$120,$X$148)*$AB$15 -> 0 | Y152: =COUNTIF($D$120:$AA$120,$Y$148)*$AB$15 -> 0 | Z152: =COUNTIF($D$120:$AA$120,$Z$148)*$AB$15 -> 0 | AA152: =COUNTIF($D$120:$AA$120,$AA$148)*$AB$15 -> 0 | AB152: =COUNTIF($D$120:$AA$120,$AB$148)*$AB$15 -> 0 | AC152: =COUNTIF($D$120:$AA$120,$AC$148)*$AB$15 -> 0 | AD152: =COUNTIF($D$120:$AA$120,$AD$148)*$AB$15 -> 0 | AE152: =COUNTIF($D$120:$AA$120,$AE$148)*$AB$15 -> 0 | AF152: =COUNTIF($D$120:$AA$120,$AF$148)*$AB$15 -> 0 | AG152: =COUNTIF($D$120:$AA$120,$AG$148)*$AB$15 -> 0 | AH152: =COUNTIF($D$120:$AA$120,$AH$148)*$AB$15 -> 0 | AI152: =COUNTIF($D$120:$AA$120,$AI$148)*$AB$15 -> 0 | AJ152: =COUNTIF($D$120:$AA$120,$AJ$148)*$AB$15 -> 0 | AK152: =COUNTIF($D$120:$AA$120,$AK$148)*$AB$15 -> 0 | AL152: =COUNTIF($D$120:$AA$120,$AL$148)*$AB$15 -> 0 | AM152: =COUNTIF($D$120:$AA$120,$AM$148)*$AB$15 -> 0 | AN152: =COUNTIF($D$120:$AA$120,$AN$148)*$AB$15 -> 0 | AO152: =COUNTIF($D$120:$AA$120,$AO$148)*$AB$15 -> 0 | AP152: =COUNTIF($D$120:$AA$120,$AP$148)*$AB$15 -> 0 | AQ152: =COUNTIF($D$120:$AA$120,$AQ$148)*$AB$15 -> 0 | AR152: =COUNTIF($D$120:$AA$120,$AR$148)*$AB$15 -> 0 | AS152: =COUNTIF($D$120:$AA$120,$AS$148)*$AB$15 -> 0 | AT152: 7 | AU152: 0
C153: 8 | D153: =COUNTIF($D$121:$AA$121,$D$148)*$AB$16 -> 0 | E153: =COUNTIF($D$121:$AA$121,$E$148)*$AB$16 -> 0 | F153: =COUNTIF($D$121:$AA$121,$F$148)*$AB$16 -> 0 | G153: =COUNTIF($D$121:$AA$121,$G$148)*$AB$16 -> 0 | H153: =COUNTIF($D$121:$AA$121,$H$148)*$AB$16 -> 0 | I153: =COUNTIF($D$121:$AA$121,$I$148)*$AB$16 -> 0 | J153: =COUNTIF($D$121:$AA$121,$J$148)*$AB$16 -> 0 | K153: =COUNTIF($D$121:$AA$121,$K$148)*$AB$16 -> 0 | L153: =COUNTIF($D$121:$AA$121,$L$148)*$AB$16 -> 0 | M153: =COUNTIF($D$121:$AA$121,$M$148)*$AB$16 -> 0 | N153: =COUNTIF($D$121:$AA$121,$N$148)*$AB$16 -> 0 | O153: =COUNTIF($D$121:$AA$121,$O$148)*$AB$16 -> 0 | P153: =COUNTIF($D$121:$AA$121,$P$148)*$AB$16 -> 0 | Q153: =COUNTIF($D$121:$AA$121,$Q$148)*$AB$16 -> 0 | R153: =COUNTIF($D$121:$AA$121,$R$148)*$AB$16 -> 0 | S153: =COUNTIF($D$121:$AA$121,$S$148)*$AB$16 -> 0 | T153: =COUNTIF($D$121:$AA$121,$T$148)*$AB$16 -> 0 | U153: =COUNTIF($D$121:$AA$121,$U$148)*$AB$16 -> 0 | V153: =COUNTIF($D$121:$AA$121,$V$148)*$AB$16 -> 0 | W153: =COUNTIF($D$121:$AA$121,$W$148)*$AB$16 -> 0 | X153: =COUNTIF($D$121:$AA$121,$X$148)*$AB$16 -> 0 | Y153: =COUNTIF($D$121:$AA$121,$Y$148)*$AB$16 -> 0 | Z153: =COUNTIF($D$121:$AA$121,$Z$148)*$AB$16 -> 0 | AA153: =COUNTIF($D$121:$AA$121,$AA$148)*$AB$16 -> 0 | AB153: =COUNTIF($D$121:$AA$121,$AB$148)*$AB$16 -> 0 | AC153: =COUNTIF($D$121:$AA$121,$AC$148)*$AB$16 -> 0 | AD153: =COUNTIF($D$121:$AA$121,$AD$148)*$AB$16 -> 0 | AE153: =COUNTIF($D$121:$AA$121,$AE$148)*$AB$16 -> 0 | AF153: =COUNTIF($D$121:$AA$121,$AF$148)*$AB$16 -> 0 | AG153: =COUNTIF($D$121:$AA$121,$AG$148)*$AB$16 -> 0 | AH153: =COUNTIF($D$121:$AA$121,$AH$148)*$AB$16 -> 0 | AI153: =COUNTIF($D$121:$AA$121,$AI$148)*$AB$16 -> 0 | AJ153: =COUNTIF($D$121:$AA$121,$AJ$148)*$AB$16 -> 0 | AK153: =COUNTIF($D$121:$AA$121,$AK$148)*$AB$16 -> 0 | AL153: =COUNTIF($D$121:$AA$121,$AL$148)*$AB$16 -> 0 | AM153: =COUNTIF($D$121:$AA$121,$AM$148)*$AB$16 -> 0 | AN153: =COUNTIF($D$121:$AA$121,$AN$148)*$AB$16 -> 0 | AO153: =COUNTIF($D$121:$AA$121,$AO$148)*$AB$16 -> 0 | AP153: =COUNTIF($D$121:$AA$121,$AP$148)*$AB$16 -> 0 | AQ153: =COUNTIF($D$121:$AA$121,$AQ$148)*$AB$16 -> 0 | AR153: =COUNTIF($D$121:$AA$121,$AR$148)*$AB$16 -> 0 | AS153: =COUNTIF($D$121:$AA$121,$AS$148)*$AB$16 -> 0 | AT153: 8 | AU153: 0
C154: 9 | D154: =COUNTIF($D$122:$AA$122,$D$148)*$AB$17 -> 0 | E154: =COUNTIF($D$122:$AA$122,$E$148)*$AB$17 -> 0 | F154: =COUNTIF($D$122:$AA$122,$F$148)*$AB$17 -> 0 | G154: =COUNTIF($D$122:$AA$122,$G$148)*$AB$17 -> 0 | H154: =COUNTIF($D$122:$AA$122,$H$148)*$AB$17 -> 0 | I154: =COUNTIF($D$122:$AA$122,$I$148)*$AB$17 -> 0 | J154: =COUNTIF($D$122:$AA$122,$J$148)*$AB$17 -> 0 | K154: =COUNTIF($D$122:$AA$122,$K$148)*$AB$17 -> 0 | L154: =COUNTIF($D$122:$AA$122,$L$148)*$AB$17 -> 0 | M154: =COUNTIF($D$122:$AA$122,$M$148)*$AB$17 -> 0 | N154: =COUNTIF($D$122:$AA$122,$N$148)*$AB$17 -> 0 | O154: =COUNTIF($D$122:$AA$122,$O$148)*$AB$17 -> 0 | P154: =COUNTIF($D$122:$AA$122,$P$148)*$AB$17 -> 0 | Q154: =COUNTIF($D$122:$AA$122,$Q$148)*$AB$17 -> 0 | R154: =COUNTIF($D$122:$AA$122,$R$148)*$AB$17 -> 0 | S154: =COUNTIF($D$122:$AA$122,$S$148)*$AB$17 -> 0 | T154: =COUNTIF($D$122:$AA$122,$T$148)*$AB$17 -> 0 | U154: =COUNTIF($D$122:$AA$122,$U$148)*$AB$17 -> 0 | V154: =COUNTIF($D$122:$AA$122,$V$148)*$AB$17 -> 0 | W154: =COUNTIF($D$122:$AA$122,$W$148)*$AB$17 -> 0 | X154: =COUNTIF($D$122:$AA$122,$X$148)*$AB$17 -> 0 | Y154: =COUNTIF($D$122:$AA$122,$Y$148)*$AB$17 -> 0 | Z154: =COUNTIF($D$122:$AA$122,$Z$148)*$AB$17 -> 0 | AA154: =COUNTIF($D$122:$AA$122,$AA$148)*$AB$17 -> 0 | AB154: =COUNTIF($D$122:$AA$122,$AB$148)*$AB$17 -> 0 | AC154: =COUNTIF($D$122:$AA$122,$AC$148)*$AB$17 -> 0 | AD154: =COUNTIF($D$122:$AA$122,$AD$148)*$AB$17 -> 0 | AE154: =COUNTIF($D$122:$AA$122,$AE$148)*$AB$17 -> 0 | AF154: =COUNTIF($D$122:$AA$122,$AF$148)*$AB$17 -> 0 | AG154: =COUNTIF($D$122:$AA$122,$AG$148)*$AB$17 -> 0 | AH154: =COUNTIF($D$122:$AA$122,$AH$148)*$AB$17 -> 0 | AI154: =COUNTIF($D$122:$AA$122,$AI$148)*$AB$17 -> 0 | AJ154: =COUNTIF($D$122:$AA$122,$AJ$148)*$AB$17 -> 0 | AK154: =COUNTIF($D$122:$AA$122,$AK$148)*$AB$17 -> 0 | AL154: =COUNTIF($D$122:$AA$122,$AL$148)*$AB$17 -> 0 | AM154: =COUNTIF($D$122:$AA$122,$AM$148)*$AB$17 -> 0 | AN154: =COUNTIF($D$122:$AA$122,$AN$148)*$AB$17 -> 0 | AO154: =COUNTIF($D$122:$AA$122,$AO$148)*$AB$17 -> 0 | AP154: =COUNTIF($D$122:$AA$122,$AP$148)*$AB$17 -> 0 | AQ154: =COUNTIF($D$122:$AA$122,$AQ$148)*$AB$17 -> 0 | AR154: =COUNTIF($D$122:$AA$122,$AR$148)*$AB$17 -> 0 | AS154: =COUNTIF($D$122:$AA$122,$AS$148)*$AB$17 -> 0 | AT154: 9 | AU154: 0
C155: 10 | D155: =COUNTIF($D$123:$AA$123,$D$148)*$AB$18 -> 0 | E155: =COUNTIF($D$123:$AA$123,$E$148)*$AB$18 -> 0 | F155: =COUNTIF($D$123:$AA$123,$F$148)*$AB$18 -> 0 | G155: =COUNTIF($D$123:$AA$123,$G$148)*$AB$18 -> 0 | H155: =COUNTIF($D$123:$AA$123,$H$148)*$AB$18 -> 0 | I155: =COUNTIF($D$123:$AA$123,$I$148)*$AB$18 -> 0 | J155: =COUNTIF($D$123:$AA$123,$J$148)*$AB$18 -> 0 | K155: =COUNTIF($D$123:$AA$123,$K$148)*$AB$18 -> 0 | L155: =COUNTIF($D$123:$AA$123,$L$148)*$AB$18 -> 0 | M155: =COUNTIF($D$123:$AA$123,$M$148)*$AB$18 -> 0 | N155: =COUNTIF($D$123:$AA$123,$N$148)*$AB$18 -> 0 | O155: =COUNTIF($D$123:$AA$123,$O$148)*$AB$18 -> 0 | P155: =COUNTIF($D$123:$AA$123,$P$148)*$AB$18 -> 0 | Q155: =COUNTIF($D$123:$AA$123,$Q$148)*$AB$18 -> 0 | R155: =COUNTIF($D$123:$AA$123,$R$148)*$AB$18 -> 0 | S155: =COUNTIF($D$123:$AA$123,$S$148)*$AB$18 -> 0 | T155: =COUNTIF($D$123:$AA$123,$T$148)*$AB$18 -> 0 | U155: =COUNTIF($D$123:$AA$123,$U$148)*$AB$18 -> 0 | V155: =COUNTIF($D$123:$AA$123,$V$148)*$AB$18 -> 0 | W155: =COUNTIF($D$123:$AA$123,$W$148)*$AB$18 -> 0 | X155: =COUNTIF($D$123:$AA$123,$X$148)*$AB$18 -> 0 | Y155: =COUNTIF($D$123:$AA$123,$Y$148)*$AB$18 -> 0 | Z155: =COUNTIF($D$123:$AA$123,$Z$148)*$AB$18 -> 0 | AA155: =COUNTIF($D$123:$AA$123,$AA$148)*$AB$18 -> 0 | AB155: =COUNTIF($D$123:$AA$123,$AB$148)*$AB$18 -> 0 | AC155: =COUNTIF($D$123:$AA$123,$AC$148)*$AB$18 -> 0 | AD155: =COUNTIF($D$123:$AA$123,$AD$148)*$AB$18 -> 0 | AE155: =COUNTIF($D$123:$AA$123,$AE$148)*$AB$18 -> 0 | AF155: =COUNTIF($D$123:$AA$123,$AF$148)*$AB$18 -> 0 | AG155: =COUNTIF($D$123:$AA$123,$AG$148)*$AB$18 -> 0 | AH155: =COUNTIF($D$123:$AA$123,$AH$148)*$AB$18 -> 0 | AI155: =COUNTIF($D$123:$AA$123,$AI$148)*$AB$18 -> 0 | AJ155: =COUNTIF($D$123:$AA$123,$AJ$148)*$AB$18 -> 0 | AK155: =COUNTIF($D$123:$AA$123,$AK$148)*$AB$18 -> 0 | AL155: =COUNTIF($D$123:$AA$123,$AL$148)*$AB$18 -> 0 | AM155: =COUNTIF($D$123:$AA$123,$AM$148)*$AB$18 -> 0 | AN155: =COUNTIF($D$123:$AA$123,$AN$148)*$AB$18 -> 0 | AO155: =COUNTIF($D$123:$AA$123,$AO$148)*$AB$18 -> 0 | AP155: =COUNTIF($D$123:$AA$123,$AP$148)*$AB$18 -> 0 | AQ155: =COUNTIF($D$123:$AA$123,$AQ$148)*$AB$18 -> 0 | AR155: =COUNTIF($D$123:$AA$123,$AR$148)*$AB$18 -> 0 | AS155: =COUNTIF($D$123:$AA$123,$AS$148)*$AB$18 -> 0 | AT155: 10 | AU155: 0
C156: 11 | D156: =COUNTIF($D$124:$AA$124,$D$148)*$AB$19 -> 0 | E156: =COUNTIF($D$124:$AA$124,$E$148)*$AB$19 -> 0 | F156: =COUNTIF($D$124:$AA$124,$F$148)*$AB$19 -> 0 | G156: =COUNTIF($D$124:$AA$124,$G$148)*$AB$19 -> 0 | H156: =COUNTIF($D$124:$AA$124,$H$148)*$AB$19 -> 0 | I156: =COUNTIF($D$124:$AA$124,$I$148)*$AB$19 -> 0 | J156: =COUNTIF($D$124:$AA$124,$J$148)*$AB$19 -> 0 | K156: =COUNTIF($D$124:$AA$124,$K$148)*$AB$19 -> 0 | L156: =COUNTIF($D$124:$AA$124,$L$148)*$AB$19 -> 0 | M156: =COUNTIF($D$124:$AA$124,$M$148)*$AB$19 -> 0 | N156: =COUNTIF($D$124:$AA$124,$N$148)*$AB$19 -> 0 | O156: =COUNTIF($D$124:$AA$124,$O$148)*$AB$19 -> 0 | P156: =COUNTIF($D$124:$AA$124,$P$148)*$AB$19 -> 0 | Q156: =COUNTIF($D$124:$AA$124,$Q$148)*$AB$19 -> 0 | R156: =COUNTIF($D$124:$AA$124,$R$148)*$AB$19 -> 0 | S156: =COUNTIF($D$124:$AA$124,$S$148)*$AB$19 -> 0 | T156: =COUNTIF($D$124:$AA$124,$T$148)*$AB$19 -> 0 | U156: =COUNTIF($D$124:$AA$124,$U$148)*$AB$19 -> 0 | V156: =COUNTIF($D$124:$AA$124,$V$148)*$AB$19 -> 0 | W156: =COUNTIF($D$124:$AA$124,$W$148)*$AB$19 -> 0 | X156: =COUNTIF($D$124:$AA$124,$X$148)*$AB$19 -> 0 | Y156: =COUNTIF($D$124:$AA$124,$Y$148)*$AB$19 -> 0 | Z156: =COUNTIF($D$124:$AA$124,$Z$148)*$AB$19 -> 0 | AA156: =COUNTIF($D$124:$AA$124,$AA$148)*$AB$19 -> 0 | AB156: =COUNTIF($D$124:$AA$124,$AB$148)*$AB$19 -> 0 | AC156: =COUNTIF($D$124:$AA$124,$AC$148)*$AB$19 -> 0 | AD156: =COUNTIF($D$124:$AA$124,$AD$148)*$AB$19 -> 0 | AE156: =COUNTIF($D$124:$AA$124,$AE$148)*$AB$19 -> 0 | AF156: =COUNTIF($D$124:$AA$124,$AF$148)*$AB$19 -> 0 | AG156: =COUNTIF($D$124:$AA$124,$AG$148)*$AB$19 -> 0 | AH156: =COUNTIF($D$124:$AA$124,$AH$148)*$AB$19 -> 0 | AI156: =COUNTIF($D$124:$AA$124,$AI$148)*$AB$19 -> 0 | AJ156: =COUNTIF($D$124:$AA$124,$AJ$148)*$AB$19 -> 0 | AK156: =COUNTIF($D$124:$AA$124,$AK$148)*$AB$19 -> 0 | AL156: =COUNTIF($D$124:$AA$124,$AL$148)*$AB$19 -> 0 | AM156: =COUNTIF($D$124:$AA$124,$AM$148)*$AB$19 -> 0 | AN156: =COUNTIF($D$124:$AA$124,$AN$148)*$AB$19 -> 0 | AO156: =COUNTIF($D$124:$AA$124,$AO$148)*$AB$19 -> 0 | AP156: =COUNTIF($D$124:$AA$124,$AP$148)*$AB$19 -> 0 | AQ156: =COUNTIF($D$124:$AA$124,$AQ$148)*$AB$19 -> 0 | AR156: =COUNTIF($D$124:$AA$124,$AR$148)*$AB$19 -> 0 | AS156: =COUNTIF($D$124:$AA$124,$AS$148)*$AB$19 -> 0 | AT156: 11 | AU156: 0
C157: 12 | D157: =COUNTIF($D$125:$AA$125,$D$148)*$AB$20 -> 0 | E157: =COUNTIF($D$125:$AA$125,$E$148)*$AB$20 -> 0 | F157: =COUNTIF($D$125:$AA$125,$F$148)*$AB$20 -> 0 | G157: =COUNTIF($D$125:$AA$125,$G$148)*$AB$20 -> 0 | H157: =COUNTIF($D$125:$AA$125,$H$148)*$AB$20 -> 0 | I157: =COUNTIF($D$125:$AA$125,$I$148)*$AB$20 -> 0 | J157: =COUNTIF($D$125:$AA$125,$J$148)*$AB$20 -> 0 | K157: =COUNTIF($D$125:$AA$125,$K$148)*$AB$20 -> 0 | L157: =COUNTIF($D$125:$AA$125,$L$148)*$AB$20 -> 0 | M157: =COUNTIF($D$125:$AA$125,$M$148)*$AB$20 -> 0 | N157: =COUNTIF($D$125:$AA$125,$N$148)*$AB$20 -> 0 | O157: =COUNTIF($D$125:$AA$125,$O$148)*$AB$20 -> 0 | P157: =COUNTIF($D$125:$AA$125,$P$148)*$AB$20 -> 0 | Q157: =COUNTIF($D$125:$AA$125,$Q$148)*$AB$20 -> 0 | R157: =COUNTIF($D$125:$AA$125,$R$148)*$AB$20 -> 0 | S157: =COUNTIF($D$125:$AA$125,$S$148)*$AB$20 -> 0 | T157: =COUNTIF($D$125:$AA$125,$T$148)*$AB$20 -> 0 | U157: =COUNTIF($D$125:$AA$125,$U$148)*$AB$20 -> 0 | V157: =COUNTIF($D$125:$AA$125,$V$148)*$AB$20 -> 0 | W157: =COUNTIF($D$125:$AA$125,$W$148)*$AB$20 -> 0 | X157: =COUNTIF($D$125:$AA$125,$X$148)*$AB$20 -> 0 | Y157: =COUNTIF($D$125:$AA$125,$Y$148)*$AB$20 -> 0 | Z157: =COUNTIF($D$125:$AA$125,$Z$148)*$AB$20 -> 0 | AA157: =COUNTIF($D$125:$AA$125,$AA$148)*$AB$20 -> 0 | AB157: =COUNTIF($D$125:$AA$125,$AB$148)*$AB$20 -> 0 | AC157: =COUNTIF($D$125:$AA$125,$AC$148)*$AB$20 -> 0 | AD157: =COUNTIF($D$125:$AA$125,$AD$148)*$AB$20 -> 0 | AE157: =COUNTIF($D$125:$AA$125,$AE$148)*$AB$20 -> 0 | AF157: =COUNTIF($D$125:$AA$125,$AF$148)*$AB$20 -> 0 | AG157: =COUNTIF($D$125:$AA$125,$AG$148)*$AB$20 -> 0 | AH157: =COUNTIF($D$125:$AA$125,$AH$148)*$AB$20 -> 0 | AI157: =COUNTIF($D$125:$AA$125,$AI$148)*$AB$20 -> 0 | AJ157: =COUNTIF($D$125:$AA$125,$AJ$148)*$AB$20 -> 0 | AK157: =COUNTIF($D$125:$AA$125,$AK$148)*$AB$20 -> 0 | AL157: =COUNTIF($D$125:$AA$125,$AL$148)*$AB$20 -> 0 | AM157: =COUNTIF($D$125:$AA$125,$AM$148)*$AB$20 -> 0 | AN157: =COUNTIF($D$125:$AA$125,$AN$148)*$AB$20 -> 0 | AO157: =COUNTIF($D$125:$AA$125,$AO$148)*$AB$20 -> 0 | AP157: =COUNTIF($D$125:$AA$125,$AP$148)*$AB$20 -> 0 | AQ157: =COUNTIF($D$125:$AA$125,$AQ$148)*$AB$20 -> 0 | AR157: =COUNTIF($D$125:$AA$125,$AR$148)*$AB$20 -> 0 | AS157: =COUNTIF($D$125:$AA$125,$AS$148)*$AB$20 -> 0 | AT157: 12 | AU157: 0
C158: 1 | D158: =COUNTIF($D$126:$AA$126,$D$148)*$AB$21 -> 0 | E158: =COUNTIF($D$126:$AA$126,$E$148)*$AB$21 -> 0 | F158: =COUNTIF($D$126:$AA$126,$F$148)*$AB$21 -> 0 | G158: =COUNTIF($D$126:$AA$126,$G$148)*$AB$21 -> 0 | H158: =COUNTIF($D$126:$AA$126,$H$148)*$AB$21 -> 0 | I158: =COUNTIF($D$126:$AA$126,$I$148)*$AB$21 -> 0 | J158: =COUNTIF($D$126:$AA$126,$J$148)*$AB$21 -> 0 | K158: =COUNTIF($D$126:$AA$126,$K$148)*$AB$21 -> 0 | L158: =COUNTIF($D$126:$AA$126,$L$148)*$AB$21 -> 0 | M158: =COUNTIF($D$126:$AA$126,$M$148)*$AB$21 -> 0 | N158: =COUNTIF($D$126:$AA$126,$N$148)*$AB$21 -> 0 | O158: =COUNTIF($D$126:$AA$126,$O$148)*$AB$21 -> 0 | P158: =COUNTIF($D$126:$AA$126,$P$148)*$AB$21 -> 0 | Q158: =COUNTIF($D$126:$AA$126,$Q$148)*$AB$21 -> 0 | R158: =COUNTIF($D$126:$AA$126,$R$148)*$AB$21 -> 0 | S158: =COUNTIF($D$126:$AA$126,$S$148)*$AB$21 -> 0 | T158: =COUNTIF($D$126:$AA$126,$T$148)*$AB$21 -> 0 | U158: =COUNTIF($D$126:$AA$126,$U$148)*$AB$21 -> 0 | V158: =COUNTIF($D$126:$AA$126,$V$148)*$AB$21 -> 0 | W158: =COUNTIF($D$126:$AA$126,$W$148)*$AB$21 -> 0 | X158: =COUNTIF($D$126:$AA$126,$X$148)*$AB$21 -> 0 | Y158: =COUNTIF($D$126:$AA$126,$Y$148)*$AB$21 -> 0 | Z158: =COUNTIF($D$126:$AA$126,$Z$148)*$AB$21 -> 0 | AA158: =COUNTIF($D$126:$AA$126,$AA$148)*$AB$21 -> 0 | AB158: =COUNTIF($D$126:$AA$126,$AB$148)*$AB$21 -> 0 | AC158: =COUNTIF($D$126:$AA$126,$AC$148)*$AB$21 -> 0 | AD158: =COUNTIF($D$126:$AA$126,$AD$148)*$AB$21 -> 0 | AE158: =COUNTIF($D$126:$AA$126,$AE$148)*$AB$21 -> 0 | AF158: =COUNTIF($D$126:$AA$126,$AF$148)*$AB$21 -> 0 | AG158: =COUNTIF($D$126:$AA$126,$AG$148)*$AB$21 -> 0 | AH158: =COUNTIF($D$126:$AA$126,$AH$148)*$AB$21 -> 0 | AI158: =COUNTIF($D$126:$AA$126,$AI$148)*$AB$21 -> 0 | AJ158: =COUNTIF($D$126:$AA$126,$AJ$148)*$AB$21 -> 0 | AK158: =COUNTIF($D$126:$AA$126,$AK$148)*$AB$21 -> 0 | AL158: =COUNTIF($D$126:$AA$126,$AL$148)*$AB$21 -> 0 | AM158: =COUNTIF($D$126:$AA$126,$AM$148)*$AB$21 -> 0 | AN158: =COUNTIF($D$126:$AA$126,$AN$148)*$AB$21 -> 0 | AO158: =COUNTIF($D$126:$AA$126,$AO$148)*$AB$21 -> 0 | AP158: =COUNTIF($D$126:$AA$126,$AP$148)*$AB$21 -> 0 | AQ158: =COUNTIF($D$126:$AA$126,$AQ$148)*$AB$21 -> 0 | AR158: =COUNTIF($D$126:$AA$126,$AR$148)*$AB$21 -> 0 | AS158: =COUNTIF($D$126:$AA$126,$AS$148)*$AB$21 -> 0 | AT158: 1 | AU158: 0
C159: 2 | D159: =COUNTIF($D$127:$AA$127,$D$148)*$AB$22 -> 0 | E159: =COUNTIF($D$127:$AA$127,$E$148)*$AB$22 -> 0 | F159: =COUNTIF($D$127:$AA$127,$F$148)*$AB$22 -> 0 | G159: =COUNTIF($D$127:$AA$127,$G$148)*$AB$22 -> 0 | H159: =COUNTIF($D$127:$AA$127,$H$148)*$AB$22 -> 0 | I159: =COUNTIF($D$127:$AA$127,$I$148)*$AB$22 -> 0 | J159: =COUNTIF($D$127:$AA$127,$J$148)*$AB$22 -> 0 | K159: =COUNTIF($D$127:$AA$127,$K$148)*$AB$22 -> 0 | L159: =COUNTIF($D$127:$AA$127,$L$148)*$AB$22 -> 0 | M159: =COUNTIF($D$127:$AA$127,$M$148)*$AB$22 -> 0 | N159: =COUNTIF($D$127:$AA$127,$N$148)*$AB$22 -> 0 | O159: =COUNTIF($D$127:$AA$127,$O$148)*$AB$22 -> 0 | P159: =COUNTIF($D$127:$AA$127,$P$148)*$AB$22 -> 0 | Q159: =COUNTIF($D$127:$AA$127,$Q$148)*$AB$22 -> 0 | R159: =COUNTIF($D$127:$AA$127,$R$148)*$AB$22 -> 0 | S159: =COUNTIF($D$127:$AA$127,$S$148)*$AB$22 -> 0 | T159: =COUNTIF($D$127:$AA$127,$T$148)*$AB$22 -> 0 | U159: =COUNTIF($D$127:$AA$127,$U$148)*$AB$22 -> 0 | V159: =COUNTIF($D$127:$AA$127,$V$148)*$AB$22 -> 0 | W159: =COUNTIF($D$127:$AA$127,$W$148)*$AB$22 -> 0 | X159: =COUNTIF($D$127:$AA$127,$X$148)*$AB$22 -> 0 | Y159: =COUNTIF($D$127:$AA$127,$Y$148)*$AB$22 -> 0 | Z159: =COUNTIF($D$127:$AA$127,$Z$148)*$AB$22 -> 0 | AA159: =COUNTIF($D$127:$AA$127,$AA$148)*$AB$22 -> 0 | AB159: =COUNTIF($D$127:$AA$127,$AB$148)*$AB$22 -> 0 | AC159: =COUNTIF($D$127:$AA$127,$AC$148)*$AB$22 -> 0 | AD159: =COUNTIF($D$127:$AA$127,$AD$148)*$AB$22 -> 0 | AE159: =COUNTIF($D$127:$AA$127,$AE$148)*$AB$22 -> 0 | AF159: =COUNTIF($D$127:$AA$127,$AF$148)*$AB$22 -> 0 | AG159: =COUNTIF($D$127:$AA$127,$AG$148)*$AB$22 -> 0 | AH159: =COUNTIF($D$127:$AA$127,$AH$148)*$AB$22 -> 0 | AI159: =COUNTIF($D$127:$AA$127,$AI$148)*$AB$22 -> 0 | AJ159: =COUNTIF($D$127:$AA$127,$AJ$148)*$AB$22 -> 0 | AK159: =COUNTIF($D$127:$AA$127,$AK$148)*$AB$22 -> 0 | AL159: =COUNTIF($D$127:$AA$127,$AL$148)*$AB$22 -> 0 | AM159: =COUNTIF($D$127:$AA$127,$AM$148)*$AB$22 -> 0 | AN159: =COUNTIF($D$127:$AA$127,$AN$148)*$AB$22 -> 0 | AO159: =COUNTIF($D$127:$AA$127,$AO$148)*$AB$22 -> 0 | AP159: =COUNTIF($D$127:$AA$127,$AP$148)*$AB$22 -> 0 | AQ159: =COUNTIF($D$127:$AA$127,$AQ$148)*$AB$22 -> 0 | AR159: =COUNTIF($D$127:$AA$127,$AR$148)*$AB$22 -> 0 | AS159: =COUNTIF($D$127:$AA$127,$AS$148)*$AB$22 -> 0 | AT159: 2 | AU159: 0
C160: 3 | D160: =COUNTIF($D$128:$AA$128,$D$148)*$AB$23 -> 0 | E160: =COUNTIF($D$128:$AA$128,$E$148)*$AB$23 -> 0 | F160: =COUNTIF($D$128:$AA$128,$F$148)*$AB$23 -> 0 | G160: =COUNTIF($D$128:$AA$128,$G$148)*$AB$23 -> 0 | H160: =COUNTIF($D$128:$AA$128,$H$148)*$AB$23 -> 0 | I160: =COUNTIF($D$128:$AA$128,$I$148)*$AB$23 -> 0 | J160: =COUNTIF($D$128:$AA$128,$J$148)*$AB$23 -> 0 | K160: =COUNTIF($D$128:$AA$128,$K$148)*$AB$23 -> 0 | L160: =COUNTIF($D$128:$AA$128,$L$148)*$AB$23 -> 0 | M160: =COUNTIF($D$128:$AA$128,$M$148)*$AB$23 -> 0 | N160: =COUNTIF($D$128:$AA$128,$N$148)*$AB$23 -> 0 | O160: =COUNTIF($D$128:$AA$128,$O$148)*$AB$23 -> 0 | P160: =COUNTIF($D$128:$AA$128,$P$148)*$AB$23 -> 0 | Q160: =COUNTIF($D$128:$AA$128,$Q$148)*$AB$23 -> 0 | R160: =COUNTIF($D$128:$AA$128,$R$148)*$AB$23 -> 0 | S160: =COUNTIF($D$128:$AA$128,$S$148)*$AB$23 -> 0 | T160: =COUNTIF($D$128:$AA$128,$T$148)*$AB$23 -> 0 | U160: =COUNTIF($D$128:$AA$128,$U$148)*$AB$23 -> 0 | V160: =COUNTIF($D$128:$AA$128,$V$148)*$AB$23 -> 0 | W160: =COUNTIF($D$128:$AA$128,$W$148)*$AB$23 -> 0 | X160: =COUNTIF($D$128:$AA$128,$X$148)*$AB$23 -> 0 | Y160: =COUNTIF($D$128:$AA$128,$Y$148)*$AB$23 -> 0 | Z160: =COUNTIF($D$128:$AA$128,$Z$148)*$AB$23 -> 0 | AA160: =COUNTIF($D$128:$AA$128,$AA$148)*$AB$23 -> 0 | AB160: =COUNTIF($D$128:$AA$128,$AB$148)*$AB$23 -> 0 | AC160: =COUNTIF($D$128:$AA$128,$AC$148)*$AB$23 -> 0 | AD160: =COUNTIF($D$128:$AA$128,$AD$148)*$AB$23 -> 0 | AE160: =COUNTIF($D$128:$AA$128,$AE$148)*$AB$23 -> 0 | AF160: =COUNTIF($D$128:$AA$128,$AF$148)*$AB$23 -> 0 | AG160: =COUNTIF($D$128:$AA$128,$AG$148)*$AB$23 -> 0 | AH160: =COUNTIF($D$128:$AA$128,$AH$148)*$AB$23 -> 0 | AI160: =COUNTIF($D$128:$AA$128,$AI$148)*$AB$23 -> 0 | AJ160: =COUNTIF($D$128:$AA$128,$AJ$148)*$AB$23 -> 0 | AK160: =COUNTIF($D$128:$AA$128,$AK$148)*$AB$23 -> 0 | AL160: =COUNTIF($D$128:$AA$128,$AL$148)*$AB$23 -> 0 | AM160: =COUNTIF($D$128:$AA$128,$AM$148)*$AB$23 -> 0 | AN160: =COUNTIF($D$128:$AA$128,$AN$148)*$AB$23 -> 0 | AO160: =COUNTIF($D$128:$AA$128,$AO$148)*$AB$23 -> 0 | AP160: =COUNTIF($D$128:$AA$128,$AP$148)*$AB$23 -> 0 | AQ160: =COUNTIF($D$128:$AA$128,$AQ$148)*$AB$23 -> 0 | AR160: =COUNTIF($D$128:$AA$128,$AR$148)*$AB$23 -> 0 | AS160: =COUNTIF($D$128:$AA$128,$AS$148)*$AB$23 -> 0 | AT160: 3 | AU160: 0
C161: 冷房運転時間 | D161: =SUM($D$149:$D$160) -> 0 | E161: =SUM($E$149:$E$160) -> 0 | F161: =SUM($F$149:$F$160) -> 0 | G161: =SUM($G$149:$G$160) -> 0 | H161: =SUM($H$149:$H$160) -> 0 | I161: =SUM($I$149:$I$160) -> 0 | J161: =SUM($J$149:$J$160) -> 0 | K161: =SUM($K$149:$K$160) -> 0 | L161: =SUM($L$149:$L$160) -> 0 | M161: =SUM($M$149:$M$160) -> 0 | N161: =SUM($N$149:$N$160) -> 0 | O161: =SUM($O$149:$O$160) -> 0 | P161: =SUM($P$149:$P$160) -> 0 | Q161: =SUM($Q$149:$Q$160) -> 0 | R161: =SUM($R$149:$R$160) -> 0 | S161: =SUM($S$149:$S$160) -> 0 | T161: =SUM($T$149:$T$160) -> 0 | U161: =SUM($U$149:$U$160) -> 0 | V161: =SUM($V$149:$V$160) -> 0 | W161: =SUM($W$149:$W$160) -> 0 | X161: =SUM($X$149:$X$160) -> 0 | Y161: =SUM($Y$149:$Y$160) -> 0 | Z161: =SUM($Z$149:$Z$160) -> 0 | AA161: =SUM($AA$149:$AA$160) -> 0 | AB161: =SUM($AB$149:$AB$160) -> 0 | AC161: =SUM($AC$149:$AC$160) -> 0 | AD161: =SUM($AD$149:$AD$160) -> 0 | AE161: =SUM($AE$149:$AE$160) -> 0 | AF161: =SUM($AF$149:$AF$160) -> 0 | AG161: =SUM($AG$149:$AG$160) -> 0 | AH161: =SUM($AH$149:$AH$160) -> 0 | AI161: =SUM($AI$149:$AI$160) -> 0 | AJ161: =SUM($AJ$149:$AJ$160) -> 0 | AK161: =SUM($AK$149:$AK$160) -> 0 | AL161: =SUM($AL$149:$AL$160) -> 0 | AM161: =SUM($AM$149:$AM$160) -> 0 | AN161: =SUM($AN$149:$AN$160) -> 0 | AO161: =SUM($AO$149:$AO$160) -> 0 | AP161: =SUM($AP$149:$AP$160) -> 0 | AQ161: =SUM($AQ$149:$AQ$160) -> 0 | AR161: =SUM($AR$149:$AR$160) -> 0 | AS161: =SUM($AS$149:$AS$160) -> 0 | AT161: 冷房運転時間 | AU161: =SUM(AU149:AU160) -> 0 | AV161: =SUM(AV149:AV160) -> 0 | AW161: =SUM(AW149:AW160) -> 0 | AX161: 0 | AY161: 0 | AZ161: 0 | BA161: 0 | BB161: 0 | BC161: 0 | BD161: =SUM(BD149:BD160) -> 0 | BF161: =SUM(BF149:BF160) -> 0 | BG161: =SUM(BG149:BG160) -> 0 | BH161: 0 | BI161: 0 | BJ161: 0 | BK161: 0 | BL161: 0 | BM161: 0 | BN161: 0 | BO161: 0
C162: 冷房空調負荷率 | D162: =IF((1/(35-$M$25))*(D$148-35)+1<0,0,IF((1/(35-$M$25))*(D$148-35)+1>1,1,(1/(35-$M$25))*(D$148-35)+1)) -> 0 | E162: 0 | F162: 0 | G162: 0 | H162: 0 | I162: 0 | J162: 0 | K162: 0 | L162: 0 | M162: 0 | N162: 0 | O162: 0 | P162: 0 | Q162: 0 | R162: 0 | S162: 0 | T162: 0 | U162: 0 | V162: 0 | W162: 0 | X162: 0 | Y162: 0 | Z162: 0 | AA162: 0 | AB162: 0 | AC162: 0.05882352941 | AD162: 0.1176470588 | AE162: 0.1764705882 | AF162: 0.2352941176 | AG162: 0.2941176471 | AH162: 0.3529411765 | AI162: 0.4117647059 | AJ162: 0.4705882353 | AK162: 0.5294117647 | AL162: 0.5882352941 | AM162: 0.6470588235 | AN162: 0.7058823529 | AO162: 0.7647058824 | AP162: 0.8235294118 | AQ162: 0.8823529412 | AR162: 0.9411764706 | AS162: 1 | AT162: 冷房空調負荷率 | AU162: αc
B164: 前1 | C164: 冷房時消費電力比 | D164: =$D$162/$D168 -> 0 | E164: =$E$162/$E168 -> 0 | F164: =$F$162/$F168 -> 0 | G164: =$G$162/$G168 -> 0 | H164: =$H$162/$H168 -> 0 | I164: =$I$162/$I168 -> 0 | J164: =$J$162/$J168 -> 0 | K164: =$K$162/$K168 -> 0 | L164: =$L$162/$L168 -> 0 | M164: =$M$162/$M168 -> 0 | N164: =$N$162/$N168 -> 0 | O164: =$O$162/$O168 -> 0 | P164: =$P$162/$P168 -> 0 | Q164: =$Q$162/$Q168 -> 0 | R164: =$R$162/$R168 -> 0 | S164: =$S$162/$S168 -> 0 | T164: =$T$162/$T168 -> 0 | U164: =$U$162/$U168 -> 0 | V164: =$V$162/$V168 -> 0 | W164: =$W$162/$W168 -> 0 | X164: =$X$162/$X168 -> 0 | Y164: =$Y$162/$Y168 -> 0 | Z164: =$Z$162/$Z168 -> 0 | AA164: =$AA$162/$AA168 -> 0 | AB164: =$AB$162/$AB168 -> 0 | AC164: =$AC$162/$AC168 -> 0.03761061947 | AD164: =$AD$162/$AD168 -> 0.0774448144 | AE164: =$AE$162/$AE168 -> 0.1195751542 | AF164: =$AF$162/$AF168 -> 0.1640774007 | AG164: =$AG$162/$AG168 -> 0.2110306861 | AH164: =$AH$162/$AH168 -> 0.260517702 | AI164: =$AI$162/$AI168 -> 0.3126249023 | AJ164: =$AJ$162/$AJ168 -> 0.3674427189 | AK164: =$AK$162/$AK168 -> 0.4250657942 | AL164: =$AL$162/$AL168 -> 0.485593228 | AM164: =$AM$162/$AM168 -> 0.5491288437 | AN164: =$AN$162/$AN168 -> 0.6157814731 | AO164: =$AO$162/$AO168 -> 0.6856652617 | AP164: =$AP$162/$AP168 -> 0.7588999972 | AQ164: =$AQ$162/$AQ168 -> 0.8356114627 | AR164: =$AR$162/$AR168 -> 0.9159318162 | AS164: =$AS$162/$AS168 -> 1 | AT164: 冷房時消費電力比 | AU164: εc
C165: 冷房能力 | D165: =($Q$29-1.077*$Q$29)/6*($D$148-35)+$Q$29 -> 33.57566667 | E165: =($Q$29-1.077*$Q$29)/6*($E$148-35)+$Q$29 -> 33.29333333 | F165: =($Q$29-1.077*$Q$29)/6*($F$148-35)+$Q$29 -> 33.011 | G165: =($Q$29-1.077*$Q$29)/6*($G$148-35)+$Q$29 -> 32.72866667 | H165: =($Q$29-1.077*$Q$29)/6*($H$148-35)+$Q$29 -> 32.44633333 | I165: =($Q$29-1.077*$Q$29)/6*($I$148-35)+$Q$29 -> 32.164 | J165: =($Q$29-1.077*$Q$29)/6*($J$148-35)+$Q$29 -> 31.88166667 | K165: =($Q$29-1.077*$Q$29)/6*($K$148-35)+$Q$29 -> 31.59933333 | L165: =($Q$29-1.077*$Q$29)/6*($L$148-35)+$Q$29 -> 31.317 | M165: =($Q$29-1.077*$Q$29)/6*($M$148-35)+$Q$29 -> 31.03466667 | N165: =($Q$29-1.077*$Q$29)/6*($N$148-35)+$Q$29 -> 30.75233333 | O165: =($Q$29-1.077*$Q$29)/6*($O$148-35)+$Q$29 -> 30.47 | P165: =($Q$29-1.077*$Q$29)/6*($P$148-35)+$Q$29 -> 30.18766667 | Q165: =($Q$29-1.077*$Q$29)/6*($Q$148-35)+$Q$29 -> 29.90533333 | R165: =($Q$29-1.077*$Q$29)/6*($R$148-35)+$Q$29 -> 29.623 | S165: =($Q$29-1.077*$Q$29)/6*($S$148-35)+$Q$29 -> 29.34066667 | T165: =($Q$29-1.077*$Q$29)/6*($T$148-35)+$Q$29 -> 29.05833333 | U165: =($Q$29-1.077*$Q$29)/6*($U$148-35)+$Q$29 -> 28.776 | V165: =($Q$29-1.077*$Q$29)/6*($V$148-35)+$Q$29 -> 28.49366667 | W165: =($Q$29-1.077*$Q$29)/6*($W$148-35)+$Q$29 -> 28.21133333 | X165: =($Q$29-1.077*$Q$29)/6*($X$148-35)+$Q$29 -> 27.929 | Y165: =($Q$29-1.077*$Q$29)/6*($Y$148-35)+$Q$29 -> 27.64666667 | Z165: =($Q$29-1.077*$Q$29)/6*($Z$148-35)+$Q$29 -> 27.36433333 | AA165: =($Q$29-1.077*$Q$29)/6*($AA$148-35)+$Q$29 -> 27.082 | AB165: =($Q$29-1.077*$Q$29)/6*($AB$148-35)+$Q$29 -> 26.79966667 | AC165: =($Q$29-1.077*$Q$29)/6*($AC$148-35)+$Q$29 -> 26.51733333 | AD165: =($Q$29-1.077*$Q$29)/6*($AD$148-35)+$Q$29 -> 26.235 | AE165: =($Q$29-1.077*$Q$29)/6*($AE$148-35)+$Q$29 -> 25.95266667 | AF165: =($Q$29-1.077*$Q$29)/6*($AF$148-35)+$Q$29 -> 25.67033333 | AG165: =($Q$29-1.077*$Q$29)/6*($AG$148-35)+$Q$29 -> 25.388 | AH165: =($Q$29-1.077*$Q$29)/6*($AH$148-35)+$Q$29 -> 25.10566667 | AI165: =($Q$29-1.077*$Q$29)/6*($AI$148-35)+$Q$29 -> 24.82333333 | AJ165: =($Q$29-1.077*$Q$29)/6*($AJ$148-35)+$Q$29 -> 24.541 | AK165: =($Q$29-1.077*$Q$29)/6*($AK$148-35)+$Q$29 -> 24.25866667 | AL165: =($Q$29-1.077*$Q$29)/6*($AL$148-35)+$Q$29 -> 23.97633333 | AM165: =($Q$29-1.077*$Q$29)/6*($AM$148-35)+$Q$29 -> 23.694 | AN165: =($Q$29-1.077*$Q$29)/6*($AN$148-35)+$Q$29 -> 23.41166667 | AO165: =($Q$29-1.077*$Q$29)/6*($AO$148-35)+$Q$29 -> 23.12933333 | AP165: =($Q$29-1.077*$Q$29)/6*($AP$148-35)+$Q$29 -> 22.847 | AQ165: =($Q$29-1.077*$Q$29)/6*($AQ$148-35)+$Q$29 -> 22.56466667 | AR165: =($Q$29-1.077*$Q$29)/6*($AR$148-35)+$Q$29 -> 22.28233333 | AS165: =($Q$29-1.077*$Q$29)/6*($AS$148-35)+$Q$29 -> 22 | AT165: 冷房能力 | AU165: Φc
C166: 冷房消費電力 | D166: =($Q$30-0.914*$Q$30)/6*($D$148-35)+$Q$30 -> 2.7214 | E166: =($Q$30-0.914*$Q$30)/6*($E$148-35)+$Q$30 -> 2.816 | F166: =($Q$30-0.914*$Q$30)/6*($F$148-35)+$Q$30 -> 2.9106 | G166: =($Q$30-0.914*$Q$30)/6*($G$148-35)+$Q$30 -> 3.0052 | H166: =($Q$30-0.914*$Q$30)/6*($H$148-35)+$Q$30 -> 3.0998 | I166: =($Q$30-0.914*$Q$30)/6*($I$148-35)+$Q$30 -> 3.1944 | J166: =($Q$30-0.914*$Q$30)/6*($J$148-35)+$Q$30 -> 3.289 | K166: =($Q$30-0.914*$Q$30)/6*($K$148-35)+$Q$30 -> 3.3836 | L166: =($Q$30-0.914*$Q$30)/6*($L$148-35)+$Q$30 -> 3.4782 | M166: =($Q$30-0.914*$Q$30)/6*($M$148-35)+$Q$30 -> 3.5728 | N166: =($Q$30-0.914*$Q$30)/6*($N$148-35)+$Q$30 -> 3.6674 | O166: =($Q$30-0.914*$Q$30)/6*($O$148-35)+$Q$30 -> 3.762 | P166: =($Q$30-0.914*$Q$30)/6*($P$148-35)+$Q$30 -> 3.8566 | Q166: =($Q$30-0.914*$Q$30)/6*($Q$148-35)+$Q$30 -> 3.9512 | R166: =($Q$30-0.914*$Q$30)/6*($R$148-35)+$Q$30 -> 4.0458 | S166: =($Q$30-0.914*$Q$30)/6*($S$148-35)+$Q$30 -> 4.1404 | T166: =($Q$30-0.914*$Q$30)/6*($T$148-35)+$Q$30 -> 4.235 | U166: =($Q$30-0.914*$Q$30)/6*($U$148-35)+$Q$30 -> 4.3296 | V166: =($Q$30-0.914*$Q$30)/6*($V$148-35)+$Q$30 -> 4.4242 | W166: =($Q$30-0.914*$Q$30)/6*($W$148-35)+$Q$30 -> 4.5188 | X166: =($Q$30-0.914*$Q$30)/6*($X$148-35)+$Q$30 -> 4.6134 | Y166: =($Q$30-0.914*$Q$30)/6*($Y$148-35)+$Q$30 -> 4.708 | Z166: =($Q$30-0.914*$Q$30)/6*($Z$148-35)+$Q$30 -> 4.8026 | AA166: =($Q$30-0.914*$Q$30)/6*($AA$148-35)+$Q$30 -> 4.8972 | AB166: =($Q$30-0.914*$Q$30)/6*($AB$148-35)+$Q$30 -> 4.9918 | AC166: =($Q$30-0.914*$Q$30)/6*($AC$148-35)+$Q$30 -> 5.0864 | AD166: =($Q$30-0.914*$Q$30)/6*($AD$148-35)+$Q$30 -> 5.181 | AE166: =($Q$30-0.914*$Q$30)/6*($AE$148-35)+$Q$30 -> 5.2756 | AF166: =($Q$30-0.914*$Q$30)/6*($AF$148-35)+$Q$30 -> 5.3702 | AG166: =($Q$30-0.914*$Q$30)/6*($AG$148-35)+$Q$30 -> 5.4648 | AH166: =($Q$30-0.914*$Q$30)/6*($AH$148-35)+$Q$30 -> 5.5594 | AI166: =($Q$30-0.914*$Q$30)/6*($AI$148-35)+$Q$30 -> 5.654 | AJ166: =($Q$30-0.914*$Q$30)/6*($AJ$148-35)+$Q$30 -> 5.7486 | AK166: =($Q$30-0.914*$Q$30)/6*($AK$148-35)+$Q$30 -> 5.8432 | AL166: =($Q$30-0.914*$Q$30)/6*($AL$148-35)+$Q$30 -> 5.9378 | AM166: =($Q$30-0.914*$Q$30)/6*($AM$148-35)+$Q$30 -> 6.0324 | AN166: =($Q$30-0.914*$Q$30)/6*($AN$148-35)+$Q$30 -> 6.127 | AO166: =($Q$30-0.914*$Q$30)/6*($AO$148-35)+$Q$30 -> 6.2216 | AP166: =($Q$30-0.914*$Q$30)/6*($AP$148-35)+$Q$30 -> 6.3162 | AQ166: =($Q$30-0.914*$Q$30)/6*($AQ$148-35)+$Q$30 -> 6.4108 | AR166: =($Q$30-0.914*$Q$30)/6*($AR$148-35)+$Q$30 -> 6.5054 | AS166: =($Q$30-0.914*$Q$30)/6*($AS$148-35)+$Q$30 -> 6.6 | AT166: 冷房消費電力 | AU166: Pc
C167: 冷房COP | D167: =$D$165/$D$166 -> 12.33764484 | E167: =$E$165/$E$166 -> 11.82291667 | F167: =$F$165/$F$166 -> 11.34164777 | G167: =$G$165/$G$166 -> 10.89067838 | H167: =$H$165/$H$166 -> 10.46723445 | I167: =$I$165/$I$166 -> 10.06887052 | J167: =$J$165/$J$166 -> 9.69342252 | K167: =$K$165/$K$166 -> 9.338968357 | L167: =$L$165/$L$166 -> 9.003795066 | M167: =$M$165/$M$166 -> 8.6863711 | N167: =$N$165/$N$166 -> 8.385322935 | O167: =$O$165/$O$166 -> 8.099415205 | P167: =$P$165/$P$166 -> 7.827533752 | Q167: =$Q$165/$Q$166 -> 7.568671121 | R167: =$R$165/$R$166 -> 7.321914084 | S167: =$S$165/$S$166 -> 7.086432873 | T167: =$T$165/$T$166 -> 6.861471861 | U167: =$U$165/$U$166 -> 6.646341463 | V167: =$V$165/$V$166 -> 6.440411072 | W167: =$W$165/$W$166 -> 6.243102889 | X167: =$X$165/$X$166 -> 6.053886505 | Y167: =$Y$165/$Y$166 -> 5.872274143 | Z167: =$Z$165/$Z$166 -> 5.697816461 | AA167: =$AA$165/$AA$166 -> 5.530098832 | AB167: =$AB$165/$AB$166 -> 5.368738064 | AC167: =$AC$165/$AC$166 -> 5.213379469 | AD167: =$AD$165/$AD$166 -> 5.063694268 | AE167: =$AE$165/$AE$166 -> 4.919377259 | AF167: =$AF$165/$AF$166 -> 4.780144749 | AG167: =$AG$165/$AG$166 -> 4.645732689 | AH167: =$AH$165/$AH$166 -> 4.515895001 | AI167: =$AI$165/$AI$166 -> 4.390402075 | AJ167: =$AJ$165/$AJ$166 -> 4.269039418 | AK167: =$AK$165/$AK$166 -> 4.151606426 | AL167: =$AL$165/$AL$166 -> 4.037915277 | AM167: =$AM$165/$AM$166 -> 3.927789934 | AN167: =$AN$165/$AN$166 -> 3.82106523 | AO167: =$AO$165/$AO$166 -> 3.717586044 | AP167: =$AP$165/$AP$166 -> 3.617206548 | AQ167: =$AQ$165/$AQ$166 -> 3.519789522 | AR167: =$AR$165/$AR$166 -> 3.425205727 | AS167: =$AS$165/$AS$166 -> 3.333333333 | AT167: 冷房COP | AU167: σc
C168: 冷房COP比 | D168: =$D$167/$AS$167 -> 3.701293452 | E168: =$E$167/$AS$167 -> 3.546875 | F168: =$F$167/$AS$167 -> 3.402494331 | G168: =$G$167/$AS$167 -> 3.267203514 | H168: =$H$167/$AS$167 -> 3.140170334 | I168: =$I$167/$AS$167 -> 3.020661157 | J168: =$J$167/$AS$167 -> 2.908026756 | K168: =$K$167/$AS$167 -> 2.801690507 | L168: =$L$167/$AS$167 -> 2.70113852 | M168: =$M$167/$AS$167 -> 2.60591133 | N168: =$N$167/$AS$167 -> 2.515596881 | O168: =$O$167/$AS$167 -> 2.429824561 | P168: =$P$167/$AS$167 -> 2.348260125 | Q168: =$Q$167/$AS$167 -> 2.270601336 | R168: =$R$167/$AS$167 -> 2.196574225 | S168: =$S$167/$AS$167 -> 2.125929862 | T168: =$T$167/$AS$167 -> 2.058441558 | U168: =$U$167/$AS$167 -> 1.993902439 | V168: =$V$167/$AS$167 -> 1.932123322 | W168: =$W$167/$AS$167 -> 1.872930867 | X168: =$X$167/$AS$167 -> 1.816165951 | Y168: =$Y$167/$AS$167 -> 1.761682243 | Z168: =$Z$167/$AS$167 -> 1.709344938 | AA168: =$AA$167/$AS$167 -> 1.65902965 | AB168: =$AB$167/$AS$167 -> 1.610621419 | AC168: =$AC$167/$AS$167 -> 1.564013841 | AD168: =$AD$167/$AS$167 -> 1.51910828 | AE168: =$AE$167/$AS$167 -> 1.475813178 | AF168: =$AF$167/$AS$167 -> 1.434043425 | AG168: =$AG$167/$AS$167 -> 1.393719807 | AH168: =$AH$167/$AS$167 -> 1.3547685 | AI168: =$AI$167/$AS$167 -> 1.317120623 | AJ168: =$AJ$167/$AS$167 -> 1.280711825 | AK168: =$AK$167/$AS$167 -> 1.245481928 | AL168: =$AL$167/$AS$167 -> 1.211374583 | AM168: =$AM$167/$AS$167 -> 1.17833698 | AN168: =$AN$167/$AS$167 -> 1.146319569 | AO168: =$AO$167/$AS$167 -> 1.115275813 | AP168: =$AP$167/$AS$167 -> 1.085161964 | AQ168: =$AQ$167/$AS$167 -> 1.055936857 | AR168: =$AR$167/$AS$167 -> 1.027561718 | AS168: =$AS$167/$AS$167 -> 1 | AT168: 冷房COP比 | AU168: βc
C169: Σ | D169: =$D$161*$D$164 -> 0 | E169: =$E$161*$E$164 -> 0 | F169: =$F$161*$F$164 -> 0 | G169: =$G$161*$G$164 -> 0 | H169: =$H$161*$H$164 -> 0 | I169: =$I$161*$I$164 -> 0 | J169: =$J$161*$J$164 -> 0 | K169: =$K$161*$K$164 -> 0 | L169: =$L$161*$L$164 -> 0 | M169: =$M$161*$M$164 -> 0 | N169: =$N$161*$N$164 -> 0 | O169: =$O$161*$O$164 -> 0 | P169: =$P$161*$P$164 -> 0 | Q169: =$Q$161*$Q$164 -> 0 | R169: =$R$161*$R$164 -> 0 | S169: =$S$161*$S$164 -> 0 | T169: =$T$161*$T$164 -> 0 | U169: =$U$161*$U$164 -> 0 | V169: =$V$161*$V$164 -> 0 | W169: =$W$161*$W$164 -> 0 | X169: =$X$161*$X$164 -> 0 | Y169: =$Y$161*$Y$164 -> 0 | Z169: =$Z$161*$Z$164 -> 0 | AA169: =$AA$161*$AA$164 -> 0 | AB169: =$AB$161*$AB$164 -> 0 | AC169: =$AC$161*$AC$164 -> 0 | AD169: =$AD$161*$AD$164 -> 0 | AE169: =$AE$161*$AE$164 -> 0 | AF169: =$AF$161*$AF$164 -> 0 | AG169: =$AG$161*$AG$164 -> 0 | AH169: =$AH$161*$AH$164 -> 0 | AI169: =$AI$161*$AI$164 -> 0 | AJ169: =$AJ$161*$AJ$164 -> 0 | AK169: =$AK$161*$AK$164 -> 0 | AL169: =$AL$161*$AL$164 -> 0 | AM169: =$AM$161*$AM$164 -> 0 | AN169: =$AN$161*$AN$164 -> 0 | AO169: =$AO$161*$AO$164 -> 0 | AP169: =$AP$161*$AP$164 -> 0 | AQ169: =$AQ$161*$AQ$164 -> 0 | AR169: =$AR$161*$AR$164 -> 0 | AS169: =$AS$161*$AS$164 -> 0 | AT169: =SUM($D$169:$AS$169) -> 0 | AU169: Σ
B170: 前2 | C170: 冷房時消費電力比 | D170: =$D$162/$D174 ->  | E170: =$E$162/$E174 ->  | F170: =$F$162/$F174 ->  | G170: =$G$162/$G174 ->  | H170: =$H$162/$H174 ->  | I170: =$I$162/$I174 ->  | J170: =$J$162/$J174 ->  | K170: =$K$162/$K174 ->  | L170: =$L$162/$L174 ->  | M170: =$M$162/$M174 ->  | N170: =$N$162/$N174 ->  | O170: =$O$162/$O174 ->  | P170: =$P$162/$P174 ->  | Q170: =$Q$162/$Q174 ->  | R170: =$R$162/$R174 ->  | S170: =$S$162/$S174 ->  | T170: =$T$162/$T174 ->  | U170: =$U$162/$U174 ->  | V170: =$V$162/$V174 ->  | W170: =$W$162/$W174 ->  | X170: =$X$162/$X174 ->  | Y170: =$Y$162/$Y174 ->  | Z170: =$Z$162/$Z174 ->  | AA170: =$AA$162/$AA174 ->  | AB170: =$AB$162/$AB174 ->  | AC170: =$AC$162/$AC174 ->  | AD170: =$AD$162/$AD174 ->  | AE170: =$AE$162/$AE174 ->  | AF170: =$AF$162/$AF174 ->  | AG170: =$AG$162/$AG174 ->  | AH170: =$AH$162/$AH174 ->  | AI170: =$AI$162/$AI174 ->  | AJ170: =$AJ$162/$AJ174 ->  | AK170: =$AK$162/$AK174 ->  | AL170: =$AL$162/$AL174 ->  | AM170: =$AM$162/$AM174 ->  | AN170: =$AN$162/$AN174 ->  | AO170: =$AO$162/$AO174 ->  | AP170: =$AP$162/$AP174 ->  | AQ170: =$AQ$162/$AQ174 ->  | AR170: =$AR$162/$AR174 ->  | AS170: =$AS$162/$AS174 ->  | AT170: 冷房時消費電力比 | AU170: εc
C171: 冷房能力 | D171: =($R$29-1.077*$R$29)/6*($D$148-35)+$R$29 -> 0 | E171: =($R$29-1.077*$R$29)/6*($E$148-35)+$R$29 -> 0 | F171: =($R$29-1.077*$R$29)/6*($F$148-35)+$R$29 -> 0 | G171: =($R$29-1.077*$R$29)/6*($G$148-35)+$R$29 -> 0 | H171: =($R$29-1.077*$R$29)/6*($H$148-35)+$R$29 -> 0 | I171: =($R$29-1.077*$R$29)/6*($I$148-35)+$R$29 -> 0 | J171: =($R$29-1.077*$R$29)/6*($J$148-35)+$R$29 -> 0 | K171: =($R$29-1.077*$R$29)/6*($K$148-35)+$R$29 -> 0 | L171: =($R$29-1.077*$R$29)/6*($L$148-35)+$R$29 -> 0 | M171: =($R$29-1.077*$R$29)/6*($M$148-35)+$R$29 -> 0 | N171: =($R$29-1.077*$R$29)/6*($N$148-35)+$R$29 -> 0 | O171: =($R$29-1.077*$R$29)/6*($O$148-35)+$R$29 -> 0 | P171: =($R$29-1.077*$R$29)/6*($P$148-35)+$R$29 -> 0 | Q171: =($R$29-1.077*$R$29)/6*($Q$148-35)+$R$29 -> 0 | R171: =($R$29-1.077*$R$29)/6*($R$148-35)+$R$29 -> 0 | S171: =($R$29-1.077*$R$29)/6*($S$148-35)+$R$29 -> 0 | T171: =($R$29-1.077*$R$29)/6*($T$148-35)+$R$29 -> 0 | U171: =($R$29-1.077*$R$29)/6*($U$148-35)+$R$29 -> 0 | V171: =($R$29-1.077*$R$29)/6*($V$148-35)+$R$29 -> 0 | W171: =($R$29-1.077*$R$29)/6*($W$148-35)+$R$29 -> 0 | X171: =($R$29-1.077*$R$29)/6*($X$148-35)+$R$29 -> 0 | Y171: =($R$29-1.077*$R$29)/6*($Y$148-35)+$R$29 -> 0 | Z171: =($R$29-1.077*$R$29)/6*($Z$148-35)+$R$29 -> 0 | AA171: =($R$29-1.077*$R$29)/6*($AA$148-35)+$R$29 -> 0 | AB171: =($R$29-1.077*$R$29)/6*($AB$148-35)+$R$29 -> 0 | AC171: =($R$29-1.077*$R$29)/6*($AC$148-35)+$R$29 -> 0 | AD171: =($R$29-1.077*$R$29)/6*($AD$148-35)+$R$29 -> 0 | AE171: =($R$29-1.077*$R$29)/6*($AE$148-35)+$R$29 -> 0 | AF171: =($R$29-1.077*$R$29)/6*($AF$148-35)+$R$29 -> 0 | AG171: =($R$29-1.077*$R$29)/6*($AG$148-35)+$R$29 -> 0 | AH171: =($R$29-1.077*$R$29)/6*($AH$148-35)+$R$29 -> 0 | AI171: =($R$29-1.077*$R$29)/6*($AI$148-35)+$R$29 -> 0 | AJ171: =($R$29-1.077*$R$29)/6*($AJ$148-35)+$R$29 -> 0 | AK171: =($R$29-1.077*$R$29)/6*($AK$148-35)+$R$29 -> 0 | AL171: =($R$29-1.077*$R$29)/6*($AL$148-35)+$R$29 -> 0 | AM171: =($R$29-1.077*$R$29)/6*($AM$148-35)+$R$29 -> 0 | AN171: =($R$29-1.077*$R$29)/6*($AN$148-35)+$R$29 -> 0 | AO171: =($R$29-1.077*$R$29)/6*($AO$148-35)+$R$29 -> 0 | AP171: =($R$29-1.077*$R$29)/6*($AP$148-35)+$R$29 -> 0 | AQ171: =($R$29-1.077*$R$29)/6*($AQ$148-35)+$R$29 -> 0 | AR171: =($R$29-1.077*$R$29)/6*($AR$148-35)+$R$29 -> 0 | AS171: =($R$29-1.077*$R$29)/6*($AS$148-35)+$R$29 -> 0 | AT171: 冷房能力 | AU171: Φc
C172: 冷房消費電力 | D172: =($R$30-0.914*$R$30)/6*($D$148-35)+$R$30 -> 0 | E172: =($R$30-0.914*$R$30)/6*($E$148-35)+$R$30 -> 0 | F172: =($R$30-0.914*$R$30)/6*($F$148-35)+$R$30 -> 0 | G172: =($R$30-0.914*$R$30)/6*($G$148-35)+$R$30 -> 0 | H172: =($R$30-0.914*$R$30)/6*($H$148-35)+$R$30 -> 0 | I172: =($R$30-0.914*$R$30)/6*($I$148-35)+$R$30 -> 0 | J172: =($R$30-0.914*$R$30)/6*($J$148-35)+$R$30 -> 0 | K172: =($R$30-0.914*$R$30)/6*($K$148-35)+$R$30 -> 0 | L172: =($R$30-0.914*$R$30)/6*($L$148-35)+$R$30 -> 0 | M172: =($R$30-0.914*$R$30)/6*($M$148-35)+$R$30 -> 0 | N172: =($R$30-0.914*$R$30)/6*($N$148-35)+$R$30 -> 0 | O172: =($R$30-0.914*$R$30)/6*($O$148-35)+$R$30 -> 0 | P172: =($R$30-0.914*$R$30)/6*($P$148-35)+$R$30 -> 0 | Q172: =($R$30-0.914*$R$30)/6*($Q$148-35)+$R$30 -> 0 | R172: =($R$30-0.914*$R$30)/6*($R$148-35)+$R$30 -> 0 | S172: =($R$30-0.914*$R$30)/6*($S$148-35)+$R$30 -> 0 | T172: =($R$30-0.914*$R$30)/6*($T$148-35)+$R$30 -> 0 | U172: =($R$30-0.914*$R$30)/6*($U$148-35)+$R$30 -> 0 | V172: =($R$30-0.914*$R$30)/6*($V$148-35)+$R$30 -> 0 | W172: =($R$30-0.914*$R$30)/6*($W$148-35)+$R$30 -> 0 | X172: =($R$30-0.914*$R$30)/6*($X$148-35)+$R$30 -> 0 | Y172: =($R$30-0.914*$R$30)/6*($Y$148-35)+$R$30 -> 0 | Z172: =($R$30-0.914*$R$30)/6*($Z$148-35)+$R$30 -> 0 | AA172: =($R$30-0.914*$R$30)/6*($AA$148-35)+$R$30 -> 0 | AB172: =($R$30-0.914*$R$30)/6*($AB$148-35)+$R$30 -> 0 | AC172: =($R$30-0.914*$R$30)/6*($AC$148-35)+$R$30 -> 0 | AD172: =($R$30-0.914*$R$30)/6*($AD$148-35)+$R$30 -> 0 | AE172: =($R$30-0.914*$R$30)/6*($AE$148-35)+$R$30 -> 0 | AF172: =($R$30-0.914*$R$30)/6*($AF$148-35)+$R$30 -> 0 | AG172: =($R$30-0.914*$R$30)/6*($AG$148-35)+$R$30 -> 0 | AH172: =($R$30-0.914*$R$30)/6*($AH$148-35)+$R$30 -> 0 | AI172: =($R$30-0.914*$R$30)/6*($AI$148-35)+$R$30 -> 0 | AJ172: =($R$30-0.914*$R$30)/6*($AJ$148-35)+$R$30 -> 0 | AK172: =($R$30-0.914*$R$30)/6*($AK$148-35)+$R$30 -> 0 | AL172: =($R$30-0.914*$R$30)/6*($AL$148-35)+$R$30 -> 0 | AM172: =($R$30-0.914*$R$30)/6*($AM$148-35)+$R$30 -> 0 | AN172: =($R$30-0.914*$R$30)/6*($AN$148-35)+$R$30 -> 0 | AO172: =($R$30-0.914*$R$30)/6*($AO$148-35)+$R$30 -> 0 | AP172: =($R$30-0.914*$R$30)/6*($AP$148-35)+$R$30 -> 0 | AQ172: =($R$30-0.914*$R$30)/6*($AQ$148-35)+$R$30 -> 0 | AR172: =($R$30-0.914*$R$30)/6*($AR$148-35)+$R$30 -> 0 | AS172: =($R$30-0.914*$R$30)/6*($AS$148-35)+$R$30 -> 0 | AT172: 冷房消費電力 | AU172: Pc
C173: 冷房COP | D173: =D$171/D$172 ->  | E173: =E$171/E$172 ->  | AT173: 冷房COP | AU173: σc
C174: 冷房COP比 | D174: =D$173/$AS$173 ->  | AT174: 冷房COP比 | AU174: βc
C175: Σ | D175: =D$161*D$170 ->  | E175: =E$161*E$170 ->  | G175: =G$161*G$170 ->  | AT175: =SUM($D$175:$AS$175) ->  | AU175: Σ
B176: 前3 | C176: 冷房時消費電力比 | D176: =$D$162/$D180 ->  | E176: =$E$162/$E180 ->  | F176: =$F$162/$F180 ->  | G176: =$G$162/$G180 ->  | H176: =$H$162/$H180 ->  | I176: =$I$162/$I180 ->  | J176: =$J$162/$J180 ->  | K176: =$K$162/$K180 ->  | L176: =$L$162/$L180 ->  | M176: =$M$162/$M180 ->  | N176: =$N$162/$N180 ->  | O176: =$O$162/$O180 ->  | P176: =$P$162/$P180 ->  | Q176: =$Q$162/$Q180 ->  | R176: =$R$162/$R180 ->  | S176: =$S$162/$S180 ->  | T176: =$T$162/$T180 ->  | U176: =$U$162/$U180 ->  | V176: =$V$162/$V180 ->  | W176: =$W$162/$W180 ->  | X176: =$X$162/$X180 ->  | Y176: =$Y$162/$Y180 ->  | Z176: =$Z$162/$Z180 ->  | AA176: =$AA$162/$AA180 ->  | AB176: =$AB$162/$AB180 ->  | AC176: =$AC$162/$AC180 ->  | AD176: =$AD$162/$AD180 ->  | AE176: =$AE$162/$AE180 ->  | AF176: =$AF$162/$AF180 ->  | AG176: =$AG$162/$AG180 ->  | AH176: =$AH$162/$AH180 ->  | AI176: =$AI$162/$AI180 ->  | AJ176: =$AJ$162/$AJ180 ->  | AK176: =$AK$162/$AK180 ->  | AL176: =$AL$162/$AL180 ->  | AM176: =$AM$162/$AM180 ->  | AN176: =$AN$162/$AN180 ->  | AO176: =$AO$162/$AO180 ->  | AP176: =$AP$162/$AP180 ->  | AQ176: =$AQ$162/$AQ180 ->  | AR176: =$AR$162/$AR180 ->  | AS176: =$AS$162/$AS180 ->  | AT176: 冷房時消費電力比 | AU176: εc
C177: 冷房能力 | D177: =($S$29-1.077*$S$29)/6*($D$148-35)+$S$29 -> 0 | E177: =($S$29-1.077*$S$29)/6*($E$148-35)+$S$29 -> 0 | F177: =($S$29-1.077*$S$29)/6*($F$148-35)+$S$29 -> 0 | G177: =($S$29-1.077*$S$29)/6*($G$148-35)+$S$29 -> 0 | H177: =($S$29-1.077*$S$29)/6*($H$148-35)+$S$29 -> 0 | I177: =($S$29-1.077*$S$29)/6*($I$148-35)+$S$29 -> 0 | J177: =($S$29-1.077*$S$29)/6*($J$148-35)+$S$29 -> 0 | K177: =($S$29-1.077*$S$29)/6*($K$148-35)+$S$29 -> 0 | L177: =($S$29-1.077*$S$29)/6*($L$148-35)+$S$29 -> 0 | M177: =($S$29-1.077*$S$29)/6*($M$148-35)+$S$29 -> 0 | N177: =($S$29-1.077*$S$29)/6*($N$148-35)+$S$29 -> 0 | O177: =($S$29-1.077*$S$29)/6*($O$148-35)+$S$29 -> 0 | P177: =($S$29-1.077*$S$29)/6*($P$148-35)+$S$29 -> 0 | Q177: =($S$29-1.077*$S$29)/6*($Q$148-35)+$S$29 -> 0 | R177: =($S$29-1.077*$S$29)/6*($R$148-35)+$S$29 -> 0 | S177: =($S$29-1.077*$S$29)/6*($S$148-35)+$S$29 -> 0 | T177: =($S$29-1.077*$S$29)/6*($T$148-35)+$S$29 -> 0 | U177: =($S$29-1.077*$S$29)/6*($U$148-35)+$S$29 -> 0 | V177: =($S$29-1.077*$S$29)/6*($V$148-35)+$S$29 -> 0 | W177: =($S$29-1.077*$S$29)/6*($W$148-35)+$S$29 -> 0 | X177: =($S$29-1.077*$S$29)/6*($X$148-35)+$S$29 -> 0 | Y177: =($S$29-1.077*$S$29)/6*($Y$148-35)+$S$29 -> 0 | Z177: =($S$29-1.077*$S$29)/6*($Z$148-35)+$S$29 -> 0 | AA177: =($S$29-1.077*$S$29)/6*($AA$148-35)+$S$29 -> 0 | AB177: =($S$29-1.077*$S$29)/6*($AB$148-35)+$S$29 -> 0 | AC177: =($S$29-1.077*$S$29)/6*($AC$148-35)+$S$29 -> 0 | AD177: =($S$29-1.077*$S$29)/6*($AD$148-35)+$S$29 -> 0 | AE177: =($S$29-1.077*$S$29)/6*($AE$148-35)+$S$29 -> 0 | AF177: =($S$29-1.077*$S$29)/6*($AF$148-35)+$S$29 -> 0 | AG177: =($S$29-1.077*$S$29)/6*($AG$148-35)+$S$29 -> 0 | AH177: =($S$29-1.077*$S$29)/6*($AH$148-35)+$S$29 -> 0 | AI177: =($S$29-1.077*$S$29)/6*($AI$148-35)+$S$29 -> 0 | AJ177: =($S$29-1.077*$S$29)/6*($AJ$148-35)+$S$29 -> 0 | AK177: =($S$29-1.077*$S$29)/6*($AK$148-35)+$S$29 -> 0 | AL177: =($S$29-1.077*$S$29)/6*($AL$148-35)+$S$29 -> 0 | AM177: =($S$29-1.077*$S$29)/6*($AM$148-35)+$S$29 -> 0 | AN177: =($S$29-1.077*$S$29)/6*($AN$148-35)+$S$29 -> 0 | AO177: =($S$29-1.077*$S$29)/6*($AO$148-35)+$S$29 -> 0 | AP177: =($S$29-1.077*$S$29)/6*($AP$148-35)+$S$29 -> 0 | AQ177: =($S$29-1.077*$S$29)/6*($AQ$148-35)+$S$29 -> 0 | AR177: =($S$29-1.077*$S$29)/6*($AR$148-35)+$S$29 -> 0 | AS177: =($S$29-1.077*$S$29)/6*($AS$148-35)+$S$29 -> 0 | AT177: 冷房能力 | AU177: Φc
C178: 冷房消費電力 | D178: =($S$30-0.914*$S$30)/6*($D$148-35)+$S$30 -> 0 | E178: =($S$30-0.914*$S$30)/6*($E$148-35)+$S$30 -> 0 | F178: =($S$30-0.914*$S$30)/6*($F$148-35)+$S$30 -> 0 | G178: =($S$30-0.914*$S$30)/6*($G$148-35)+$S$30 -> 0 | H178: =($S$30-0.914*$S$30)/6*($H$148-35)+$S$30 -> 0 | I178: =($S$30-0.914*$S$30)/6*($I$148-35)+$S$30 -> 0 | J178: =($S$30-0.914*$S$30)/6*($J$148-35)+$S$30 -> 0 | K178: =($S$30-0.914*$S$30)/6*($K$148-35)+$S$30 -> 0 | L178: =($S$30-0.914*$S$30)/6*($L$148-35)+$S$30 -> 0 | M178: =($S$30-0.914*$S$30)/6*($M$148-35)+$S$30 -> 0 | N178: =($S$30-0.914*$S$30)/6*($N$148-35)+$S$30 -> 0 | O178: =($S$30-0.914*$S$30)/6*($O$148-35)+$S$30 -> 0 | P178: =($S$30-0.914*$S$30)/6*($P$148-35)+$S$30 -> 0 | Q178: =($S$30-0.914*$S$30)/6*($Q$148-35)+$S$30 -> 0 | R178: =($S$30-0.914*$S$30)/6*($R$148-35)+$S$30 -> 0 | S178: =($S$30-0.914*$S$30)/6*($S$148-35)+$S$30 -> 0 | T178: =($S$30-0.914*$S$30)/6*($T$148-35)+$S$30 -> 0 | U178: =($S$30-0.914*$S$30)/6*($U$148-35)+$S$30 -> 0 | V178: =($S$30-0.914*$S$30)/6*($V$148-35)+$S$30 -> 0 | W178: =($S$30-0.914*$S$30)/6*($W$148-35)+$S$30 -> 0 | X178: =($S$30-0.914*$S$30)/6*($X$148-35)+$S$30 -> 0 | Y178: =($S$30-0.914*$S$30)/6*($Y$148-35)+$S$30 -> 0 | Z178: =($S$30-0.914*$S$30)/6*($Z$148-35)+$S$30 -> 0 | AA178: =($S$30-0.914*$S$30)/6*($AA$148-35)+$S$30 -> 0 | AB178: =($S$30-0.914*$S$30)/6*($AB$148-35)+$S$30 -> 0 | AC178: =($S$30-0.914*$S$30)/6*($AC$148-35)+$S$30 -> 0 | AD178: =($S$30-0.914*$S$30)/6*($AD$148-35)+$S$30 -> 0 | AE178: =($S$30-0.914*$S$30)/6*($AE$148-35)+$S$30 -> 0 | AF178: =($S$30-0.914*$S$30)/6*($AF$148-35)+$S$30 -> 0 | AG178: =($S$30-0.914*$S$30)/6*($AG$148-35)+$S$30 -> 0 | AH178: =($S$30-0.914*$S$30)/6*($AH$148-35)+$S$30 -> 0 | AI178: =($S$30-0.914*$S$30)/6*($AI$148-35)+$S$30 -> 0 | AJ178: =($S$30-0.914*$S$30)/6*($AJ$148-35)+$S$30 -> 0 | AK178: =($S$30-0.914*$S$30)/6*($AK$148-35)+$S$30 -> 0 | AL178: =($S$30-0.914*$S$30)/6*($AL$148-35)+$S$30 -> 0 | AM178: =($S$30-0.914*$S$30)/6*($AM$148-35)+$S$30 -> 0 | AN178: =($S$30-0.914*$S$30)/6*($AN$148-35)+$S$30 -> 0 | AO178: =($S$30-0.914*$S$30)/6*($AO$148-35)+$S$30 -> 0 | AP178: =($S$30-0.914*$S$30)/6*($AP$148-35)+$S$30 -> 0 | AQ178: =($S$30-0.914*$S$30)/6*($AQ$148-35)+$S$30 -> 0 | AR178: =($S$30-0.914*$S$30)/6*($AR$148-35)+$S$30 -> 0 | AS178: =($S$30-0.914*$S$30)/6*($AS$148-35)+$S$30 -> 0 | AT178: 冷房消費電力 | AU178: Pc
C179: 冷房COP | D179: =D$177/D$178 ->  | E179: =E$177/E$178 ->  | AT179: 冷房COP | AU179: σc
C180: 冷房COP比 | D180: =D$179/$AS$179 ->  | AT180: 冷房COP比 | AU180: βc
C181: Σ | D181: =D$161*D$176 ->  | E181: =E$161*E$176 ->  | G181: =G$161*G$176 ->  | AT181: =SUM($D$181:$AS$181) ->  | AU181: Σ
B182: 前4 | C182: 冷房時消費電力比 | D182: =$D$162/$D186 ->  | E182: =$E$162/$E186 ->  | F182: =$F$162/$F186 ->  | G182: =$G$162/$G186 ->  | H182: =$H$162/$H186 ->  | I182: =$I$162/$I186 ->  | J182: =$J$162/$J186 ->  | K182: =$K$162/$K186 ->  | L182: =$L$162/$L186 ->  | M182: =$M$162/$M186 ->  | N182: =$N$162/$N186 ->  | O182: =$O$162/$O186 ->  | P182: =$P$162/$P186 ->  | Q182: =$Q$162/$Q186 ->  | R182: =$R$162/$R186 ->  | S182: =$S$162/$S186 ->  | T182: =$T$162/$T186 ->  | U182: =$U$162/$U186 ->  | V182: =$V$162/$V186 ->  | W182: =$W$162/$W186 ->  | X182: =$X$162/$X186 ->  | Y182: =$Y$162/$Y186 ->  | Z182: =$Z$162/$Z186 ->  | AA182: =$AA$162/$AA186 ->  | AB182: =$AB$162/$AB186 ->  | AC182: =$AC$162/$AC186 ->  | AD182: =$AD$162/$AD186 ->  | AE182: =$AE$162/$AE186 ->  | AF182: =$AF$162/$AF186 ->  | AG182: =$AG$162/$AG186 ->  | AH182: =$AH$162/$AH186 ->  | AI182: =$AI$162/$AI186 ->  | AJ182: =$AJ$162/$AJ186 ->  | AK182: =$AK$162/$AK186 ->  | AL182: =$AL$162/$AL186 ->  | AM182: =$AM$162/$AM186 ->  | AN182: =$AN$162/$AN186 ->  | AO182: =$AO$162/$AO186 ->  | AP182: =$AP$162/$AP186 ->  | AQ182: =$AQ$162/$AQ186 ->  | AR182: =$AR$162/$AR186 ->  | AS182: =$AS$162/$AS186 ->  | AT182: 冷房時消費電力比 | AU182: εc
C183: 冷房能力 | D183: =($T$29-1.077*$T$29)/6*($D$148-35)+$T$29 -> 0 | E183: =($T$29-1.077*$T$29)/6*($E$148-35)+$T$29 -> 0 | F183: =($T$29-1.077*$T$29)/6*($F$148-35)+$T$29 -> 0 | G183: =($T$29-1.077*$T$29)/6*($G$148-35)+$T$29 -> 0 | H183: =($T$29-1.077*$T$29)/6*($H$148-35)+$T$29 -> 0 | I183: =($T$29-1.077*$T$29)/6*($I$148-35)+$T$29 -> 0 | J183: =($T$29-1.077*$T$29)/6*($J$148-35)+$T$29 -> 0 | K183: =($T$29-1.077*$T$29)/6*($K$148-35)+$T$29 -> 0 | L183: =($T$29-1.077*$T$29)/6*($L$148-35)+$T$29 -> 0 | M183: =($T$29-1.077*$T$29)/6*($M$148-35)+$T$29 -> 0 | N183: =($T$29-1.077*$T$29)/6*($N$148-35)+$T$29 -> 0 | O183: =($T$29-1.077*$T$29)/6*($O$148-35)+$T$29 -> 0 | P183: =($T$29-1.077*$T$29)/6*($P$148-35)+$T$29 -> 0 | Q183: =($T$29-1.077*$T$29)/6*($Q$148-35)+$T$29 -> 0 | R183: =($T$29-1.077*$T$29)/6*($R$148-35)+$T$29 -> 0 | S183: =($T$29-1.077*$T$29)/6*($S$148-35)+$T$29 -> 0 | T183: =($T$29-1.077*$T$29)/6*($T$148-35)+$T$29 -> 0 | U183: =($T$29-1.077*$T$29)/6*($U$148-35)+$T$29 -> 0 | V183: =($T$29-1.077*$T$29)/6*($V$148-35)+$T$29 -> 0 | W183: =($T$29-1.077*$T$29)/6*($W$148-35)+$T$29 -> 0 | X183: =($T$29-1.077*$T$29)/6*($X$148-35)+$T$29 -> 0 | Y183: =($T$29-1.077*$T$29)/6*($Y$148-35)+$T$29 -> 0 | Z183: =($T$29-1.077*$T$29)/6*($Z$148-35)+$T$29 -> 0 | AA183: =($T$29-1.077*$T$29)/6*($AA$148-35)+$T$29 -> 0 | AB183: =($T$29-1.077*$T$29)/6*($AB$148-35)+$T$29 -> 0 | AC183: =($T$29-1.077*$T$29)/6*($AC$148-35)+$T$29 -> 0 | AD183: =($T$29-1.077*$T$29)/6*($AD$148-35)+$T$29 -> 0 | AE183: =($T$29-1.077*$T$29)/6*($AE$148-35)+$T$29 -> 0 | AF183: =($T$29-1.077*$T$29)/6*($AF$148-35)+$T$29 -> 0 | AG183: =($T$29-1.077*$T$29)/6*($AG$148-35)+$T$29 -> 0 | AH183: =($T$29-1.077*$T$29)/6*($AH$148-35)+$T$29 -> 0 | AI183: =($T$29-1.077*$T$29)/6*($AI$148-35)+$T$29 -> 0 | AJ183: =($T$29-1.077*$T$29)/6*($AJ$148-35)+$T$29 -> 0 | AK183: =($T$29-1.077*$T$29)/6*($AK$148-35)+$T$29 -> 0 | AL183: =($T$29-1.077*$T$29)/6*($AL$148-35)+$T$29 -> 0 | AM183: =($T$29-1.077*$T$29)/6*($AM$148-35)+$T$29 -> 0 | AN183: =($T$29-1.077*$T$29)/6*($AN$148-35)+$T$29 -> 0 | AO183: =($T$29-1.077*$T$29)/6*($AO$148-35)+$T$29 -> 0 | AP183: =($T$29-1.077*$T$29)/6*($AP$148-35)+$T$29 -> 0 | AQ183: =($T$29-1.077*$T$29)/6*($AQ$148-35)+$T$29 -> 0 | AR183: =($T$29-1.077*$T$29)/6*($AR$148-35)+$T$29 -> 0 | AS183: =($T$29-1.077*$T$29)/6*($AS$148-35)+$T$29 -> 0 | AT183: 冷房能力 | AU183: Φc
C184: 冷房消費電力 | D184: =($T$30-0.914*$T$30)/6*($D$148-35)+$T$30 -> 0 | E184: =($T$30-0.914*$T$30)/6*($E$148-35)+$T$30 -> 0 | F184: =($T$30-0.914*$T$30)/6*($F$148-35)+$T$30 -> 0 | G184: =($T$30-0.914*$T$30)/6*($G$148-35)+$T$30 -> 0 | H184: =($T$30-0.914*$T$30)/6*($H$148-35)+$T$30 -> 0 | I184: =($T$30-0.914*$T$30)/6*($I$148-35)+$T$30 -> 0 | J184: =($T$30-0.914*$T$30)/6*($J$148-35)+$T$30 -> 0 | K184: =($T$30-0.914*$T$30)/6*($K$148-35)+$T$30 -> 0 | L184: =($T$30-0.914*$T$30)/6*($L$148-35)+$T$30 -> 0 | M184: =($T$30-0.914*$T$30)/6*($M$148-35)+$T$30 -> 0 | N184: =($T$30-0.914*$T$30)/6*($N$148-35)+$T$30 -> 0 | O184: =($T$30-0.914*$T$30)/6*($O$148-35)+$T$30 -> 0 | P184: =($T$30-0.914*$T$30)/6*($P$148-35)+$T$30 -> 0 | Q184: =($T$30-0.914*$T$30)/6*($Q$148-35)+$T$30 -> 0 | R184: =($T$30-0.914*$T$30)/6*($R$148-35)+$T$30 -> 0 | S184: =($T$30-0.914*$T$30)/6*($S$148-35)+$T$30 -> 0 | T184: =($T$30-0.914*$T$30)/6*($T$148-35)+$T$30 -> 0 | U184: =($T$30-0.914*$T$30)/6*($U$148-35)+$T$30 -> 0 | V184: =($T$30-0.914*$T$30)/6*($V$148-35)+$T$30 -> 0 | W184: =($T$30-0.914*$T$30)/6*($W$148-35)+$T$30 -> 0 | X184: =($T$30-0.914*$T$30)/6*($X$148-35)+$T$30 -> 0 | Y184: =($T$30-0.914*$T$30)/6*($Y$148-35)+$T$30 -> 0 | Z184: =($T$30-0.914*$T$30)/6*($Z$148-35)+$T$30 -> 0 | AA184: =($T$30-0.914*$T$30)/6*($AA$148-35)+$T$30 -> 0 | AB184: =($T$30-0.914*$T$30)/6*($AB$148-35)+$T$30 -> 0 | AC184: =($T$30-0.914*$T$30)/6*($AC$148-35)+$T$30 -> 0 | AD184: =($T$30-0.914*$T$30)/6*($AD$148-35)+$T$30 -> 0 | AE184: =($T$30-0.914*$T$30)/6*($AE$148-35)+$T$30 -> 0 | AF184: =($T$30-0.914*$T$30)/6*($AF$148-35)+$T$30 -> 0 | AG184: =($T$30-0.914*$T$30)/6*($AG$148-35)+$T$30 -> 0 | AH184: =($T$30-0.914*$T$30)/6*($AH$148-35)+$T$30 -> 0 | AI184: =($T$30-0.914*$T$30)/6*($AI$148-35)+$T$30 -> 0 | AJ184: =($T$30-0.914*$T$30)/6*($AJ$148-35)+$T$30 -> 0 | AK184: =($T$30-0.914*$T$30)/6*($AK$148-35)+$T$30 -> 0 | AL184: =($T$30-0.914*$T$30)/6*($AL$148-35)+$T$30 -> 0 | AM184: =($T$30-0.914*$T$30)/6*($AM$148-35)+$T$30 -> 0 | AN184: =($T$30-0.914*$T$30)/6*($AN$148-35)+$T$30 -> 0 | AO184: =($T$30-0.914*$T$30)/6*($AO$148-35)+$T$30 -> 0 | AP184: =($T$30-0.914*$T$30)/6*($AP$148-35)+$T$30 -> 0 | AQ184: =($T$30-0.914*$T$30)/6*($AQ$148-35)+$T$30 -> 0 | AR184: =($T$30-0.914*$T$30)/6*($AR$148-35)+$T$30 -> 0 | AS184: =($T$30-0.914*$T$30)/6*($AS$148-35)+$T$30 -> 0 | AT184: 冷房消費電力 | AU184: Pc
C185: 冷房COP | D185: =D$183/D$184 ->  | E185: =E$183/E$184 ->  | AT185: 冷房COP | AU185: σc
C186: 冷房COP比 | D186: =D$185/$AS$185 ->  | AT186: 冷房COP比 | AU186: βc
C187: Σ | D187: =D$161*D$182 ->  | E187: =E$161*E$182 ->  | G187: =G$161*G$182 ->  | AT187: =SUM($D$187:$AS$187) ->  | AU187: Σ
B188: 前5 | C188: 冷房時消費電力比 | D188: =$D$162/$D192 ->  | E188: =$E$162/$E192 ->  | F188: =$F$162/$F192 ->  | G188: =$G$162/$G192 ->  | H188: =$H$162/$H192 ->  | I188: =$I$162/$I192 ->  | J188: =$J$162/$J192 ->  | K188: =$K$162/$K192 ->  | L188: =$L$162/$L192 ->  | M188: =$M$162/$M192 ->  | N188: =$N$162/$N192 ->  | O188: =$O$162/$O192 ->  | P188: =$P$162/$P192 ->  | Q188: =$Q$162/$Q192 ->  | R188: =$R$162/$R192 ->  | S188: =$S$162/$S192 ->  | T188: =$T$162/$T192 ->  | U188: =$U$162/$U192 ->  | V188: =$V$162/$V192 ->  | W188: =$W$162/$W192 ->  | X188: =$X$162/$X192 ->  | Y188: =$Y$162/$Y192 ->  | Z188: =$Z$162/$Z192 ->  | AA188: =$AA$162/$AA192 ->  | AB188: =$AB$162/$AB192 ->  | AC188: =$AC$162/$AC192 ->  | AD188: =$AD$162/$AD192 ->  | AE188: =$AE$162/$AE192 ->  | AF188: =$AF$162/$AF192 ->  | AG188: =$AG$162/$AG192 ->  | AH188: =$AH$162/$AH192 ->  | AI188: =$AI$162/$AI192 ->  | AJ188: =$AJ$162/$AJ192 ->  | AK188: =$AK$162/$AK192 ->  | AL188: =$AL$162/$AL192 ->  | AM188: =$AM$162/$AM192 ->  | AN188: =$AN$162/$AN192 ->  | AO188: =$AO$162/$AO192 ->  | AP188: =$AP$162/$AP192 ->  | AQ188: =$AQ$162/$AQ192 ->  | AR188: =$AR$162/$AR192 ->  | AS188: =$AS$162/$AS192 ->  | AT188: 冷房時消費電力比 | AU188: εc
C189: 冷房能力 | D189: =($U$29-1.077*$U$29)/6*($D$148-35)+$U$29 -> 0 | E189: =($U$29-1.077*$U$29)/6*($E$148-35)+$U$29 -> 0 | F189: =($U$29-1.077*$U$29)/6*($F$148-35)+$U$29 -> 0 | G189: =($U$29-1.077*$U$29)/6*($G$148-35)+$U$29 -> 0 | H189: =($U$29-1.077*$U$29)/6*($H$148-35)+$U$29 -> 0 | I189: =($U$29-1.077*$U$29)/6*($I$148-35)+$U$29 -> 0 | J189: =($U$29-1.077*$U$29)/6*($J$148-35)+$U$29 -> 0 | K189: =($U$29-1.077*$U$29)/6*($K$148-35)+$U$29 -> 0 | L189: =($U$29-1.077*$U$29)/6*($L$148-35)+$U$29 -> 0 | M189: =($U$29-1.077*$U$29)/6*($M$148-35)+$U$29 -> 0 | N189: =($U$29-1.077*$U$29)/6*($N$148-35)+$U$29 -> 0 | O189: =($U$29-1.077*$U$29)/6*($O$148-35)+$U$29 -> 0 | P189: =($U$29-1.077*$U$29)/6*($P$148-35)+$U$29 -> 0 | Q189: =($U$29-1.077*$U$29)/6*($Q$148-35)+$U$29 -> 0 | R189: =($U$29-1.077*$U$29)/6*($R$148-35)+$U$29 -> 0 | S189: =($U$29-1.077*$U$29)/6*($S$148-35)+$U$29 -> 0 | T189: =($U$29-1.077*$U$29)/6*($T$148-35)+$U$29 -> 0 | U189: =($U$29-1.077*$U$29)/6*($U$148-35)+$U$29 -> 0 | V189: =($U$29-1.077*$U$29)/6*($V$148-35)+$U$29 -> 0 | W189: =($U$29-1.077*$U$29)/6*($W$148-35)+$U$29 -> 0 | X189: =($U$29-1.077*$U$29)/6*($X$148-35)+$U$29 -> 0 | Y189: =($U$29-1.077*$U$29)/6*($Y$148-35)+$U$29 -> 0 | Z189: =($U$29-1.077*$U$29)/6*($Z$148-35)+$U$29 -> 0 | AA189: =($U$29-1.077*$U$29)/6*($AA$148-35)+$U$29 -> 0 | AB189: =($U$29-1.077*$U$29)/6*($AB$148-35)+$U$29 -> 0 | AC189: =($U$29-1.077*$U$29)/6*($AC$148-35)+$U$29 -> 0 | AD189: =($U$29-1.077*$U$29)/6*($AD$148-35)+$U$29 -> 0 | AE189: =($U$29-1.077*$U$29)/6*($AE$148-35)+$U$29 -> 0 | AF189: =($U$29-1.077*$U$29)/6*($AF$148-35)+$U$29 -> 0 | AG189: =($U$29-1.077*$U$29)/6*($AG$148-35)+$U$29 -> 0 | AH189: =($U$29-1.077*$U$29)/6*($AH$148-35)+$U$29 -> 0 | AI189: =($U$29-1.077*$U$29)/6*($AI$148-35)+$U$29 -> 0 | AJ189: =($U$29-1.077*$U$29)/6*($AJ$148-35)+$U$29 -> 0 | AK189: =($U$29-1.077*$U$29)/6*($AK$148-35)+$U$29 -> 0 | AL189: =($U$29-1.077*$U$29)/6*($AL$148-35)+$U$29 -> 0 | AM189: =($U$29-1.077*$U$29)/6*($AM$148-35)+$U$29 -> 0 | AN189: =($U$29-1.077*$U$29)/6*($AN$148-35)+$U$29 -> 0 | AO189: =($U$29-1.077*$U$29)/6*($AO$148-35)+$U$29 -> 0 | AP189: =($U$29-1.077*$U$29)/6*($AP$148-35)+$U$29 -> 0 | AQ189: =($U$29-1.077*$U$29)/6*($AQ$148-35)+$U$29 -> 0 | AR189: =($U$29-1.077*$U$29)/6*($AR$148-35)+$U$29 -> 0 | AS189: =($U$29-1.077*$U$29)/6*($AS$148-35)+$U$29 -> 0 | AT189: 冷房能力 | AU189: Φc
C190: 冷房消費電力 | D190: =($U$30-0.914*$U$30)/6*($D$148-35)+$U$30 -> 0 | E190: =($U$30-0.914*$U$30)/6*($E$148-35)+$U$30 -> 0 | F190: =($U$30-0.914*$U$30)/6*($F$148-35)+$U$30 -> 0 | G190: =($U$30-0.914*$U$30)/6*($G$148-35)+$U$30 -> 0 | H190: =($U$30-0.914*$U$30)/6*($H$148-35)+$U$30 -> 0 | I190: =($U$30-0.914*$U$30)/6*($I$148-35)+$U$30 -> 0 | J190: =($U$30-0.914*$U$30)/6*($J$148-35)+$U$30 -> 0 | K190: =($U$30-0.914*$U$30)/6*($K$148-35)+$U$30 -> 0 | L190: =($U$30-0.914*$U$30)/6*($L$148-35)+$U$30 -> 0 | M190: =($U$30-0.914*$U$30)/6*($M$148-35)+$U$30 -> 0 | N190: =($U$30-0.914*$U$30)/6*($N$148-35)+$U$30 -> 0 | O190: =($U$30-0.914*$U$30)/6*($O$148-35)+$U$30 -> 0 | P190: =($U$30-0.914*$U$30)/6*($P$148-35)+$U$30 -> 0 | Q190: =($U$30-0.914*$U$30)/6*($Q$148-35)+$U$30 -> 0 | R190: =($U$30-0.914*$U$30)/6*($R$148-35)+$U$30 -> 0 | S190: =($U$30-0.914*$U$30)/6*($S$148-35)+$U$30 -> 0 | T190: =($U$30-0.914*$U$30)/6*($T$148-35)+$U$30 -> 0 | U190: =($U$30-0.914*$U$30)/6*($U$148-35)+$U$30 -> 0 | V190: =($U$30-0.914*$U$30)/6*($V$148-35)+$U$30 -> 0 | W190: =($U$30-0.914*$U$30)/6*($W$148-35)+$U$30 -> 0 | X190: =($U$30-0.914*$U$30)/6*($X$148-35)+$U$30 -> 0 | Y190: =($U$30-0.914*$U$30)/6*($Y$148-35)+$U$30 -> 0 | Z190: =($U$30-0.914*$U$30)/6*($Z$148-35)+$U$30 -> 0 | AA190: =($U$30-0.914*$U$30)/6*($AA$148-35)+$U$30 -> 0 | AB190: =($U$30-0.914*$U$30)/6*($AB$148-35)+$U$30 -> 0 | AC190: =($U$30-0.914*$U$30)/6*($AC$148-35)+$U$30 -> 0 | AD190: =($U$30-0.914*$U$30)/6*($AD$148-35)+$U$30 -> 0 | AE190: =($U$30-0.914*$U$30)/6*($AE$148-35)+$U$30 -> 0 | AF190: =($U$30-0.914*$U$30)/6*($AF$148-35)+$U$30 -> 0 | AG190: =($U$30-0.914*$U$30)/6*($AG$148-35)+$U$30 -> 0 | AH190: =($U$30-0.914*$U$30)/6*($AH$148-35)+$U$30 -> 0 | AI190: =($U$30-0.914*$U$30)/6*($AI$148-35)+$U$30 -> 0 | AJ190: =($U$30-0.914*$U$30)/6*($AJ$148-35)+$U$30 -> 0 | AK190: =($U$30-0.914*$U$30)/6*($AK$148-35)+$U$30 -> 0 | AL190: =($U$30-0.914*$U$30)/6*($AL$148-35)+$U$30 -> 0 | AM190: =($U$30-0.914*$U$30)/6*($AM$148-35)+$U$30 -> 0 | AN190: =($U$30-0.914*$U$30)/6*($AN$148-35)+$U$30 -> 0 | AO190: =($U$30-0.914*$U$30)/6*($AO$148-35)+$U$30 -> 0 | AP190: =($U$30-0.914*$U$30)/6*($AP$148-35)+$U$30 -> 0 | AQ190: =($U$30-0.914*$U$30)/6*($AQ$148-35)+$U$30 -> 0 | AR190: =($U$30-0.914*$U$30)/6*($AR$148-35)+$U$30 -> 0 | AS190: =($U$30-0.914*$U$30)/6*($AS$148-35)+$U$30 -> 0 | AT190: 冷房消費電力 | AU190: Pc
C191: 冷房COP | D191: =D$189/D$190 ->  | E191: =E$189/E$190 ->  | AT191: 冷房COP | AU191: σc
C192: 冷房COP比 | D192: =D$191/$AS$191 ->  | AT192: 冷房COP比 | AU192: βc
C193: Σ | D193: =D$161*D$188 ->  | E193: =E$161*E$188 ->  | G193: =G$161*G$188 ->  | AT193: =SUM($D$193:$AS$193) ->  | AU193: Σ
B194: 前6 | C194: 冷房時消費電力比 | D194: =$D$162/$D198 ->  | E194: =$E$162/$E198 ->  | F194: =$F$162/$F198 ->  | G194: =$G$162/$G198 ->  | H194: =$H$162/$H198 ->  | I194: =$I$162/$I198 ->  | J194: =$J$162/$J198 ->  | K194: =$K$162/$K198 ->  | L194: =$L$162/$L198 ->  | M194: =$M$162/$M198 ->  | N194: =$N$162/$N198 ->  | O194: =$O$162/$O198 ->  | P194: =$P$162/$P198 ->  | Q194: =$Q$162/$Q198 ->  | R194: =$R$162/$R198 ->  | S194: =$S$162/$S198 ->  | T194: =$T$162/$T198 ->  | U194: =$U$162/$U198 ->  | V194: =$V$162/$V198 ->  | W194: =$W$162/$W198 ->  | X194: =$X$162/$X198 ->  | Y194: =$Y$162/$Y198 ->  | Z194: =$Z$162/$Z198 ->  | AA194: =$AA$162/$AA198 ->  | AB194: =$AB$162/$AB198 ->  | AC194: =$AC$162/$AC198 ->  | AD194: =$AD$162/$AD198 ->  | AE194: =$AE$162/$AE198 ->  | AF194: =$AF$162/$AF198 ->  | AG194: =$AG$162/$AG198 ->  | AH194: =$AH$162/$AH198 ->  | AI194: =$AI$162/$AI198 ->  | AJ194: =$AJ$162/$AJ198 ->  | AK194: =$AK$162/$AK198 ->  | AL194: =$AL$162/$AL198 ->  | AM194: =$AM$162/$AM198 ->  | AN194: =$AN$162/$AN198 ->  | AO194: =$AO$162/$AO198 ->  | AP194: =$AP$162/$AP198 ->  | AQ194: =$AQ$162/$AQ198 ->  | AR194: =$AR$162/$AR198 ->  | AS194: =$AS$162/$AS198 ->  | AT194: 冷房時消費電力比 | AU194: εc
